Workbook

Sheet Summary

Sheet InputC
B2: Scenario Number | F2: 1 | G2: 1
I4: 1 | J4: 2 | K4: 3 | L4: 4 | M4: 5 | N4: 6 | O4: 7 | P4: 8
B5: Timing | F5: =INDEX($I5:S5,F$2) -> Base Case | G5: =INDEX($I5:T5,G$2) -> Base Case | I5: Base Case | J5: Base with Cap | K5: + Inflation | L5: + Inflation | M5: + Var OM | N5: - Var OM | O5: Int Rate + | P5: Int Rate -
C6: Acquistion Date | E6: Date | F6: =INDEX($I6:S6,F$2) -> 2024-12-31 | G6: =INDEX($I6:T6,G$2) -> 2024-12-31 | I6: 2024-12-31 | J6: 2024-12-31 | K6: 2024-12-31 | L6: 2024-12-31 | M6: 2024-12-31 | N6: 2024-12-31 | O6: 2024-12-31 | P6: 2024-12-31
C7: Life of Road | E7: Years | F7: =INDEX($I7:S7,F$2) -> 25 | G7: =INDEX($I7:T7,G$2) -> 25 | I7: 25 | J7: 25 | K7: 25 | L7: 25 | M7: 25 | N7: 25 | O7: 25 | P7: 25
C8: End of Life | E8: Date | F8: =INDEX($I8:S8,F$2) -> 2049-12-31 | G8: =INDEX($I8:T8,G$2) -> 2049-12-31 | I8: =EDATE($I6,($I7)*12) -> 2049-12-31 | J8: =EDATE(J6,(J7)*12) -> 2049-12-31 | K8: 2049-12-31 | L8: 2049-12-31 | M8: 2049-12-31 | N8: 2049-12-31 | O8: 2049-12-31 | P8: 2049-12-31
C10: Sale Date | E10: Date | F10: =INDEX($I10:S10,F$2) -> 2030-12-31 | G10: =INDEX($I10:T10,G$2) -> 2030-12-31 | I10: 2030-12-31 | J10: 2030-12-31 | K10: 2030-12-31 | L10: 2030-12-31 | M10: 2030-12-31 | N10: 2030-12-31 | O10: 2030-12-31 | P10: 2030-12-31
B12: Capacity and Volumes
C13: Capacity of Road | E13: km | F13: =INDEX($I13:S13,F$2) -> 50 | G13: =INDEX($I13:T13,G$2) -> 50 | I13: 50 | J13: 50 | K13: 50 | L13: 50 | M13: 50 | N13: 50 | O13: 50 | P13: 50
C15: Intial Car Traffic | E15: Cars/day | F15: =INDEX($I15:S15,F$2) -> 3500 | G15: =INDEX($I15:T15,G$2) -> 3500 | I15: 3500 | J15: 3500 | K15: 3500 | L15: 3500 | M15: 3500 | N15: 3500 | O15: 3500 | P15: 3500
C16: Initial Trucks Traffic | E16: Cars/day | F16: =INDEX($I16:S16,F$2) -> 1500 | G16: =INDEX($I16:T16,G$2) -> 1500 | I16: 1500 | J16: 1500 | K16: 1500 | L16: 1500 | M16: 1500 | N16: 1500 | O16: 1500 | P16: 1500
C18: Car volume Increase | E18: % p.a. | F18: =INDEX($I18:S18,F$2) -> 0.03 | G18: =INDEX($I18:T18,G$2) -> 0.03 | I18: 0.03 | J18: 0.03 | K18: 0.03 | L18: 0.03 | M18: 0.03 | N18: 0.03 | O18: 0.03 | P18: 0.03
C19: Truck Volume Increase | E19: % p.a. | F19: =INDEX($I19:S19,F$2) -> 0.02 | G19: =INDEX($I19:T19,G$2) -> 0.02 | I19: 0.02 | J19: 0.02 | K19: 0.02 | L19: 0.02 | M19: 0.02 | N19: 0.02 | O19: 0.02 | P19: 0.02
C21: Apply Car Traffic Limit | E21: Flag | F21: =INDEX($I21:S21,F$2) -> FALSE | G21: =INDEX($I21:T21,G$2) -> FALSE | I21: FALSE | J21: TRUE | K21: FALSE | L21: TRUE | M21: FALSE | N21: FALSE | O21: FALSE | P21: FALSE
C22: Car Traffic Limit | E22: Cars/day | F22: =INDEX($I22:S22,F$2) -> 5000 | G22: =INDEX($I22:T22,G$2) -> 5000 | I22: 5000 | J22: 5000 | K22: 5000 | L22: 5000 | M22: 5000 | N22: 5000 | O22: 5000 | P22: 5000
B24: Cap Exp, Revenues and Op Exp
C25: Initial Cap Exp | E25: USD | F25: =INDEX($I25:S25,F$2) -> 100000000 | G25: =INDEX($I25:T25,G$2) -> 100000000 | I25: 100000000 | J25: 100000000 | K25: 100000000 | L25: 100000000 | M25: 100000000 | N25: 100000000 | O25: 100000000 | P25: 100000000
C27: Marco - Inflation
D28: Inflation rat | E28: % p.a. | F28: =INDEX($I28:S28,F$2) -> 0.02 | G28: =INDEX($I28:T28,G$2) -> 0.02 | I28: 0.02 | J28: 0.02 | K28: 0.025 | L28: 0.015 | M28: 0.02 | N28: 0.02 | O28: 0.02 | P28: 0.02
D29: Start of Inflation | E29: Date | F29: =INDEX($I29:S29,F$2) -> 2026-01-01 | G29: =INDEX($I29:T29,G$2) -> 2026-01-01 | I29: 2026-01-01 | J29: 2026-01-01 | K29: 2026-01-01 | L29: 2026-01-01 | M29: 2026-01-01 | N29: 2026-01-01 | O29: 2026-01-01 | P29: 2026-01-01
C31: Initial Toll Rates - Car | E31: USD/Car | F31: =INDEX($I31:S31,F$2) -> 5 | G31: =INDEX($I31:T31,G$2) -> 5 | I31: 5 | J31: 5 | K31: 5 | L31: 5 | M31: 5 | N31: 5 | O31: 5 | P31: 5
C32: Initial Toll Rates - Truck | E32: USD/Truck | F32: =INDEX($I32:S32,F$2) -> 10 | G32: =INDEX($I32:T32,G$2) -> 10 | I32: 10 | J32: 10 | K32: 10 | L32: 10 | M32: 10 | N32: 10 | O32: 10 | P32: 10
C33: Capped Toll Rate | E33: USD/Car | F33: =INDEX($I33:S33,F$2) -> 3 | G33: =INDEX($I33:T33,G$2) -> 3 | I33: 3 | J33: 3 | K33: 3 | L33: 3 | M33: 3 | N33: 3 | O33: 3 | P33: 3
C35: Variable O&M | E35: USD/Vehicle | F35: =INDEX($I35:S35,F$2) -> 2 | G35: =INDEX($I35:T35,G$2) -> 2 | I35: 2 | J35: 2 | K35: 2 | L35: 2 | M35: =I35*1.1 -> 2.2 | N35: =F35*0.9 -> 1.8 | O35: 2 | P35: 2
C36: Fixed - Real 2025 | E36: USD/km - year | F36: =INDEX($I36:S36,F$2) -> 10000 | G36: =INDEX($I36:T36,G$2) -> 10000 | I36: 10000 | J36: 10000 | K36: 10000 | L36: 10000 | M36: 10000 | N36: 10000 | O36: 10000 | P36: 10000
B38: Working Capital
C39: A/R Days | E39: Days | F39: =INDEX($I39:S39,F$2) -> 30 | G39: =INDEX($I39:T39,G$2) -> 30 | I39: 30 | J39: 30 | K39: 30 | L39: 30 | M39: 30 | N39: 30 | O39: 30 | P39: 30
C40: A/R Pct of Revenues | E40: % | F40: =INDEX($I40:S40,F$2) -> 0.08219178082 | G40: =INDEX($I40:T40,G$2) -> 0.08219178082 | I40: =I39/365 -> 0.08219178082 | J40: 0.08219178082 | K40: 0.08219178082 | L40: 0.08219178082 | M40: 0.08219178082 | N40: 0.08219178082 | O40: 0.08219178082 | P40: 0.08219178082
C42: A/P Days | E42: Days | F42: =INDEX($I42:S42,F$2) -> 60 | G42: =INDEX($I42:T42,G$2) -> 60 | I42: 60 | J42: 60 | K42: 60 | L42: 60 | M42: 60 | N42: 60 | O42: 60 | P42: 60
C43: A/P as Perent of Cost | E43: % | I43: =I42/365 -> 0.1643835616 | J43: 0.1643835616 | K43: 0.1643835616 | L43: 0.1643835616 | M43: 0.1643835616 | N43: 0.1643835616 | O43: 0.1643835616 | P43: 0.1643835616
B45: Tax and Depreciation
C46: Corporate Tax Rate | E46: % | F46: =INDEX($I46:S46,F$2) -> 0.2 | G46: =INDEX($I46:T46,G$2)*2 -> 0.4 | I46: 0.2 | J46: 0.2 | K46: 0.2 | L46: 0.2 | M46: 0.2 | N46: 0.2 | O46: 0.2 | P46: 0.2
C47: Depreciation Life | E47: Years | F47: =INDEX($I47:S47,F$2) -> 20 | G47: =INDEX($I47:T47,G$2) -> 20 | I47: 20 | J47: 20 | K47: 20 | L47: 20 | M47: 20 | N47: 20 | O47: 20 | P47: 20
B49: Financing and Valuation
C50: DSCR Minimum | E50: x | F50: =INDEX($I50:S50,F$2) -> 1.35 | G50: =INDEX($I50:T50,G$2) -> 1.35 | I50: 1.35 | J50: 1.35 | K50: 1.35 | L50: 1.35 | M50: 1.35 | N50: 1.35 | O50: 1.35 | P50: 1.35
C51: Max Debt to Capital | E51: % | F51: =INDEX($I51:S51,F$2) -> 0.8 | G51: =INDEX($I51:T51,G$2) -> 0.8 | I51: 0.8 | J51: 0.8 | K51: 0.8 | L51: 0.8 | M51: 0.8 | N51: 0.8 | O51: 0.8 | P51: 0.8
C53: Tenure | E53: Years | F53: =INDEX($I53:S53,F$2) -> 20 | G53: =INDEX($I53:T53,G$2) -> 20 | I53: 20 | J53: 15 | K53: 15 | L53: 15 | M53: 15 | N53: 15 | O53: 15 | P53: 15
C54: Interest Rate | E54: % p.a. | F54: =INDEX($I54:S54,F$2) -> 0.03 | G54: =INDEX($I54:T54,G$2) -> 0.03 | I54: 0.03 | J54: 0.03 | K54: 0.03 | L54: 0.03 | M54: 0.03 | N54: 0.03 | O54: 0.0325 | P54: 0.0275
C55: Fees | E55: % | F55: =INDEX($I55:S55,F$2) -> 0.01 | G55: =INDEX($I55:T55,G$2)*0 -> 0 | I55: 0.01 | J55: 0.01 | K55: 0.01 | L55: 0.01 | M55: 0.01 | N55: 0.01 | O55: 0.01 | P55: 0.01
C57: Target IRR | E57: % | F57: =INDEX($I57:S57,F$2) -> 0.08 | G57: =INDEX($I57:T57,G$2) -> 0.08 | I57: 0.08 | J57: 0.08 | K57: 0.08 | L57: 0.08 | M57: 0.08 | N57: 0.08 | O57: 0.08 | P57: 0.08

Sheet Model - Risk and Value
B1: =InputC!F5 -> Base Case
B2: Timing | E2: Units for Input | F2: Constant | G2: Constant | H2: Units for Output | I2: Sum | J2: Initial | K2: 1 | L2: 2 | M2: 3 | N2: 4 | O2: 5 | P2: 6 | Q2: 7 | R2: 8 | S2: 9 | T2: 10 | U2: 11 | V2: 12 | W2: 13 | X2: 14 | Y2: 15 | Z2: 16 | AA2: 17 | AB2: 18 | AC2: 19 | AD2: 20 | AE2: 21 | AF2: 22 | AG2: 23 | AH2: 24 | AI2: 25 | AJ2: 26 | AK2: 27 | AL2: 28 | AM2: 29 | AN2: 30 | AO2: 31 | AP2: 32 | AQ2: 33 | AR2: 34 | AS2: 35 | AT2: 36 | AU2: 37 | AV2: 38 | AW2: 39 | AX2: 40 | AY2: 41 | AZ2: 42 | BA2: 43 | BB2: 44 | BC2: 45 | BD2: 46 | BE2: 47 | BF2: 48 | BG2: 49 | BH2: 50 | BI2: 51 | BJ2: 52 | BK2: 53 | BL2: 54 | BM2: 55 | BN2: 56 | BO2: 57 | BP2: 58 | BQ2: 59 | BR2: 60 | BS2: 61 | BT2: 62 | BU2: 63 | BV2: 64 | BW2: 65 | BX2: 66 | BY2: 67 | BZ2: 68 | CA2: 69 | CB2: 70
C3: Start of Period | K3: =J4+1 -> 2024-07-01 | L3: =K4+1 -> 2025-01-01 | M3: 2025-07-01 | N3: 2026-01-01 | O3: 2026-07-01 | P3: 2027-01-01 | Q3: 2027-07-01 | R3: 2028-01-01 | S3: 2028-07-01 | T3: 2029-01-01 | U3: 2029-07-01 | V3: 2030-01-01 | W3: 2030-07-01 | X3: 2031-01-01 | Y3: 2031-07-01 | Z3: 2032-01-01 | AA3: 2032-07-01 | AB3: 2033-01-01 | AC3: 2033-07-01 | AD3: 2034-01-01 | AE3: 2034-07-01 | AF3: 2035-01-01 | AG3: 2035-07-01 | AH3: 2036-01-01 | AI3: 2036-07-01 | AJ3: 2037-01-01 | AK3: 2037-07-01 | AL3: 2038-01-01 | AM3: 2038-07-01 | AN3: 2039-01-01 | AO3: 2039-07-01 | AP3: 2040-01-01 | AQ3: 2040-07-01 | AR3: 2041-01-01 | AS3: 2041-07-01 | AT3: 2042-01-01 | AU3: 2042-07-01 | AV3: 2043-01-01 | AW3: 2043-07-01 | AX3: 2044-01-01 | AY3: 2044-07-01 | AZ3: 2045-01-01 | BA3: 2045-07-01 | BB3: 2046-01-01 | BC3: 2046-07-01 | BD3: 2047-01-01 | BE3: 2047-07-01 | BF3: 2048-01-01 | BG3: 2048-07-01 | BH3: 2049-01-01 | BI3: 2049-07-01 | BJ3: 2050-01-01 | BK3: 2050-07-01 | BL3: 2051-01-01 | BM3: 2051-07-01 | BN3: 2052-01-01 | BO3: 2052-07-01 | BP3: 2053-01-01 | BQ3: 2053-07-01 | BR3: 2054-01-01 | BS3: 2054-07-01 | BT3: 2055-01-01 | BU3: 2055-07-01 | BV3: 2056-01-01 | BW3: 2056-07-01 | BX3: =BW4+1 -> 2057-01-01 | BY3: 2057-07-01 | BZ3: 2058-01-01 | CA3: 2058-07-01 | CB3: 2059-01-01
C4: End of Period | J4: =EDATE(InputC!F6,-6) -> 2024-06-30 | K4: =EDATE(K3,6)-1 -> 2024-12-31 | L4: =EDATE(L3,6)-1 -> 2025-06-30 | M4: 2025-12-31 | N4: 2026-06-30 | O4: 2026-12-31 | P4: 2027-06-30 | Q4: 2027-12-31 | R4: 2028-06-30 | S4: 2028-12-31 | T4: 2029-06-30 | U4: 2029-12-31 | V4: 2030-06-30 | W4: 2030-12-31 | X4: 2031-06-30 | Y4: 2031-12-31 | Z4: 2032-06-30 | AA4: 2032-12-31 | AB4: 2033-06-30 | AC4: 2033-12-31 | AD4: 2034-06-30 | AE4: 2034-12-31 | AF4: 2035-06-30 | AG4: 2035-12-31 | AH4: 2036-06-30 | AI4: 2036-12-31 | AJ4: 2037-06-30 | AK4: 2037-12-31 | AL4: 2038-06-30 | AM4: 2038-12-31 | AN4: 2039-06-30 | AO4: 2039-12-31 | AP4: 2040-06-30 | AQ4: 2040-12-31 | AR4: 2041-06-30 | AS4: 2041-12-31 | AT4: 2042-06-30 | AU4: 2042-12-31 | AV4: 2043-06-30 | AW4: 2043-12-31 | AX4: 2044-06-30 | AY4: 2044-12-31 | AZ4: 2045-06-30 | BA4: 2045-12-31 | BB4: 2046-06-30 | BC4: 2046-12-31 | BD4: 2047-06-30 | BE4: 2047-12-31 | BF4: 2048-06-30 | BG4: 2048-12-31 | BH4: 2049-06-30 | BI4: 2049-12-31 | BJ4: 2050-06-30 | BK4: 2050-12-31 | BL4: 2051-06-30 | BM4: 2051-12-31 | BN4: 2052-06-30 | BO4: 2052-12-31 | BP4: 2053-06-30 | BQ4: 2053-12-31 | BR4: 2054-06-30 | BS4: 2054-12-31 | BT4: 2055-06-30 | BU4: 2055-12-31 | BV4: 2056-06-30 | BW4: 2056-12-31 | BX4: =EDATE(BX3,6)-1 -> 2057-06-30 | BY4: 2057-12-31 | BZ4: 2058-06-30 | CA4: 2058-12-31 | CB4: 2059-06-30
C5: Acquisition Period | E5: Flag | F5: =InputC!F6 -> 2024-12-31 | H5: Flag | K5: =(K4=$F$5)*1 -> 1 | L5: =(L4=$F$5)*1 -> 0 | M5: 0 | N5: 0 | O5: 0 | P5: 0 | Q5: 0 | R5: 0 | S5: 0 | T5: 0 | U5: 0 | V5: 0 | W5: 0 | X5: 0 | Y5: 0 | Z5: 0 | AA5: 0 | AB5: 0 | AC5: 0 | AD5: 0 | AE5: 0 | AF5: 0 | AG5: 0 | AH5: 0 | AI5: 0 | AJ5: 0 | AK5: 0 | AL5: 0 | AM5: 0 | AN5: 0 | AO5: 0 | AP5: 0 | AQ5: 0 | AR5: 0 | AS5: 0 | AT5: 0 | AU5: 0 | AV5: 0 | AW5: 0 | AX5: 0 | AY5: 0 | AZ5: 0 | BA5: 0 | BB5: 0 | BC5: 0 | BD5: 0 | BE5: 0 | BF5: 0 | BG5: 0 | BH5: 0 | BI5: 0 | BJ5: 0 | BK5: 0 | BL5: 0 | BM5: 0 | BN5: 0 | BO5: 0 | BP5: 0 | BQ5: 0 | BR5: 0 | BS5: 0 | BT5: 0 | BU5: 0 | BV5: 0 | BW5: 0 | BX5: =(BX4=$F$5)*1 -> 0 | BY5: 0 | BZ5: 0 | CA5: 0 | CB5: 0
C6: Operation Perid | E6: Flag | F6: =InputC!F8 -> 2049-12-31 | H6: Flag | I6: =SUM(K6:XFD6) -> 50 | K6: =(AND(NOT(K5),K4<=$F$6))*1 -> 0 | L6: =(AND(NOT(L5),L4<=$F$6))*1 -> 1 | M6: 1 | N6: 1 | O6: 1 | P6: 1 | Q6: 1 | R6: 1 | S6: 1 | T6: 1 | U6: 1 | V6: 1 | W6: 1 | X6: 1 | Y6: 1 | Z6: 1 | AA6: 1 | AB6: 1 | AC6: 1 | AD6: 1 | AE6: 1 | AF6: 1 | AG6: 1 | AH6: 1 | AI6: 1 | AJ6: 1 | AK6: 1 | AL6: 1 | AM6: 1 | AN6: 1 | AO6: 1 | AP6: 1 | AQ6: 1 | AR6: 1 | AS6: 1 | AT6: 1 | AU6: 1 | AV6: 1 | AW6: 1 | AX6: 1 | AY6: 1 | AZ6: 1 | BA6: 1 | BB6: 1 | BC6: 1 | BD6: 1 | BE6: 1 | BF6: 1 | BG6: 1 | BH6: 1 | BI6: 1 | BJ6: 0 | BK6: 0 | BL6: 0 | BM6: 0 | BN6: 0 | BO6: 0 | BP6: 0 | BQ6: 0 | BR6: 0 | BS6: 0 | BT6: 0 | BU6: 0 | BV6: 0 | BW6: 0 | BX6: =(AND(NOT(BX5),BX4<=$F$6))*1 -> 0 | BY6: 0 | BZ6: 0 | CA6: 0 | CB6: 0
C7: Sale Date | E7: Flag | F7: =InputC!F10 -> 2030-12-31 | H7: Flag | I7: =SUM(K7:XFD7) -> 1 | K7: =(K4=$F$7)*1 -> 0 | L7: =(L4=$F$7)*1 -> 0 | M7: 0 | N7: 0 | O7: 0 | P7: 0 | Q7: 0 | R7: 0 | S7: 0 | T7: 0 | U7: 0 | V7: 0 | W7: 1 | X7: 0 | Y7: 0 | Z7: 0 | AA7: 0 | AB7: 0 | AC7: 0 | AD7: 0 | AE7: 0 | AF7: 0 | AG7: 0 | AH7: 0 | AI7: 0 | AJ7: 0 | AK7: 0 | AL7: 0 | AM7: 0 | AN7: 0 | AO7: 0 | AP7: 0 | AQ7: 0 | AR7: 0 | AS7: 0 | AT7: 0 | AU7: 0 | AV7: 0 | AW7: 0 | AX7: 0 | AY7: 0 | AZ7: 0 | BA7: 0 | BB7: 0 | BC7: 0 | BD7: 0 | BE7: 0 | BF7: 0 | BG7: 0 | BH7: 0 | BI7: 0 | BJ7: 0 | BK7: 0 | BL7: 0 | BM7: 0 | BN7: 0 | BO7: 0 | BP7: 0 | BQ7: 0 | BR7: 0 | BS7: 0 | BT7: 0 | BU7: 0 | BV7: 0 | BW7: 0 | BX7: =(BX4=$F$7)*1 -> 0 | BY7: 0 | BZ7: 0 | CA7: 0 | CB7: 0
C8: Days in Period | E8: Days | K8: =K4-K3+1 -> 184 | L8: =L4-L3+1 -> 181 | M8: 184 | N8: 181 | O8: 184 | P8: 181 | Q8: 184 | R8: 182 | S8: 184 | T8: 181 | U8: 184 | V8: 181 | W8: 184 | X8: 181 | Y8: 184 | Z8: 182 | AA8: 184 | AB8: 181 | AC8: 184 | AD8: 181 | AE8: 184 | AF8: 181 | AG8: 184 | AH8: 182 | AI8: 184 | AJ8: 181 | AK8: 184 | AL8: 181 | AM8: 184 | AN8: 181 | AO8: 184 | AP8: 182 | AQ8: 184 | AR8: 181 | AS8: 184 | AT8: 181 | AU8: 184 | AV8: 181 | AW8: 184 | AX8: 182 | AY8: 184 | AZ8: 181 | BA8: 184 | BB8: 181 | BC8: 184 | BD8: 181 | BE8: 184 | BF8: 182 | BG8: 184 | BH8: 181 | BI8: 184 | BJ8: 181 | BK8: 184 | BL8: 181 | BM8: 184 | BN8: 182 | BO8: 184 | BP8: 181 | BQ8: 184 | BR8: 181 | BS8: 184 | BT8: 181 | BU8: 184 | BV8: 182 | BW8: 184 | BX8: =BX4-BX3+1 -> 181 | BY8: 184 | BZ8: 181 | CA8: 184 | CB8: 181
B10: Capacity and Volumes
C11: Road Capacity | E11: km | F11: =InputC!F13 -> 50 | H11: km | K11: =$F11*K$6 -> 0 | L11: =$F11*L$6 -> 50 | M11: 50 | N11: 50 | O11: 50 | P11: 50 | Q11: 50 | R11: 50 | S11: 50 | T11: 50 | U11: 50 | V11: 50 | W11: 50 | X11: 50 | Y11: 50 | Z11: 50 | AA11: 50 | AB11: 50 | AC11: 50 | AD11: 50 | AE11: 50 | AF11: 50 | AG11: 50 | AH11: 50 | AI11: 50 | AJ11: 50 | AK11: 50 | AL11: 50 | AM11: 50 | AN11: 50 | AO11: 50 | AP11: 50 | AQ11: 50 | AR11: 50 | AS11: 50 | AT11: 50 | AU11: 50 | AV11: 50 | AW11: 50 | AX11: 50 | AY11: 50 | AZ11: 50 | BA11: 50 | BB11: 50 | BC11: 50 | BD11: 50 | BE11: 50 | BF11: 50 | BG11: 50 | BH11: 50 | BI11: 50 | BJ11: 0 | BK11: 0 | BL11: 0 | BM11: 0 | BN11: 0 | BO11: 0 | BP11: 0 | BQ11: 0 | BR11: 0 | BS11: 0 | BT11: 0 | BU11: 0 | BV11: 0 | BW11: 0 | BX11: =$F11*BX$6 -> 0 | BY11: 0 | BZ11: 0 | CA11: 0 | CB11: 0
C13: Car Volumes - Base | E13: Cars/Day | F13: =InputC!F15 -> 3500 | H13: Cars/Period | K13: =$F$13*K6*K8 -> 0 | L13: =$F$13*L6*L8 -> 633500 | M13: 644000 | N13: 633500 | O13: 644000 | P13: 633500 | Q13: 644000 | R13: 637000 | S13: 644000 | T13: 633500 | U13: 644000 | V13: 633500 | W13: 644000 | X13: 633500 | Y13: 644000 | Z13: 637000 | AA13: 644000 | AB13: 633500 | AC13: 644000 | AD13: 633500 | AE13: 644000 | AF13: 633500 | AG13: 644000 | AH13: 637000 | AI13: 644000 | AJ13: 633500 | AK13: 644000 | AL13: 633500 | AM13: 644000 | AN13: 633500 | AO13: 644000 | AP13: 637000 | AQ13: 644000 | AR13: 633500 | AS13: 644000 | AT13: 633500 | AU13: 644000 | AV13: 633500 | AW13: 644000 | AX13: 637000 | AY13: 644000 | AZ13: 633500 | BA13: 644000 | BB13: 633500 | BC13: 644000 | BD13: 633500 | BE13: 644000 | BF13: 637000 | BG13: 644000 | BH13: 633500 | BI13: 644000 | BJ13: 0 | BK13: 0 | BL13: 0 | BM13: 0 | BN13: 0 | BO13: 0 | BP13: 0 | BQ13: 0 | BR13: 0 | BS13: 0 | BT13: 0 | BU13: 0 | BV13: 0 | BW13: 0 | BX13: =$F$13*BX6*BX8 -> 0 | BY13: 0 | BZ13: 0 | CA13: 0 | CB13: 0
C14: Escalation Period | E14: Date | F14: =EDATE(F5,12)+1 -> 2026-01-01 | H14: Flag | K14: =(K3>=$F$14)*1 -> 0 | L14: =(L3>=$F$14)*1 -> 0 | M14: 0 | N14: 1 | O14: 1 | P14: 1 | Q14: 1 | R14: 1 | S14: 1 | T14: 1 | U14: 1 | V14: 1 | W14: 1 | X14: 1 | Y14: 1 | Z14: 1 | AA14: 1 | AB14: 1 | AC14: 1 | AD14: 1 | AE14: 1 | AF14: 1 | AG14: 1 | AH14: 1 | AI14: 1 | AJ14: 1 | AK14: 1 | AL14: 1 | AM14: 1 | AN14: 1 | AO14: 1 | AP14: 1 | AQ14: 1 | AR14: 1 | AS14: 1 | AT14: 1 | AU14: 1 | AV14: 1 | AW14: 1 | AX14: 1 | AY14: 1 | AZ14: 1 | BA14: 1 | BB14: 1 | BC14: 1 | BD14: 1 | BE14: 1 | BF14: 1 | BG14: 1 | BH14: 1 | BI14: 1 | BJ14: 1 | BK14: 1 | BL14: 1 | BM14: 1 | BN14: 1 | BO14: 1 | BP14: 1 | BQ14: 1 | BR14: 1 | BS14: 1 | BT14: 1 | BU14: 1 | BV14: 1 | BW14: 1 | BX14: =(BX3>=$F$14)*1 -> 1 | BY14: 1 | BZ14: 1 | CA14: 1 | CB14: 1
C15: Growth Index | E15: % p.a. | F15: =InputC!F18 -> 0.03 | G15: =(1+F15)^(1/2)-1 -> 0.01488915651 | H15: index | J15: 1 | K15: =J15*(1+$G$15*K14) -> 1 | L15: =K15*(1+$G$15*L14) -> 1 | M15: 1 | N15: 1.014889157 | O15: 1.03 | P15: 1.045335831 | Q15: 1.0609 | R15: 1.076695906 | S15: 1.092727 | T15: 1.108996783 | U15: 1.12550881 | V15: 1.142266687 | W15: 1.159274074 | X15: 1.176534687 | Y15: 1.194052297 | Z15: 1.211830728 | AA15: 1.229873865 | AB15: 1.24818565 | AC15: 1.266770081 | AD15: 1.285631219 | AE15: 1.304773184 | AF15: 1.324200156 | AG15: 1.343916379 | AH15: 1.363926161 | AI15: 1.384233871 | AJ15: 1.404843945 | AK15: 1.425760887 | AL15: 1.446989264 | AM15: 1.468533713 | AN15: 1.490398942 | AO15: 1.512589725 | AP15: 1.53511091 | AQ15: 1.557967417 | AR15: 1.581164237 | AS15: 1.604706439 | AT15: 1.628599164 | AU15: 1.652847632 | AV15: 1.677457139 | AW15: 1.702433061 | AX15: 1.727780854 | AY15: 1.753506053 | AZ15: 1.779614279 | BA15: 1.806111235 | BB15: 1.833002708 | BC15: 1.860294572 | BD15: 1.887992789 | BE15: 1.916103409 | BF15: 1.944632572 | BG15: 1.973586511 | BH15: 2.00297155 | BI15: 2.032794106 | BJ15: 2.063060696 | BK15: 2.09377793 | BL15: 2.124952517 | BM15: 2.156591268 | BN15: 2.188701092 | BO15: 2.221289006 | BP15: 2.254362125 | BQ15: 2.287927676 | BR15: 2.321992989 | BS15: 2.356565506 | BT15: 2.391652779 | BU15: 2.427262471 | BV15: 2.463402362 | BW15: 2.500080345 | BX15: =BW15*(1+$G$15*BX14) -> 2.537304433 | BY15: 2.575082756 | BZ15: 2.613423566 | CA15: 2.652335238 | CB15: 2.691826273
C16: Car Volumes with Growth | E16: Cars/Day | H16: Cars/Period | K16: =K15*K13 -> 0 | L16: =L15*L13 -> 633500 | M16: 644000 | N16: 642932.2806 | O16: 663320 | P16: 662220.2491 | Q16: 683219.6 | R16: 685855.2922 | S16: 703716.188 | T16: 702549.4622 | U16: 724827.6736 | V16: 723625.9461 | W16: 746572.5038 | X16: 745334.7245 | Y16: 768969.679 | Z16: 771936.1738 | AA16: 792038.7693 | AB16: 790725.6092 | AC16: 815799.9324 | AD16: 814447.3775 | AE16: 840273.9304 | AF16: 838880.7988 | AG16: 865482.1483 | AH16: 868820.9643 | AI16: 891446.6127 | AJ16: 889968.6395 | AK16: 918190.0111 | AL16: 916667.6986 | AM16: 945735.7115 | AN16: 944167.7296 | AO16: 974107.7828 | AP16: 977865.6497 | AQ16: 1003331.016 | AR16: 1001667.544 | AS16: 1033430.947 | AT16: 1031717.571 | AU16: 1064433.875 | AV16: 1062669.098 | AW16: 1096366.891 | AX16: 1100596.404 | AY16: 1129257.898 | AZ16: 1127385.646 | BA16: 1163135.635 | BB16: 1161207.215 | BC16: 1198029.704 | BD16: 1196043.432 | BE16: 1233970.595 | BF16: 1238730.949 | BG16: 1270989.713 | BH16: 1268882.477 | BI16: 1309119.405 | BJ16: 0 | BK16: 0 | BL16: 0 | BM16: 0 | BN16: 0 | BO16: 0 | BP16: 0 | BQ16: 0 | BR16: 0 | BS16: 0 | BT16: 0 | BU16: 0 | BV16: 0 | BW16: 0 | BX16: =BX15*BX13 -> 0 | BY16: 0 | BZ16: 0 | CA16: 0 | CB16: 0
C18: Truck Volumes - Base | E18: Trucks/Day | F18: =InputC!F16 -> 1500 | H18: Trucks/Period | K18: =$F$18*K6*K8 -> 0 | L18: =$F$18*L6*L8 -> 271500 | M18: 276000 | N18: 271500 | O18: 276000 | P18: 271500 | Q18: 276000 | R18: 273000 | S18: 276000 | T18: 271500 | U18: 276000 | V18: 271500 | W18: 276000 | X18: 271500 | Y18: 276000 | Z18: 273000 | AA18: 276000 | AB18: 271500 | AC18: 276000 | AD18: 271500 | AE18: 276000 | AF18: 271500 | AG18: 276000 | AH18: 273000 | AI18: 276000 | AJ18: 271500 | AK18: 276000 | AL18: 271500 | AM18: 276000 | AN18: 271500 | AO18: 276000 | AP18: 273000 | AQ18: 276000 | AR18: 271500 | AS18: 276000 | AT18: 271500 | AU18: 276000 | AV18: 271500 | AW18: 276000 | AX18: 273000 | AY18: 276000 | AZ18: 271500 | BA18: 276000 | BB18: 271500 | BC18: 276000 | BD18: 271500 | BE18: 276000 | BF18: 273000 | BG18: 276000 | BH18: 271500 | BI18: 276000 | BJ18: 0 | BK18: 0 | BL18: 0 | BM18: 0 | BN18: 0 | BO18: 0 | BP18: 0 | BQ18: 0 | BR18: 0 | BS18: 0 | BT18: 0 | BU18: 0 | BV18: 0 | BW18: 0 | BX18: =$F$18*BX6*BX8 -> 0 | BY18: 0 | BZ18: 0 | CA18: 0 | CB18: 0
C19: Growth Index | E19: % p.a. | F19: =InputC!F19 -> 0.02 | G19: =(1+F19)^(1/2)-1 -> 0.009950493836 | H19: index | J19: 1 | K19: =J19*(1+$G$19*K14) -> 1 | L19: =K19*(1+$G$19*L14) -> 1 | M19: 1 | N19: 1.009950494 | O19: 1.02 | P19: 1.030149504 | Q19: 1.0404 | R19: 1.050752494 | S19: 1.061208 | T19: 1.071767544 | U19: 1.08243216 | V19: 1.093202895 | W19: 1.104080803 | X19: 1.115066952 | Y19: 1.126162419 | Z19: 1.137368291 | AA19: 1.148685668 | AB19: 1.160115657 | AC19: 1.171659381 | AD19: 1.18331797 | AE19: 1.195092569 | AF19: 1.20698433 | AG19: 1.21899442 | AH19: 1.231124016 | AI19: 1.243374308 | AJ19: 1.255746497 | AK19: 1.268241795 | AL19: 1.280861427 | AM19: 1.29360663 | AN19: 1.306478655 | AO19: 1.319478763 | AP19: 1.332608228 | AQ19: 1.345868338 | AR19: 1.359260393 | AS19: 1.372785705 | AT19: 1.386445601 | AU19: 1.400241419 | AV19: 1.414174513 | AW19: 1.428246248 | AX19: 1.442458003 | AY19: 1.456811173 | AZ19: 1.471307163 | BA19: 1.485947396 | BB19: 1.500733306 | BC19: 1.515666344 | BD19: 1.530747973 | BE19: 1.545979671 | BF19: 1.561362932 | BG19: 1.576899264 | BH19: 1.592590191 | BI19: 1.608437249 | BJ19: 1.624441994 | BK19: 1.640605994 | BL19: 1.656930834 | BM19: 1.673418114 | BN19: 1.690069451 | BO19: 1.706886477 | BP19: 1.72387084 | BQ19: 1.741024206 | BR19: 1.758348257 | BS19: 1.77584469 | BT19: 1.793515222 | BU19: 1.811361584 | BV19: 1.829385526 | BW19: 1.847588816 | BX19: =BW19*(1+$G$19*BX14) -> 1.865973237 | BY19: 1.884540592 | BZ19: 1.903292702 | CA19: 1.922231404 | CB19: 1.941358556
C20: Truck Volumes with Growth | E20: Trucks/Day | H20: Trucks/Period | K20: =K19*K18 -> 0 | L20: =L19*L18 -> 271500 | M20: 276000 | N20: 274201.5591 | O20: 281520 | P20: 279685.5903 | Q20: 287150.4 | R20: 286855.4308 | S20: 292893.408 | T20: 290984.8881 | U20: 298751.2762 | V20: 296804.5859 | W20: 304726.3017 | X20: 302740.6776 | Y20: 310820.8277 | Z20: 310501.5436 | AA20: 317037.2443 | AB20: 314971.401 | AC20: 323377.9892 | AD20: 321270.829 | AE20: 329845.5489 | AF20: 327696.2456 | AG20: 336442.4599 | AH20: 336096.8565 | AI20: 343171.3091 | AJ20: 340935.1739 | AK20: 350034.7353 | AL20: 347753.8774 | AM20: 357035.43 | AN20: 354708.9549 | AO20: 364176.1386 | AP20: 363802.0463 | AQ20: 371459.6614 | AR20: 369039.1967 | AS20: 378888.8546 | AT20: 376419.9806 | AU20: 386466.6317 | AV20: 383948.3802 | AW20: 394195.9643 | AX20: 393791.0348 | AY20: 402079.8836 | AZ20: 399459.8948 | BA20: 410121.4813 | BB20: 407449.0927 | BC20: 418323.9109 | BD20: 415598.0745 | BE20: 426690.3891 | BF20: 426252.0804 | BG20: 435224.1969 | BH20: 432388.2367 | BI20: 443928.6809 | BJ20: 0 | BK20: 0 | BL20: 0 | BM20: 0 | BN20: 0 | BO20: 0 | BP20: 0 | BQ20: 0 | BR20: 0 | BS20: 0 | BT20: 0 | BU20: 0 | BV20: 0 | BW20: 0 | BX20: =BX19*BX18 -> 0 | BY20: 0 | BZ20: 0 | CA20: 0 | CB20: 0
C22: Total Vehicles per Period | E22: Vehicles | K22: =K20+K16 -> 0 | L22: =L20+L16 -> 905000 | M22: 920000 | N22: 917133.8397 | O22: 944840 | P22: 941905.8393 | Q22: 970370 | R22: 972710.723 | S22: 996609.596 | T22: 993534.3503 | U22: 1023578.95 | V22: 1020430.532 | W22: 1051298.806 | X22: 1048075.402 | Y22: 1079790.507 | Z22: 1082437.717 | AA22: 1109076.014 | AB22: 1105697.01 | AC22: 1139177.922 | AD22: 1135718.206 | AE22: 1170119.479 | AF22: 1166577.044 | AG22: 1201924.608 | AH22: 1204917.821 | AI22: 1234617.922 | AJ22: 1230903.813 | AK22: 1268224.746 | AL22: 1264421.576 | AM22: 1302771.141 | AN22: 1298876.685 | AO22: 1338283.921 | AP22: 1341667.696 | AQ22: 1374790.678 | AR22: 1370706.741 | AS22: 1412319.801 | AT22: 1408137.551 | AU22: 1450900.507 | AV22: 1446617.478 | AW22: 1490562.856 | AX22: 1494387.439 | AY22: 1531337.782 | AZ22: 1526845.541 | BA22: 1573257.116 | BB22: 1568656.308 | BC22: 1616353.615 | BD22: 1611641.506 | BE22: 1660660.984 | BF22: 1664983.029 | BG22: 1706213.91 | BH22: 1701270.713 | BI22: 1753048.085 | BJ22: 0 | BK22: 0 | BL22: 0 | BM22: 0 | BN22: 0 | BO22: 0 | BP22: 0 | BQ22: 0 | BR22: 0 | BS22: 0 | BT22: 0 | BU22: 0 | BV22: 0 | BW22: 0 | BX22: =BX20+BX16 -> 0 | BY22: 0 | BZ22: 0 | CA22: 0 | CB22: 0
C24: Total Car Volumes | E24: Cars | H24: Cars/Period | K24: =K16 -> 0 | L24: =L16 -> 633500 | M24: 644000 | N24: 642932.2806 | O24: 663320 | P24: 662220.2491 | Q24: 683219.6 | R24: 685855.2922 | S24: 703716.188 | T24: 702549.4622 | U24: 724827.6736 | V24: 723625.9461 | W24: 746572.5038 | X24: 745334.7245 | Y24: 768969.679 | Z24: 771936.1738 | AA24: 792038.7693 | AB24: 790725.6092 | AC24: 815799.9324 | AD24: 814447.3775 | AE24: 840273.9304 | AF24: 838880.7988 | AG24: 865482.1483 | AH24: 868820.9643 | AI24: 891446.6127 | AJ24: 889968.6395 | AK24: 918190.0111 | AL24: 916667.6986 | AM24: 945735.7115 | AN24: 944167.7296 | AO24: 974107.7828 | AP24: 977865.6497 | AQ24: 1003331.016 | AR24: 1001667.544 | AS24: 1033430.947 | AT24: 1031717.571 | AU24: 1064433.875 | AV24: 1062669.098 | AW24: 1096366.891 | AX24: 1100596.404 | AY24: 1129257.898 | AZ24: 1127385.646 | BA24: 1163135.635 | BB24: 1161207.215 | BC24: 1198029.704 | BD24: 1196043.432 | BE24: 1233970.595 | BF24: 1238730.949 | BG24: 1270989.713 | BH24: 1268882.477 | BI24: 1309119.405 | BJ24: 0 | BK24: 0 | BL24: 0 | BM24: 0 | BN24: 0 | BO24: 0 | BP24: 0 | BQ24: 0 | BR24: 0 | BS24: 0 | BT24: 0 | BU24: 0 | BV24: 0 | BW24: 0 | BX24: =BX16 -> 0 | BY24: 0 | BZ24: 0 | CA24: 0 | CB24: 0
C25: Maximum Volumes | E25: Cars/Day | F25: =InputC!F22 -> 5000 | H25: Cars | K25: =$F$25*K6 -> 0 | L25: 5000 | M25: 5000 | N25: 5000 | O25: 5000 | P25: 5000 | Q25: 5000 | R25: 5000 | S25: 5000 | T25: 5000 | U25: 5000 | V25: 5000 | W25: 5000 | X25: 5000 | Y25: 5000 | Z25: 5000 | AA25: 5000 | AB25: 5000 | AC25: 5000 | AD25: 5000 | AE25: 5000 | AF25: 5000 | AG25: 5000 | AH25: 5000 | AI25: 5000 | AJ25: 5000 | AK25: 5000 | AL25: 5000 | AM25: 5000 | AN25: 5000 | AO25: 5000 | AP25: 5000 | AQ25: =$F$25*AQ6 -> 5000 | AR25: 5000 | AS25: 5000 | AT25: 5000 | AU25: 5000 | AV25: 5000 | AW25: 5000 | AX25: 5000 | AY25: 5000 | AZ25: 5000 | BA25: 5000 | BB25: 5000 | BC25: 5000 | BD25: 5000 | BE25: 5000 | BF25: 5000 | BG25: 5000 | BH25: 5000 | BI25: 5000 | BJ25: 0 | BK25: 0 | BL25: 0 | BM25: 0 | BN25: 0 | BO25: 0 | BP25: 0 | BQ25: 0 | BR25: 0 | BS25: 0 | BT25: 0 | BU25: 0 | BV25: 0 | BW25: =$F$25*BW6 -> 0 | BX25: 0 | BY25: 0 | BZ25: 0 | CA25: 0 | CB25: 0
C26: Maximum Volumes | E26: Cars/Period | H26: Cars/Period | K26: =K25*K8 -> 0 | L26: 905000 | M26: 920000 | N26: 905000 | O26: 920000 | P26: 905000 | Q26: 920000 | R26: 910000 | S26: 920000 | T26: 905000 | U26: 920000 | V26: 905000 | W26: 920000 | X26: 905000 | Y26: 920000 | Z26: 910000 | AA26: 920000 | AB26: 905000 | AC26: 920000 | AD26: 905000 | AE26: 920000 | AF26: 905000 | AG26: 920000 | AH26: 910000 | AI26: 920000 | AJ26: 905000 | AK26: 920000 | AL26: 905000 | AM26: 920000 | AN26: 905000 | AO26: 920000 | AP26: 910000 | AQ26: =AQ25*AQ8 -> 920000 | AR26: 905000 | AS26: 920000 | AT26: 905000 | AU26: 920000 | AV26: 905000 | AW26: 920000 | AX26: 910000 | AY26: 920000 | AZ26: 905000 | BA26: 920000 | BB26: 905000 | BC26: 920000 | BD26: 905000 | BE26: 920000 | BF26: 910000 | BG26: 920000 | BH26: 905000 | BI26: 920000 | BJ26: 0 | BK26: 0 | BL26: 0 | BM26: 0 | BN26: 0 | BO26: 0 | BP26: 0 | BQ26: 0 | BR26: 0 | BS26: 0 | BT26: 0 | BU26: 0 | BV26: 0 | BW26: =BW25*BW8 -> 0 | BX26: 0 | BY26: 0 | BZ26: 0 | CA26: 0 | CB26: 0
C27: Volumes with Lower Rate | E27: Cars | F27: =InputC!$F$21 -> FALSE | H27: Cars/Period | K27: =MAX(K24-K26,0)*$F$27 -> 0 | L27: =MAX(L24-L26,0)*$F$27 -> 0 | M27: 0 | N27: 0 | O27: 0 | P27: 0 | Q27: 0 | R27: 0 | S27: 0 | T27: 0 | U27: 0 | V27: 0 | W27: 0 | X27: 0 | Y27: 0 | Z27: 0 | AA27: 0 | AB27: 0 | AC27: 0 | AD27: 0 | AE27: 0 | AF27: 0 | AG27: 0 | AH27: 0 | AI27: 0 | AJ27: 0 | AK27: 0 | AL27: 0 | AM27: 0 | AN27: 0 | AO27: 0 | AP27: 0 | AQ27: 0 | AR27: 0 | AS27: 0 | AT27: 0 | AU27: 0 | AV27: 0 | AW27: 0 | AX27: 0 | AY27: 0 | AZ27: 0 | BA27: 0 | BB27: 0 | BC27: 0 | BD27: 0 | BE27: 0 | BF27: 0 | BG27: 0 | BH27: 0 | BI27: 0 | BJ27: 0 | BK27: 0 | BL27: 0 | BM27: 0 | BN27: 0 | BO27: 0 | BP27: 0 | BQ27: 0 | BR27: 0 | BS27: 0 | BT27: 0 | BU27: 0 | BV27: 0 | BW27: 0 | BX27: =MAX(BX24-BX26,0)*$F$27 -> 0 | BY27: 0 | BZ27: 0 | CA27: 0 | CB27: 0
C28: Volumes with Base Rate | E28: Cars | H28: Cars/Period | K28: =K24-K27 -> 0 | L28: =L24-L27 -> 633500 | M28: 644000 | N28: 642932.2806 | O28: 663320 | P28: 662220.2491 | Q28: 683219.6 | R28: 685855.2922 | S28: 703716.188 | T28: 702549.4622 | U28: 724827.6736 | V28: 723625.9461 | W28: 746572.5038 | X28: 745334.7245 | Y28: 768969.679 | Z28: 771936.1738 | AA28: 792038.7693 | AB28: 790725.6092 | AC28: 815799.9324 | AD28: 814447.3775 | AE28: 840273.9304 | AF28: 838880.7988 | AG28: 865482.1483 | AH28: 868820.9643 | AI28: 891446.6127 | AJ28: 889968.6395 | AK28: 918190.0111 | AL28: 916667.6986 | AM28: 945735.7115 | AN28: 944167.7296 | AO28: 974107.7828 | AP28: 977865.6497 | AQ28: 1003331.016 | AR28: 1001667.544 | AS28: 1033430.947 | AT28: 1031717.571 | AU28: 1064433.875 | AV28: 1062669.098 | AW28: 1096366.891 | AX28: 1100596.404 | AY28: 1129257.898 | AZ28: 1127385.646 | BA28: 1163135.635 | BB28: 1161207.215 | BC28: 1198029.704 | BD28: 1196043.432 | BE28: 1233970.595 | BF28: 1238730.949 | BG28: 1270989.713 | BH28: 1268882.477 | BI28: 1309119.405 | BJ28: 0 | BK28: 0 | BL28: 0 | BM28: 0 | BN28: 0 | BO28: 0 | BP28: 0 | BQ28: 0 | BR28: 0 | BS28: 0 | BT28: 0 | BU28: 0 | BV28: 0 | BW28: 0 | BX28: =BX24-BX27 -> 0 | BY28: 0 | BZ28: 0 | CA28: 0 | CB28: 0
B31: Revenues, Expensea and Cap Exp
C32: Cap Exp/Headline Price for Investment | E32: USD | F32: 183497044.9 | G32: headline | I32: =SUM(J32:XFD32) -> 183497044.9 | J32: =$F$32*J5 -> 0 | K32: 183497044.9 | L32: 0 | M32: 0 | N32: 0 | O32: 0 | P32: 0 | Q32: 0 | R32: 0 | S32: 0 | T32: 0 | U32: 0 | V32: 0 | W32: 0 | X32: 0 | Y32: 0 | Z32: 0 | AA32: 0 | AB32: 0 | AC32: 0 | AD32: 0 | AE32: 0 | AF32: 0 | AG32: 0 | AH32: 0 | AI32: 0 | AJ32: 0 | AK32: 0 | AL32: 0 | AM32: 0 | AN32: 0 | AO32: 0 | AP32: =$F$32*AP5 -> 0 | AQ32: 0 | AR32: 0 | AS32: 0 | AT32: 0 | AU32: 0 | AV32: 0 | AW32: 0 | AX32: 0 | AY32: 0 | AZ32: 0 | BA32: 0 | BB32: 0 | BC32: 0 | BD32: 0 | BE32: 0 | BF32: 0 | BG32: 0 | BH32: 0 | BI32: 0 | BJ32: 0 | BK32: 0 | BL32: 0 | BM32: 0 | BN32: 0 | BO32: 0 | BP32: 0 | BQ32: 0 | BR32: 0 | BS32: 0 | BT32: 0 | BU32: 0 | BV32: =$F$32*BV5 -> 0 | BW32: 0 | BX32: 0 | BY32: 0 | BZ32: 0 | CA32: 0 | CB32: 0
C34: Car Tolls
D35: Real Toll Rate | E35: USD/Car | F35: =InputC!F31 -> 5 | H35: USD/Car | K35: =$F$35 -> 5 | L35: =$F$35 -> 5 | M35: 5 | N35: 5 | O35: 5 | P35: 5 | Q35: 5 | R35: 5 | S35: 5 | T35: 5 | U35: 5 | V35: 5 | W35: 5 | X35: 5 | Y35: 5 | Z35: 5 | AA35: 5 | AB35: 5 | AC35: 5 | AD35: 5 | AE35: 5 | AF35: 5 | AG35: 5 | AH35: 5 | AI35: 5 | AJ35: 5 | AK35: 5 | AL35: 5 | AM35: 5 | AN35: 5 | AO35: 5 | AP35: 5 | AQ35: 5 | AR35: 5 | AS35: 5 | AT35: 5 | AU35: 5 | AV35: 5 | AW35: 5 | AX35: 5 | AY35: 5 | AZ35: 5 | BA35: 5 | BB35: 5 | BC35: 5 | BD35: 5 | BE35: 5 | BF35: 5 | BG35: 5 | BH35: 5 | BI35: 5 | BJ35: 5 | BK35: 5 | BL35: 5 | BM35: 5 | BN35: 5 | BO35: 5 | BP35: 5 | BQ35: 5 | BR35: 5 | BS35: 5 | BT35: 5 | BU35: 5 | BV35: 5 | BW35: 5 | BX35: =$F$35 -> 5 | BY35: 5 | BZ35: 5 | CA35: 5 | CB35: 5
D36: Inflation Applied | E36: Date | F36: =InputC!F29 -> 2026-01-01 | H36: Flag | K36: =(K3>=$F$36)*1 -> 0 | L36: 0 | M36: 0 | N36: 1 | O36: 1 | P36: 1 | Q36: 1 | R36: 1 | S36: 1 | T36: 1 | U36: 1 | V36: 1 | W36: 1 | X36: 1 | Y36: 1 | Z36: 1 | AA36: 1 | AB36: 1 | AC36: 1 | AD36: 1 | AE36: 1 | AF36: 1 | AG36: 1 | AH36: 1 | AI36: 1 | AJ36: 1 | AK36: 1 | AL36: 1 | AM36: 1 | AN36: 1 | AO36: 1 | AP36: 1 | AQ36: =(AQ3>=$F$36)*1 -> 1 | AR36: 1 | AS36: 1 | AT36: 1 | AU36: 1 | AV36: 1 | AW36: 1 | AX36: 1 | AY36: 1 | AZ36: 1 | BA36: 1 | BB36: 1 | BC36: 1 | BD36: 1 | BE36: 1 | BF36: 1 | BG36: 1 | BH36: 1 | BI36: 1 | BJ36: 1 | BK36: 1 | BL36: 1 | BM36: 1 | BN36: 1 | BO36: 1 | BP36: 1 | BQ36: 1 | BR36: 1 | BS36: 1 | BT36: 1 | BU36: 1 | BV36: 1 | BW36: =(BW3>=$F$36)*1 -> 1 | BX36: 1 | BY36: 1 | BZ36: 1 | CA36: 1 | CB36: 1
D37: Inflation Index | E37: % p.a. | F37: =InputC!F28 -> 0.02 | G37: =(1+F37)^(1/2)-1 -> 0.009950493836 | H37: Index | J37: 1 | K37: =J37*(1+$G$37*K36) -> 1 | L37: =K37*(1+$G$37*L36) -> 1 | M37: 1 | N37: 1.009950494 | O37: 1.02 | P37: 1.030149504 | Q37: 1.0404 | R37: 1.050752494 | S37: 1.061208 | T37: 1.071767544 | U37: 1.08243216 | V37: 1.093202895 | W37: 1.104080803 | X37: 1.115066952 | Y37: 1.126162419 | Z37: 1.137368291 | AA37: 1.148685668 | AB37: 1.160115657 | AC37: 1.171659381 | AD37: 1.18331797 | AE37: 1.195092569 | AF37: 1.20698433 | AG37: 1.21899442 | AH37: 1.231124016 | AI37: 1.243374308 | AJ37: 1.255746497 | AK37: 1.268241795 | AL37: 1.280861427 | AM37: 1.29360663 | AN37: 1.306478655 | AO37: 1.319478763 | AP37: 1.332608228 | AQ37: 1.345868338 | AR37: 1.359260393 | AS37: 1.372785705 | AT37: 1.386445601 | AU37: 1.400241419 | AV37: 1.414174513 | AW37: 1.428246248 | AX37: 1.442458003 | AY37: 1.456811173 | AZ37: 1.471307163 | BA37: 1.485947396 | BB37: 1.500733306 | BC37: 1.515666344 | BD37: 1.530747973 | BE37: 1.545979671 | BF37: 1.561362932 | BG37: 1.576899264 | BH37: 1.592590191 | BI37: 1.608437249 | BJ37: 1.624441994 | BK37: 1.640605994 | BL37: 1.656930834 | BM37: 1.673418114 | BN37: 1.690069451 | BO37: 1.706886477 | BP37: 1.72387084 | BQ37: 1.741024206 | BR37: 1.758348257 | BS37: 1.77584469 | BT37: 1.793515222 | BU37: 1.811361584 | BV37: 1.829385526 | BW37: 1.847588816 | BX37: =BW37*(1+$G$37*BX36) -> 1.865973237 | BY37: 1.884540592 | BZ37: 1.903292702 | CA37: 1.922231404 | CB37: 1.941358556
D38: Inflated Toll Rate | E38: USD/Car | H38: USD/Car | K38: =K35*K37 -> 5 | L38: =L35*L37 -> 5 | M38: 5 | N38: 5.049752469 | O38: 5.1 | P38: 5.150747519 | Q38: 5.202 | R38: 5.253762469 | S38: 5.30604 | T38: 5.358837718 | U38: 5.4121608 | V38: 5.466014473 | W38: 5.520404016 | X38: 5.575334762 | Y38: 5.630812096 | Z38: 5.686841457 | AA38: 5.743428338 | AB38: 5.800578287 | AC38: 5.858296905 | AD38: 5.916589852 | AE38: 5.975462843 | AF38: 6.034921649 | AG38: 6.0949721 | AH38: 6.155620082 | AI38: 6.216871542 | AJ38: 6.278732484 | AK38: 6.341208973 | AL38: 6.404307134 | AM38: 6.468033152 | AN38: 6.532393276 | AO38: 6.597393815 | AP38: 6.663041142 | AQ38: 6.729341692 | AR38: 6.796301965 | AS38: 6.863928525 | AT38: 6.932228004 | AU38: 7.001207096 | AV38: 7.070872564 | AW38: 7.141231238 | AX38: 7.212290015 | AY38: 7.284055863 | AZ38: 7.356535816 | BA38: 7.42973698 | BB38: 7.503666532 | BC38: 7.578331719 | BD38: 7.653739863 | BE38: 7.729898354 | BF38: 7.80681466 | BG38: 7.884496321 | BH38: 7.962950953 | BI38: 8.042186247 | BJ38: 8.122209972 | BK38: 8.203029972 | BL38: 8.284654172 | BM38: 8.367090572 | BN38: 8.450347255 | BO38: 8.534432383 | BP38: 8.6193542 | BQ38: 8.705121031 | BR38: 8.791741284 | BS38: 8.879223451 | BT38: 8.96757611 | BU38: 9.056807921 | BV38: 9.146927632 | BW38: 9.237944079 | BX38: =BX35*BX37 -> 9.329866185 | BY38: 9.422702961 | BZ38: 9.516463508 | CA38: 9.61115702 | CB38: 9.706792778
D39: Inflated Capped Toll Rate | E39: USD/Car | F39: =InputC!F33 -> 3 | H39: USD/Car | K39: =$F$39*K37 -> 3 | L39: =$F$39*L37 -> 3 | M39: 3 | N39: 3.029851482 | O39: 3.06 | P39: 3.090448511 | Q39: 3.1212 | R39: 3.152257481 | S39: 3.183624 | T39: 3.215302631 | U39: 3.24729648 | V39: 3.279608684 | W39: 3.31224241 | X39: 3.345200857 | Y39: 3.378487258 | Z39: 3.412104874 | AA39: 3.446057003 | AB39: 3.480346972 | AC39: 3.514978143 | AD39: 3.549953911 | AE39: 3.585277706 | AF39: 3.62095299 | AG39: 3.65698326 | AH39: 3.693372049 | AI39: 3.730122925 | AJ39: 3.76723949 | AK39: 3.804725384 | AL39: 3.84258428 | AM39: 3.880819891 | AN39: 3.919435966 | AO39: 3.958436289 | AP39: 3.997824685 | AQ39: 4.037605015 | AR39: 4.077781179 | AS39: 4.118357115 | AT39: 4.159336802 | AU39: 4.200724258 | AV39: 4.242523538 | AW39: 4.284738743 | AX39: 4.327374009 | AY39: 4.370433518 | AZ39: 4.413921489 | BA39: 4.457842188 | BB39: 4.502199919 | BC39: 4.546999032 | BD39: 4.592243918 | BE39: 4.637939012 | BF39: 4.684088796 | BG39: 4.730697793 | BH39: 4.777770572 | BI39: 4.825311748 | BJ39: 4.873325983 | BK39: 4.921817983 | BL39: 4.970792503 | BM39: 5.020254343 | BN39: 5.070208353 | BO39: 5.12065943 | BP39: 5.17161252 | BQ39: 5.223072619 | BR39: 5.27504477 | BS39: 5.327534071 | BT39: 5.380545666 | BU39: 5.434084752 | BV39: 5.488156579 | BW39: 5.542766447 | BX39: =$F$39*BX37 -> 5.597919711 | BY39: 5.653621776 | BZ39: 5.709878105 | CA39: 5.766694212 | CB39: 5.824075667
D41: Cars at Base Toll Rate | E41: Cars | H41: Cars | K41: =K28 -> 0 | L41: =L28 -> 633500 | M41: 644000 | N41: 642932.2806 | O41: 663320 | P41: 662220.2491 | Q41: 683219.6 | R41: 685855.2922 | S41: 703716.188 | T41: 702549.4622 | U41: 724827.6736 | V41: 723625.9461 | W41: 746572.5038 | X41: 745334.7245 | Y41: 768969.679 | Z41: 771936.1738 | AA41: 792038.7693 | AB41: 790725.6092 | AC41: 815799.9324 | AD41: 814447.3775 | AE41: 840273.9304 | AF41: 838880.7988 | AG41: 865482.1483 | AH41: 868820.9643 | AI41: 891446.6127 | AJ41: 889968.6395 | AK41: 918190.0111 | AL41: 916667.6986 | AM41: 945735.7115 | AN41: 944167.7296 | AO41: 974107.7828 | AP41: 977865.6497 | AQ41: 1003331.016 | AR41: 1001667.544 | AS41: 1033430.947 | AT41: 1031717.571 | AU41: 1064433.875 | AV41: 1062669.098 | AW41: 1096366.891 | AX41: 1100596.404 | AY41: 1129257.898 | AZ41: 1127385.646 | BA41: 1163135.635 | BB41: 1161207.215 | BC41: 1198029.704 | BD41: 1196043.432 | BE41: 1233970.595 | BF41: 1238730.949 | BG41: 1270989.713 | BH41: 1268882.477 | BI41: 1309119.405 | BJ41: 0 | BK41: 0 | BL41: 0 | BM41: 0 | BN41: 0 | BO41: 0 | BP41: 0 | BQ41: 0 | BR41: 0 | BS41: 0 | BT41: 0 | BU41: 0 | BV41: 0 | BW41: 0 | BX41: =BX28 -> 0 | BY41: 0 | BZ41: 0 | CA41: 0 | CB41: 0
D42: Cars at Capped Toll Rate | E42: Cars | H42: Cars | K42: =K27 -> 0 | L42: =L27 -> 0 | M42: 0 | N42: 0 | O42: 0 | P42: 0 | Q42: 0 | R42: 0 | S42: 0 | T42: 0 | U42: 0 | V42: 0 | W42: 0 | X42: 0 | Y42: 0 | Z42: 0 | AA42: 0 | AB42: 0 | AC42: 0 | AD42: 0 | AE42: 0 | AF42: 0 | AG42: 0 | AH42: 0 | AI42: 0 | AJ42: 0 | AK42: 0 | AL42: 0 | AM42: 0 | AN42: 0 | AO42: 0 | AP42: 0 | AQ42: 0 | AR42: 0 | AS42: 0 | AT42: 0 | AU42: 0 | AV42: 0 | AW42: 0 | AX42: 0 | AY42: 0 | AZ42: 0 | BA42: 0 | BB42: 0 | BC42: 0 | BD42: 0 | BE42: 0 | BF42: 0 | BG42: 0 | BH42: 0 | BI42: 0 | BJ42: 0 | BK42: 0 | BL42: 0 | BM42: 0 | BN42: 0 | BO42: 0 | BP42: 0 | BQ42: 0 | BR42: 0 | BS42: 0 | BT42: 0 | BU42: 0 | BV42: 0 | BW42: 0 | BX42: =BX27 -> 0 | BY42: 0 | BZ42: 0 | CA42: 0 | CB42: 0
D43: Car Tolls | E43: USD | H43: USD | I43: =SUM(K43:XFD43) -> 303957800 | K43: =K41*K38+K42*K39 -> 0 | L43: =L41*L38+L42*L39 -> 3167500 | M43: 3220000 | N43: 3246648.872 | O43: 3382932 | P43: 3410929.305 | Q43: 3554108.359 | R43: 3603320.793 | S43: 3733946.242 | T43: 3764848.557 | U43: 3922883.922 | V43: 3955349.894 | W43: 4121381.848 | X43: 4155490.599 | Y43: 4329923.77 | Z43: 4389878.635 | AA43: 4549017.913 | AB43: 4586665.799 | AC43: 4779198.219 | AD43: 4818751.089 | AE43: 5021025.649 | AF43: 5062579.894 | AG43: 5275089.547 | AH43: 5348131.776 | AI43: 5542009.078 | AJ43: 5587875.006 | AK43: 5822434.737 | AL43: 5870621.482 | AM43: 6117049.935 | AN43: 6167674.929 | AO43: 6426572.662 | AP43: 6515559.055 | AQ43: 6751757.238 | AR43: 6807635.099 | AS43: 7093396.155 | AT43: 7152101.435 | AU43: 7452322 | AV43: 7513997.768 | AW43: 7829409.493 | AX43: 7937820.453 | AY43: 8225577.614 | AZ43: 8293652.882 | BA43: 8641791.841 | BB43: 8713311.717 | BC43: 9079066.508 | BD43: 9154205.29 | BE43: 9538467.273 | BF43: 9670542.929 | BG43: 10021113.72 | BH43: 10104048.93 | BI43: 10528182.07 | BJ43: 0 | BK43: 0 | BL43: 0 | BM43: 0 | BN43: 0 | BO43: 0 | BP43: 0 | BQ43: 0 | BR43: 0 | BS43: 0 | BT43: 0 | BU43: 0 | BV43: 0 | BW43: 0 | BX43: =BX41*BX38+BX42*BX39 -> 0 | BY43: 0 | BZ43: 0 | CA43: 0 | CB43: 0
C45: Truck Tolls
D46: Real Toll Rate | E46: USD/Truck | F46: =InputC!F32 -> 10 | H46: USD/Truck | K46: =$F$46 -> 10 | L46: =$F$46 -> 10 | M46: 10 | N46: 10 | O46: 10 | P46: 10 | Q46: 10 | R46: 10 | S46: 10 | T46: 10 | U46: 10 | V46: 10 | W46: 10 | X46: 10 | Y46: 10 | Z46: 10 | AA46: 10 | AB46: 10 | AC46: 10 | AD46: 10 | AE46: 10 | AF46: 10 | AG46: 10 | AH46: 10 | AI46: 10 | AJ46: 10 | AK46: 10 | AL46: 10 | AM46: 10 | AN46: 10 | AO46: 10 | AP46: 10 | AQ46: 10 | AR46: 10 | AS46: 10 | AT46: 10 | AU46: 10 | AV46: 10 | AW46: 10 | AX46: 10 | AY46: 10 | AZ46: 10 | BA46: 10 | BB46: 10 | BC46: 10 | BD46: 10 | BE46: 10 | BF46: 10 | BG46: 10 | BH46: 10 | BI46: 10 | BJ46: 10 | BK46: 10 | BL46: 10 | BM46: 10 | BN46: 10 | BO46: 10 | BP46: 10 | BQ46: 10 | BR46: 10 | BS46: 10 | BT46: 10 | BU46: 10 | BV46: 10 | BW46: 10 | BX46: =$F$46 -> 10 | BY46: 10 | BZ46: 10 | CA46: 10 | CB46: 10
D47: Inflation Index | E47: Index | H47: Index | K47: =K37 -> 1 | L47: 1 | M47: 1 | N47: 1.009950494 | O47: 1.02 | P47: 1.030149504 | Q47: 1.0404 | R47: 1.050752494 | S47: 1.061208 | T47: 1.071767544 | U47: 1.08243216 | V47: 1.093202895 | W47: 1.104080803 | X47: 1.115066952 | Y47: 1.126162419 | Z47: 1.137368291 | AA47: 1.148685668 | AB47: 1.160115657 | AC47: 1.171659381 | AD47: 1.18331797 | AE47: 1.195092569 | AF47: 1.20698433 | AG47: 1.21899442 | AH47: 1.231124016 | AI47: 1.243374308 | AJ47: 1.255746497 | AK47: 1.268241795 | AL47: 1.280861427 | AM47: 1.29360663 | AN47: 1.306478655 | AO47: 1.319478763 | AP47: 1.332608228 | AQ47: =AQ37 -> 1.345868338 | AR47: 1.359260393 | AS47: 1.372785705 | AT47: 1.386445601 | AU47: 1.400241419 | AV47: 1.414174513 | AW47: 1.428246248 | AX47: 1.442458003 | AY47: 1.456811173 | AZ47: 1.471307163 | BA47: 1.485947396 | BB47: 1.500733306 | BC47: 1.515666344 | BD47: 1.530747973 | BE47: 1.545979671 | BF47: 1.561362932 | BG47: 1.576899264 | BH47: 1.592590191 | BI47: 1.608437249 | BJ47: 1.624441994 | BK47: 1.640605994 | BL47: 1.656930834 | BM47: 1.673418114 | BN47: 1.690069451 | BO47: 1.706886477 | BP47: 1.72387084 | BQ47: 1.741024206 | BR47: 1.758348257 | BS47: 1.77584469 | BT47: 1.793515222 | BU47: 1.811361584 | BV47: 1.829385526 | BW47: =BW37 -> 1.847588816 | BX47: 1.865973237 | BY47: 1.884540592 | BZ47: 1.903292702 | CA47: 1.922231404 | CB47: 1.941358556
D48: Inflated Toll Rate | E48: USD/ruck | H48: USD/ruck | K48: =K46*K47 -> 10 | L48: =L46*L47 -> 10 | M48: 10 | N48: 10.09950494 | O48: 10.2 | P48: 10.30149504 | Q48: 10.404 | R48: 10.50752494 | S48: 10.61208 | T48: 10.71767544 | U48: 10.8243216 | V48: 10.93202895 | W48: 11.04080803 | X48: 11.15066952 | Y48: 11.26162419 | Z48: 11.37368291 | AA48: 11.48685668 | AB48: 11.60115657 | AC48: 11.71659381 | AD48: 11.8331797 | AE48: 11.95092569 | AF48: 12.0698433 | AG48: 12.1899442 | AH48: 12.31124016 | AI48: 12.43374308 | AJ48: 12.55746497 | AK48: 12.68241795 | AL48: 12.80861427 | AM48: 12.9360663 | AN48: 13.06478655 | AO48: 13.19478763 | AP48: 13.32608228 | AQ48: 13.45868338 | AR48: 13.59260393 | AS48: 13.72785705 | AT48: 13.86445601 | AU48: 14.00241419 | AV48: 14.14174513 | AW48: 14.28246248 | AX48: 14.42458003 | AY48: 14.56811173 | AZ48: 14.71307163 | BA48: 14.85947396 | BB48: 15.00733306 | BC48: 15.15666344 | BD48: 15.30747973 | BE48: 15.45979671 | BF48: 15.61362932 | BG48: 15.76899264 | BH48: 15.92590191 | BI48: 16.08437249 | BJ48: 16.24441994 | BK48: 16.40605994 | BL48: 16.56930834 | BM48: 16.73418114 | BN48: 16.90069451 | BO48: 17.06886477 | BP48: 17.2387084 | BQ48: 17.41024206 | BR48: 17.58348257 | BS48: 17.7584469 | BT48: 17.93515222 | BU48: 18.11361584 | BV48: 18.29385526 | BW48: 18.47588816 | BX48: =BX46*BX47 -> 18.65973237 | BY48: 18.84540592 | BZ48: 19.03292702 | CA48: 19.22231404 | CB48: 19.41358556
D49: Truck Tolls | E49: USD | H49: USD | I49: =SUM(K49:XFD49) -> 227221011.6 | K49: =K48*K20 -> 0 | L49: 2715000 | M49: 2760000 | N49: 2769300 | O49: 2871504 | P49: 2881179.72 | Q49: 2987512.762 | R49: 3014140.593 | S49: 3108208.277 | T49: 3118681.588 | U49: 3233779.892 | V49: 3244676.324 | W49: 3364424.599 | X49: 3375761.247 | Y49: 3500347.353 | Z49: 3531546.101 | AA49: 3641761.386 | AB49: 3654032.539 | AC49: 3788888.546 | AD49: 3801655.453 | AE49: 3941959.643 | AF49: 3955242.333 | AG49: 4101214.813 | AH49: 4137769.119 | AI49: 4266903.891 | AJ49: 4281281.502 | AK49: 4439286.809 | AL49: 4454245.275 | AM49: 4618633.996 | AN49: 4634196.784 | AO49: 4805226.809 | AP49: 4848056.005 | AQ49: =AQ48*AQ20 -> 4999357.972 | AR49: 5016203.635 | AS49: 5201332.034 | AT49: 5218858.262 | AU49: 5411465.848 | AV49: 5429700.135 | AW49: 5630089.069 | AX49: 5680270.297 | AY49: 5857544.667 | AZ49: 5877282.046 | BA49: 6094189.472 | BB49: 6114724.24 | BC49: 6340394.726 | BD49: 6361759.1 | BE49: 6596546.673 | BF49: 6655341.98 | BG49: 6863047.159 | BH49: 6886172.644 | BI49: 7140314.264 | BJ49: 0 | BK49: 0 | BL49: 0 | BM49: 0 | BN49: 0 | BO49: 0 | BP49: 0 | BQ49: 0 | BR49: 0 | BS49: 0 | BT49: 0 | BU49: 0 | BV49: 0 | BW49: =BW48*BW20 -> 0 | BX49: 0 | BY49: 0 | BZ49: 0 | CA49: 0 | CB49: 0
D51: Total Revenues | E51: USD | I51: =SUM(K51:XFD51) -> 531178811.6 | K51: =K49+K43 -> 0 | L51: 5882500 | M51: 5980000 | N51: 6015948.872 | O51: 6254436 | P51: 6292109.025 | Q51: 6541621.121 | R51: 6617461.386 | S51: 6842154.519 | T51: 6883530.145 | U51: 7156663.814 | V51: 7200026.218 | W51: 7485806.448 | X51: 7531251.846 | Y51: 7830271.123 | Z51: 7921424.737 | AA51: 8190779.299 | AB51: 8240698.338 | AC51: 8568086.765 | AD51: 8620406.542 | AE51: 8962985.292 | AF51: 9017822.227 | AG51: 9376304.36 | AH51: 9485900.895 | AI51: 9808912.969 | AJ51: 9869156.509 | AK51: 10261721.55 | AL51: 10324866.76 | AM51: 10735683.93 | AN51: 10801871.71 | AO51: 11231799.47 | AP51: 11363615.06 | AQ51: =AQ49+AQ43 -> 11751115.21 | AR51: 11823838.73 | AS51: 12294728.19 | AT51: 12370959.7 | AU51: 12863787.85 | AV51: 12943697.9 | AW51: 13459498.56 | AX51: 13618090.75 | AY51: 14083122.28 | AZ51: 14170934.93 | BA51: 14735981.31 | BB51: 14828035.96 | BC51: 15419461.23 | BD51: 15515964.39 | BE51: 16135013.95 | BF51: 16325884.91 | BG51: 16884160.88 | BH51: 16990221.57 | BI51: 17668496.34 | BJ51: 0 | BK51: 0 | BL51: 0 | BM51: 0 | BN51: 0 | BO51: 0 | BP51: 0 | BQ51: 0 | BR51: 0 | BS51: 0 | BT51: 0 | BU51: 0 | BV51: 0 | BW51: =BW49+BW43 -> 0 | BX51: 0 | BY51: 0 | BZ51: 0 | CA51: 0 | CB51: 0
C53: Operating Expenditures
D54: Inflation Index for Op Exp | E54: Index | K54: =K47 -> 1 | L54: 1 | M54: 1 | N54: 1.009950494 | O54: 1.02 | P54: 1.030149504 | Q54: 1.0404 | R54: 1.050752494 | S54: 1.061208 | T54: 1.071767544 | U54: 1.08243216 | V54: 1.093202895 | W54: 1.104080803 | X54: 1.115066952 | Y54: 1.126162419 | Z54: 1.137368291 | AA54: 1.148685668 | AB54: 1.160115657 | AC54: 1.171659381 | AD54: 1.18331797 | AE54: 1.195092569 | AF54: 1.20698433 | AG54: 1.21899442 | AH54: 1.231124016 | AI54: 1.243374308 | AJ54: 1.255746497 | AK54: 1.268241795 | AL54: 1.280861427 | AM54: 1.29360663 | AN54: 1.306478655 | AO54: 1.319478763 | AP54: 1.332608228 | AQ54: =AQ47 -> 1.345868338 | AR54: 1.359260393 | AS54: 1.372785705 | AT54: 1.386445601 | AU54: 1.400241419 | AV54: 1.414174513 | AW54: 1.428246248 | AX54: 1.442458003 | AY54: 1.456811173 | AZ54: 1.471307163 | BA54: 1.485947396 | BB54: 1.500733306 | BC54: 1.515666344 | BD54: 1.530747973 | BE54: 1.545979671 | BF54: 1.561362932 | BG54: 1.576899264 | BH54: 1.592590191 | BI54: 1.608437249 | BJ54: 1.624441994 | BK54: 1.640605994 | BL54: 1.656930834 | BM54: 1.673418114 | BN54: 1.690069451 | BO54: 1.706886477 | BP54: 1.72387084 | BQ54: 1.741024206 | BR54: 1.758348257 | BS54: 1.77584469 | BT54: 1.793515222 | BU54: 1.811361584 | BV54: 1.829385526 | BW54: =BW47 -> 1.847588816 | BX54: 1.865973237 | BY54: 1.884540592 | BZ54: 1.903292702 | CA54: 1.922231404 | CB54: 1.941358556
D56: Fixed Op Exp- Real | E56: Fix/km-yr | F56: =InputC!F36 -> 10000 | G56: =F56/2 -> 5000 | H56: USD/period | K56: =$G$56*K11 -> 0 | L56: 250000 | M56: 250000 | N56: 250000 | O56: 250000 | P56: 250000 | Q56: 250000 | R56: 250000 | S56: 250000 | T56: 250000 | U56: 250000 | V56: 250000 | W56: 250000 | X56: 250000 | Y56: 250000 | Z56: 250000 | AA56: 250000 | AB56: 250000 | AC56: 250000 | AD56: 250000 | AE56: 250000 | AF56: 250000 | AG56: 250000 | AH56: 250000 | AI56: 250000 | AJ56: 250000 | AK56: 250000 | AL56: 250000 | AM56: 250000 | AN56: 250000 | AO56: 250000 | AP56: 250000 | AQ56: =$G$56*AQ11 -> 250000 | AR56: 250000 | AS56: 250000 | AT56: 250000 | AU56: 250000 | AV56: 250000 | AW56: 250000 | AX56: 250000 | AY56: 250000 | AZ56: 250000 | BA56: 250000 | BB56: 250000 | BC56: 250000 | BD56: 250000 | BE56: 250000 | BF56: 250000 | BG56: 250000 | BH56: 250000 | BI56: 250000 | BJ56: 0 | BK56: 0 | BL56: 0 | BM56: 0 | BN56: 0 | BO56: 0 | BP56: 0 | BQ56: 0 | BR56: 0 | BS56: 0 | BT56: 0 | BU56: 0 | BV56: 0 | BW56: =$G$56*BW11 -> 0 | BX56: 0 | BY56: 0 | BZ56: 0 | CA56: 0 | CB56: 0
D57: Variable Expense | E57: USD/vehicle | F57: =InputC!F35 -> 2 | G57: =F57/2 -> 1 | H57: USD/period | K57: =$G$57*K22 -> 0 | L57: 905000 | M57: 920000 | N57: 917133.8397 | O57: 944840 | P57: 941905.8393 | Q57: 970370 | R57: 972710.723 | S57: 996609.596 | T57: 993534.3503 | U57: 1023578.95 | V57: 1020430.532 | W57: 1051298.806 | X57: 1048075.402 | Y57: 1079790.507 | Z57: 1082437.717 | AA57: 1109076.014 | AB57: 1105697.01 | AC57: 1139177.922 | AD57: 1135718.206 | AE57: 1170119.479 | AF57: 1166577.044 | AG57: 1201924.608 | AH57: 1204917.821 | AI57: 1234617.922 | AJ57: 1230903.813 | AK57: 1268224.746 | AL57: 1264421.576 | AM57: 1302771.141 | AN57: 1298876.685 | AO57: 1338283.921 | AP57: 1341667.696 | AQ57: =$G$57*AQ22 -> 1374790.678 | AR57: 1370706.741 | AS57: 1412319.801 | AT57: 1408137.551 | AU57: 1450900.507 | AV57: 1446617.478 | AW57: 1490562.856 | AX57: 1494387.439 | AY57: 1531337.782 | AZ57: 1526845.541 | BA57: 1573257.116 | BB57: 1568656.308 | BC57: 1616353.615 | BD57: 1611641.506 | BE57: 1660660.984 | BF57: 1664983.029 | BG57: 1706213.91 | BH57: 1701270.713 | BI57: 1753048.085 | BJ57: 0 | BK57: 0 | BL57: 0 | BM57: 0 | BN57: 0 | BO57: 0 | BP57: 0 | BQ57: 0 | BR57: 0 | BS57: 0 | BT57: 0 | BU57: 0 | BV57: 0 | BW57: =$G$57*BW22 -> 0 | BX57: 0 | BY57: 0 | BZ57: 0 | CA57: 0 | CB57: 0
D58: Total Expense | E58: USD | I58: =SUM(K58:XFD58) -> 99452379.84 | K58: =SUM(K56:K57)*K54 -> 0 | L58: =SUM(L56:L57)*L54 -> 1155000 | M58: 1170000 | N58: 1178747.398 | O58: 1218736.8 | P58: 1227841.209 | Q58: 1269672.948 | R58: 1284766.341 | S58: 1322912.076 | T58: 1332779.756 | U58: 1378562.814 | V58: 1388838.335 | W58: 1436739.03 | X58: 1447440.983 | Y58: 1497560.094 | Z58: 1515472.41 | AA58: 1561151.138 | AB58: 1572765.328 | AC58: 1627643.344 | AD58: 1639745.256 | AE58: 1697174.236 | AF58: 1709786.295 | AG58: 1769887.996 | AH58: 1791184.271 | AI58: 1845935.782 | AJ58: 1859639.776 | AK58: 1925476.077 | AL58: 1939764.18 | AM58: 2008675.044 | AN58: 2023574.328 | AO58: 2095706.904 | AP58: 2121069.469 | AQ58: 2186754.329 | AR58: 2202962.482 | AS58: 2282008.861 | AT58: 2298917.513 | AU58: 2381671.34 | AV58: 2399313.195 | AW58: 2485952.367 | AX58: 2516205.621 | AY58: 2595072.783 | AZ58: 2614285.572 | BA58: 2709264.164 | BB58: 2729318.094 | BC58: 2828769.36 | BD58: 2849703.961 | BE58: 2953843.04 | BF58: 2989983.517 | BG58: 3084752.275 | BH58: 3107574.597 | BI58: 3221777.153 | BJ58: 0 | BK58: 0 | BL58: 0 | BM58: 0 | BN58: 0 | BO58: 0 | BP58: 0 | BQ58: 0 | BR58: 0 | BS58: 0 | BT58: 0 | BU58: 0 | BV58: 0 | BW58: 0 | BX58: =SUM(BX56:BX57)*BX54 -> 0 | BY58: 0 | BZ58: 0 | CA58: 0 | CB58: 0
D60: EBITDA | E60: USD | I60: =SUM(K60:XFD60) -> 431726431.7 | K60: =K51-K58 -> 0 | L60: =L51-L58 -> 4727500 | M60: 4810000 | N60: 4837201.474 | O60: 5035699.2 | P60: 5064267.816 | Q60: 5271948.173 | R60: 5332695.045 | S60: 5519242.443 | T60: 5550750.389 | U60: 5778101 | V60: 5811187.883 | W60: 6049067.417 | X60: 6083810.864 | Y60: 6332711.029 | Z60: 6405952.327 | AA60: 6629628.161 | AB60: 6667933.01 | AC60: 6940443.422 | AD60: 6980661.286 | AE60: 7265811.056 | AF60: 7308035.933 | AG60: 7606416.364 | AH60: 7694716.624 | AI60: 7962977.187 | AJ60: 8009516.733 | AK60: 8336245.469 | AL60: 8385102.576 | AM60: 8727008.886 | AN60: 8778297.385 | AO60: 9136092.567 | AP60: 9242545.591 | AQ60: 9564360.881 | AR60: 9620876.253 | AS60: 10012719.33 | AT60: 10072042.18 | AU60: 10482116.51 | AV60: 10544384.71 | AW60: 10973546.19 | AX60: 11101885.13 | AY60: 11488049.5 | AZ60: 11556649.36 | BA60: 12026717.15 | BB60: 12098717.86 | BC60: 12590691.87 | BD60: 12666260.43 | BE60: 13181170.91 | BF60: 13335901.39 | BG60: 13799408.6 | BH60: 13882646.97 | BI60: 14446719.18 | BJ60: 0 | BK60: 0 | BL60: 0 | BM60: 0 | BN60: 0 | BO60: 0 | BP60: 0 | BQ60: 0 | BR60: 0 | BS60: 0 | BT60: 0 | BU60: 0 | BV60: 0 | BW60: 0 | BX60: =BX51-BX58 -> 0 | BY60: 0 | BZ60: 0 | CA60: 0 | CB60: 0
B62: Working Capital
C63: A/R Outstanding | E63: % Revenues | F63: =InputC!F40 -> 0.08219178082 | H63: USD | K63: =K51*$F$63 -> 0 | L63: =L51*$F$63 -> 483493.1507 | M63: 491506.8493 | N63: 494461.5511 | O63: 514063.2329 | P63: 517159.6459 | Q63: 537667.4894 | R63: 543900.9358 | S63: 562368.8646 | T63: 565769.6009 | U63: 588218.9436 | V63: 591782.9768 | W63: 615271.7628 | X63: 619007.0011 | Y63: 643583.9279 | Z63: 651076.0057 | AA63: 673214.7369 | AB63: 677317.6716 | AC63: 704226.3095 | AD63: 708526.5651 | AE63: 736683.7227 | AF63: 741190.868 | AG63: 770655.1529 | AH63: 779663.0872 | AI63: 806212.0249 | AJ63: 811163.5486 | AK63: 843429.1682 | AL63: 848619.1855 | AM63: 882384.9806 | AN63: 887825.0723 | AO63: 923161.6003 | AP63: 933995.7583 | AQ63: 965845.0858 | AR63: 971822.3617 | AS63: 1010525.605 | AT63: 1016791.208 | AU63: 1057297.631 | AV63: 1063865.581 | AW63: 1106260.156 | AX63: 1119295.13 | AY63: 1157516.9 | AZ63: 1164734.378 | BA63: 1211176.546 | BB63: 1218742.681 | BC63: 1267352.978 | BD63: 1275284.744 | BE63: 1326165.53 | BF63: 1341853.554 | BG63: 1387739.25 | BH63: 1396456.567 | BI63: 1452205.178 | BJ63: 0 | BK63: 0 | BL63: 0 | BM63: 0 | BN63: 0 | BO63: 0 | BP63: 0 | BQ63: 0 | BR63: 0 | BS63: 0 | BT63: 0 | BU63: 0 | BV63: 0 | BW63: 0 | BX63: =BX51*$F$63 -> 0 | BY63: 0 | BZ63: 0 | CA63: 0 | CB63: 0
C64: A/P Outstanding | E64: % Expense | F64: =InputC!F43 -> 0 | H64: USD | K64: =$F$64*K58 -> 0 | L64: =$F$64*L58 -> 0 | M64: 0 | N64: 0 | O64: 0 | P64: 0 | Q64: 0 | R64: 0 | S64: 0 | T64: 0 | U64: 0 | V64: 0 | W64: 0 | X64: 0 | Y64: 0 | Z64: 0 | AA64: 0 | AB64: 0 | AC64: 0 | AD64: 0 | AE64: 0 | AF64: 0 | AG64: 0 | AH64: 0 | AI64: 0 | AJ64: 0 | AK64: 0 | AL64: 0 | AM64: 0 | AN64: 0 | AO64: 0 | AP64: 0 | AQ64: 0 | AR64: 0 | AS64: 0 | AT64: 0 | AU64: 0 | AV64: 0 | AW64: 0 | AX64: 0 | AY64: 0 | AZ64: 0 | BA64: 0 | BB64: 0 | BC64: 0 | BD64: 0 | BE64: 0 | BF64: 0 | BG64: 0 | BH64: 0 | BI64: 0 | BJ64: 0 | BK64: 0 | BL64: 0 | BM64: 0 | BN64: 0 | BO64: 0 | BP64: 0 | BQ64: 0 | BR64: 0 | BS64: 0 | BT64: 0 | BU64: 0 | BV64: 0 | BW64: 0 | BX64: =$F$64*BX58 -> 0 | BY64: 0 | BZ64: 0 | CA64: 0 | CB64: 0
C65: Net Working Capital | E65: USD | H65: USD | K65: =K63-K64 -> 0 | L65: =L63-L64 -> 483493.1507 | M65: 491506.8493 | N65: 494461.5511 | O65: 514063.2329 | P65: 517159.6459 | Q65: 537667.4894 | R65: 543900.9358 | S65: 562368.8646 | T65: 565769.6009 | U65: 588218.9436 | V65: 591782.9768 | W65: 615271.7628 | X65: 619007.0011 | Y65: 643583.9279 | Z65: 651076.0057 | AA65: 673214.7369 | AB65: 677317.6716 | AC65: 704226.3095 | AD65: 708526.5651 | AE65: 736683.7227 | AF65: 741190.868 | AG65: 770655.1529 | AH65: 779663.0872 | AI65: 806212.0249 | AJ65: 811163.5486 | AK65: 843429.1682 | AL65: 848619.1855 | AM65: 882384.9806 | AN65: 887825.0723 | AO65: 923161.6003 | AP65: 933995.7583 | AQ65: 965845.0858 | AR65: 971822.3617 | AS65: 1010525.605 | AT65: 1016791.208 | AU65: 1057297.631 | AV65: 1063865.581 | AW65: 1106260.156 | AX65: 1119295.13 | AY65: 1157516.9 | AZ65: 1164734.378 | BA65: 1211176.546 | BB65: 1218742.681 | BC65: 1267352.978 | BD65: 1275284.744 | BE65: 1326165.53 | BF65: 1341853.554 | BG65: 1387739.25 | BH65: 1396456.567 | BI65: 1452205.178 | BJ65: 0 | BK65: 0 | BL65: 0 | BM65: 0 | BN65: 0 | BO65: 0 | BP65: 0 | BQ65: 0 | BR65: 0 | BS65: 0 | BT65: 0 | BU65: 0 | BV65: 0 | BW65: 0 | BX65: =BX63-BX64 -> 0 | BY65: 0 | BZ65: 0 | CA65: 0 | CB65: 0
C67: Change in Working Capital | E67: USD | H67: USD | L67: =L65-K65 -> 483493.1507 | M67: =M65-L65 -> 8013.69863 | N67: 2954.701785 | O67: 19601.68178 | P67: 3096.412983 | Q67: 20507.84352 | R67: 6233.446461 | S67: 18467.92876 | T67: 3400.736346 | U67: 22449.34263 | V67: 3564.03324 | W67: 23488.786 | X67: 3735.238231 | Y67: 24576.92687 | Z67: 7492.077828 | AA67: 22138.73114 | AB67: 4102.934719 | AC67: 26908.63786 | AD67: 4300.25562 | AE67: 28157.15757 | AF67: 4507.145339 | AG67: 29464.28486 | AH67: 9007.934385 | AI67: 26548.93763 | AJ67: 4951.52377 | AK67: 32265.61951 | AL67: 5190.017314 | AM67: 33765.79513 | AN67: 5440.091667 | AO67: 35336.52807 | AP67: 10834.15797 | AQ67: 31849.32749 | AR67: 5977.275926 | AS67: 38703.24284 | AT67: 6265.603423 | AU67: 40506.42339 | AV67: 6567.949735 | AW67: 42394.57466 | AX67: 13034.97441 | AY67: 38221.7696 | AZ67: 7217.477809 | BA67: 46442.16864 | BB67: 7566.135233 | BC67: 48610.2967 | BD67: 7931.766226 | BE67: 50880.78547 | BF67: 15688.02437 | BG67: 45885.69587 | BH67: 8717.317339 | BI67: 55748.61082 | BJ67: -1452205.178 | BK67: 0 | BL67: 0 | BM67: 0 | BN67: 0 | BO67: 0 | BP67: 0 | BQ67: 0 | BR67: 0 | BS67: 0 | BT67: 0 | BU67: 0 | BV67: 0 | BW67: 0 | BX67: 0 | BY67: =BY65-BX65 -> 0 | BZ67: 0 | CA67: 0 | CB67: 0
C69: Pre-tax Cash Flow
D70: EBITDA | E70: USD | H70: USD | K70: =K60 -> 0 | L70: =L60 -> 4727500 | M70: 4810000 | N70: 4837201.474 | O70: 5035699.2 | P70: 5064267.816 | Q70: 5271948.173 | R70: 5332695.045 | S70: 5519242.443 | T70: 5550750.389 | U70: 5778101 | V70: 5811187.883 | W70: 6049067.417 | X70: 6083810.864 | Y70: 6332711.029 | Z70: 6405952.327 | AA70: 6629628.161 | AB70: 6667933.01 | AC70: 6940443.422 | AD70: 6980661.286 | AE70: 7265811.056 | AF70: 7308035.933 | AG70: 7606416.364 | AH70: 7694716.624 | AI70: 7962977.187 | AJ70: 8009516.733 | AK70: 8336245.469 | AL70: 8385102.576 | AM70: 8727008.886 | AN70: 8778297.385 | AO70: 9136092.567 | AP70: 9242545.591 | AQ70: 9564360.881 | AR70: 9620876.253 | AS70: 10012719.33 | AT70: 10072042.18 | AU70: 10482116.51 | AV70: 10544384.71 | AW70: 10973546.19 | AX70: 11101885.13 | AY70: 11488049.5 | AZ70: 11556649.36 | BA70: 12026717.15 | BB70: 12098717.86 | BC70: 12590691.87 | BD70: 12666260.43 | BE70: 13181170.91 | BF70: 13335901.39 | BG70: 13799408.6 | BH70: 13882646.97 | BI70: 14446719.18 | BJ70: 0 | BK70: 0 | BL70: 0 | BM70: 0 | BN70: 0 | BO70: 0 | BP70: 0 | BQ70: 0 | BR70: 0 | BS70: 0 | BT70: 0 | BU70: 0 | BV70: 0 | BW70: 0 | BX70: =BX60 -> 0 | BY70: 0 | BZ70: 0 | CA70: 0 | CB70: 0
D71: Less: WC Change | E71: USD | H71: USD | K71: =K65 -> 0 | L71: =L65 -> 483493.1507 | M71: 491506.8493 | N71: 494461.5511 | O71: 514063.2329 | P71: 517159.6459 | Q71: 537667.4894 | R71: 543900.9358 | S71: 562368.8646 | T71: 565769.6009 | U71: 588218.9436 | V71: 591782.9768 | W71: 615271.7628 | X71: 619007.0011 | Y71: 643583.9279 | Z71: 651076.0057 | AA71: 673214.7369 | AB71: 677317.6716 | AC71: 704226.3095 | AD71: 708526.5651 | AE71: 736683.7227 | AF71: 741190.868 | AG71: 770655.1529 | AH71: 779663.0872 | AI71: 806212.0249 | AJ71: 811163.5486 | AK71: 843429.1682 | AL71: 848619.1855 | AM71: 882384.9806 | AN71: 887825.0723 | AO71: 923161.6003 | AP71: 933995.7583 | AQ71: 965845.0858 | AR71: 971822.3617 | AS71: 1010525.605 | AT71: 1016791.208 | AU71: 1057297.631 | AV71: 1063865.581 | AW71: 1106260.156 | AX71: 1119295.13 | AY71: 1157516.9 | AZ71: 1164734.378 | BA71: 1211176.546 | BB71: 1218742.681 | BC71: 1267352.978 | BD71: 1275284.744 | BE71: 1326165.53 | BF71: 1341853.554 | BG71: 1387739.25 | BH71: 1396456.567 | BI71: 1452205.178 | BJ71: 0 | BK71: 0 | BL71: 0 | BM71: 0 | BN71: 0 | BO71: 0 | BP71: 0 | BQ71: 0 | BR71: 0 | BS71: 0 | BT71: 0 | BU71: 0 | BV71: 0 | BW71: 0 | BX71: =BX65 -> 0 | BY71: 0 | BZ71: 0 | CA71: 0 | CB71: 0
D72: Less: Cap Exp | E72: USD | H72: USD | K72: =K32 -> 183497044.9 | L72: 0 | M72: 0 | N72: 0 | O72: 0 | P72: 0 | Q72: 0 | R72: 0 | S72: 0 | T72: 0 | U72: 0 | V72: 0 | W72: 0 | X72: 0 | Y72: 0 | Z72: 0 | AA72: 0 | AB72: 0 | AC72: 0 | AD72: 0 | AE72: 0 | AF72: 0 | AG72: 0 | AH72: 0 | AI72: 0 | AJ72: 0 | AK72: 0 | AL72: 0 | AM72: 0 | AN72: 0 | AO72: 0 | AP72: 0 | AQ72: =AQ32 -> 0 | AR72: 0 | AS72: 0 | AT72: 0 | AU72: 0 | AV72: 0 | AW72: 0 | AX72: 0 | AY72: 0 | AZ72: 0 | BA72: 0 | BB72: 0 | BC72: 0 | BD72: 0 | BE72: 0 | BF72: 0 | BG72: 0 | BH72: 0 | BI72: 0 | BJ72: 0 | BK72: 0 | BL72: 0 | BM72: 0 | BN72: 0 | BO72: 0 | BP72: 0 | BQ72: 0 | BR72: 0 | BS72: 0 | BT72: 0 | BU72: 0 | BV72: 0 | BW72: =BW32 -> 0 | BX72: 0 | BY72: 0 | BZ72: 0 | CA72: 0 | CB72: 0
D73: Free Cash Flow Before Tax | E73: USD | H73: USD | K73: =K70-K71-K72 -> -183497044.9 | L73: =L70-L71-L72 -> 4244006.849 | M73: 4318493.151 | N73: 4342739.923 | O73: 4521635.967 | P73: 4547108.17 | Q73: 4734280.683 | R73: 4788794.109 | S73: 4956873.579 | T73: 4984980.788 | U73: 5189882.056 | V73: 5219404.906 | W73: 5433795.654 | X73: 5464803.862 | Y73: 5689127.101 | Z73: 5754876.321 | AA73: 5956413.424 | AB73: 5990615.338 | AC73: 6236217.112 | AD73: 6272134.721 | AE73: 6529127.333 | AF73: 6566845.065 | AG73: 6835761.211 | AH73: 6915053.536 | AI73: 7156765.163 | AJ73: 7198353.184 | AK73: 7492816.301 | AL73: 7536483.391 | AM73: 7844623.906 | AN73: 7890472.312 | AO73: 8212930.966 | AP73: 8308549.833 | AQ73: 8598515.795 | AR73: 8649053.891 | AS73: 9002193.724 | AT73: 9055250.976 | AU73: 9424818.877 | AV73: 9480519.127 | AW73: 9867286.039 | AX73: 9982589.999 | AY73: 10330532.6 | AZ73: 10391914.98 | BA73: 10815540.6 | BB73: 10879975.18 | BC73: 11323338.9 | BD73: 11390975.68 | BE73: 11855005.38 | BF73: 11994047.84 | BG73: 12411669.35 | BH73: 12486190.41 | BI73: 12994514 | BJ73: 0 | BK73: 0 | BL73: 0 | BM73: 0 | BN73: 0 | BO73: 0 | BP73: 0 | BQ73: 0 | BR73: 0 | BS73: 0 | BT73: 0 | BU73: 0 | BV73: 0 | BW73: 0 | BX73: =BX70-BX71-BX72 -> 0 | BY73: 0 | BZ73: 0 | CA73: 0 | CB73: 0
D75: Pre-tax Project IRR | E75: % | F75: =XIRR(K73:CB73,K4:CB4) -> 0.05614881814
B77: Tax and Deprecation
C78: Tax Basis | E78: USD | H78: USD | K78: =J78+K32 -> 183497044.9 | L78: 183497044.9 | M78: 183497044.9 | N78: 183497044.9 | O78: 183497044.9 | P78: 183497044.9 | Q78: 183497044.9 | R78: 183497044.9 | S78: 183497044.9 | T78: 183497044.9 | U78: 183497044.9 | V78: 183497044.9 | W78: 183497044.9 | X78: 183497044.9 | Y78: 183497044.9 | Z78: 183497044.9 | AA78: 183497044.9 | AB78: 183497044.9 | AC78: 183497044.9 | AD78: 183497044.9 | AE78: 183497044.9 | AF78: 183497044.9 | AG78: 183497044.9 | AH78: 183497044.9 | AI78: 183497044.9 | AJ78: 183497044.9 | AK78: 183497044.9 | AL78: 183497044.9 | AM78: 183497044.9 | AN78: 183497044.9 | AO78: 183497044.9 | AP78: 183497044.9 | AQ78: =AP78+AQ32 -> 183497044.9 | AR78: 183497044.9 | AS78: 183497044.9 | AT78: 183497044.9 | AU78: 183497044.9 | AV78: 183497044.9 | AW78: 183497044.9 | AX78: 183497044.9 | AY78: 183497044.9 | AZ78: 183497044.9 | BA78: 183497044.9 | BB78: 183497044.9 | BC78: 183497044.9 | BD78: 183497044.9 | BE78: 183497044.9 | BF78: 183497044.9 | BG78: 183497044.9 | BH78: 183497044.9 | BI78: 183497044.9 | BJ78: 183497044.9 | BK78: 183497044.9 | BL78: 183497044.9 | BM78: 183497044.9 | BN78: 183497044.9 | BO78: 183497044.9 | BP78: 183497044.9 | BQ78: 183497044.9 | BR78: 183497044.9 | BS78: 183497044.9 | BT78: 183497044.9 | BU78: 183497044.9 | BV78: 183497044.9 | BW78: =BV78+BW32 -> 183497044.9 | BX78: 183497044.9 | BY78: 183497044.9 | BZ78: 183497044.9 | CA78: 183497044.9 | CB78: 183497044.9
C79: Tax Depreciation Period | E79: Date | F79: =F5+1 -> 2025-01-01 | G79: =EDATE(F79,InputC!F47*12) -> 2045-01-01 | H79: Flag | I79: =SUM(K79:XFD79) -> 40 | K79: =(AND(K3>=$F$79,K3<$G$79))*1 -> 0 | L79: 1 | M79: 1 | N79: 1 | O79: 1 | P79: 1 | Q79: 1 | R79: 1 | S79: 1 | T79: 1 | U79: 1 | V79: 1 | W79: 1 | X79: 1 | Y79: 1 | Z79: 1 | AA79: 1 | AB79: 1 | AC79: 1 | AD79: 1 | AE79: 1 | AF79: 1 | AG79: 1 | AH79: 1 | AI79: 1 | AJ79: 1 | AK79: 1 | AL79: 1 | AM79: 1 | AN79: 1 | AO79: 1 | AP79: 1 | AQ79: =(AND(AQ3>=$F$79,AQ3<$G$79))*1 -> 1 | AR79: 1 | AS79: 1 | AT79: 1 | AU79: 1 | AV79: 1 | AW79: 1 | AX79: 1 | AY79: 1 | AZ79: 0 | BA79: 0 | BB79: 0 | BC79: 0 | BD79: 0 | BE79: 0 | BF79: 0 | BG79: 0 | BH79: 0 | BI79: 0 | BJ79: 0 | BK79: 0 | BL79: 0 | BM79: 0 | BN79: 0 | BO79: 0 | BP79: 0 | BQ79: 0 | BR79: 0 | BS79: 0 | BT79: 0 | BU79: 0 | BV79: 0 | BW79: =(AND(BW3>=$F$79,BW3<$G$79))*1 -> 0 | BX79: 0 | BY79: 0 | BZ79: 0 | CA79: 0 | CB79: 0
C80: Tax Depreciation | E80: % | F80: =1/I79 -> 0.025 | H80: USD | I80: =SUM(K80:XFD80) -> 183497044.9 | K80: =K78*K79*$F$80 -> 0 | L80: =L78*L79*$F$80 -> 4587426.123 | M80: 4587426.123 | N80: 4587426.123 | O80: 4587426.123 | P80: 4587426.123 | Q80: 4587426.123 | R80: 4587426.123 | S80: 4587426.123 | T80: 4587426.123 | U80: 4587426.123 | V80: 4587426.123 | W80: 4587426.123 | X80: 4587426.123 | Y80: 4587426.123 | Z80: 4587426.123 | AA80: 4587426.123 | AB80: 4587426.123 | AC80: 4587426.123 | AD80: 4587426.123 | AE80: 4587426.123 | AF80: 4587426.123 | AG80: 4587426.123 | AH80: 4587426.123 | AI80: 4587426.123 | AJ80: 4587426.123 | AK80: 4587426.123 | AL80: 4587426.123 | AM80: 4587426.123 | AN80: 4587426.123 | AO80: 4587426.123 | AP80: 4587426.123 | AQ80: 4587426.123 | AR80: 4587426.123 | AS80: 4587426.123 | AT80: 4587426.123 | AU80: 4587426.123 | AV80: 4587426.123 | AW80: 4587426.123 | AX80: 4587426.123 | AY80: 4587426.123 | AZ80: 0 | BA80: 0 | BB80: 0 | BC80: 0 | BD80: 0 | BE80: 0 | BF80: 0 | BG80: 0 | BH80: 0 | BI80: 0 | BJ80: 0 | BK80: 0 | BL80: 0 | BM80: 0 | BN80: 0 | BO80: 0 | BP80: 0 | BQ80: 0 | BR80: 0 | BS80: 0 | BT80: 0 | BU80: 0 | BV80: 0 | BW80: 0 | BX80: =BX78*BX79*$F$80 -> 0 | BY80: 0 | BZ80: 0 | CA80: 0 | CB80: 0
C82: EBITDA | E82: USD | H82: USD | K82: =K70 -> 0 | L82: =L70 -> 4727500 | M82: 4810000 | N82: 4837201.474 | O82: 5035699.2 | P82: 5064267.816 | Q82: 5271948.173 | R82: 5332695.045 | S82: 5519242.443 | T82: 5550750.389 | U82: 5778101 | V82: 5811187.883 | W82: 6049067.417 | X82: 6083810.864 | Y82: 6332711.029 | Z82: 6405952.327 | AA82: 6629628.161 | AB82: 6667933.01 | AC82: 6940443.422 | AD82: 6980661.286 | AE82: 7265811.056 | AF82: 7308035.933 | AG82: 7606416.364 | AH82: 7694716.624 | AI82: 7962977.187 | AJ82: 8009516.733 | AK82: 8336245.469 | AL82: 8385102.576 | AM82: 8727008.886 | AN82: 8778297.385 | AO82: 9136092.567 | AP82: 9242545.591 | AQ82: 9564360.881 | AR82: 9620876.253 | AS82: 10012719.33 | AT82: 10072042.18 | AU82: 10482116.51 | AV82: 10544384.71 | AW82: 10973546.19 | AX82: 11101885.13 | AY82: 11488049.5 | AZ82: 11556649.36 | BA82: 12026717.15 | BB82: 12098717.86 | BC82: 12590691.87 | BD82: 12666260.43 | BE82: 13181170.91 | BF82: 13335901.39 | BG82: 13799408.6 | BH82: 13882646.97 | BI82: 14446719.18 | BJ82: 0 | BK82: 0 | BL82: 0 | BM82: 0 | BN82: 0 | BO82: 0 | BP82: 0 | BQ82: 0 | BR82: 0 | BS82: 0 | BT82: 0 | BU82: 0 | BV82: 0 | BW82: 0 | BX82: =BX70 -> 0 | BY82: 0 | BZ82: 0 | CA82: 0 | CB82: 0
C83: Less: Depreciation | E83: USD | H83: USD | K83: =K80 -> 0 | L83: =L80 -> 4587426.123 | M83: 4587426.123 | N83: 4587426.123 | O83: 4587426.123 | P83: 4587426.123 | Q83: 4587426.123 | R83: 4587426.123 | S83: 4587426.123 | T83: 4587426.123 | U83: 4587426.123 | V83: 4587426.123 | W83: 4587426.123 | X83: 4587426.123 | Y83: 4587426.123 | Z83: 4587426.123 | AA83: 4587426.123 | AB83: 4587426.123 | AC83: 4587426.123 | AD83: 4587426.123 | AE83: 4587426.123 | AF83: 4587426.123 | AG83: 4587426.123 | AH83: 4587426.123 | AI83: 4587426.123 | AJ83: 4587426.123 | AK83: 4587426.123 | AL83: 4587426.123 | AM83: 4587426.123 | AN83: 4587426.123 | AO83: 4587426.123 | AP83: 4587426.123 | AQ83: 4587426.123 | AR83: 4587426.123 | AS83: 4587426.123 | AT83: 4587426.123 | AU83: 4587426.123 | AV83: 4587426.123 | AW83: 4587426.123 | AX83: 4587426.123 | AY83: 4587426.123 | AZ83: 0 | BA83: 0 | BB83: 0 | BC83: 0 | BD83: 0 | BE83: 0 | BF83: 0 | BG83: 0 | BH83: 0 | BI83: 0 | BJ83: 0 | BK83: 0 | BL83: 0 | BM83: 0 | BN83: 0 | BO83: 0 | BP83: 0 | BQ83: 0 | BR83: 0 | BS83: 0 | BT83: 0 | BU83: 0 | BV83: 0 | BW83: 0 | BX83: =BX80 -> 0 | BY83: 0 | BZ83: 0 | CA83: 0 | CB83: 0
C84: EBIT | E84: USD | H84: USD | K84: =K82-K83 -> 0 | L84: =L82-L83 -> 140073.877 | M84: 222573.877 | N84: 249775.351 | O84: 448273.077 | P84: 476841.6928 | Q84: 684522.0498 | R84: 745268.9217 | S84: 931816.3202 | T84: 963324.2658 | U84: 1190674.877 | V84: 1223761.76 | W84: 1461641.294 | X84: 1496384.741 | Y84: 1745284.906 | Z84: 1818526.204 | AA84: 2042202.038 | AB84: 2080506.887 | AC84: 2353017.299 | AD84: 2393235.163 | AE84: 2678384.933 | AF84: 2720609.81 | AG84: 3018990.241 | AH84: 3107290.501 | AI84: 3375551.065 | AJ84: 3422090.61 | AK84: 3748819.346 | AL84: 3797676.453 | AM84: 4139582.764 | AN84: 4190871.262 | AO84: 4548666.444 | AP84: 4655119.468 | AQ84: 4976934.758 | AR84: 5033450.13 | AS84: 5425293.205 | AT84: 5484616.061 | AU84: 5894690.386 | AV84: 5956958.585 | AW84: 6386120.072 | AX84: 6514459.006 | AY84: 6900623.375 | AZ84: 11556649.36 | BA84: 12026717.15 | BB84: 12098717.86 | BC84: 12590691.87 | BD84: 12666260.43 | BE84: 13181170.91 | BF84: 13335901.39 | BG84: 13799408.6 | BH84: 13882646.97 | BI84: 14446719.18 | BJ84: 0 | BK84: 0 | BL84: 0 | BM84: 0 | BN84: 0 | BO84: 0 | BP84: 0 | BQ84: 0 | BR84: 0 | BS84: 0 | BT84: 0 | BU84: 0 | BV84: 0 | BW84: 0 | BX84: =BX82-BX83 -> 0 | BY84: 0 | BZ84: 0 | CA84: 0 | CB84: 0
C85: Taxes on EBIT | E85: Rate | F85: =InputC!F46 -> 0.2 | H85: USD | K85: =K84*$F$85 -> 0 | L85: =L84*$F$85 -> 28014.77541 | M85: 44514.77541 | N85: 49955.07019 | O85: 89654.61541 | P85: 95368.33856 | Q85: 136904.41 | R85: 149053.7843 | S85: 186363.264 | T85: 192664.8532 | U85: 238134.9754 | V85: 244752.352 | W85: 292328.2589 | X85: 299276.9481 | Y85: 349056.9812 | Z85: 363705.2407 | AA85: 408440.4076 | AB85: 416101.3774 | AC85: 470603.4597 | AD85: 478647.0327 | AE85: 535676.9866 | AF85: 544121.962 | AG85: 603798.0482 | AH85: 621458.1001 | AI85: 675110.2129 | AJ85: 684418.122 | AK85: 749763.8692 | AL85: 759535.2906 | AM85: 827916.5527 | AN85: 838174.2523 | AO85: 909733.2888 | AP85: 931023.8936 | AQ85: 995386.9516 | AR85: 1006690.026 | AS85: 1085058.641 | AT85: 1096923.212 | AU85: 1178938.077 | AV85: 1191391.717 | AW85: 1277224.014 | AX85: 1302891.801 | AY85: 1380124.675 | AZ85: 2311329.871 | BA85: 2405343.43 | BB85: 2419743.573 | BC85: 2518138.375 | BD85: 2533252.086 | BE85: 2636234.181 | BF85: 2667180.279 | BG85: 2759881.72 | BH85: 2776529.395 | BI85: 2889343.836 | BJ85: 0 | BK85: 0 | BL85: 0 | BM85: 0 | BN85: 0 | BO85: 0 | BP85: 0 | BQ85: 0 | BR85: 0 | BS85: 0 | BT85: 0 | BU85: 0 | BV85: 0 | BW85: 0 | BX85: =BX84*$F$85 -> 0 | BY85: 0 | BZ85: 0 | CA85: 0 | CB85: 0
C87: Pre-tax Cash Flow | E87: USD | H87: USD | K87: =K73 -> -183497044.9 | L87: =L73 -> 4244006.849 | M87: 4318493.151 | N87: 4342739.923 | O87: 4521635.967 | P87: 4547108.17 | Q87: 4734280.683 | R87: 4788794.109 | S87: 4956873.579 | T87: 4984980.788 | U87: 5189882.056 | V87: 5219404.906 | W87: 5433795.654 | X87: 5464803.862 | Y87: 5689127.101 | Z87: 5754876.321 | AA87: 5956413.424 | AB87: 5990615.338 | AC87: 6236217.112 | AD87: 6272134.721 | AE87: 6529127.333 | AF87: 6566845.065 | AG87: 6835761.211 | AH87: 6915053.536 | AI87: 7156765.163 | AJ87: 7198353.184 | AK87: 7492816.301 | AL87: 7536483.391 | AM87: 7844623.906 | AN87: 7890472.312 | AO87: 8212930.966 | AP87: 8308549.833 | AQ87: 8598515.795 | AR87: 8649053.891 | AS87: 9002193.724 | AT87: 9055250.976 | AU87: 9424818.877 | AV87: 9480519.127 | AW87: 9867286.039 | AX87: 9982589.999 | AY87: 10330532.6 | AZ87: 10391914.98 | BA87: 10815540.6 | BB87: 10879975.18 | BC87: 11323338.9 | BD87: 11390975.68 | BE87: 11855005.38 | BF87: 11994047.84 | BG87: 12411669.35 | BH87: 12486190.41 | BI87: 12994514 | BJ87: 0 | BK87: 0 | BL87: 0 | BM87: 0 | BN87: 0 | BO87: 0 | BP87: 0 | BQ87: 0 | BR87: 0 | BS87: 0 | BT87: 0 | BU87: 0 | BV87: 0 | BW87: 0 | BX87: =BX73 -> 0 | BY87: 0 | BZ87: 0 | CA87: 0 | CB87: 0
C88: Less: Taxes | E88: USD | H88: USD | K88: =K85 -> 0 | L88: =L85 -> 28014.77541 | M88: 44514.77541 | N88: 49955.07019 | O88: 89654.61541 | P88: 95368.33856 | Q88: 136904.41 | R88: 149053.7843 | S88: 186363.264 | T88: 192664.8532 | U88: 238134.9754 | V88: 244752.352 | W88: 292328.2589 | X88: 299276.9481 | Y88: 349056.9812 | Z88: 363705.2407 | AA88: 408440.4076 | AB88: 416101.3774 | AC88: 470603.4597 | AD88: 478647.0327 | AE88: 535676.9866 | AF88: 544121.962 | AG88: 603798.0482 | AH88: 621458.1001 | AI88: 675110.2129 | AJ88: 684418.122 | AK88: 749763.8692 | AL88: 759535.2906 | AM88: 827916.5527 | AN88: 838174.2523 | AO88: 909733.2888 | AP88: 931023.8936 | AQ88: 995386.9516 | AR88: 1006690.026 | AS88: 1085058.641 | AT88: 1096923.212 | AU88: 1178938.077 | AV88: 1191391.717 | AW88: 1277224.014 | AX88: 1302891.801 | AY88: 1380124.675 | AZ88: 2311329.871 | BA88: 2405343.43 | BB88: 2419743.573 | BC88: 2518138.375 | BD88: 2533252.086 | BE88: 2636234.181 | BF88: 2667180.279 | BG88: 2759881.72 | BH88: 2776529.395 | BI88: 2889343.836 | BJ88: 0 | BK88: 0 | BL88: 0 | BM88: 0 | BN88: 0 | BO88: 0 | BP88: 0 | BQ88: 0 | BR88: 0 | BS88: 0 | BT88: 0 | BU88: 0 | BV88: 0 | BW88: 0 | BX88: =BX85 -> 0 | BY88: 0 | BZ88: 0 | CA88: 0 | CB88: 0
C89: After Tax Free Cash Flow | E89: USD | H89: USD | K89: =K87-K88 -> -183497044.9 | L89: =L87-L88 -> 4215992.074 | M89: 4273978.375 | N89: 4292784.853 | O89: 4431981.352 | P89: 4451739.831 | Q89: 4597376.273 | R89: 4639740.325 | S89: 4770510.315 | T89: 4792315.935 | U89: 4951747.081 | V89: 4974652.554 | W89: 5141467.396 | X89: 5165526.914 | Y89: 5340070.12 | Z89: 5391171.08 | AA89: 5547973.016 | AB89: 5574513.961 | AC89: 5765613.652 | AD89: 5793487.688 | AE89: 5993450.347 | AF89: 6022723.103 | AG89: 6231963.163 | AH89: 6293595.436 | AI89: 6481654.95 | AJ89: 6513935.062 | AK89: 6743052.432 | AL89: 6776948.1 | AM89: 7016707.353 | AN89: 7052298.06 | AO89: 7303197.678 | AP89: 7377525.939 | AQ89: 7603128.844 | AR89: 7642363.865 | AS89: 7917135.083 | AT89: 7958327.764 | AU89: 8245880.8 | AV89: 8289127.41 | AW89: 8590062.024 | AX89: 8679698.198 | AY89: 8950407.923 | AZ89: 8080585.107 | BA89: 8410197.172 | BB89: 8460231.61 | BC89: 8805200.521 | BD89: 8857723.599 | BE89: 9218771.196 | BF89: 9326867.56 | BG89: 9651787.631 | BH89: 9709661.011 | BI89: 10105170.17 | BJ89: 0 | BK89: 0 | BL89: 0 | BM89: 0 | BN89: 0 | BO89: 0 | BP89: 0 | BQ89: 0 | BR89: 0 | BS89: 0 | BT89: 0 | BU89: 0 | BV89: 0 | BW89: 0 | BX89: =BX87-BX88 -> 0 | BY89: 0 | BZ89: 0 | CA89: 0 | CB89: 0
C91: Project IRR after Tax | E91: % | F91: =XIRR(K89:CB89,K4:CB4) -> 0.046680668
B93: Financing
C94: Debt Size
D95: Tenure Input | E95: Year | F95: =InputC!F53 -> 20
D96: Repayment Period | E96: Year | F96: =F79 -> 2025-01-01 | G96: =EDATE(F79,F95*12) -> 2045-01-01 | I96: =SUM(K96:XFD96) -> 40 | K96: =(AND(K3>=$F$96,K3<$G$96))*1 -> 0 | L96: 1 | M96: 1 | N96: 1 | O96: 1 | P96: 1 | Q96: 1 | R96: 1 | S96: 1 | T96: 1 | U96: 1 | V96: 1 | W96: 1 | X96: 1 | Y96: 1 | Z96: 1 | AA96: 1 | AB96: 1 | AC96: 1 | AD96: 1 | AE96: 1 | AF96: 1 | AG96: 1 | AH96: 1 | AI96: 1 | AJ96: 1 | AK96: 1 | AL96: 1 | AM96: 1 | AN96: 1 | AO96: 1 | AP96: 1 | AQ96: =(AND(AQ3>=$F$96,AQ3<$G$96))*1 -> 1 | AR96: 1 | AS96: 1 | AT96: 1 | AU96: 1 | AV96: 1 | AW96: 1 | AX96: 1 | AY96: 1 | AZ96: 0 | BA96: 0 | BB96: 0 | BC96: 0 | BD96: 0 | BE96: 0 | BF96: 0 | BG96: 0 | BH96: 0 | BI96: 0 | BJ96: 0 | BK96: 0 | BL96: 0 | BM96: 0 | BN96: 0 | BO96: 0 | BP96: 0 | BQ96: 0 | BR96: 0 | BS96: 0 | BT96: 0 | BU96: 0 | BV96: 0 | BW96: =(AND(BW3>=$F$96,BW3<$G$96))*1 -> 0 | BX96: 0 | BY96: 0 | BZ96: 0 | CA96: 0 | CB96: 0
C98: Income Taxes with Interest Deduction
D99: EBIT | K99: =K84 -> 0 | L99: 140073.877 | M99: 222573.877 | N99: 249775.351 | O99: 448273.077 | P99: 476841.6928 | Q99: 684522.0498 | R99: 745268.9217 | S99: 931816.3202 | T99: 963324.2658 | U99: 1190674.877 | V99: 1223761.76 | W99: 1461641.294 | X99: 1496384.741 | Y99: 1745284.906 | Z99: 1818526.204 | AA99: 2042202.038 | AB99: 2080506.887 | AC99: 2353017.299 | AD99: 2393235.163 | AE99: 2678384.933 | AF99: 2720609.81 | AG99: 3018990.241 | AH99: 3107290.501 | AI99: 3375551.065 | AJ99: 3422090.61 | AK99: 3748819.346 | AL99: 3797676.453 | AM99: 4139582.764 | AN99: 4190871.262 | AO99: 4548666.444 | AP99: 4655119.468 | AQ99: =AQ84 -> 4976934.758 | AR99: 5033450.13 | AS99: 5425293.205 | AT99: 5484616.061 | AU99: 5894690.386 | AV99: 5956958.585 | AW99: 6386120.072 | AX99: 6514459.006 | AY99: 6900623.375 | AZ99: 11556649.36 | BA99: 12026717.15 | BB99: 12098717.86 | BC99: 12590691.87 | BD99: 12666260.43 | BE99: 13181170.91 | BF99: 13335901.39 | BG99: 13799408.6 | BH99: 13882646.97 | BI99: 14446719.18 | BJ99: 0 | BK99: 0 | BL99: 0 | BM99: 0 | BN99: 0 | BO99: 0 | BP99: 0 | BQ99: 0 | BR99: 0 | BS99: 0 | BT99: 0 | BU99: 0 | BV99: 0 | BW99: =BW84 -> 0 | BX99: 0 | BY99: 0 | BZ99: 0 | CA99: 0 | CB99: 0
D100: Less: Interest | K100: =K133 -> 0 | L100: =L133 -> 2076056.965 | M100: 2055740.003 | N100: 2034519.143 | O100: 2012818.167 | P100: 1989293.273 | Q100: 1965248.245 | R100: 1939277.791 | S100: 1912504.782 | T100: 1883936.673 | U100: 1854761.242 | V100: 1823441.557 | W100: 1791467.171 | X100: 1757230.725 | Y100: 1722289.485 | Z100: 1684962.405 | AA100: 1646590.579 | AB100: 1605986.203 | AC100: 1564568.094 | AD100: 1520497.423 | AE100: 1475553.916 | AF100: 1427814.323 | AG100: 1379139.472 | AH100: 1327517.774 | AI100: 1274551.663 | AJ100: 1218819.213 | AK100: 1162015.958 | AL100: 1101941.135 | AM100: 1040722.07 | AN100: 976056.7704 | AO100: 910169.7396 | AP100: 840653.0454 | AQ100: 769422.2128 | AR100: 694774.5095 | AS100: 618737.0297 | AT100: 538674.9464 | AU100: 457132.1511 | AV100: 371352.3863 | AW100: 283996.029 | AX100: 192179.7335 | AY100: 98194.27233 | AZ100: 8.339993656e-09 | BA100: 8.465093561e-09 | BB100: 8.592069964e-09 | BC100: 8.720951013e-09 | BD100: 8.851765279e-09 | BE100: 8.984541758e-09 | BF100: 9.119309884e-09 | BG100: 9.256099532e-09 | BH100: 9.394941025e-09 | BI100: 9.535865141e-09 | BJ100: 9.678903118e-09 | BK100: 9.824086665e-09 | BL100: 9.971447965e-09 | BM100: 1.012101968e-08 | BN100: 1.027283498e-08 | BO100: 1.04269275e-08 | BP100: 1.058333142e-08 | BQ100: 1.074208139e-08 | BR100: 1.090321261e-08 | BS100: 1.10667608e-08 | BT100: 1.123276221e-08 | BU100: 1.140125364e-08 | BV100: 1.157227245e-08 | BW100: 1.174585653e-08 | BX100: =BX133 -> 1.192204438e-08 | BY100: 1.210087505e-08 | BZ100: 1.228238817e-08 | CA100: 1.2466624e-08 | CB100: 1.265362336e-08
D101: EBT | K101: =K99-K100 -> 0 | L101: =L99-L100 -> -1935983.088 | M101: -1833166.126 | N101: -1784743.792 | O101: -1564545.09 | P101: -1512451.58 | Q101: -1280726.195 | R101: -1194008.87 | S101: -980688.4615 | T101: -920612.4069 | U101: -664086.3649 | V101: -599679.7968 | W101: -329825.8764 | X101: -260845.984 | Y101: 22995.42113 | Z101: 133563.7989 | AA101: 395611.4589 | AB101: 474520.6841 | AC101: 788449.2049 | AD101: 872737.7401 | AE101: 1202831.017 | AF101: 1292795.487 | AG101: 1639850.769 | AH101: 1779772.726 | AI101: 2100999.401 | AJ101: 2203271.397 | AK101: 2586803.388 | AL101: 2695735.319 | AM101: 3098860.693 | AN101: 3214814.491 | AO101: 3638496.704 | AP101: 3814466.423 | AQ101: 4207512.545 | AR101: 4338675.62 | AS101: 4806556.176 | AT101: 4945941.114 | AU101: 5437558.235 | AV101: 5585606.199 | AW101: 6102124.043 | AX101: 6322279.273 | AY101: 6802429.103 | AZ101: 11556649.36 | BA101: 12026717.15 | BB101: 12098717.86 | BC101: 12590691.87 | BD101: 12666260.43 | BE101: 13181170.91 | BF101: 13335901.39 | BG101: 13799408.6 | BH101: 13882646.97 | BI101: 14446719.18 | BJ101: -9.678903118e-09 | BK101: -9.824086665e-09 | BL101: -9.971447965e-09 | BM101: -1.012101968e-08 | BN101: -1.027283498e-08 | BO101: -1.04269275e-08 | BP101: -1.058333142e-08 | BQ101: -1.074208139e-08 | BR101: -1.090321261e-08 | BS101: -1.10667608e-08 | BT101: -1.123276221e-08 | BU101: -1.140125364e-08 | BV101: -1.157227245e-08 | BW101: -1.174585653e-08 | BX101: =BX99-BX100 -> -1.192204438e-08 | BY101: -1.210087505e-08 | BZ101: -1.228238817e-08 | CA101: -1.2466624e-08 | CB101: -1.265362336e-08
D102: Taxes on EBT | F102: =InputC!F46 -> 0.2 | K102: =K101*$F$102 -> 0 | L102: =L101*$F$102 -> -387196.6175 | M102: -366633.2251 | N102: -356948.7584 | O102: -312909.018 | P102: -302490.3161 | Q102: -256145.2389 | R102: -238801.7739 | S102: -196137.6923 | T102: -184122.4814 | U102: -132817.273 | V102: -119935.9594 | W102: -65965.17528 | X102: -52169.1968 | Y102: 4599.084225 | Z102: 26712.75978 | AA102: 79122.29177 | AB102: 94904.13681 | AC102: 157689.841 | AD102: 174547.548 | AE102: 240566.2034 | AF102: 258559.0973 | AG102: 327970.1539 | AH102: 355954.5453 | AI102: 420199.8803 | AJ102: 440654.2794 | AK102: 517360.6777 | AL102: 539147.0637 | AM102: 619772.1387 | AN102: 642962.8983 | AO102: 727699.3408 | AP102: 762893.2845 | AQ102: 841502.5091 | AR102: 867735.1241 | AS102: 961311.2351 | AT102: 989188.2229 | AU102: 1087511.647 | AV102: 1117121.24 | AW102: 1220424.809 | AX102: 1264455.855 | AY102: 1360485.821 | AZ102: 2311329.871 | BA102: 2405343.43 | BB102: 2419743.573 | BC102: 2518138.375 | BD102: 2533252.086 | BE102: 2636234.181 | BF102: 2667180.279 | BG102: 2759881.72 | BH102: 2776529.395 | BI102: 2889343.836 | BJ102: -1.935780624e-09 | BK102: -1.964817333e-09 | BL102: -1.994289593e-09 | BM102: -2.024203937e-09 | BN102: -2.054566996e-09 | BO102: -2.085385501e-09 | BP102: -2.116666283e-09 | BQ102: -2.148416278e-09 | BR102: -2.180642522e-09 | BS102: -2.21335216e-09 | BT102: -2.246552442e-09 | BU102: -2.280250729e-09 | BV102: -2.31445449e-09 | BW102: -2.349171307e-09 | BX102: =BX101*$F$102 -> -2.384408876e-09 | BY102: -2.42017501e-09 | BZ102: -2.456477635e-09 | CA102: -2.493324799e-09 | CB102: -2.530724671e-09
C104: CFADS
D105: EBITDA | H105: USD | K105: =K82 -> 0 | L105: =L82 -> 4727500 | M105: 4810000 | N105: 4837201.474 | O105: 5035699.2 | P105: 5064267.816 | Q105: 5271948.173 | R105: 5332695.045 | S105: 5519242.443 | T105: 5550750.389 | U105: 5778101 | V105: 5811187.883 | W105: 6049067.417 | X105: 6083810.864 | Y105: 6332711.029 | Z105: 6405952.327 | AA105: 6629628.161 | AB105: 6667933.01 | AC105: 6940443.422 | AD105: 6980661.286 | AE105: 7265811.056 | AF105: 7308035.933 | AG105: 7606416.364 | AH105: 7694716.624 | AI105: 7962977.187 | AJ105: 8009516.733 | AK105: 8336245.469 | AL105: 8385102.576 | AM105: 8727008.886 | AN105: 8778297.385 | AO105: 9136092.567 | AP105: 9242545.591 | AQ105: 9564360.881 | AR105: 9620876.253 | AS105: 10012719.33 | AT105: 10072042.18 | AU105: 10482116.51 | AV105: 10544384.71 | AW105: 10973546.19 | AX105: 11101885.13 | AY105: 11488049.5 | AZ105: 11556649.36 | BA105: 12026717.15 | BB105: 12098717.86 | BC105: 12590691.87 | BD105: 12666260.43 | BE105: 13181170.91 | BF105: 13335901.39 | BG105: 13799408.6 | BH105: 13882646.97 | BI105: 14446719.18 | BJ105: 0 | BK105: 0 | BL105: 0 | BM105: 0 | BN105: 0 | BO105: 0 | BP105: 0 | BQ105: 0 | BR105: 0 | BS105: 0 | BT105: 0 | BU105: 0 | BV105: 0 | BW105: 0 | BX105: =BX82 -> 0 | BY105: 0 | BZ105: 0 | CA105: 0 | CB105: 0
D106: Less: Working Capital Changes | H106: USD | K106: =-K71 -> 0 | L106: =-L71 -> -483493.1507 | M106: -491506.8493 | N106: -494461.5511 | O106: -514063.2329 | P106: -517159.6459 | Q106: -537667.4894 | R106: -543900.9358 | S106: -562368.8646 | T106: -565769.6009 | U106: -588218.9436 | V106: -591782.9768 | W106: -615271.7628 | X106: -619007.0011 | Y106: -643583.9279 | Z106: -651076.0057 | AA106: -673214.7369 | AB106: -677317.6716 | AC106: -704226.3095 | AD106: -708526.5651 | AE106: -736683.7227 | AF106: -741190.868 | AG106: -770655.1529 | AH106: -779663.0872 | AI106: -806212.0249 | AJ106: -811163.5486 | AK106: -843429.1682 | AL106: -848619.1855 | AM106: -882384.9806 | AN106: -887825.0723 | AO106: -923161.6003 | AP106: -933995.7583 | AQ106: -965845.0858 | AR106: -971822.3617 | AS106: -1010525.605 | AT106: -1016791.208 | AU106: -1057297.631 | AV106: -1063865.581 | AW106: -1106260.156 | AX106: -1119295.13 | AY106: -1157516.9 | AZ106: -1164734.378 | BA106: -1211176.546 | BB106: -1218742.681 | BC106: -1267352.978 | BD106: -1275284.744 | BE106: -1326165.53 | BF106: -1341853.554 | BG106: -1387739.25 | BH106: -1396456.567 | BI106: -1452205.178 | BJ106: 0 | BK106: 0 | BL106: 0 | BM106: 0 | BN106: 0 | BO106: 0 | BP106: 0 | BQ106: 0 | BR106: 0 | BS106: 0 | BT106: 0 | BU106: 0 | BV106: 0 | BW106: 0 | BX106: =-BX71 -> 0 | BY106: 0 | BZ106: 0 | CA106: 0 | CB106: 0
D107: Less: Taxes Paid | H107: USD | K107: =-K102 -> 0 | L107: =-L102 -> 387196.6175 | M107: 366633.2251 | N107: 356948.7584 | O107: 312909.018 | P107: 302490.3161 | Q107: 256145.2389 | R107: 238801.7739 | S107: 196137.6923 | T107: 184122.4814 | U107: 132817.273 | V107: 119935.9594 | W107: 65965.17528 | X107: 52169.1968 | Y107: -4599.084225 | Z107: -26712.75978 | AA107: -79122.29177 | AB107: -94904.13681 | AC107: -157689.841 | AD107: -174547.548 | AE107: -240566.2034 | AF107: -258559.0973 | AG107: -327970.1539 | AH107: -355954.5453 | AI107: -420199.8803 | AJ107: -440654.2794 | AK107: -517360.6777 | AL107: -539147.0637 | AM107: -619772.1387 | AN107: -642962.8983 | AO107: -727699.3408 | AP107: -762893.2845 | AQ107: -841502.5091 | AR107: -867735.1241 | AS107: -961311.2351 | AT107: -989188.2229 | AU107: -1087511.647 | AV107: -1117121.24 | AW107: -1220424.809 | AX107: -1264455.855 | AY107: -1360485.821 | AZ107: -2311329.871 | BA107: -2405343.43 | BB107: -2419743.573 | BC107: -2518138.375 | BD107: -2533252.086 | BE107: -2636234.181 | BF107: -2667180.279 | BG107: -2759881.72 | BH107: -2776529.395 | BI107: -2889343.836 | BJ107: 1.935780624e-09 | BK107: 1.964817333e-09 | BL107: 1.994289593e-09 | BM107: 2.024203937e-09 | BN107: 2.054566996e-09 | BO107: 2.085385501e-09 | BP107: 2.116666283e-09 | BQ107: 2.148416278e-09 | BR107: 2.180642522e-09 | BS107: 2.21335216e-09 | BT107: 2.246552442e-09 | BU107: 2.280250729e-09 | BV107: 2.31445449e-09 | BW107: 2.349171307e-09 | BX107: =-BX102 -> 2.384408876e-09 | BY107: 2.42017501e-09 | BZ107: 2.456477635e-09 | CA107: 2.493324799e-09 | CB107: 2.530724671e-09
D108: Fixed CFADS | H108: USD | J108: Fixed | K108: 0 | L108: 4631203.467 | M108: 4685126.376 | N108: 4699688.681 | O108: 4834544.985 | P108: 4849598.486 | Q108: 4990425.922 | R108: 5027595.883 | S108: 5153011.271 | T108: 5169103.269 | U108: 5322699.329 | V108: 5339340.866 | W108: 5499760.83 | X108: 5516973.059 | Y108: 5684528.017 | Z108: 5728163.561 | AA108: 5877291.132 | AB108: 5895711.201 | AC108: 6078527.271 | AD108: 6097587.173 | AE108: 6288561.13 | AF108: 6308285.967 | AG108: 6507791.057 | AH108: 6559098.991 | AI108: 6736565.282 | AJ108: 6757698.905 | AK108: 6975455.623 | AL108: 6997336.327 | AM108: 7224851.767 | AN108: 7247509.414 | AO108: 7485231.626 | AP108: 7545656.548 | AQ108: 7757013.286 | AR108: 7781318.767 | AS108: 8040882.489 | AT108: 8066062.753 | AU108: 8337307.23 | AV108: 8363397.887 | AW108: 8646861.23 | AX108: 8718134.145 | AY108: 8970046.778 | AZ108: 8080585.107 | BA108: 8410197.172 | BB108: 8460231.61 | BC108: 8805200.521 | BD108: 8857723.599 | BE108: 9218771.196 | BF108: 9326867.56 | BG108: 9651787.631 | BH108: 9709661.011 | BI108: 10105170.17 | BJ108: 1.935780624e-09 | BK108: 1.964817333e-09 | BL108: 1.994289593e-09 | BM108: 2.024203937e-09 | BN108: 2.054566996e-09 | BO108: 2.085385501e-09 | BP108: 2.116666283e-09 | BQ108: 2.148416278e-09 | BR108: 2.180642522e-09 | BS108: 2.21335216e-09 | BT108: 2.246552442e-09 | BU108: 2.280250729e-09 | BV108: 2.31445449e-09 | BW108: 2.349171307e-09 | BX108: 2.384408876e-09 | BY108: 2.42017501e-09 | BZ108: 2.456477635e-09 | CA108: 2.493324799e-09 | CB108: 2.530724671e-09
D109: Computed CFADS | H109: USD | J109: Computed | K109: =K105+K106+K107 -> 0 | L109: =L105+L106+L107 -> 4631203.467 | M109: 4685126.376 | N109: 4699688.681 | O109: 4834544.985 | P109: 4849598.486 | Q109: 4990425.922 | R109: 5027595.883 | S109: 5153011.271 | T109: 5169103.269 | U109: 5322699.329 | V109: 5339340.866 | W109: 5499760.83 | X109: 5516973.059 | Y109: 5684528.017 | Z109: 5728163.561 | AA109: 5877291.132 | AB109: 5895711.201 | AC109: 6078527.271 | AD109: 6097587.173 | AE109: 6288561.13 | AF109: 6308285.967 | AG109: 6507791.057 | AH109: 6559098.991 | AI109: 6736565.282 | AJ109: 6757698.905 | AK109: 6975455.623 | AL109: 6997336.327 | AM109: 7224851.767 | AN109: 7247509.414 | AO109: 7485231.626 | AP109: 7545656.548 | AQ109: 7757013.286 | AR109: 7781318.767 | AS109: 8040882.489 | AT109: 8066062.753 | AU109: 8337307.23 | AV109: 8363397.887 | AW109: 8646861.23 | AX109: 8718134.145 | AY109: 8970046.778 | AZ109: 8080585.107 | BA109: 8410197.172 | BB109: 8460231.61 | BC109: 8805200.521 | BD109: 8857723.599 | BE109: 9218771.196 | BF109: 9326867.56 | BG109: 9651787.631 | BH109: 9709661.011 | BI109: 10105170.17 | BJ109: 1.935780624e-09 | BK109: 1.964817333e-09 | BL109: 1.994289593e-09 | BM109: 2.024203937e-09 | BN109: 2.054566996e-09 | BO109: 2.085385501e-09 | BP109: 2.116666283e-09 | BQ109: 2.148416278e-09 | BR109: 2.180642522e-09 | BS109: 2.21335216e-09 | BT109: 2.246552442e-09 | BU109: 2.280250729e-09 | BV109: 2.31445449e-09 | BW109: 2.349171307e-09 | BX109: =BX105+BX106+BX107 -> 2.384408876e-09 | BY109: 2.42017501e-09 | BZ109: 2.456477635e-09 | CA109: 2.493324799e-09 | CB109: 2.530724671e-09
D110: CFADS Difference | H110: USD | I110: =SUM(K110:XFD110) -> 0 | J110: Difference | K110: =K108-K109 -> 0 | L110: =L108-L109 -> 0 | M110: 0 | N110: 0 | O110: 0 | P110: 0 | Q110: 0 | R110: 0 | S110: 0 | T110: 0 | U110: 0 | V110: 0 | W110: 0 | X110: 0 | Y110: 0 | Z110: 0 | AA110: 0 | AB110: 0 | AC110: 0 | AD110: 0 | AE110: 0 | AF110: 0 | AG110: 0 | AH110: 0 | AI110: 0 | AJ110: 0 | AK110: 0 | AL110: 0 | AM110: 0 | AN110: 0 | AO110: 0 | AP110: 0 | AQ110: 0 | AR110: 0 | AS110: 0 | AT110: 0 | AU110: 0 | AV110: 0 | AW110: 0 | AX110: 0 | AY110: 0 | AZ110: 0 | BA110: 0 | BB110: 0 | BC110: 0 | BD110: 0 | BE110: 0 | BF110: 0 | BG110: 0 | BH110: 0 | BI110: 0 | BJ110: 0 | BK110: 0 | BL110: 0 | BM110: 0 | BN110: 0 | BO110: 0 | BP110: 0 | BQ110: 0 | BR110: 0 | BS110: 0 | BT110: 0 | BU110: 0 | BV110: 0 | BW110: 0 | BX110: =BX108-BX109 -> 0 | BY110: 0 | BZ110: 0 | CA110: 0 | CB110: 0
D112: CFADS over Debt Repayment | H112: USD | K112: =K108*K96 -> 0 | L112: =L108*L96 -> 4631203.467 | M112: 4685126.376 | N112: 4699688.681 | O112: 4834544.985 | P112: 4849598.486 | Q112: 4990425.922 | R112: 5027595.883 | S112: 5153011.271 | T112: 5169103.269 | U112: 5322699.329 | V112: 5339340.866 | W112: 5499760.83 | X112: 5516973.059 | Y112: 5684528.017 | Z112: 5728163.561 | AA112: 5877291.132 | AB112: 5895711.201 | AC112: 6078527.271 | AD112: 6097587.173 | AE112: 6288561.13 | AF112: 6308285.967 | AG112: 6507791.057 | AH112: 6559098.991 | AI112: 6736565.282 | AJ112: 6757698.905 | AK112: 6975455.623 | AL112: 6997336.327 | AM112: 7224851.767 | AN112: 7247509.414 | AO112: 7485231.626 | AP112: 7545656.548 | AQ112: 7757013.286 | AR112: 7781318.767 | AS112: 8040882.489 | AT112: 8066062.753 | AU112: 8337307.23 | AV112: 8363397.887 | AW112: 8646861.23 | AX112: 8718134.145 | AY112: 8970046.778 | AZ112: 0 | BA112: 0 | BB112: 0 | BC112: 0 | BD112: 0 | BE112: 0 | BF112: 0 | BG112: 0 | BH112: 0 | BI112: 0 | BJ112: 0 | BK112: 0 | BL112: 0 | BM112: 0 | BN112: 0 | BO112: 0 | BP112: 0 | BQ112: 0 | BR112: 0 | BS112: 0 | BT112: 0 | BU112: 0 | BV112: 0 | BW112: 0 | BX112: =BX108*BX96 -> 0 | BY112: 0 | BZ112: 0 | CA112: 0 | CB112: 0
D114: Periodic Discount Factor | E114: % p.a/p.p | F114: =InputC!F54 -> 0.03 | G114: =F114/2 -> 0.015 | H114: USD | J114: 1 | K114: =J114*(1+$G$114*K96) -> 1 | L114: =K114*(1+$G$114*L96) -> 1.015 | M114: 1.030225 | N114: 1.045678375 | O114: 1.061363551 | P114: 1.077284004 | Q114: 1.093443264 | R114: 1.109844913 | S114: 1.126492587 | T114: 1.143389975 | U114: 1.160540825 | V114: 1.177948937 | W114: 1.195618171 | X114: 1.213552444 | Y114: 1.231755731 | Z114: 1.250232067 | AA114: 1.268985548 | AB114: 1.288020331 | AC114: 1.307340636 | AD114: 1.326950745 | AE114: 1.346855007 | AF114: 1.367057832 | AG114: 1.387563699 | AH114: 1.408377155 | AI114: 1.429502812 | AJ114: 1.450945354 | AK114: 1.472709534 | AL114: 1.494800177 | AM114: 1.51722218 | AN114: 1.539980513 | AO114: 1.56308022 | AP114: 1.586526424 | AQ114: 1.61032432 | AR114: 1.634479185 | AS114: 1.658996373 | AT114: 1.683881318 | AU114: 1.709139538 | AV114: 1.734776631 | AW114: 1.760798281 | AX114: 1.787210255 | AY114: 1.814018409 | AZ114: 1.814018409 | BA114: 1.814018409 | BB114: 1.814018409 | BC114: 1.814018409 | BD114: 1.814018409 | BE114: 1.814018409 | BF114: 1.814018409 | BG114: 1.814018409 | BH114: 1.814018409 | BI114: 1.814018409 | BJ114: 1.814018409 | BK114: 1.814018409 | BL114: 1.814018409 | BM114: 1.814018409 | BN114: 1.814018409 | BO114: 1.814018409 | BP114: 1.814018409 | BQ114: 1.814018409 | BR114: 1.814018409 | BS114: 1.814018409 | BT114: 1.814018409 | BU114: 1.814018409 | BV114: 1.814018409 | BW114: 1.814018409 | BX114: =BW114*(1+$G$114*BX96) -> 1.814018409 | BY114: 1.814018409 | BZ114: 1.814018409 | CA114: 1.814018409 | CB114: 1.814018409
D116: Debt Service over Repayment | E116: x | F116: =InputC!F50 -> 1.35 | H116: USD | K116: =K112/$F$116 -> 0 | L116: =L112/$F$116 -> 3430521.087 | M116: 3470463.982 | N116: 3481250.875 | O116: 3581144.433 | P116: 3592295.175 | Q116: 3696611.794 | R116: 3724145.098 | S116: 3817045.386 | T116: 3828965.385 | U116: 3942740.244 | V116: 3955067.308 | W116: 4073896.911 | X116: 4086646.711 | Y116: 4210761.494 | Z116: 4243084.119 | AA116: 4353548.987 | AB116: 4367193.483 | AC116: 4502612.793 | AD116: 4516731.239 | AE116: 4658193.43 | AF116: 4672804.42 | AG116: 4820585.968 | AH116: 4858591.845 | AI116: 4990048.357 | AJ116: 5005702.892 | AK116: 5167004.165 | AL116: 5183212.094 | AM116: 5351742.05 | AN116: 5368525.492 | AO116: 5544616.019 | AP116: 5589375.221 | AQ116: 5745935.768 | AR116: 5763939.827 | AS116: 5956209.251 | AT116: 5974861.298 | AU116: 6175783.134 | AV116: 6195109.546 | AW116: 6405082.393 | AX116: 6457877.144 | AY116: 6644479.095 | AZ116: 0 | BA116: 0 | BB116: 0 | BC116: 0 | BD116: 0 | BE116: 0 | BF116: 0 | BG116: 0 | BH116: 0 | BI116: 0 | BJ116: 0 | BK116: 0 | BL116: 0 | BM116: 0 | BN116: 0 | BO116: 0 | BP116: 0 | BQ116: 0 | BR116: 0 | BS116: 0 | BT116: 0 | BU116: 0 | BV116: 0 | BW116: 0 | BX116: =BX112/$F$116 -> 0 | BY116: 0 | BZ116: 0 | CA116: 0 | CB116: 0
D117: PV of Debt Service with Sumproduct | E117: USD | F117: =SUMPRODUCT(K116:CB116/K114:CB114) -> 138403797.6
D119: Cap Exp | E119: USD | F119: =F32 -> 183497044.9
D120: Fees | E120: USD | F120: =I134 -> 1247665.196
D121: Total | E121: USD | F121: =SUM(F119:F120) -> 184744710.1
D123: Debt as Percent of Cap Exp + Fees | E123: % | F123: =F117/F119 -> 0.7542562754
D124: Max Debt to Capital | E124: % | F124: =InputC!F51 -> 0.8
D125: Debt from Max Debt to Capital | E125: USD | F125: =F124*F121 -> 147795768.1
D126: Debt Applied | E126: USD | F126: =MIN(F125,F117) -> 138403797.6
C128: Debt Balance
D129: Opening Balance | H129: USD | K129: =J132 -> 0 | L129: =K132 -> 138403797.6 | M129: 137049333.5 | N129: 135634609.5 | O129: 134187877.8 | P129: 132619551.5 | Q129: 131016549.6 | R129: 129285186.1 | S129: 127500318.8 | T129: 125595778.2 | U129: 123650749.5 | V129: 121562770.5 | W129: 119431144.7 | X129: 117148715 | Y129: 114819299 | Z129: 112330827 | AA129: 109772705.3 | AB129: 107065746.9 | AC129: 104304539.6 | AD129: 101366494.9 | AE129: 98370261.06 | AF129: 95187621.55 | AG129: 91942631.45 | AH129: 88501184.95 | AI129: 84970110.88 | AJ129: 81254614.19 | AK129: 77467730.51 | AL129: 73462742.3 | AM129: 69381471.34 | AN129: 65070451.36 | AO129: 60677982.64 | AP129: 56043536.36 | AQ129: 51294814.19 | AR129: 46318300.63 | AS129: 41249135.31 | AT129: 35911663.09 | AU129: 30475476.74 | AV129: 24756825.76 | AW129: 18933068.6 | AX129: 12811982.23 | AY129: 6546284.822 | AZ129: 5.55999577e-07 | BA129: 5.643395707e-07 | BB129: 5.728046643e-07 | BC129: 5.813967342e-07 | BD129: 5.901176852e-07 | BE129: 5.989694505e-07 | BF129: 6.079539923e-07 | BG129: 6.170733022e-07 | BH129: 6.263294017e-07 | BI129: 6.357243427e-07 | BJ129: 6.452602079e-07 | BK129: 6.54939111e-07 | BL129: 6.647631976e-07 | BM129: 6.747346456e-07 | BN129: 6.848556653e-07 | BO129: 6.951285003e-07 | BP129: 7.055554278e-07 | BQ129: 7.161387592e-07 | BR129: 7.268808406e-07 | BS129: 7.377840532e-07 | BT129: 7.48850814e-07 | BU129: 7.600835762e-07 | BV129: 7.714848298e-07 | BW129: 7.830571023e-07 | BX129: =BW132 -> 7.948029588e-07 | BY129: 8.067250032e-07 | BZ129: 8.188258782e-07 | CA129: 8.311082664e-07 | CB129: 8.435748904e-07
D130: Add: Draw | F130: =F126 -> 138403797.6 | H130: USD | K130: =$F$130*K5 -> 138403797.6 | L130: 0 | M130: 0 | N130: 0 | O130: 0 | P130: 0 | Q130: 0 | R130: 0 | S130: 0 | T130: 0 | U130: 0 | V130: 0 | W130: 0 | X130: 0 | Y130: 0 | Z130: 0 | AA130: 0 | AB130: 0 | AC130: 0 | AD130: 0 | AE130: 0 | AF130: 0 | AG130: 0 | AH130: 0 | AI130: 0 | AJ130: 0 | AK130: 0 | AL130: 0 | AM130: 0 | AN130: 0 | AO130: 0 | AP130: 0 | AQ130: =$F$130*AQ5 -> 0 | AR130: 0 | AS130: 0 | AT130: 0 | AU130: 0 | AV130: 0 | AW130: 0 | AX130: 0 | AY130: 0 | AZ130: 0 | BA130: 0 | BB130: 0 | BC130: 0 | BD130: 0 | BE130: 0 | BF130: 0 | BG130: 0 | BH130: 0 | BI130: 0 | BJ130: 0 | BK130: 0 | BL130: 0 | BM130: 0 | BN130: 0 | BO130: 0 | BP130: 0 | BQ130: 0 | BR130: 0 | BS130: 0 | BT130: 0 | BU130: 0 | BV130: 0 | BW130: =$F$130*BW5 -> 0 | BX130: 0 | BY130: 0 | BZ130: 0 | CA130: 0 | CB130: 0
D131: Less: Repayment (DS - Interest) | H131: USD | K131: =K116-K133 -> 0 | L131: 1354464.122 | M131: 1414723.979 | N131: 1446731.732 | O131: 1568326.266 | P131: 1603001.902 | Q131: 1731363.55 | R131: 1784867.307 | S131: 1904540.604 | T131: 1945028.712 | U131: 2087979.002 | V131: 2131625.751 | W131: 2282429.74 | X131: 2329415.986 | Y131: 2488472.009 | Z131: 2558121.715 | AA131: 2706958.408 | AB131: 2761207.28 | AC131: 2938044.7 | AD131: 2996233.816 | AE131: 3182639.514 | AF131: 3244990.097 | AG131: 3441446.497 | AH131: 3531074.071 | AI131: 3715496.694 | AJ131: 3786883.68 | AK131: 4004988.208 | AL131: 4081270.959 | AM131: 4311019.98 | AN131: 4392468.722 | AO131: 4634446.279 | AP131: 4748722.175 | AQ131: =AQ116-AQ133 -> 4976513.555 | AR131: 5069165.318 | AS131: 5337472.221 | AT131: 5436186.352 | AU131: 5718650.983 | AV131: 5823757.16 | AW131: 6121086.364 | AX131: 6265697.411 | AY131: 6546284.822 | AZ131: -8.339993656e-09 | BA131: -8.465093561e-09 | BB131: -8.592069964e-09 | BC131: -8.720951013e-09 | BD131: -8.851765279e-09 | BE131: -8.984541758e-09 | BF131: -9.119309884e-09 | BG131: -9.256099532e-09 | BH131: -9.394941025e-09 | BI131: -9.535865141e-09 | BJ131: -9.678903118e-09 | BK131: -9.824086665e-09 | BL131: -9.971447965e-09 | BM131: -1.012101968e-08 | BN131: -1.027283498e-08 | BO131: -1.04269275e-08 | BP131: -1.058333142e-08 | BQ131: -1.074208139e-08 | BR131: -1.090321261e-08 | BS131: -1.10667608e-08 | BT131: -1.123276221e-08 | BU131: -1.140125364e-08 | BV131: -1.157227245e-08 | BW131: =BW116-BW133 -> -1.174585653e-08 | BX131: -1.192204438e-08 | BY131: -1.210087505e-08 | BZ131: -1.228238817e-08 | CA131: -1.2466624e-08 | CB131: -1.265362336e-08
D132: Closing Balance | H132: USD | K132: =K129+K130-K131 -> 138403797.6 | L132: =L129+L130-L131 -> 137049333.5 | M132: 135634609.5 | N132: 134187877.8 | O132: 132619551.5 | P132: 131016549.6 | Q132: 129285186.1 | R132: 127500318.8 | S132: 125595778.2 | T132: 123650749.5 | U132: 121562770.5 | V132: 119431144.7 | W132: 117148715 | X132: 114819299 | Y132: 112330827 | Z132: 109772705.3 | AA132: 107065746.9 | AB132: 104304539.6 | AC132: 101366494.9 | AD132: 98370261.06 | AE132: 95187621.55 | AF132: 91942631.45 | AG132: 88501184.95 | AH132: 84970110.88 | AI132: 81254614.19 | AJ132: 77467730.51 | AK132: 73462742.3 | AL132: 69381471.34 | AM132: 65070451.36 | AN132: 60677982.64 | AO132: 56043536.36 | AP132: 51294814.19 | AQ132: 46318300.63 | AR132: 41249135.31 | AS132: 35911663.09 | AT132: 30475476.74 | AU132: 24756825.76 | AV132: 18933068.6 | AW132: 12811982.23 | AX132: 6546284.822 | AY132: 5.55999577e-07 | AZ132: 5.643395707e-07 | BA132: 5.728046643e-07 | BB132: 5.813967342e-07 | BC132: 5.901176852e-07 | BD132: 5.989694505e-07 | BE132: 6.079539923e-07 | BF132: 6.170733022e-07 | BG132: 6.263294017e-07 | BH132: 6.357243427e-07 | BI132: 6.452602079e-07 | BJ132: 6.54939111e-07 | BK132: 6.647631976e-07 | BL132: 6.747346456e-07 | BM132: 6.848556653e-07 | BN132: 6.951285003e-07 | BO132: 7.055554278e-07 | BP132: 7.161387592e-07 | BQ132: 7.268808406e-07 | BR132: 7.377840532e-07 | BS132: 7.48850814e-07 | BT132: 7.600835762e-07 | BU132: 7.714848298e-07 | BV132: 7.830571023e-07 | BW132: 7.948029588e-07 | BX132: =BX129+BX130-BX131 -> 8.067250032e-07 | BY132: 8.188258782e-07 | BZ132: 8.311082664e-07 | CA132: 8.435748904e-07 | CB132: 8.562285138e-07
D133: Interest Cost | F133: =G114 -> 0.015 | H133: USD | K133: =K129*$F$133 -> 0 | L133: =L129*$F$133 -> 2076056.965 | M133: 2055740.003 | N133: 2034519.143 | O133: 2012818.167 | P133: 1989293.273 | Q133: 1965248.245 | R133: 1939277.791 | S133: 1912504.782 | T133: 1883936.673 | U133: 1854761.242 | V133: 1823441.557 | W133: 1791467.171 | X133: 1757230.725 | Y133: 1722289.485 | Z133: 1684962.405 | AA133: 1646590.579 | AB133: 1605986.203 | AC133: 1564568.094 | AD133: 1520497.423 | AE133: 1475553.916 | AF133: 1427814.323 | AG133: 1379139.472 | AH133: 1327517.774 | AI133: 1274551.663 | AJ133: 1218819.213 | AK133: 1162015.958 | AL133: 1101941.135 | AM133: 1040722.07 | AN133: 976056.7704 | AO133: 910169.7396 | AP133: 840653.0454 | AQ133: 769422.2128 | AR133: 694774.5095 | AS133: 618737.0297 | AT133: 538674.9464 | AU133: 457132.1511 | AV133: 371352.3863 | AW133: 283996.029 | AX133: 192179.7335 | AY133: 98194.27233 | AZ133: 8.339993656e-09 | BA133: 8.465093561e-09 | BB133: 8.592069964e-09 | BC133: 8.720951013e-09 | BD133: 8.851765279e-09 | BE133: 8.984541758e-09 | BF133: 9.119309884e-09 | BG133: 9.256099532e-09 | BH133: 9.394941025e-09 | BI133: 9.535865141e-09 | BJ133: 9.678903118e-09 | BK133: 9.824086665e-09 | BL133: 9.971447965e-09 | BM133: 1.012101968e-08 | BN133: 1.027283498e-08 | BO133: 1.04269275e-08 | BP133: 1.058333142e-08 | BQ133: 1.074208139e-08 | BR133: 1.090321261e-08 | BS133: 1.10667608e-08 | BT133: 1.123276221e-08 | BU133: 1.140125364e-08 | BV133: 1.157227245e-08 | BW133: 1.174585653e-08 | BX133: =BX129*$F$133 -> 1.192204438e-08 | BY133: 1.210087505e-08 | BZ133: 1.228238817e-08 | CA133: 1.2466624e-08 | CB133: 1.265362336e-08
D134: Fees on Debt | F134: =InputC!$F$55 -> 0.01 | G134: 1247665.196 | H134: Fixed Fee | I134: =SUM(K134:XFD134) -> 1247665.196 | K134: =$G$134*K5 -> 1247665.196 | L134: 0 | M134: 0 | N134: 0 | O134: 0 | P134: 0 | Q134: 0 | R134: 0 | S134: 0 | T134: 0 | U134: 0 | V134: 0 | W134: 0 | X134: 0 | Y134: 0 | Z134: 0 | AA134: 0 | AB134: 0 | AC134: 0 | AD134: 0 | AE134: 0 | AF134: 0 | AG134: 0 | AH134: 0 | AI134: 0 | AJ134: 0 | AK134: 0 | AL134: 0 | AM134: 0 | AN134: 0 | AO134: 0 | AP134: 0 | AQ134: =$G$134*AQ5 -> 0 | AR134: 0 | AS134: 0 | AT134: 0 | AU134: 0 | AV134: 0 | AW134: 0 | AX134: 0 | AY134: 0 | AZ134: 0 | BA134: 0 | BB134: 0 | BC134: 0 | BD134: 0 | BE134: 0 | BF134: 0 | BG134: 0 | BH134: 0 | BI134: 0 | BJ134: 0 | BK134: 0 | BL134: 0 | BM134: 0 | BN134: 0 | BO134: 0 | BP134: 0 | BQ134: 0 | BR134: 0 | BS134: 0 | BT134: 0 | BU134: 0 | BV134: 0 | BW134: =$G$134*BW5 -> 0 | BX134: 0 | BY134: 0 | BZ134: 0 | CA134: 0 | CB134: 0
D135: Computed Fees | F135: =InputC!$F$55 -> 0.01 | G135: =F135*F126 -> 1384037.976 | H135: Computed Fee
G136: =G135-G134 -> 136372.78 | H136: Fee Dif
D137: Check of Closing Balance
C139: Uses and Sources
D140: Capital Expenditures | H140: USD | K140: =K72 -> 183497044.9 | L140: 0 | M140: 0 | N140: 0 | O140: 0 | P140: 0 | Q140: 0 | R140: 0 | S140: 0 | T140: 0 | U140: 0 | V140: 0 | W140: 0 | X140: 0 | Y140: 0 | Z140: 0 | AA140: 0 | AB140: 0 | AC140: 0 | AD140: 0 | AE140: 0 | AF140: 0 | AG140: 0 | AH140: 0 | AI140: 0 | AJ140: 0 | AK140: 0 | AL140: 0 | AM140: 0 | AN140: 0 | AO140: 0 | AP140: 0 | AQ140: =AQ72 -> 0 | AR140: 0 | AS140: 0 | AT140: 0 | AU140: 0 | AV140: 0 | AW140: 0 | AX140: 0 | AY140: 0 | AZ140: 0 | BA140: 0 | BB140: 0 | BC140: 0 | BD140: 0 | BE140: 0 | BF140: 0 | BG140: 0 | BH140: 0 | BI140: 0 | BJ140: 0 | BK140: 0 | BL140: 0 | BM140: 0 | BN140: 0 | BO140: 0 | BP140: 0 | BQ140: 0 | BR140: 0 | BS140: 0 | BT140: 0 | BU140: 0 | BV140: 0 | BW140: =BW72 -> 0 | BX140: 0 | BY140: 0 | BZ140: 0 | CA140: 0 | CB140: 0
D141: Fees on Debt | H141: USD | K141: =K134 -> 1247665.196 | L141: =L134 -> 0 | M141: 0 | N141: 0 | O141: 0 | P141: 0 | Q141: 0 | R141: 0 | S141: 0 | T141: 0 | U141: 0 | V141: 0 | W141: 0 | X141: 0 | Y141: 0 | Z141: 0 | AA141: 0 | AB141: 0 | AC141: 0 | AD141: 0 | AE141: 0 | AF141: 0 | AG141: 0 | AH141: 0 | AI141: 0 | AJ141: 0 | AK141: 0 | AL141: 0 | AM141: 0 | AN141: 0 | AO141: 0 | AP141: 0 | AQ141: 0 | AR141: 0 | AS141: 0 | AT141: 0 | AU141: 0 | AV141: 0 | AW141: 0 | AX141: 0 | AY141: 0 | AZ141: 0 | BA141: 0 | BB141: 0 | BC141: 0 | BD141: 0 | BE141: 0 | BF141: 0 | BG141: 0 | BH141: 0 | BI141: 0 | BJ141: 0 | BK141: 0 | BL141: 0 | BM141: 0 | BN141: 0 | BO141: 0 | BP141: 0 | BQ141: 0 | BR141: 0 | BS141: 0 | BT141: 0 | BU141: 0 | BV141: 0 | BW141: 0 | BX141: =BX134 -> 0 | BY141: 0 | BZ141: 0 | CA141: 0 | CB141: 0
D142: Total Uses | H142: USD | K142: =SUM(K140:K141) -> 184744710.1 | L142: =SUM(L140:L141) -> 0 | M142: 0 | N142: 0 | O142: 0 | P142: 0 | Q142: 0 | R142: 0 | S142: 0 | T142: 0 | U142: 0 | V142: 0 | W142: 0 | X142: 0 | Y142: 0 | Z142: 0 | AA142: 0 | AB142: 0 | AC142: 0 | AD142: 0 | AE142: 0 | AF142: 0 | AG142: 0 | AH142: 0 | AI142: 0 | AJ142: 0 | AK142: 0 | AL142: 0 | AM142: 0 | AN142: 0 | AO142: 0 | AP142: 0 | AQ142: 0 | AR142: 0 | AS142: 0 | AT142: 0 | AU142: 0 | AV142: 0 | AW142: 0 | AX142: 0 | AY142: 0 | AZ142: 0 | BA142: 0 | BB142: 0 | BC142: 0 | BD142: 0 | BE142: 0 | BF142: 0 | BG142: 0 | BH142: 0 | BI142: 0 | BJ142: 0 | BK142: 0 | BL142: 0 | BM142: 0 | BN142: 0 | BO142: 0 | BP142: 0 | BQ142: 0 | BR142: 0 | BS142: 0 | BT142: 0 | BU142: 0 | BV142: 0 | BW142: 0 | BX142: =SUM(BX140:BX141) -> 0 | BY142: 0 | BZ142: 0 | CA142: 0 | CB142: 0
D144: Debt Issued | H144: USD | J144: =K144/K142 -> 0.7491624391 | K144: =K130 -> 138403797.6 | L144: =L130 -> 0 | M144: 0 | N144: 0 | O144: 0 | P144: 0 | Q144: 0 | R144: 0 | S144: 0 | T144: 0 | U144: 0 | V144: 0 | W144: 0 | X144: 0 | Y144: 0 | Z144: 0 | AA144: 0 | AB144: 0 | AC144: 0 | AD144: 0 | AE144: 0 | AF144: 0 | AG144: 0 | AH144: 0 | AI144: 0 | AJ144: 0 | AK144: 0 | AL144: 0 | AM144: 0 | AN144: 0 | AO144: 0 | AP144: 0 | AQ144: 0 | AR144: 0 | AS144: 0 | AT144: 0 | AU144: 0 | AV144: 0 | AW144: 0 | AX144: 0 | AY144: 0 | AZ144: 0 | BA144: 0 | BB144: 0 | BC144: 0 | BD144: 0 | BE144: 0 | BF144: 0 | BG144: 0 | BH144: 0 | BI144: 0 | BJ144: 0 | BK144: 0 | BL144: 0 | BM144: 0 | BN144: 0 | BO144: 0 | BP144: 0 | BQ144: 0 | BR144: 0 | BS144: 0 | BT144: 0 | BU144: 0 | BV144: 0 | BW144: 0 | BX144: =BX130 -> 0 | BY144: 0 | BZ144: 0 | CA144: 0 | CB144: 0
D145: Equity Issued | H145: USD | J145: =K145/K142 -> 0.2508375609 | K145: =K142-K144 -> 46340912.47 | L145: =L142-L144 -> 0 | M145: 0 | N145: 0 | O145: 0 | P145: 0 | Q145: 0 | R145: 0 | S145: 0 | T145: 0 | U145: 0 | V145: 0 | W145: 0 | X145: 0 | Y145: 0 | Z145: 0 | AA145: 0 | AB145: 0 | AC145: 0 | AD145: 0 | AE145: 0 | AF145: 0 | AG145: 0 | AH145: 0 | AI145: 0 | AJ145: 0 | AK145: 0 | AL145: 0 | AM145: 0 | AN145: 0 | AO145: 0 | AP145: 0 | AQ145: 0 | AR145: 0 | AS145: 0 | AT145: 0 | AU145: 0 | AV145: 0 | AW145: 0 | AX145: 0 | AY145: 0 | AZ145: 0 | BA145: 0 | BB145: 0 | BC145: 0 | BD145: 0 | BE145: 0 | BF145: 0 | BG145: 0 | BH145: 0 | BI145: 0 | BJ145: 0 | BK145: 0 | BL145: 0 | BM145: 0 | BN145: 0 | BO145: 0 | BP145: 0 | BQ145: 0 | BR145: 0 | BS145: 0 | BT145: 0 | BU145: 0 | BV145: 0 | BW145: 0 | BX145: =BX142-BX144 -> 0 | BY145: 0 | BZ145: 0 | CA145: 0 | CB145: 0
D146: Total Sources | H146: USD | J146: =K146/K142 -> 1 | K146: =SUM(K144:K145) -> 184744710.1 | L146: =SUM(L144:L145) -> 0 | M146: 0 | N146: 0 | O146: 0 | P146: 0 | Q146: 0 | R146: 0 | S146: 0 | T146: 0 | U146: 0 | V146: 0 | W146: 0 | X146: 0 | Y146: 0 | Z146: 0 | AA146: 0 | AB146: 0 | AC146: 0 | AD146: 0 | AE146: 0 | AF146: 0 | AG146: 0 | AH146: 0 | AI146: 0 | AJ146: 0 | AK146: 0 | AL146: 0 | AM146: 0 | AN146: 0 | AO146: 0 | AP146: 0 | AQ146: 0 | AR146: 0 | AS146: 0 | AT146: 0 | AU146: 0 | AV146: 0 | AW146: 0 | AX146: 0 | AY146: 0 | AZ146: 0 | BA146: 0 | BB146: 0 | BC146: 0 | BD146: 0 | BE146: 0 | BF146: 0 | BG146: 0 | BH146: 0 | BI146: 0 | BJ146: 0 | BK146: 0 | BL146: 0 | BM146: 0 | BN146: 0 | BO146: 0 | BP146: 0 | BQ146: 0 | BR146: 0 | BS146: 0 | BT146: 0 | BU146: 0 | BV146: 0 | BW146: 0 | BX146: =SUM(BX144:BX145) -> 0 | BY146: 0 | BZ146: 0 | CA146: 0 | CB146: 0
B148: Cash Flow Waterfall
C150: Equity Cash Flow
D151: CFADS | H151: USD | K151: =K108 -> 0 | L151: 4631203.467 | M151: 4685126.376 | N151: 4699688.681 | O151: 4834544.985 | P151: 4849598.486 | Q151: 4990425.922 | R151: 5027595.883 | S151: 5153011.271 | T151: 5169103.269 | U151: 5322699.329 | V151: 5339340.866 | W151: 5499760.83 | X151: 5516973.059 | Y151: 5684528.017 | Z151: 5728163.561 | AA151: 5877291.132 | AB151: 5895711.201 | AC151: 6078527.271 | AD151: 6097587.173 | AE151: 6288561.13 | AF151: 6308285.967 | AG151: 6507791.057 | AH151: 6559098.991 | AI151: 6736565.282 | AJ151: 6757698.905 | AK151: 6975455.623 | AL151: 6997336.327 | AM151: 7224851.767 | AN151: 7247509.414 | AO151: 7485231.626 | AP151: 7545656.548 | AQ151: =AQ108 -> 7757013.286 | AR151: 7781318.767 | AS151: 8040882.489 | AT151: 8066062.753 | AU151: 8337307.23 | AV151: 8363397.887 | AW151: 8646861.23 | AX151: 8718134.145 | AY151: 8970046.778 | AZ151: 8080585.107 | BA151: 8410197.172 | BB151: 8460231.61 | BC151: 8805200.521 | BD151: 8857723.599 | BE151: 9218771.196 | BF151: 9326867.56 | BG151: 9651787.631 | BH151: 9709661.011 | BI151: 10105170.17 | BJ151: 1.935780624e-09 | BK151: 1.964817333e-09 | BL151: 1.994289593e-09 | BM151: 2.024203937e-09 | BN151: 2.054566996e-09 | BO151: 2.085385501e-09 | BP151: 2.116666283e-09 | BQ151: 2.148416278e-09 | BR151: 2.180642522e-09 | BS151: 2.21335216e-09 | BT151: 2.246552442e-09 | BU151: 2.280250729e-09 | BV151: 2.31445449e-09 | BW151: =BW108 -> 2.349171307e-09 | BX151: 2.384408876e-09 | BY151: 2.42017501e-09 | BZ151: 2.456477635e-09 | CA151: 2.493324799e-09 | CB151: 2.530724671e-09
D152: Less: Debt Servcice | H152: USD | K152: =K133+K131 -> 0 | L152: 3430521.087 | M152: 3470463.982 | N152: 3481250.875 | O152: 3581144.433 | P152: 3592295.175 | Q152: 3696611.794 | R152: 3724145.098 | S152: 3817045.386 | T152: 3828965.385 | U152: 3942740.244 | V152: 3955067.308 | W152: 4073896.911 | X152: 4086646.711 | Y152: 4210761.494 | Z152: 4243084.119 | AA152: 4353548.987 | AB152: 4367193.483 | AC152: 4502612.793 | AD152: 4516731.239 | AE152: 4658193.43 | AF152: 4672804.42 | AG152: 4820585.968 | AH152: 4858591.845 | AI152: 4990048.357 | AJ152: 5005702.892 | AK152: 5167004.165 | AL152: 5183212.094 | AM152: 5351742.05 | AN152: 5368525.492 | AO152: 5544616.019 | AP152: 5589375.221 | AQ152: =AQ133+AQ131 -> 5745935.768 | AR152: 5763939.827 | AS152: 5956209.251 | AT152: 5974861.298 | AU152: 6175783.134 | AV152: 6195109.546 | AW152: 6405082.393 | AX152: 6457877.144 | AY152: 6644479.095 | AZ152: 0 | BA152: 0 | BB152: 0 | BC152: 0 | BD152: 0 | BE152: 0 | BF152: 0 | BG152: 0 | BH152: 0 | BI152: 0 | BJ152: 0 | BK152: 0 | BL152: 0 | BM152: 0 | BN152: 0 | BO152: 0 | BP152: 0 | BQ152: 0 | BR152: 0 | BS152: 0 | BT152: 0 | BU152: 0 | BV152: 0 | BW152: =BW133+BW131 -> 0 | BX152: 0 | BY152: 0 | BZ152: 0 | CA152: 0 | CB152: 0
D153: Cash to Equity | H153: USD | K153: =K151-K152 -> 0 | L153: =L151-L152 -> 1200682.38 | M153: 1214662.394 | N153: 1218437.806 | O153: 1253400.552 | P153: 1257303.311 | Q153: 1293814.128 | R153: 1303450.784 | S153: 1335965.885 | T153: 1340137.885 | U153: 1379959.085 | V153: 1384273.558 | W153: 1425863.919 | X153: 1430326.349 | Y153: 1473766.523 | Z153: 1485079.442 | AA153: 1523742.145 | AB153: 1528517.719 | AC153: 1575914.478 | AD153: 1580855.934 | AE153: 1630367.7 | AF153: 1635481.547 | AG153: 1687205.089 | AH153: 1700507.146 | AI153: 1746516.925 | AJ153: 1751996.012 | AK153: 1808451.458 | AL153: 1814124.233 | AM153: 1873109.717 | AN153: 1878983.922 | AO153: 1940615.607 | AP153: 1956281.327 | AQ153: 2011077.519 | AR153: 2017378.94 | AS153: 2084673.238 | AT153: 2091201.454 | AU153: 2161524.097 | AV153: 2168288.341 | AW153: 2241778.837 | AX153: 2260257 | AY153: 2325567.683 | AZ153: 8080585.107 | BA153: 8410197.172 | BB153: 8460231.61 | BC153: 8805200.521 | BD153: 8857723.599 | BE153: 9218771.196 | BF153: 9326867.56 | BG153: 9651787.631 | BH153: 9709661.011 | BI153: 10105170.17 | BJ153: 1.935780624e-09 | BK153: 1.964817333e-09 | BL153: 1.994289593e-09 | BM153: 2.024203937e-09 | BN153: 2.054566996e-09 | BO153: 2.085385501e-09 | BP153: 2.116666283e-09 | BQ153: 2.148416278e-09 | BR153: 2.180642522e-09 | BS153: 2.21335216e-09 | BT153: 2.246552442e-09 | BU153: 2.280250729e-09 | BV153: 2.31445449e-09 | BW153: 2.349171307e-09 | BX153: =BX151-BX152 -> 2.384408876e-09 | BY153: 2.42017501e-09 | BZ153: 2.456477635e-09 | CA153: 2.493324799e-09 | CB153: 2.530724671e-09
D155: Total Expenditure | K155: =K32 -> 183497044.9
D156: Less: Debt | F156: =F130 -> 138403797.6 | K156: =$F$156*K5 -> 138403797.6 | L156: 0 | M156: 0 | N156: 0 | O156: 0 | P156: 0 | Q156: 0 | R156: 0 | S156: 0 | T156: 0 | U156: 0 | V156: 0 | W156: 0 | X156: 0 | Y156: 0 | Z156: 0 | AA156: 0 | AB156: 0 | AC156: 0 | AD156: 0 | AE156: 0 | AF156: 0 | AG156: 0 | AH156: 0 | AI156: 0 | AJ156: 0 | AK156: 0 | AL156: 0 | AM156: 0 | AN156: 0 | AO156: 0 | AP156: 0 | AQ156: =$F$156*AQ5 -> 0 | AR156: 0 | AS156: 0 | AT156: 0 | AU156: 0 | AV156: 0 | AW156: 0 | AX156: 0 | AY156: 0 | AZ156: 0 | BA156: 0 | BB156: 0 | BC156: 0 | BD156: 0 | BE156: 0 | BF156: 0 | BG156: 0 | BH156: 0 | BI156: 0 | BJ156: 0 | BK156: 0 | BL156: 0 | BM156: 0 | BN156: 0 | BO156: 0 | BP156: 0 | BQ156: 0 | BR156: 0 | BS156: 0 | BT156: 0 | BU156: 0 | BV156: 0 | BW156: =$F$156*BW5 -> 0 | BX156: 0 | BY156: 0 | BZ156: 0 | CA156: 0 | CB156: 0
D157: Plus: Fees on Debt | F157: =InputC!F55 -> 0.01 | G157: =F157*F130 -> 1384037.976 | K157: =$G$157*K5 -> 1384037.976 | L157: 0 | M157: 0 | N157: 0 | O157: 0 | P157: 0 | Q157: 0 | R157: 0 | S157: 0 | T157: 0 | U157: 0 | V157: 0 | W157: 0 | X157: 0 | Y157: 0 | Z157: 0 | AA157: 0 | AB157: 0 | AC157: 0 | AD157: 0 | AE157: 0 | AF157: 0 | AG157: 0 | AH157: 0 | AI157: 0 | AJ157: 0 | AK157: 0 | AL157: 0 | AM157: 0 | AN157: 0 | AO157: 0 | AP157: 0 | AQ157: =$G$157*AQ5 -> 0 | AR157: 0 | AS157: 0 | AT157: 0 | AU157: 0 | AV157: 0 | AW157: 0 | AX157: 0 | AY157: 0 | AZ157: 0 | BA157: 0 | BB157: 0 | BC157: 0 | BD157: 0 | BE157: 0 | BF157: 0 | BG157: 0 | BH157: 0 | BI157: 0 | BJ157: 0 | BK157: 0 | BL157: 0 | BM157: 0 | BN157: 0 | BO157: 0 | BP157: 0 | BQ157: 0 | BR157: 0 | BS157: 0 | BT157: 0 | BU157: 0 | BV157: 0 | BW157: =$G$157*BW5 -> 0 | BX157: 0 | BY157: 0 | BZ157: 0 | CA157: 0 | CB157: 0
D158: Net Equity Invested | K158: =K155-K156+K157 -> 46477285.25 | L158: =L155-L156+L157 -> 0 | M158: 0 | N158: 0 | O158: 0 | P158: 0 | Q158: 0 | R158: 0 | S158: 0 | T158: 0 | U158: 0 | V158: 0 | W158: 0 | X158: 0 | Y158: 0 | Z158: 0 | AA158: 0 | AB158: 0 | AC158: 0 | AD158: 0 | AE158: 0 | AF158: 0 | AG158: 0 | AH158: 0 | AI158: 0 | AJ158: 0 | AK158: 0 | AL158: 0 | AM158: 0 | AN158: 0 | AO158: 0 | AP158: 0 | AQ158: 0 | AR158: 0 | AS158: 0 | AT158: 0 | AU158: 0 | AV158: 0 | AW158: 0 | AX158: 0 | AY158: 0 | AZ158: 0 | BA158: 0 | BB158: 0 | BC158: 0 | BD158: 0 | BE158: 0 | BF158: 0 | BG158: 0 | BH158: 0 | BI158: 0 | BJ158: 0 | BK158: 0 | BL158: 0 | BM158: 0 | BN158: 0 | BO158: 0 | BP158: 0 | BQ158: 0 | BR158: 0 | BS158: 0 | BT158: 0 | BU158: 0 | BV158: 0 | BW158: 0 | BX158: =BX155-BX156+BX157 -> 0 | BY158: 0 | BZ158: 0 | CA158: 0 | CB158: 0
D160: Equity Cash Flow | K160: =K153-K158 -> -46477285.25 | L160: =L153-L158 -> 1200682.38 | M160: 1214662.394 | N160: 1218437.806 | O160: 1253400.552 | P160: 1257303.311 | Q160: 1293814.128 | R160: 1303450.784 | S160: 1335965.885 | T160: 1340137.885 | U160: 1379959.085 | V160: 1384273.558 | W160: 1425863.919 | X160: 1430326.349 | Y160: 1473766.523 | Z160: 1485079.442 | AA160: 1523742.145 | AB160: 1528517.719 | AC160: 1575914.478 | AD160: 1580855.934 | AE160: 1630367.7 | AF160: 1635481.547 | AG160: 1687205.089 | AH160: 1700507.146 | AI160: 1746516.925 | AJ160: 1751996.012 | AK160: 1808451.458 | AL160: 1814124.233 | AM160: 1873109.717 | AN160: 1878983.922 | AO160: 1940615.607 | AP160: 1956281.327 | AQ160: 2011077.519 | AR160: 2017378.94 | AS160: 2084673.238 | AT160: 2091201.454 | AU160: 2161524.097 | AV160: 2168288.341 | AW160: 2241778.837 | AX160: 2260257 | AY160: 2325567.683 | AZ160: 8080585.107 | BA160: 8410197.172 | BB160: 8460231.61 | BC160: 8805200.521 | BD160: 8857723.599 | BE160: 9218771.196 | BF160: 9326867.56 | BG160: 9651787.631 | BH160: 9709661.011 | BI160: 10105170.17 | BJ160: 1.935780624e-09 | BK160: 1.964817333e-09 | BL160: 1.994289593e-09 | BM160: 2.024203937e-09 | BN160: 2.054566996e-09 | BO160: 2.085385501e-09 | BP160: 2.116666283e-09 | BQ160: 2.148416278e-09 | BR160: 2.180642522e-09 | BS160: 2.21335216e-09 | BT160: 2.246552442e-09 | BU160: 2.280250729e-09 | BV160: 2.31445449e-09 | BW160: 2.349171307e-09 | BX160: =BX153-BX158 -> 2.384408876e-09 | BY160: 2.42017501e-09 | BZ160: 2.456477635e-09 | CA160: 2.493324799e-09 | CB160: 2.530724671e-09
D161: Equity IRR | F161: =XIRR(K160:CB160,K4:CB4) -> 0.07999999821
D163: Target IRR | F163: =InputC!F57 -> 0.08
D164: NPV at Target IRR | F164: =XNPV(F163,K160:CB160,K4:CB4) -> 0.0004616952678 | G164: NPV
B166: Valuation with Sale
D167: Discount Rate for Valuation
D168: NPV of Prospective Cash Flow
D170: Sale Date Flag
D171: Holding Company Flag
D173: Cash Flow Over Holding Period
D174: IRR over Holding Period
D176: NPV of Cash Flow at Target IRR

Sheet Model - Structuring
B1: =InputC!G5 -> Base Case
B2: Timing | E2: Units for Input | F2: Constant | G2: Constant | H2: Units for Output | I2: Sum | J2: Initial | K2: 1 | L2: 2 | M2: 3 | N2: 4 | O2: 5 | P2: 6 | Q2: 7 | R2: 8 | S2: 9 | T2: 10 | U2: 11 | V2: 12 | W2: 13 | X2: 14 | Y2: 15 | Z2: 16 | AA2: 17 | AB2: 18 | AC2: 19 | AD2: 20 | AE2: 21 | AF2: 22 | AG2: 23 | AH2: 24 | AI2: 25 | AJ2: 26 | AK2: 27 | AL2: 28 | AM2: 29 | AN2: 30 | AO2: 31 | AP2: 32 | AQ2: 33 | AR2: 34 | AS2: 35 | AT2: 36 | AU2: 37 | AV2: 38 | AW2: 39 | AX2: 40 | AY2: 41 | AZ2: 42 | BA2: 43 | BB2: 44 | BC2: 45 | BD2: 46 | BE2: 47 | BF2: 48 | BG2: 49 | BH2: 50 | BI2: 51 | BJ2: 52 | BK2: 53 | BL2: 54 | BM2: 55 | BN2: 56 | BO2: 57 | BP2: 58 | BQ2: 59 | BR2: 60 | BS2: 61 | BT2: 62 | BU2: 63 | BV2: 64 | BW2: 65 | BX2: 66 | BY2: 67 | BZ2: 68 | CA2: 69 | CB2: 70
C3: Start of Period | K3: =J4+1 -> 2024-07-01 | L3: =K4+1 -> 2025-01-01 | M3: 2025-07-01 | N3: 2026-01-01 | O3: 2026-07-01 | P3: 2027-01-01 | Q3: 2027-07-01 | R3: 2028-01-01 | S3: 2028-07-01 | T3: 2029-01-01 | U3: 2029-07-01 | V3: 2030-01-01 | W3: 2030-07-01 | X3: 2031-01-01 | Y3: 2031-07-01 | Z3: 2032-01-01 | AA3: 2032-07-01 | AB3: 2033-01-01 | AC3: 2033-07-01 | AD3: 2034-01-01 | AE3: 2034-07-01 | AF3: 2035-01-01 | AG3: 2035-07-01 | AH3: 2036-01-01 | AI3: 2036-07-01 | AJ3: 2037-01-01 | AK3: 2037-07-01 | AL3: 2038-01-01 | AM3: 2038-07-01 | AN3: 2039-01-01 | AO3: 2039-07-01 | AP3: 2040-01-01 | AQ3: 2040-07-01 | AR3: 2041-01-01 | AS3: 2041-07-01 | AT3: 2042-01-01 | AU3: 2042-07-01 | AV3: 2043-01-01 | AW3: 2043-07-01 | AX3: 2044-01-01 | AY3: 2044-07-01 | AZ3: 2045-01-01 | BA3: 2045-07-01 | BB3: 2046-01-01 | BC3: 2046-07-01 | BD3: 2047-01-01 | BE3: 2047-07-01 | BF3: 2048-01-01 | BG3: 2048-07-01 | BH3: 2049-01-01 | BI3: 2049-07-01 | BJ3: 2050-01-01 | BK3: 2050-07-01 | BL3: 2051-01-01 | BM3: 2051-07-01 | BN3: 2052-01-01 | BO3: 2052-07-01 | BP3: 2053-01-01 | BQ3: 2053-07-01 | BR3: 2054-01-01 | BS3: 2054-07-01 | BT3: 2055-01-01 | BU3: 2055-07-01 | BV3: 2056-01-01 | BW3: 2056-07-01 | BX3: =BW4+1 -> 2057-01-01 | BY3: 2057-07-01 | BZ3: 2058-01-01 | CA3: 2058-07-01 | CB3: 2059-01-01
C4: End of Period | J4: =EDATE(InputC!F6,-6) -> 2024-06-30 | K4: =EDATE(K3,6)-1 -> 2024-12-31 | L4: =EDATE(L3,6)-1 -> 2025-06-30 | M4: 2025-12-31 | N4: 2026-06-30 | O4: 2026-12-31 | P4: 2027-06-30 | Q4: 2027-12-31 | R4: 2028-06-30 | S4: 2028-12-31 | T4: 2029-06-30 | U4: 2029-12-31 | V4: 2030-06-30 | W4: 2030-12-31 | X4: 2031-06-30 | Y4: 2031-12-31 | Z4: 2032-06-30 | AA4: 2032-12-31 | AB4: 2033-06-30 | AC4: 2033-12-31 | AD4: 2034-06-30 | AE4: 2034-12-31 | AF4: 2035-06-30 | AG4: 2035-12-31 | AH4: 2036-06-30 | AI4: 2036-12-31 | AJ4: 2037-06-30 | AK4: 2037-12-31 | AL4: 2038-06-30 | AM4: 2038-12-31 | AN4: 2039-06-30 | AO4: 2039-12-31 | AP4: 2040-06-30 | AQ4: 2040-12-31 | AR4: 2041-06-30 | AS4: 2041-12-31 | AT4: 2042-06-30 | AU4: 2042-12-31 | AV4: 2043-06-30 | AW4: 2043-12-31 | AX4: 2044-06-30 | AY4: 2044-12-31 | AZ4: 2045-06-30 | BA4: 2045-12-31 | BB4: 2046-06-30 | BC4: 2046-12-31 | BD4: 2047-06-30 | BE4: 2047-12-31 | BF4: 2048-06-30 | BG4: 2048-12-31 | BH4: 2049-06-30 | BI4: 2049-12-31 | BJ4: 2050-06-30 | BK4: 2050-12-31 | BL4: 2051-06-30 | BM4: 2051-12-31 | BN4: 2052-06-30 | BO4: 2052-12-31 | BP4: 2053-06-30 | BQ4: 2053-12-31 | BR4: 2054-06-30 | BS4: 2054-12-31 | BT4: 2055-06-30 | BU4: 2055-12-31 | BV4: 2056-06-30 | BW4: 2056-12-31 | BX4: =EDATE(BX3,6)-1 -> 2057-06-30 | BY4: 2057-12-31 | BZ4: 2058-06-30 | CA4: 2058-12-31 | CB4: 2059-06-30
C5: Acquisition Period | E5: Flag | F5: =InputC!G6 -> 2024-12-31 | H5: Flag | K5: =(K4=$F$5)*1 -> 1 | L5: =(L4=$F$5)*1 -> 0 | M5: 0 | N5: 0 | O5: 0 | P5: 0 | Q5: 0 | R5: 0 | S5: 0 | T5: 0 | U5: 0 | V5: 0 | W5: 0 | X5: 0 | Y5: 0 | Z5: 0 | AA5: 0 | AB5: 0 | AC5: 0 | AD5: 0 | AE5: 0 | AF5: 0 | AG5: 0 | AH5: 0 | AI5: 0 | AJ5: 0 | AK5: 0 | AL5: 0 | AM5: 0 | AN5: 0 | AO5: 0 | AP5: 0 | AQ5: 0 | AR5: 0 | AS5: 0 | AT5: 0 | AU5: 0 | AV5: 0 | AW5: 0 | AX5: 0 | AY5: 0 | AZ5: 0 | BA5: 0 | BB5: 0 | BC5: 0 | BD5: 0 | BE5: 0 | BF5: 0 | BG5: 0 | BH5: 0 | BI5: 0 | BJ5: 0 | BK5: 0 | BL5: 0 | BM5: 0 | BN5: 0 | BO5: 0 | BP5: 0 | BQ5: 0 | BR5: 0 | BS5: 0 | BT5: 0 | BU5: 0 | BV5: 0 | BW5: 0 | BX5: =(BX4=$F$5)*1 -> 0 | BY5: 0 | BZ5: 0 | CA5: 0 | CB5: 0
C6: Operation Perid | E6: Flag | F6: =InputC!G8 -> 2049-12-31 | H6: Flag | I6: =SUM(K6:XFD6) -> 50 | K6: =(AND(NOT(K5),K4<=$F$6))*1 -> 0 | L6: =(AND(NOT(L5),L4<=$F$6))*1 -> 1 | M6: 1 | N6: 1 | O6: 1 | P6: 1 | Q6: 1 | R6: 1 | S6: 1 | T6: 1 | U6: 1 | V6: 1 | W6: 1 | X6: 1 | Y6: 1 | Z6: 1 | AA6: 1 | AB6: 1 | AC6: 1 | AD6: 1 | AE6: 1 | AF6: 1 | AG6: 1 | AH6: 1 | AI6: 1 | AJ6: 1 | AK6: 1 | AL6: 1 | AM6: 1 | AN6: 1 | AO6: 1 | AP6: 1 | AQ6: 1 | AR6: 1 | AS6: 1 | AT6: 1 | AU6: 1 | AV6: 1 | AW6: 1 | AX6: 1 | AY6: 1 | AZ6: 1 | BA6: 1 | BB6: 1 | BC6: 1 | BD6: 1 | BE6: 1 | BF6: 1 | BG6: 1 | BH6: 1 | BI6: 1 | BJ6: 0 | BK6: 0 | BL6: 0 | BM6: 0 | BN6: 0 | BO6: 0 | BP6: 0 | BQ6: 0 | BR6: 0 | BS6: 0 | BT6: 0 | BU6: 0 | BV6: 0 | BW6: 0 | BX6: =(AND(NOT(BX5),BX4<=$F$6))*1 -> 0 | BY6: 0 | BZ6: 0 | CA6: 0 | CB6: 0
C7: Sale Date | E7: Flag | F7: =InputC!G10 -> 2030-12-31 | H7: Flag | I7: =SUM(K7:XFD7) -> 1 | K7: =(K4=$F$7)*1 -> 0 | L7: =(L4=$F$7)*1 -> 0 | M7: 0 | N7: 0 | O7: 0 | P7: 0 | Q7: 0 | R7: 0 | S7: 0 | T7: 0 | U7: 0 | V7: 0 | W7: 1 | X7: 0 | Y7: 0 | Z7: 0 | AA7: 0 | AB7: 0 | AC7: 0 | AD7: 0 | AE7: 0 | AF7: 0 | AG7: 0 | AH7: 0 | AI7: 0 | AJ7: 0 | AK7: 0 | AL7: 0 | AM7: 0 | AN7: 0 | AO7: 0 | AP7: 0 | AQ7: 0 | AR7: 0 | AS7: 0 | AT7: 0 | AU7: 0 | AV7: 0 | AW7: 0 | AX7: 0 | AY7: 0 | AZ7: 0 | BA7: 0 | BB7: 0 | BC7: 0 | BD7: 0 | BE7: 0 | BF7: 0 | BG7: 0 | BH7: 0 | BI7: 0 | BJ7: 0 | BK7: 0 | BL7: 0 | BM7: 0 | BN7: 0 | BO7: 0 | BP7: 0 | BQ7: 0 | BR7: 0 | BS7: 0 | BT7: 0 | BU7: 0 | BV7: 0 | BW7: 0 | BX7: =(BX4=$F$7)*1 -> 0 | BY7: 0 | BZ7: 0 | CA7: 0 | CB7: 0
C8: Days in Period | E8: Days | K8: =K4-K3+1 -> 184 | L8: =L4-L3+1 -> 181 | M8: 184 | N8: 181 | O8: 184 | P8: 181 | Q8: 184 | R8: 182 | S8: 184 | T8: 181 | U8: 184 | V8: 181 | W8: 184 | X8: 181 | Y8: 184 | Z8: 182 | AA8: 184 | AB8: 181 | AC8: 184 | AD8: 181 | AE8: 184 | AF8: 181 | AG8: 184 | AH8: 182 | AI8: 184 | AJ8: 181 | AK8: 184 | AL8: 181 | AM8: 184 | AN8: 181 | AO8: 184 | AP8: 182 | AQ8: 184 | AR8: 181 | AS8: 184 | AT8: 181 | AU8: 184 | AV8: 181 | AW8: 184 | AX8: 182 | AY8: 184 | AZ8: 181 | BA8: 184 | BB8: 181 | BC8: 184 | BD8: 181 | BE8: 184 | BF8: 182 | BG8: 184 | BH8: 181 | BI8: 184 | BJ8: 181 | BK8: 184 | BL8: 181 | BM8: 184 | BN8: 182 | BO8: 184 | BP8: 181 | BQ8: 184 | BR8: 181 | BS8: 184 | BT8: 181 | BU8: 184 | BV8: 182 | BW8: 184 | BX8: =BX4-BX3+1 -> 181 | BY8: 184 | BZ8: 181 | CA8: 184 | CB8: 181
B10: Capacity and Volumes
C11: Road Capacity | E11: km | F11: =InputC!G13 -> 50 | H11: km | K11: =$F11*K$6 -> 0 | L11: =$F11*L$6 -> 50 | M11: 50 | N11: 50 | O11: 50 | P11: 50 | Q11: 50 | R11: 50 | S11: 50 | T11: 50 | U11: 50 | V11: 50 | W11: 50 | X11: 50 | Y11: 50 | Z11: 50 | AA11: 50 | AB11: 50 | AC11: 50 | AD11: 50 | AE11: 50 | AF11: 50 | AG11: 50 | AH11: 50 | AI11: 50 | AJ11: 50 | AK11: 50 | AL11: 50 | AM11: 50 | AN11: 50 | AO11: 50 | AP11: 50 | AQ11: 50 | AR11: 50 | AS11: 50 | AT11: 50 | AU11: 50 | AV11: 50 | AW11: 50 | AX11: 50 | AY11: 50 | AZ11: 50 | BA11: 50 | BB11: 50 | BC11: 50 | BD11: 50 | BE11: 50 | BF11: 50 | BG11: 50 | BH11: 50 | BI11: 50 | BJ11: 0 | BK11: 0 | BL11: 0 | BM11: 0 | BN11: 0 | BO11: 0 | BP11: 0 | BQ11: 0 | BR11: 0 | BS11: 0 | BT11: 0 | BU11: 0 | BV11: 0 | BW11: 0 | BX11: =$F11*BX$6 -> 0 | BY11: 0 | BZ11: 0 | CA11: 0 | CB11: 0
C13: Car Volumes - Base | E13: Cars/Day | F13: =InputC!G15 -> 3500 | H13: Cars/Period | K13: =$F$13*K6*K8 -> 0 | L13: =$F$13*L6*L8 -> 633500 | M13: 644000 | N13: 633500 | O13: 644000 | P13: 633500 | Q13: 644000 | R13: 637000 | S13: 644000 | T13: 633500 | U13: 644000 | V13: 633500 | W13: 644000 | X13: 633500 | Y13: 644000 | Z13: 637000 | AA13: 644000 | AB13: 633500 | AC13: 644000 | AD13: 633500 | AE13: 644000 | AF13: 633500 | AG13: 644000 | AH13: 637000 | AI13: 644000 | AJ13: 633500 | AK13: 644000 | AL13: 633500 | AM13: 644000 | AN13: 633500 | AO13: 644000 | AP13: 637000 | AQ13: 644000 | AR13: 633500 | AS13: 644000 | AT13: 633500 | AU13: 644000 | AV13: 633500 | AW13: 644000 | AX13: 637000 | AY13: 644000 | AZ13: 633500 | BA13: 644000 | BB13: 633500 | BC13: 644000 | BD13: 633500 | BE13: 644000 | BF13: 637000 | BG13: 644000 | BH13: 633500 | BI13: 644000 | BJ13: 0 | BK13: 0 | BL13: 0 | BM13: 0 | BN13: 0 | BO13: 0 | BP13: 0 | BQ13: 0 | BR13: 0 | BS13: 0 | BT13: 0 | BU13: 0 | BV13: 0 | BW13: 0 | BX13: =$F$13*BX6*BX8 -> 0 | BY13: 0 | BZ13: 0 | CA13: 0 | CB13: 0
C14: Escalation Period | E14: Date | F14: =EDATE(F5,12)+1 -> 2026-01-01 | H14: Flag | K14: =(K3>=$F$14)*1 -> 0 | L14: =(L3>=$F$14)*1 -> 0 | M14: 0 | N14: 1 | O14: 1 | P14: 1 | Q14: 1 | R14: 1 | S14: 1 | T14: 1 | U14: 1 | V14: 1 | W14: 1 | X14: 1 | Y14: 1 | Z14: 1 | AA14: 1 | AB14: 1 | AC14: 1 | AD14: 1 | AE14: 1 | AF14: 1 | AG14: 1 | AH14: 1 | AI14: 1 | AJ14: 1 | AK14: 1 | AL14: 1 | AM14: 1 | AN14: 1 | AO14: 1 | AP14: 1 | AQ14: 1 | AR14: 1 | AS14: 1 | AT14: 1 | AU14: 1 | AV14: 1 | AW14: 1 | AX14: 1 | AY14: 1 | AZ14: 1 | BA14: 1 | BB14: 1 | BC14: 1 | BD14: 1 | BE14: 1 | BF14: 1 | BG14: 1 | BH14: 1 | BI14: 1 | BJ14: 1 | BK14: 1 | BL14: 1 | BM14: 1 | BN14: 1 | BO14: 1 | BP14: 1 | BQ14: 1 | BR14: 1 | BS14: 1 | BT14: 1 | BU14: 1 | BV14: 1 | BW14: 1 | BX14: =(BX3>=$F$14)*1 -> 1 | BY14: 1 | BZ14: 1 | CA14: 1 | CB14: 1
C15: Growth Index | E15: % p.a. | F15: =InputC!G18 -> 0.03 | G15: =(1+F15)^(1/2)-1 -> 0.01488915651 | H15: index | J15: 1 | K15: =J15*(1+$G$15*K14) -> 1 | L15: =K15*(1+$G$15*L14) -> 1 | M15: 1 | N15: 1.014889157 | O15: 1.03 | P15: 1.045335831 | Q15: 1.0609 | R15: 1.076695906 | S15: 1.092727 | T15: 1.108996783 | U15: 1.12550881 | V15: 1.142266687 | W15: 1.159274074 | X15: 1.176534687 | Y15: 1.194052297 | Z15: 1.211830728 | AA15: 1.229873865 | AB15: 1.24818565 | AC15: 1.266770081 | AD15: 1.285631219 | AE15: 1.304773184 | AF15: 1.324200156 | AG15: 1.343916379 | AH15: 1.363926161 | AI15: 1.384233871 | AJ15: 1.404843945 | AK15: 1.425760887 | AL15: 1.446989264 | AM15: 1.468533713 | AN15: 1.490398942 | AO15: 1.512589725 | AP15: 1.53511091 | AQ15: 1.557967417 | AR15: 1.581164237 | AS15: 1.604706439 | AT15: 1.628599164 | AU15: 1.652847632 | AV15: 1.677457139 | AW15: 1.702433061 | AX15: 1.727780854 | AY15: 1.753506053 | AZ15: 1.779614279 | BA15: 1.806111235 | BB15: 1.833002708 | BC15: 1.860294572 | BD15: 1.887992789 | BE15: 1.916103409 | BF15: 1.944632572 | BG15: 1.973586511 | BH15: 2.00297155 | BI15: 2.032794106 | BJ15: 2.063060696 | BK15: 2.09377793 | BL15: 2.124952517 | BM15: 2.156591268 | BN15: 2.188701092 | BO15: 2.221289006 | BP15: 2.254362125 | BQ15: 2.287927676 | BR15: 2.321992989 | BS15: 2.356565506 | BT15: 2.391652779 | BU15: 2.427262471 | BV15: 2.463402362 | BW15: 2.500080345 | BX15: =BW15*(1+$G$15*BX14) -> 2.537304433 | BY15: 2.575082756 | BZ15: 2.613423566 | CA15: 2.652335238 | CB15: 2.691826273
C16: Car Volumes with Growth | E16: Cars/Day | H16: Cars/Period | K16: =K15*K13 -> 0 | L16: =L15*L13 -> 633500 | M16: 644000 | N16: 642932.2806 | O16: 663320 | P16: 662220.2491 | Q16: 683219.6 | R16: 685855.2922 | S16: 703716.188 | T16: 702549.4622 | U16: 724827.6736 | V16: 723625.9461 | W16: 746572.5038 | X16: 745334.7245 | Y16: 768969.679 | Z16: 771936.1738 | AA16: 792038.7693 | AB16: 790725.6092 | AC16: 815799.9324 | AD16: 814447.3775 | AE16: 840273.9304 | AF16: 838880.7988 | AG16: 865482.1483 | AH16: 868820.9643 | AI16: 891446.6127 | AJ16: 889968.6395 | AK16: 918190.0111 | AL16: 916667.6986 | AM16: 945735.7115 | AN16: 944167.7296 | AO16: 974107.7828 | AP16: 977865.6497 | AQ16: 1003331.016 | AR16: 1001667.544 | AS16: 1033430.947 | AT16: 1031717.571 | AU16: 1064433.875 | AV16: 1062669.098 | AW16: 1096366.891 | AX16: 1100596.404 | AY16: 1129257.898 | AZ16: 1127385.646 | BA16: 1163135.635 | BB16: 1161207.215 | BC16: 1198029.704 | BD16: 1196043.432 | BE16: 1233970.595 | BF16: 1238730.949 | BG16: 1270989.713 | BH16: 1268882.477 | BI16: 1309119.405 | BJ16: 0 | BK16: 0 | BL16: 0 | BM16: 0 | BN16: 0 | BO16: 0 | BP16: 0 | BQ16: 0 | BR16: 0 | BS16: 0 | BT16: 0 | BU16: 0 | BV16: 0 | BW16: 0 | BX16: =BX15*BX13 -> 0 | BY16: 0 | BZ16: 0 | CA16: 0 | CB16: 0
C18: Truck Volumes - Base | E18: Trucks/Day | F18: =InputC!G16 -> 1500 | H18: Trucks/Period | K18: =$F$18*K6*K8 -> 0 | L18: =$F$18*L6*L8 -> 271500 | M18: 276000 | N18: 271500 | O18: 276000 | P18: 271500 | Q18: 276000 | R18: 273000 | S18: 276000 | T18: 271500 | U18: 276000 | V18: 271500 | W18: 276000 | X18: 271500 | Y18: 276000 | Z18: 273000 | AA18: 276000 | AB18: 271500 | AC18: 276000 | AD18: 271500 | AE18: 276000 | AF18: 271500 | AG18: 276000 | AH18: 273000 | AI18: 276000 | AJ18: 271500 | AK18: 276000 | AL18: 271500 | AM18: 276000 | AN18: 271500 | AO18: 276000 | AP18: 273000 | AQ18: 276000 | AR18: 271500 | AS18: 276000 | AT18: 271500 | AU18: 276000 | AV18: 271500 | AW18: 276000 | AX18: 273000 | AY18: 276000 | AZ18: 271500 | BA18: 276000 | BB18: 271500 | BC18: 276000 | BD18: 271500 | BE18: 276000 | BF18: 273000 | BG18: 276000 | BH18: 271500 | BI18: 276000 | BJ18: 0 | BK18: 0 | BL18: 0 | BM18: 0 | BN18: 0 | BO18: 0 | BP18: 0 | BQ18: 0 | BR18: 0 | BS18: 0 | BT18: 0 | BU18: 0 | BV18: 0 | BW18: 0 | BX18: =$F$18*BX6*BX8 -> 0 | BY18: 0 | BZ18: 0 | CA18: 0 | CB18: 0
C19: Growth Index | E19: % p.a. | F19: =InputC!G19 -> 0.02 | G19: =(1+F19)^(1/2)-1 -> 0.009950493836 | H19: index | J19: 1 | K19: =J19*(1+$G$19*K14) -> 1 | L19: =K19*(1+$G$19*L14) -> 1 | M19: 1 | N19: 1.009950494 | O19: 1.02 | P19: 1.030149504 | Q19: 1.0404 | R19: 1.050752494 | S19: 1.061208 | T19: 1.071767544 | U19: 1.08243216 | V19: 1.093202895 | W19: 1.104080803 | X19: 1.115066952 | Y19: 1.126162419 | Z19: 1.137368291 | AA19: 1.148685668 | AB19: 1.160115657 | AC19: 1.171659381 | AD19: 1.18331797 | AE19: 1.195092569 | AF19: 1.20698433 | AG19: 1.21899442 | AH19: 1.231124016 | AI19: 1.243374308 | AJ19: 1.255746497 | AK19: 1.268241795 | AL19: 1.280861427 | AM19: 1.29360663 | AN19: 1.306478655 | AO19: 1.319478763 | AP19: 1.332608228 | AQ19: 1.345868338 | AR19: 1.359260393 | AS19: 1.372785705 | AT19: 1.386445601 | AU19: 1.400241419 | AV19: 1.414174513 | AW19: 1.428246248 | AX19: 1.442458003 | AY19: 1.456811173 | AZ19: 1.471307163 | BA19: 1.485947396 | BB19: 1.500733306 | BC19: 1.515666344 | BD19: 1.530747973 | BE19: 1.545979671 | BF19: 1.561362932 | BG19: 1.576899264 | BH19: 1.592590191 | BI19: 1.608437249 | BJ19: 1.624441994 | BK19: 1.640605994 | BL19: 1.656930834 | BM19: 1.673418114 | BN19: 1.690069451 | BO19: 1.706886477 | BP19: 1.72387084 | BQ19: 1.741024206 | BR19: 1.758348257 | BS19: 1.77584469 | BT19: 1.793515222 | BU19: 1.811361584 | BV19: 1.829385526 | BW19: 1.847588816 | BX19: =BW19*(1+$G$19*BX14) -> 1.865973237 | BY19: 1.884540592 | BZ19: 1.903292702 | CA19: 1.922231404 | CB19: 1.941358556
C20: Truck Volumes with Growth | E20: Trucks/Day | H20: Trucks/Period | K20: =K19*K18 -> 0 | L20: =L19*L18 -> 271500 | M20: 276000 | N20: 274201.5591 | O20: 281520 | P20: 279685.5903 | Q20: 287150.4 | R20: 286855.4308 | S20: 292893.408 | T20: 290984.8881 | U20: 298751.2762 | V20: 296804.5859 | W20: 304726.3017 | X20: 302740.6776 | Y20: 310820.8277 | Z20: 310501.5436 | AA20: 317037.2443 | AB20: 314971.401 | AC20: 323377.9892 | AD20: 321270.829 | AE20: 329845.5489 | AF20: 327696.2456 | AG20: 336442.4599 | AH20: 336096.8565 | AI20: 343171.3091 | AJ20: 340935.1739 | AK20: 350034.7353 | AL20: 347753.8774 | AM20: 357035.43 | AN20: 354708.9549 | AO20: 364176.1386 | AP20: 363802.0463 | AQ20: 371459.6614 | AR20: 369039.1967 | AS20: 378888.8546 | AT20: 376419.9806 | AU20: 386466.6317 | AV20: 383948.3802 | AW20: 394195.9643 | AX20: 393791.0348 | AY20: 402079.8836 | AZ20: 399459.8948 | BA20: 410121.4813 | BB20: 407449.0927 | BC20: 418323.9109 | BD20: 415598.0745 | BE20: 426690.3891 | BF20: 426252.0804 | BG20: 435224.1969 | BH20: 432388.2367 | BI20: 443928.6809 | BJ20: 0 | BK20: 0 | BL20: 0 | BM20: 0 | BN20: 0 | BO20: 0 | BP20: 0 | BQ20: 0 | BR20: 0 | BS20: 0 | BT20: 0 | BU20: 0 | BV20: 0 | BW20: 0 | BX20: =BX19*BX18 -> 0 | BY20: 0 | BZ20: 0 | CA20: 0 | CB20: 0
C22: Total Vehicles per Period | E22: Vehicles | K22: =K20+K16 -> 0 | L22: =L20+L16 -> 905000 | M22: 920000 | N22: 917133.8397 | O22: 944840 | P22: 941905.8393 | Q22: 970370 | R22: 972710.723 | S22: 996609.596 | T22: 993534.3503 | U22: 1023578.95 | V22: 1020430.532 | W22: 1051298.806 | X22: 1048075.402 | Y22: 1079790.507 | Z22: 1082437.717 | AA22: 1109076.014 | AB22: 1105697.01 | AC22: 1139177.922 | AD22: 1135718.206 | AE22: 1170119.479 | AF22: 1166577.044 | AG22: 1201924.608 | AH22: 1204917.821 | AI22: 1234617.922 | AJ22: 1230903.813 | AK22: 1268224.746 | AL22: 1264421.576 | AM22: 1302771.141 | AN22: 1298876.685 | AO22: 1338283.921 | AP22: 1341667.696 | AQ22: 1374790.678 | AR22: 1370706.741 | AS22: 1412319.801 | AT22: 1408137.551 | AU22: 1450900.507 | AV22: 1446617.478 | AW22: 1490562.856 | AX22: 1494387.439 | AY22: 1531337.782 | AZ22: 1526845.541 | BA22: 1573257.116 | BB22: 1568656.308 | BC22: 1616353.615 | BD22: 1611641.506 | BE22: 1660660.984 | BF22: 1664983.029 | BG22: 1706213.91 | BH22: 1701270.713 | BI22: 1753048.085 | BJ22: 0 | BK22: 0 | BL22: 0 | BM22: 0 | BN22: 0 | BO22: 0 | BP22: 0 | BQ22: 0 | BR22: 0 | BS22: 0 | BT22: 0 | BU22: 0 | BV22: 0 | BW22: 0 | BX22: =BX20+BX16 -> 0 | BY22: 0 | BZ22: 0 | CA22: 0 | CB22: 0
C24: Total Car Volumes | E24: Cars | H24: Cars/Period | K24: =K16 -> 0 | L24: =L16 -> 633500 | M24: 644000 | N24: 642932.2806 | O24: 663320 | P24: 662220.2491 | Q24: 683219.6 | R24: 685855.2922 | S24: 703716.188 | T24: 702549.4622 | U24: 724827.6736 | V24: 723625.9461 | W24: 746572.5038 | X24: 745334.7245 | Y24: 768969.679 | Z24: 771936.1738 | AA24: 792038.7693 | AB24: 790725.6092 | AC24: 815799.9324 | AD24: 814447.3775 | AE24: 840273.9304 | AF24: 838880.7988 | AG24: 865482.1483 | AH24: 868820.9643 | AI24: 891446.6127 | AJ24: 889968.6395 | AK24: 918190.0111 | AL24: 916667.6986 | AM24: 945735.7115 | AN24: 944167.7296 | AO24: 974107.7828 | AP24: 977865.6497 | AQ24: 1003331.016 | AR24: 1001667.544 | AS24: 1033430.947 | AT24: 1031717.571 | AU24: 1064433.875 | AV24: 1062669.098 | AW24: 1096366.891 | AX24: 1100596.404 | AY24: 1129257.898 | AZ24: 1127385.646 | BA24: 1163135.635 | BB24: 1161207.215 | BC24: 1198029.704 | BD24: 1196043.432 | BE24: 1233970.595 | BF24: 1238730.949 | BG24: 1270989.713 | BH24: 1268882.477 | BI24: 1309119.405 | BJ24: 0 | BK24: 0 | BL24: 0 | BM24: 0 | BN24: 0 | BO24: 0 | BP24: 0 | BQ24: 0 | BR24: 0 | BS24: 0 | BT24: 0 | BU24: 0 | BV24: 0 | BW24: 0 | BX24: =BX16 -> 0 | BY24: 0 | BZ24: 0 | CA24: 0 | CB24: 0
C25: Maximum Volumes | E25: Cars/Day | F25: =InputC!G22 -> 5000 | H25: Cars | K25: =$F$25*K6 -> 0 | L25: 5000 | M25: 5000 | N25: 5000 | O25: 5000 | P25: 5000 | Q25: 5000 | R25: 5000 | S25: 5000 | T25: 5000 | U25: 5000 | V25: 5000 | W25: 5000 | X25: 5000 | Y25: 5000 | Z25: 5000 | AA25: 5000 | AB25: 5000 | AC25: 5000 | AD25: 5000 | AE25: 5000 | AF25: 5000 | AG25: 5000 | AH25: 5000 | AI25: 5000 | AJ25: 5000 | AK25: 5000 | AL25: 5000 | AM25: 5000 | AN25: 5000 | AO25: 5000 | AP25: 5000 | AQ25: =$F$25*AQ6 -> 5000 | AR25: 5000 | AS25: 5000 | AT25: 5000 | AU25: 5000 | AV25: 5000 | AW25: 5000 | AX25: 5000 | AY25: 5000 | AZ25: 5000 | BA25: 5000 | BB25: 5000 | BC25: 5000 | BD25: 5000 | BE25: 5000 | BF25: 5000 | BG25: 5000 | BH25: 5000 | BI25: 5000 | BJ25: 0 | BK25: 0 | BL25: 0 | BM25: 0 | BN25: 0 | BO25: 0 | BP25: 0 | BQ25: 0 | BR25: 0 | BS25: 0 | BT25: 0 | BU25: 0 | BV25: 0 | BW25: =$F$25*BW6 -> 0 | BX25: 0 | BY25: 0 | BZ25: 0 | CA25: 0 | CB25: 0
C26: Maximum Volumes | E26: Cars/Period | H26: Cars/Period | K26: =K25*K8 -> 0 | L26: 905000 | M26: 920000 | N26: 905000 | O26: 920000 | P26: 905000 | Q26: 920000 | R26: 910000 | S26: 920000 | T26: 905000 | U26: 920000 | V26: 905000 | W26: 920000 | X26: 905000 | Y26: 920000 | Z26: 910000 | AA26: 920000 | AB26: 905000 | AC26: 920000 | AD26: 905000 | AE26: 920000 | AF26: 905000 | AG26: 920000 | AH26: 910000 | AI26: 920000 | AJ26: 905000 | AK26: 920000 | AL26: 905000 | AM26: 920000 | AN26: 905000 | AO26: 920000 | AP26: 910000 | AQ26: =AQ25*AQ8 -> 920000 | AR26: 905000 | AS26: 920000 | AT26: 905000 | AU26: 920000 | AV26: 905000 | AW26: 920000 | AX26: 910000 | AY26: 920000 | AZ26: 905000 | BA26: 920000 | BB26: 905000 | BC26: 920000 | BD26: 905000 | BE26: 920000 | BF26: 910000 | BG26: 920000 | BH26: 905000 | BI26: 920000 | BJ26: 0 | BK26: 0 | BL26: 0 | BM26: 0 | BN26: 0 | BO26: 0 | BP26: 0 | BQ26: 0 | BR26: 0 | BS26: 0 | BT26: 0 | BU26: 0 | BV26: 0 | BW26: =BW25*BW8 -> 0 | BX26: 0 | BY26: 0 | BZ26: 0 | CA26: 0 | CB26: 0
C27: Volumes with Lower Rate | E27: Cars | F27: =InputC!$G$21 -> FALSE | H27: Cars/Period | K27: =MAX(K24-K26,0)*$F$27 -> 0 | L27: =MAX(L24-L26,0)*$F$27 -> 0 | M27: 0 | N27: 0 | O27: 0 | P27: 0 | Q27: 0 | R27: 0 | S27: 0 | T27: 0 | U27: 0 | V27: 0 | W27: 0 | X27: 0 | Y27: 0 | Z27: 0 | AA27: 0 | AB27: 0 | AC27: 0 | AD27: 0 | AE27: 0 | AF27: 0 | AG27: 0 | AH27: 0 | AI27: 0 | AJ27: 0 | AK27: 0 | AL27: 0 | AM27: 0 | AN27: 0 | AO27: 0 | AP27: 0 | AQ27: 0 | AR27: 0 | AS27: 0 | AT27: 0 | AU27: 0 | AV27: 0 | AW27: 0 | AX27: 0 | AY27: 0 | AZ27: 0 | BA27: 0 | BB27: 0 | BC27: 0 | BD27: 0 | BE27: 0 | BF27: 0 | BG27: 0 | BH27: 0 | BI27: 0 | BJ27: 0 | BK27: 0 | BL27: 0 | BM27: 0 | BN27: 0 | BO27: 0 | BP27: 0 | BQ27: 0 | BR27: 0 | BS27: 0 | BT27: 0 | BU27: 0 | BV27: 0 | BW27: 0 | BX27: =MAX(BX24-BX26,0)*$F$27 -> 0 | BY27: 0 | BZ27: 0 | CA27: 0 | CB27: 0
C28: Volumes with Base Rate | E28: Cars | H28: Cars/Period | K28: =K24-K27 -> 0 | L28: =L24-L27 -> 633500 | M28: 644000 | N28: 642932.2806 | O28: 663320 | P28: 662220.2491 | Q28: 683219.6 | R28: 685855.2922 | S28: 703716.188 | T28: 702549.4622 | U28: 724827.6736 | V28: 723625.9461 | W28: 746572.5038 | X28: 745334.7245 | Y28: 768969.679 | Z28: 771936.1738 | AA28: 792038.7693 | AB28: 790725.6092 | AC28: 815799.9324 | AD28: 814447.3775 | AE28: 840273.9304 | AF28: 838880.7988 | AG28: 865482.1483 | AH28: 868820.9643 | AI28: 891446.6127 | AJ28: 889968.6395 | AK28: 918190.0111 | AL28: 916667.6986 | AM28: 945735.7115 | AN28: 944167.7296 | AO28: 974107.7828 | AP28: 977865.6497 | AQ28: 1003331.016 | AR28: 1001667.544 | AS28: 1033430.947 | AT28: 1031717.571 | AU28: 1064433.875 | AV28: 1062669.098 | AW28: 1096366.891 | AX28: 1100596.404 | AY28: 1129257.898 | AZ28: 1127385.646 | BA28: 1163135.635 | BB28: 1161207.215 | BC28: 1198029.704 | BD28: 1196043.432 | BE28: 1233970.595 | BF28: 1238730.949 | BG28: 1270989.713 | BH28: 1268882.477 | BI28: 1309119.405 | BJ28: 0 | BK28: 0 | BL28: 0 | BM28: 0 | BN28: 0 | BO28: 0 | BP28: 0 | BQ28: 0 | BR28: 0 | BS28: 0 | BT28: 0 | BU28: 0 | BV28: 0 | BW28: 0 | BX28: =BX24-BX27 -> 0 | BY28: 0 | BZ28: 0 | CA28: 0 | CB28: 0
B31: Revenues, Expensea and Cap Exp
C32: Cap Exp/Headline Price for Investment | E32: USD | F32: 216629231 | G32: headline | I32: =SUM(J32:XFD32) -> 216629231 | J32: =$F$32*J5 -> 0 | K32: 216629231 | L32: 0 | M32: 0 | N32: 0 | O32: 0 | P32: 0 | Q32: 0 | R32: 0 | S32: 0 | T32: 0 | U32: 0 | V32: 0 | W32: 0 | X32: 0 | Y32: 0 | Z32: 0 | AA32: 0 | AB32: 0 | AC32: 0 | AD32: 0 | AE32: 0 | AF32: 0 | AG32: 0 | AH32: 0 | AI32: 0 | AJ32: 0 | AK32: 0 | AL32: 0 | AM32: 0 | AN32: 0 | AO32: 0 | AP32: =$F$32*AP5 -> 0 | AQ32: 0 | AR32: 0 | AS32: 0 | AT32: 0 | AU32: 0 | AV32: 0 | AW32: 0 | AX32: 0 | AY32: 0 | AZ32: 0 | BA32: 0 | BB32: 0 | BC32: 0 | BD32: 0 | BE32: 0 | BF32: 0 | BG32: 0 | BH32: 0 | BI32: 0 | BJ32: 0 | BK32: 0 | BL32: 0 | BM32: 0 | BN32: 0 | BO32: 0 | BP32: 0 | BQ32: 0 | BR32: 0 | BS32: 0 | BT32: 0 | BU32: 0 | BV32: =$F$32*BV5 -> 0 | BW32: 0 | BX32: 0 | BY32: 0 | BZ32: 0 | CA32: 0 | CB32: 0
C34: Car Tolls
D35: Real Toll Rate | E35: USD/Car | F35: =InputC!G31 -> 5 | H35: USD/Car | K35: =$F$35 -> 5 | L35: =$F$35 -> 5 | M35: 5 | N35: 5 | O35: 5 | P35: 5 | Q35: 5 | R35: 5 | S35: 5 | T35: 5 | U35: 5 | V35: 5 | W35: 5 | X35: 5 | Y35: 5 | Z35: 5 | AA35: 5 | AB35: 5 | AC35: 5 | AD35: 5 | AE35: 5 | AF35: 5 | AG35: 5 | AH35: 5 | AI35: 5 | AJ35: 5 | AK35: 5 | AL35: 5 | AM35: 5 | AN35: 5 | AO35: 5 | AP35: 5 | AQ35: 5 | AR35: 5 | AS35: 5 | AT35: 5 | AU35: 5 | AV35: 5 | AW35: 5 | AX35: 5 | AY35: 5 | AZ35: 5 | BA35: 5 | BB35: 5 | BC35: 5 | BD35: 5 | BE35: 5 | BF35: 5 | BG35: 5 | BH35: 5 | BI35: 5 | BJ35: 5 | BK35: 5 | BL35: 5 | BM35: 5 | BN35: 5 | BO35: 5 | BP35: 5 | BQ35: 5 | BR35: 5 | BS35: 5 | BT35: 5 | BU35: 5 | BV35: 5 | BW35: 5 | BX35: =$F$35 -> 5 | BY35: 5 | BZ35: 5 | CA35: 5 | CB35: 5
D36: Inflation Applied | E36: Date | F36: =InputC!G29 -> 2026-01-01 | H36: Flag | K36: =(K3>=$F$36)*1 -> 0 | L36: 0 | M36: 0 | N36: 1 | O36: 1 | P36: 1 | Q36: 1 | R36: 1 | S36: 1 | T36: 1 | U36: 1 | V36: 1 | W36: 1 | X36: 1 | Y36: 1 | Z36: 1 | AA36: 1 | AB36: 1 | AC36: 1 | AD36: 1 | AE36: 1 | AF36: 1 | AG36: 1 | AH36: 1 | AI36: 1 | AJ36: 1 | AK36: 1 | AL36: 1 | AM36: 1 | AN36: 1 | AO36: 1 | AP36: 1 | AQ36: =(AQ3>=$F$36)*1 -> 1 | AR36: 1 | AS36: 1 | AT36: 1 | AU36: 1 | AV36: 1 | AW36: 1 | AX36: 1 | AY36: 1 | AZ36: 1 | BA36: 1 | BB36: 1 | BC36: 1 | BD36: 1 | BE36: 1 | BF36: 1 | BG36: 1 | BH36: 1 | BI36: 1 | BJ36: 1 | BK36: 1 | BL36: 1 | BM36: 1 | BN36: 1 | BO36: 1 | BP36: 1 | BQ36: 1 | BR36: 1 | BS36: 1 | BT36: 1 | BU36: 1 | BV36: 1 | BW36: =(BW3>=$F$36)*1 -> 1 | BX36: 1 | BY36: 1 | BZ36: 1 | CA36: 1 | CB36: 1
D37: Inflation Index | E37: % p.a. | F37: =InputC!G28 -> 0.02 | G37: =(1+F37)^(1/2)-1 -> 0.009950493836 | H37: Index | J37: 1 | K37: =J37*(1+$G$37*K36) -> 1 | L37: =K37*(1+$G$37*L36) -> 1 | M37: 1 | N37: 1.009950494 | O37: 1.02 | P37: 1.030149504 | Q37: 1.0404 | R37: 1.050752494 | S37: 1.061208 | T37: 1.071767544 | U37: 1.08243216 | V37: 1.093202895 | W37: 1.104080803 | X37: 1.115066952 | Y37: 1.126162419 | Z37: 1.137368291 | AA37: 1.148685668 | AB37: 1.160115657 | AC37: 1.171659381 | AD37: 1.18331797 | AE37: 1.195092569 | AF37: 1.20698433 | AG37: 1.21899442 | AH37: 1.231124016 | AI37: 1.243374308 | AJ37: 1.255746497 | AK37: 1.268241795 | AL37: 1.280861427 | AM37: 1.29360663 | AN37: 1.306478655 | AO37: 1.319478763 | AP37: 1.332608228 | AQ37: 1.345868338 | AR37: 1.359260393 | AS37: 1.372785705 | AT37: 1.386445601 | AU37: 1.400241419 | AV37: 1.414174513 | AW37: 1.428246248 | AX37: 1.442458003 | AY37: 1.456811173 | AZ37: 1.471307163 | BA37: 1.485947396 | BB37: 1.500733306 | BC37: 1.515666344 | BD37: 1.530747973 | BE37: 1.545979671 | BF37: 1.561362932 | BG37: 1.576899264 | BH37: 1.592590191 | BI37: 1.608437249 | BJ37: 1.624441994 | BK37: 1.640605994 | BL37: 1.656930834 | BM37: 1.673418114 | BN37: 1.690069451 | BO37: 1.706886477 | BP37: 1.72387084 | BQ37: 1.741024206 | BR37: 1.758348257 | BS37: 1.77584469 | BT37: 1.793515222 | BU37: 1.811361584 | BV37: 1.829385526 | BW37: 1.847588816 | BX37: =BW37*(1+$G$37*BX36) -> 1.865973237 | BY37: 1.884540592 | BZ37: 1.903292702 | CA37: 1.922231404 | CB37: 1.941358556
D38: Inflated Toll Rate | E38: USD/Car | H38: USD/Car | K38: =K35*K37 -> 5 | L38: =L35*L37 -> 5 | M38: 5 | N38: 5.049752469 | O38: 5.1 | P38: 5.150747519 | Q38: 5.202 | R38: 5.253762469 | S38: 5.30604 | T38: 5.358837718 | U38: 5.4121608 | V38: 5.466014473 | W38: 5.520404016 | X38: 5.575334762 | Y38: 5.630812096 | Z38: 5.686841457 | AA38: 5.743428338 | AB38: 5.800578287 | AC38: 5.858296905 | AD38: 5.916589852 | AE38: 5.975462843 | AF38: 6.034921649 | AG38: 6.0949721 | AH38: 6.155620082 | AI38: 6.216871542 | AJ38: 6.278732484 | AK38: 6.341208973 | AL38: 6.404307134 | AM38: 6.468033152 | AN38: 6.532393276 | AO38: 6.597393815 | AP38: 6.663041142 | AQ38: 6.729341692 | AR38: 6.796301965 | AS38: 6.863928525 | AT38: 6.932228004 | AU38: 7.001207096 | AV38: 7.070872564 | AW38: 7.141231238 | AX38: 7.212290015 | AY38: 7.284055863 | AZ38: 7.356535816 | BA38: 7.42973698 | BB38: 7.503666532 | BC38: 7.578331719 | BD38: 7.653739863 | BE38: 7.729898354 | BF38: 7.80681466 | BG38: 7.884496321 | BH38: 7.962950953 | BI38: 8.042186247 | BJ38: 8.122209972 | BK38: 8.203029972 | BL38: 8.284654172 | BM38: 8.367090572 | BN38: 8.450347255 | BO38: 8.534432383 | BP38: 8.6193542 | BQ38: 8.705121031 | BR38: 8.791741284 | BS38: 8.879223451 | BT38: 8.96757611 | BU38: 9.056807921 | BV38: 9.146927632 | BW38: 9.237944079 | BX38: =BX35*BX37 -> 9.329866185 | BY38: 9.422702961 | BZ38: 9.516463508 | CA38: 9.61115702 | CB38: 9.706792778
D39: Inflated Capped Toll Rate | E39: USD/Car | F39: =InputC!G33 -> 3 | H39: USD/Car | K39: =$F$39*K37 -> 3 | L39: =$F$39*L37 -> 3 | M39: 3 | N39: 3.029851482 | O39: 3.06 | P39: 3.090448511 | Q39: 3.1212 | R39: 3.152257481 | S39: 3.183624 | T39: 3.215302631 | U39: 3.24729648 | V39: 3.279608684 | W39: 3.31224241 | X39: 3.345200857 | Y39: 3.378487258 | Z39: 3.412104874 | AA39: 3.446057003 | AB39: 3.480346972 | AC39: 3.514978143 | AD39: 3.549953911 | AE39: 3.585277706 | AF39: 3.62095299 | AG39: 3.65698326 | AH39: 3.693372049 | AI39: 3.730122925 | AJ39: 3.76723949 | AK39: 3.804725384 | AL39: 3.84258428 | AM39: 3.880819891 | AN39: 3.919435966 | AO39: 3.958436289 | AP39: 3.997824685 | AQ39: 4.037605015 | AR39: 4.077781179 | AS39: 4.118357115 | AT39: 4.159336802 | AU39: 4.200724258 | AV39: 4.242523538 | AW39: 4.284738743 | AX39: 4.327374009 | AY39: 4.370433518 | AZ39: 4.413921489 | BA39: 4.457842188 | BB39: 4.502199919 | BC39: 4.546999032 | BD39: 4.592243918 | BE39: 4.637939012 | BF39: 4.684088796 | BG39: 4.730697793 | BH39: 4.777770572 | BI39: 4.825311748 | BJ39: 4.873325983 | BK39: 4.921817983 | BL39: 4.970792503 | BM39: 5.020254343 | BN39: 5.070208353 | BO39: 5.12065943 | BP39: 5.17161252 | BQ39: 5.223072619 | BR39: 5.27504477 | BS39: 5.327534071 | BT39: 5.380545666 | BU39: 5.434084752 | BV39: 5.488156579 | BW39: 5.542766447 | BX39: =$F$39*BX37 -> 5.597919711 | BY39: 5.653621776 | BZ39: 5.709878105 | CA39: 5.766694212 | CB39: 5.824075667
D41: Cars at Base Toll Rate | E41: Cars | H41: Cars | K41: =K28 -> 0 | L41: =L28 -> 633500 | M41: 644000 | N41: 642932.2806 | O41: 663320 | P41: 662220.2491 | Q41: 683219.6 | R41: 685855.2922 | S41: 703716.188 | T41: 702549.4622 | U41: 724827.6736 | V41: 723625.9461 | W41: 746572.5038 | X41: 745334.7245 | Y41: 768969.679 | Z41: 771936.1738 | AA41: 792038.7693 | AB41: 790725.6092 | AC41: 815799.9324 | AD41: 814447.3775 | AE41: 840273.9304 | AF41: 838880.7988 | AG41: 865482.1483 | AH41: 868820.9643 | AI41: 891446.6127 | AJ41: 889968.6395 | AK41: 918190.0111 | AL41: 916667.6986 | AM41: 945735.7115 | AN41: 944167.7296 | AO41: 974107.7828 | AP41: 977865.6497 | AQ41: 1003331.016 | AR41: 1001667.544 | AS41: 1033430.947 | AT41: 1031717.571 | AU41: 1064433.875 | AV41: 1062669.098 | AW41: 1096366.891 | AX41: 1100596.404 | AY41: 1129257.898 | AZ41: 1127385.646 | BA41: 1163135.635 | BB41: 1161207.215 | BC41: 1198029.704 | BD41: 1196043.432 | BE41: 1233970.595 | BF41: 1238730.949 | BG41: 1270989.713 | BH41: 1268882.477 | BI41: 1309119.405 | BJ41: 0 | BK41: 0 | BL41: 0 | BM41: 0 | BN41: 0 | BO41: 0 | BP41: 0 | BQ41: 0 | BR41: 0 | BS41: 0 | BT41: 0 | BU41: 0 | BV41: 0 | BW41: 0 | BX41: =BX28 -> 0 | BY41: 0 | BZ41: 0 | CA41: 0 | CB41: 0
D42: Cars at Capped Toll Rate | E42: Cars | H42: Cars | K42: =K27 -> 0 | L42: =L27 -> 0 | M42: 0 | N42: 0 | O42: 0 | P42: 0 | Q42: 0 | R42: 0 | S42: 0 | T42: 0 | U42: 0 | V42: 0 | W42: 0 | X42: 0 | Y42: 0 | Z42: 0 | AA42: 0 | AB42: 0 | AC42: 0 | AD42: 0 | AE42: 0 | AF42: 0 | AG42: 0 | AH42: 0 | AI42: 0 | AJ42: 0 | AK42: 0 | AL42: 0 | AM42: 0 | AN42: 0 | AO42: 0 | AP42: 0 | AQ42: 0 | AR42: 0 | AS42: 0 | AT42: 0 | AU42: 0 | AV42: 0 | AW42: 0 | AX42: 0 | AY42: 0 | AZ42: 0 | BA42: 0 | BB42: 0 | BC42: 0 | BD42: 0 | BE42: 0 | BF42: 0 | BG42: 0 | BH42: 0 | BI42: 0 | BJ42: 0 | BK42: 0 | BL42: 0 | BM42: 0 | BN42: 0 | BO42: 0 | BP42: 0 | BQ42: 0 | BR42: 0 | BS42: 0 | BT42: 0 | BU42: 0 | BV42: 0 | BW42: 0 | BX42: =BX27 -> 0 | BY42: 0 | BZ42: 0 | CA42: 0 | CB42: 0
D43: Car Tolls | E43: USD | H43: USD | I43: =SUM(K43:XFD43) -> 303957800 | K43: =K41*K38+K42*K39 -> 0 | L43: =L41*L38+L42*L39 -> 3167500 | M43: 3220000 | N43: 3246648.872 | O43: 3382932 | P43: 3410929.305 | Q43: 3554108.359 | R43: 3603320.793 | S43: 3733946.242 | T43: 3764848.557 | U43: 3922883.922 | V43: 3955349.894 | W43: 4121381.848 | X43: 4155490.599 | Y43: 4329923.77 | Z43: 4389878.635 | AA43: 4549017.913 | AB43: 4586665.799 | AC43: 4779198.219 | AD43: 4818751.089 | AE43: 5021025.649 | AF43: 5062579.894 | AG43: 5275089.547 | AH43: 5348131.776 | AI43: 5542009.078 | AJ43: 5587875.006 | AK43: 5822434.737 | AL43: 5870621.482 | AM43: 6117049.935 | AN43: 6167674.929 | AO43: 6426572.662 | AP43: 6515559.055 | AQ43: 6751757.238 | AR43: 6807635.099 | AS43: 7093396.155 | AT43: 7152101.435 | AU43: 7452322 | AV43: 7513997.768 | AW43: 7829409.493 | AX43: 7937820.453 | AY43: 8225577.614 | AZ43: 8293652.882 | BA43: 8641791.841 | BB43: 8713311.717 | BC43: 9079066.508 | BD43: 9154205.29 | BE43: 9538467.273 | BF43: 9670542.929 | BG43: 10021113.72 | BH43: 10104048.93 | BI43: 10528182.07 | BJ43: 0 | BK43: 0 | BL43: 0 | BM43: 0 | BN43: 0 | BO43: 0 | BP43: 0 | BQ43: 0 | BR43: 0 | BS43: 0 | BT43: 0 | BU43: 0 | BV43: 0 | BW43: 0 | BX43: =BX41*BX38+BX42*BX39 -> 0 | BY43: 0 | BZ43: 0 | CA43: 0 | CB43: 0
C45: Truck Tolls
D46: Real Toll Rate | E46: USD/Truck | F46: =InputC!G32 -> 10 | H46: USD/Truck | K46: =$F$46 -> 10 | L46: =$F$46 -> 10 | M46: 10 | N46: 10 | O46: 10 | P46: 10 | Q46: 10 | R46: 10 | S46: 10 | T46: 10 | U46: 10 | V46: 10 | W46: 10 | X46: 10 | Y46: 10 | Z46: 10 | AA46: 10 | AB46: 10 | AC46: 10 | AD46: 10 | AE46: 10 | AF46: 10 | AG46: 10 | AH46: 10 | AI46: 10 | AJ46: 10 | AK46: 10 | AL46: 10 | AM46: 10 | AN46: 10 | AO46: 10 | AP46: 10 | AQ46: 10 | AR46: 10 | AS46: 10 | AT46: 10 | AU46: 10 | AV46: 10 | AW46: 10 | AX46: 10 | AY46: 10 | AZ46: 10 | BA46: 10 | BB46: 10 | BC46: 10 | BD46: 10 | BE46: 10 | BF46: 10 | BG46: 10 | BH46: 10 | BI46: 10 | BJ46: 10 | BK46: 10 | BL46: 10 | BM46: 10 | BN46: 10 | BO46: 10 | BP46: 10 | BQ46: 10 | BR46: 10 | BS46: 10 | BT46: 10 | BU46: 10 | BV46: 10 | BW46: 10 | BX46: =$F$46 -> 10 | BY46: 10 | BZ46: 10 | CA46: 10 | CB46: 10
D47: Inflation Index | E47: Index | H47: Index | K47: =K37 -> 1 | L47: 1 | M47: 1 | N47: 1.009950494 | O47: 1.02 | P47: 1.030149504 | Q47: 1.0404 | R47: 1.050752494 | S47: 1.061208 | T47: 1.071767544 | U47: 1.08243216 | V47: 1.093202895 | W47: 1.104080803 | X47: 1.115066952 | Y47: 1.126162419 | Z47: 1.137368291 | AA47: 1.148685668 | AB47: 1.160115657 | AC47: 1.171659381 | AD47: 1.18331797 | AE47: 1.195092569 | AF47: 1.20698433 | AG47: 1.21899442 | AH47: 1.231124016 | AI47: 1.243374308 | AJ47: 1.255746497 | AK47: 1.268241795 | AL47: 1.280861427 | AM47: 1.29360663 | AN47: 1.306478655 | AO47: 1.319478763 | AP47: 1.332608228 | AQ47: =AQ37 -> 1.345868338 | AR47: 1.359260393 | AS47: 1.372785705 | AT47: 1.386445601 | AU47: 1.400241419 | AV47: 1.414174513 | AW47: 1.428246248 | AX47: 1.442458003 | AY47: 1.456811173 | AZ47: 1.471307163 | BA47: 1.485947396 | BB47: 1.500733306 | BC47: 1.515666344 | BD47: 1.530747973 | BE47: 1.545979671 | BF47: 1.561362932 | BG47: 1.576899264 | BH47: 1.592590191 | BI47: 1.608437249 | BJ47: 1.624441994 | BK47: 1.640605994 | BL47: 1.656930834 | BM47: 1.673418114 | BN47: 1.690069451 | BO47: 1.706886477 | BP47: 1.72387084 | BQ47: 1.741024206 | BR47: 1.758348257 | BS47: 1.77584469 | BT47: 1.793515222 | BU47: 1.811361584 | BV47: 1.829385526 | BW47: =BW37 -> 1.847588816 | BX47: 1.865973237 | BY47: 1.884540592 | BZ47: 1.903292702 | CA47: 1.922231404 | CB47: 1.941358556
D48: Inflated Toll Rate | E48: USD/ruck | H48: USD/ruck | K48: =K46*K47 -> 10 | L48: =L46*L47 -> 10 | M48: 10 | N48: 10.09950494 | O48: 10.2 | P48: 10.30149504 | Q48: 10.404 | R48: 10.50752494 | S48: 10.61208 | T48: 10.71767544 | U48: 10.8243216 | V48: 10.93202895 | W48: 11.04080803 | X48: 11.15066952 | Y48: 11.26162419 | Z48: 11.37368291 | AA48: 11.48685668 | AB48: 11.60115657 | AC48: 11.71659381 | AD48: 11.8331797 | AE48: 11.95092569 | AF48: 12.0698433 | AG48: 12.1899442 | AH48: 12.31124016 | AI48: 12.43374308 | AJ48: 12.55746497 | AK48: 12.68241795 | AL48: 12.80861427 | AM48: 12.9360663 | AN48: 13.06478655 | AO48: 13.19478763 | AP48: 13.32608228 | AQ48: 13.45868338 | AR48: 13.59260393 | AS48: 13.72785705 | AT48: 13.86445601 | AU48: 14.00241419 | AV48: 14.14174513 | AW48: 14.28246248 | AX48: 14.42458003 | AY48: 14.56811173 | AZ48: 14.71307163 | BA48: 14.85947396 | BB48: 15.00733306 | BC48: 15.15666344 | BD48: 15.30747973 | BE48: 15.45979671 | BF48: 15.61362932 | BG48: 15.76899264 | BH48: 15.92590191 | BI48: 16.08437249 | BJ48: 16.24441994 | BK48: 16.40605994 | BL48: 16.56930834 | BM48: 16.73418114 | BN48: 16.90069451 | BO48: 17.06886477 | BP48: 17.2387084 | BQ48: 17.41024206 | BR48: 17.58348257 | BS48: 17.7584469 | BT48: 17.93515222 | BU48: 18.11361584 | BV48: 18.29385526 | BW48: 18.47588816 | BX48: =BX46*BX47 -> 18.65973237 | BY48: 18.84540592 | BZ48: 19.03292702 | CA48: 19.22231404 | CB48: 19.41358556
D49: Truck Tolls | E49: USD | H49: USD | I49: =SUM(K49:XFD49) -> 227221011.6 | K49: =K48*K20 -> 0 | L49: 2715000 | M49: 2760000 | N49: 2769300 | O49: 2871504 | P49: 2881179.72 | Q49: 2987512.762 | R49: 3014140.593 | S49: 3108208.277 | T49: 3118681.588 | U49: 3233779.892 | V49: 3244676.324 | W49: 3364424.599 | X49: 3375761.247 | Y49: 3500347.353 | Z49: 3531546.101 | AA49: 3641761.386 | AB49: 3654032.539 | AC49: 3788888.546 | AD49: 3801655.453 | AE49: 3941959.643 | AF49: 3955242.333 | AG49: 4101214.813 | AH49: 4137769.119 | AI49: 4266903.891 | AJ49: 4281281.502 | AK49: 4439286.809 | AL49: 4454245.275 | AM49: 4618633.996 | AN49: 4634196.784 | AO49: 4805226.809 | AP49: 4848056.005 | AQ49: =AQ48*AQ20 -> 4999357.972 | AR49: 5016203.635 | AS49: 5201332.034 | AT49: 5218858.262 | AU49: 5411465.848 | AV49: 5429700.135 | AW49: 5630089.069 | AX49: 5680270.297 | AY49: 5857544.667 | AZ49: 5877282.046 | BA49: 6094189.472 | BB49: 6114724.24 | BC49: 6340394.726 | BD49: 6361759.1 | BE49: 6596546.673 | BF49: 6655341.98 | BG49: 6863047.159 | BH49: 6886172.644 | BI49: 7140314.264 | BJ49: 0 | BK49: 0 | BL49: 0 | BM49: 0 | BN49: 0 | BO49: 0 | BP49: 0 | BQ49: 0 | BR49: 0 | BS49: 0 | BT49: 0 | BU49: 0 | BV49: 0 | BW49: =BW48*BW20 -> 0 | BX49: 0 | BY49: 0 | BZ49: 0 | CA49: 0 | CB49: 0
D51: Total Revenues | E51: USD | I51: =SUM(K51:XFD51) -> 531178811.6 | K51: =K49+K43 -> 0 | L51: 5882500 | M51: 5980000 | N51: 6015948.872 | O51: 6254436 | P51: 6292109.025 | Q51: 6541621.121 | R51: 6617461.386 | S51: 6842154.519 | T51: 6883530.145 | U51: 7156663.814 | V51: 7200026.218 | W51: 7485806.448 | X51: 7531251.846 | Y51: 7830271.123 | Z51: 7921424.737 | AA51: 8190779.299 | AB51: 8240698.338 | AC51: 8568086.765 | AD51: 8620406.542 | AE51: 8962985.292 | AF51: 9017822.227 | AG51: 9376304.36 | AH51: 9485900.895 | AI51: 9808912.969 | AJ51: 9869156.509 | AK51: 10261721.55 | AL51: 10324866.76 | AM51: 10735683.93 | AN51: 10801871.71 | AO51: 11231799.47 | AP51: 11363615.06 | AQ51: =AQ49+AQ43 -> 11751115.21 | AR51: 11823838.73 | AS51: 12294728.19 | AT51: 12370959.7 | AU51: 12863787.85 | AV51: 12943697.9 | AW51: 13459498.56 | AX51: 13618090.75 | AY51: 14083122.28 | AZ51: 14170934.93 | BA51: 14735981.31 | BB51: 14828035.96 | BC51: 15419461.23 | BD51: 15515964.39 | BE51: 16135013.95 | BF51: 16325884.91 | BG51: 16884160.88 | BH51: 16990221.57 | BI51: 17668496.34 | BJ51: 0 | BK51: 0 | BL51: 0 | BM51: 0 | BN51: 0 | BO51: 0 | BP51: 0 | BQ51: 0 | BR51: 0 | BS51: 0 | BT51: 0 | BU51: 0 | BV51: 0 | BW51: =BW49+BW43 -> 0 | BX51: 0 | BY51: 0 | BZ51: 0 | CA51: 0 | CB51: 0
C53: Operating Expenditures
D54: Inflation Index for Op Exp | E54: Index | K54: =K47 -> 1 | L54: 1 | M54: 1 | N54: 1.009950494 | O54: 1.02 | P54: 1.030149504 | Q54: 1.0404 | R54: 1.050752494 | S54: 1.061208 | T54: 1.071767544 | U54: 1.08243216 | V54: 1.093202895 | W54: 1.104080803 | X54: 1.115066952 | Y54: 1.126162419 | Z54: 1.137368291 | AA54: 1.148685668 | AB54: 1.160115657 | AC54: 1.171659381 | AD54: 1.18331797 | AE54: 1.195092569 | AF54: 1.20698433 | AG54: 1.21899442 | AH54: 1.231124016 | AI54: 1.243374308 | AJ54: 1.255746497 | AK54: 1.268241795 | AL54: 1.280861427 | AM54: 1.29360663 | AN54: 1.306478655 | AO54: 1.319478763 | AP54: 1.332608228 | AQ54: =AQ47 -> 1.345868338 | AR54: 1.359260393 | AS54: 1.372785705 | AT54: 1.386445601 | AU54: 1.400241419 | AV54: 1.414174513 | AW54: 1.428246248 | AX54: 1.442458003 | AY54: 1.456811173 | AZ54: 1.471307163 | BA54: 1.485947396 | BB54: 1.500733306 | BC54: 1.515666344 | BD54: 1.530747973 | BE54: 1.545979671 | BF54: 1.561362932 | BG54: 1.576899264 | BH54: 1.592590191 | BI54: 1.608437249 | BJ54: 1.624441994 | BK54: 1.640605994 | BL54: 1.656930834 | BM54: 1.673418114 | BN54: 1.690069451 | BO54: 1.706886477 | BP54: 1.72387084 | BQ54: 1.741024206 | BR54: 1.758348257 | BS54: 1.77584469 | BT54: 1.793515222 | BU54: 1.811361584 | BV54: 1.829385526 | BW54: =BW47 -> 1.847588816 | BX54: 1.865973237 | BY54: 1.884540592 | BZ54: 1.903292702 | CA54: 1.922231404 | CB54: 1.941358556
D56: Fixed Op Exp- Real | E56: Fix/km-yr | F56: =InputC!G36 -> 10000 | G56: =F56/2 -> 5000 | H56: USD/period | K56: =$G$56*K11 -> 0 | L56: 250000 | M56: 250000 | N56: 250000 | O56: 250000 | P56: 250000 | Q56: 250000 | R56: 250000 | S56: 250000 | T56: 250000 | U56: 250000 | V56: 250000 | W56: 250000 | X56: 250000 | Y56: 250000 | Z56: 250000 | AA56: 250000 | AB56: 250000 | AC56: 250000 | AD56: 250000 | AE56: 250000 | AF56: 250000 | AG56: 250000 | AH56: 250000 | AI56: 250000 | AJ56: 250000 | AK56: 250000 | AL56: 250000 | AM56: 250000 | AN56: 250000 | AO56: 250000 | AP56: 250000 | AQ56: =$G$56*AQ11 -> 250000 | AR56: 250000 | AS56: 250000 | AT56: 250000 | AU56: 250000 | AV56: 250000 | AW56: 250000 | AX56: 250000 | AY56: 250000 | AZ56: 250000 | BA56: 250000 | BB56: 250000 | BC56: 250000 | BD56: 250000 | BE56: 250000 | BF56: 250000 | BG56: 250000 | BH56: 250000 | BI56: 250000 | BJ56: 0 | BK56: 0 | BL56: 0 | BM56: 0 | BN56: 0 | BO56: 0 | BP56: 0 | BQ56: 0 | BR56: 0 | BS56: 0 | BT56: 0 | BU56: 0 | BV56: 0 | BW56: =$G$56*BW11 -> 0 | BX56: 0 | BY56: 0 | BZ56: 0 | CA56: 0 | CB56: 0
D57: Variable Expense | E57: USD/vehicle | F57: =InputC!G35 -> 2 | G57: =F57/2 -> 1 | H57: USD/period | K57: =$G$57*K22 -> 0 | L57: 905000 | M57: 920000 | N57: 917133.8397 | O57: 944840 | P57: 941905.8393 | Q57: 970370 | R57: 972710.723 | S57: 996609.596 | T57: 993534.3503 | U57: 1023578.95 | V57: 1020430.532 | W57: 1051298.806 | X57: 1048075.402 | Y57: 1079790.507 | Z57: 1082437.717 | AA57: 1109076.014 | AB57: 1105697.01 | AC57: 1139177.922 | AD57: 1135718.206 | AE57: 1170119.479 | AF57: 1166577.044 | AG57: 1201924.608 | AH57: 1204917.821 | AI57: 1234617.922 | AJ57: 1230903.813 | AK57: 1268224.746 | AL57: 1264421.576 | AM57: 1302771.141 | AN57: 1298876.685 | AO57: 1338283.921 | AP57: 1341667.696 | AQ57: =$G$57*AQ22 -> 1374790.678 | AR57: 1370706.741 | AS57: 1412319.801 | AT57: 1408137.551 | AU57: 1450900.507 | AV57: 1446617.478 | AW57: 1490562.856 | AX57: 1494387.439 | AY57: 1531337.782 | AZ57: 1526845.541 | BA57: 1573257.116 | BB57: 1568656.308 | BC57: 1616353.615 | BD57: 1611641.506 | BE57: 1660660.984 | BF57: 1664983.029 | BG57: 1706213.91 | BH57: 1701270.713 | BI57: 1753048.085 | BJ57: 0 | BK57: 0 | BL57: 0 | BM57: 0 | BN57: 0 | BO57: 0 | BP57: 0 | BQ57: 0 | BR57: 0 | BS57: 0 | BT57: 0 | BU57: 0 | BV57: 0 | BW57: =$G$57*BW22 -> 0 | BX57: 0 | BY57: 0 | BZ57: 0 | CA57: 0 | CB57: 0
D58: Total Expense | E58: USD | I58: =SUM(K58:XFD58) -> 99452379.84 | K58: =SUM(K56:K57)*K54 -> 0 | L58: =SUM(L56:L57)*L54 -> 1155000 | M58: 1170000 | N58: 1178747.398 | O58: 1218736.8 | P58: 1227841.209 | Q58: 1269672.948 | R58: 1284766.341 | S58: 1322912.076 | T58: 1332779.756 | U58: 1378562.814 | V58: 1388838.335 | W58: 1436739.03 | X58: 1447440.983 | Y58: 1497560.094 | Z58: 1515472.41 | AA58: 1561151.138 | AB58: 1572765.328 | AC58: 1627643.344 | AD58: 1639745.256 | AE58: 1697174.236 | AF58: 1709786.295 | AG58: 1769887.996 | AH58: 1791184.271 | AI58: 1845935.782 | AJ58: 1859639.776 | AK58: 1925476.077 | AL58: 1939764.18 | AM58: 2008675.044 | AN58: 2023574.328 | AO58: 2095706.904 | AP58: 2121069.469 | AQ58: 2186754.329 | AR58: 2202962.482 | AS58: 2282008.861 | AT58: 2298917.513 | AU58: 2381671.34 | AV58: 2399313.195 | AW58: 2485952.367 | AX58: 2516205.621 | AY58: 2595072.783 | AZ58: 2614285.572 | BA58: 2709264.164 | BB58: 2729318.094 | BC58: 2828769.36 | BD58: 2849703.961 | BE58: 2953843.04 | BF58: 2989983.517 | BG58: 3084752.275 | BH58: 3107574.597 | BI58: 3221777.153 | BJ58: 0 | BK58: 0 | BL58: 0 | BM58: 0 | BN58: 0 | BO58: 0 | BP58: 0 | BQ58: 0 | BR58: 0 | BS58: 0 | BT58: 0 | BU58: 0 | BV58: 0 | BW58: 0 | BX58: =SUM(BX56:BX57)*BX54 -> 0 | BY58: 0 | BZ58: 0 | CA58: 0 | CB58: 0
D60: EBITDA | E60: USD | I60: =SUM(K60:XFD60) -> 431726431.7 | K60: =K51-K58 -> 0 | L60: =L51-L58 -> 4727500 | M60: 4810000 | N60: 4837201.474 | O60: 5035699.2 | P60: 5064267.816 | Q60: 5271948.173 | R60: 5332695.045 | S60: 5519242.443 | T60: 5550750.389 | U60: 5778101 | V60: 5811187.883 | W60: 6049067.417 | X60: 6083810.864 | Y60: 6332711.029 | Z60: 6405952.327 | AA60: 6629628.161 | AB60: 6667933.01 | AC60: 6940443.422 | AD60: 6980661.286 | AE60: 7265811.056 | AF60: 7308035.933 | AG60: 7606416.364 | AH60: 7694716.624 | AI60: 7962977.187 | AJ60: 8009516.733 | AK60: 8336245.469 | AL60: 8385102.576 | AM60: 8727008.886 | AN60: 8778297.385 | AO60: 9136092.567 | AP60: 9242545.591 | AQ60: 9564360.881 | AR60: 9620876.253 | AS60: 10012719.33 | AT60: 10072042.18 | AU60: 10482116.51 | AV60: 10544384.71 | AW60: 10973546.19 | AX60: 11101885.13 | AY60: 11488049.5 | AZ60: 11556649.36 | BA60: 12026717.15 | BB60: 12098717.86 | BC60: 12590691.87 | BD60: 12666260.43 | BE60: 13181170.91 | BF60: 13335901.39 | BG60: 13799408.6 | BH60: 13882646.97 | BI60: 14446719.18 | BJ60: 0 | BK60: 0 | BL60: 0 | BM60: 0 | BN60: 0 | BO60: 0 | BP60: 0 | BQ60: 0 | BR60: 0 | BS60: 0 | BT60: 0 | BU60: 0 | BV60: 0 | BW60: 0 | BX60: =BX51-BX58 -> 0 | BY60: 0 | BZ60: 0 | CA60: 0 | CB60: 0
B62: Working Capital
C63: A/R Outstanding | E63: % Revenues | F63: =InputC!G40 -> 0.08219178082 | H63: USD | K63: =K51*$F$63 -> 0 | L63: =L51*$F$63 -> 483493.1507 | M63: 491506.8493 | N63: 494461.5511 | O63: 514063.2329 | P63: 517159.6459 | Q63: 537667.4894 | R63: 543900.9358 | S63: 562368.8646 | T63: 565769.6009 | U63: 588218.9436 | V63: 591782.9768 | W63: 615271.7628 | X63: 619007.0011 | Y63: 643583.9279 | Z63: 651076.0057 | AA63: 673214.7369 | AB63: 677317.6716 | AC63: 704226.3095 | AD63: 708526.5651 | AE63: 736683.7227 | AF63: 741190.868 | AG63: 770655.1529 | AH63: 779663.0872 | AI63: 806212.0249 | AJ63: 811163.5486 | AK63: 843429.1682 | AL63: 848619.1855 | AM63: 882384.9806 | AN63: 887825.0723 | AO63: 923161.6003 | AP63: 933995.7583 | AQ63: 965845.0858 | AR63: 971822.3617 | AS63: 1010525.605 | AT63: 1016791.208 | AU63: 1057297.631 | AV63: 1063865.581 | AW63: 1106260.156 | AX63: 1119295.13 | AY63: 1157516.9 | AZ63: 1164734.378 | BA63: 1211176.546 | BB63: 1218742.681 | BC63: 1267352.978 | BD63: 1275284.744 | BE63: 1326165.53 | BF63: 1341853.554 | BG63: 1387739.25 | BH63: 1396456.567 | BI63: 1452205.178 | BJ63: 0 | BK63: 0 | BL63: 0 | BM63: 0 | BN63: 0 | BO63: 0 | BP63: 0 | BQ63: 0 | BR63: 0 | BS63: 0 | BT63: 0 | BU63: 0 | BV63: 0 | BW63: 0 | BX63: =BX51*$F$63 -> 0 | BY63: 0 | BZ63: 0 | CA63: 0 | CB63: 0
C64: A/P Outstanding | E64: % Expense | F64: =InputC!G43 -> 0 | H64: USD | K64: =$F$64*K58 -> 0 | L64: =$F$64*L58 -> 0 | M64: 0 | N64: 0 | O64: 0 | P64: 0 | Q64: 0 | R64: 0 | S64: 0 | T64: 0 | U64: 0 | V64: 0 | W64: 0 | X64: 0 | Y64: 0 | Z64: 0 | AA64: 0 | AB64: 0 | AC64: 0 | AD64: 0 | AE64: 0 | AF64: 0 | AG64: 0 | AH64: 0 | AI64: 0 | AJ64: 0 | AK64: 0 | AL64: 0 | AM64: 0 | AN64: 0 | AO64: 0 | AP64: 0 | AQ64: 0 | AR64: 0 | AS64: 0 | AT64: 0 | AU64: 0 | AV64: 0 | AW64: 0 | AX64: 0 | AY64: 0 | AZ64: 0 | BA64: 0 | BB64: 0 | BC64: 0 | BD64: 0 | BE64: 0 | BF64: 0 | BG64: 0 | BH64: 0 | BI64: 0 | BJ64: 0 | BK64: 0 | BL64: 0 | BM64: 0 | BN64: 0 | BO64: 0 | BP64: 0 | BQ64: 0 | BR64: 0 | BS64: 0 | BT64: 0 | BU64: 0 | BV64: 0 | BW64: 0 | BX64: =$F$64*BX58 -> 0 | BY64: 0 | BZ64: 0 | CA64: 0 | CB64: 0
C65: Net Working Capital | E65: USD | H65: USD | K65: =K63-K64 -> 0 | L65: =L63-L64 -> 483493.1507 | M65: 491506.8493 | N65: 494461.5511 | O65: 514063.2329 | P65: 517159.6459 | Q65: 537667.4894 | R65: 543900.9358 | S65: 562368.8646 | T65: 565769.6009 | U65: 588218.9436 | V65: 591782.9768 | W65: 615271.7628 | X65: 619007.0011 | Y65: 643583.9279 | Z65: 651076.0057 | AA65: 673214.7369 | AB65: 677317.6716 | AC65: 704226.3095 | AD65: 708526.5651 | AE65: 736683.7227 | AF65: 741190.868 | AG65: 770655.1529 | AH65: 779663.0872 | AI65: 806212.0249 | AJ65: 811163.5486 | AK65: 843429.1682 | AL65: 848619.1855 | AM65: 882384.9806 | AN65: 887825.0723 | AO65: 923161.6003 | AP65: 933995.7583 | AQ65: 965845.0858 | AR65: 971822.3617 | AS65: 1010525.605 | AT65: 1016791.208 | AU65: 1057297.631 | AV65: 1063865.581 | AW65: 1106260.156 | AX65: 1119295.13 | AY65: 1157516.9 | AZ65: 1164734.378 | BA65: 1211176.546 | BB65: 1218742.681 | BC65: 1267352.978 | BD65: 1275284.744 | BE65: 1326165.53 | BF65: 1341853.554 | BG65: 1387739.25 | BH65: 1396456.567 | BI65: 1452205.178 | BJ65: 0 | BK65: 0 | BL65: 0 | BM65: 0 | BN65: 0 | BO65: 0 | BP65: 0 | BQ65: 0 | BR65: 0 | BS65: 0 | BT65: 0 | BU65: 0 | BV65: 0 | BW65: 0 | BX65: =BX63-BX64 -> 0 | BY65: 0 | BZ65: 0 | CA65: 0 | CB65: 0
C67: Change in Working Capital | E67: USD | H67: USD | L67: =L65-K65 -> 483493.1507 | M67: =M65-L65 -> 8013.69863 | N67: 2954.701785 | O67: 19601.68178 | P67: 3096.412983 | Q67: 20507.84352 | R67: 6233.446461 | S67: 18467.92876 | T67: 3400.736346 | U67: 22449.34263 | V67: 3564.03324 | W67: 23488.786 | X67: 3735.238231 | Y67: 24576.92687 | Z67: 7492.077828 | AA67: 22138.73114 | AB67: 4102.934719 | AC67: 26908.63786 | AD67: 4300.25562 | AE67: 28157.15757 | AF67: 4507.145339 | AG67: 29464.28486 | AH67: 9007.934385 | AI67: 26548.93763 | AJ67: 4951.52377 | AK67: 32265.61951 | AL67: 5190.017314 | AM67: 33765.79513 | AN67: 5440.091667 | AO67: 35336.52807 | AP67: 10834.15797 | AQ67: 31849.32749 | AR67: 5977.275926 | AS67: 38703.24284 | AT67: 6265.603423 | AU67: 40506.42339 | AV67: 6567.949735 | AW67: 42394.57466 | AX67: 13034.97441 | AY67: 38221.7696 | AZ67: 7217.477809 | BA67: 46442.16864 | BB67: 7566.135233 | BC67: 48610.2967 | BD67: 7931.766226 | BE67: 50880.78547 | BF67: 15688.02437 | BG67: 45885.69587 | BH67: 8717.317339 | BI67: 55748.61082 | BJ67: -1452205.178 | BK67: 0 | BL67: 0 | BM67: 0 | BN67: 0 | BO67: 0 | BP67: 0 | BQ67: 0 | BR67: 0 | BS67: 0 | BT67: 0 | BU67: 0 | BV67: 0 | BW67: 0 | BX67: 0 | BY67: =BY65-BX65 -> 0 | BZ67: 0 | CA67: 0 | CB67: 0
C69: Pre-tax Cash Flow
D70: EBITDA | E70: USD | H70: USD | K70: =K60 -> 0 | L70: =L60 -> 4727500 | M70: 4810000 | N70: 4837201.474 | O70: 5035699.2 | P70: 5064267.816 | Q70: 5271948.173 | R70: 5332695.045 | S70: 5519242.443 | T70: 5550750.389 | U70: 5778101 | V70: 5811187.883 | W70: 6049067.417 | X70: 6083810.864 | Y70: 6332711.029 | Z70: 6405952.327 | AA70: 6629628.161 | AB70: 6667933.01 | AC70: 6940443.422 | AD70: 6980661.286 | AE70: 7265811.056 | AF70: 7308035.933 | AG70: 7606416.364 | AH70: 7694716.624 | AI70: 7962977.187 | AJ70: 8009516.733 | AK70: 8336245.469 | AL70: 8385102.576 | AM70: 8727008.886 | AN70: 8778297.385 | AO70: 9136092.567 | AP70: 9242545.591 | AQ70: 9564360.881 | AR70: 9620876.253 | AS70: 10012719.33 | AT70: 10072042.18 | AU70: 10482116.51 | AV70: 10544384.71 | AW70: 10973546.19 | AX70: 11101885.13 | AY70: 11488049.5 | AZ70: 11556649.36 | BA70: 12026717.15 | BB70: 12098717.86 | BC70: 12590691.87 | BD70: 12666260.43 | BE70: 13181170.91 | BF70: 13335901.39 | BG70: 13799408.6 | BH70: 13882646.97 | BI70: 14446719.18 | BJ70: 0 | BK70: 0 | BL70: 0 | BM70: 0 | BN70: 0 | BO70: 0 | BP70: 0 | BQ70: 0 | BR70: 0 | BS70: 0 | BT70: 0 | BU70: 0 | BV70: 0 | BW70: 0 | BX70: =BX60 -> 0 | BY70: 0 | BZ70: 0 | CA70: 0 | CB70: 0
D71: Less: WC Change | E71: USD | H71: USD | K71: =K65 -> 0 | L71: =L65 -> 483493.1507 | M71: 491506.8493 | N71: 494461.5511 | O71: 514063.2329 | P71: 517159.6459 | Q71: 537667.4894 | R71: 543900.9358 | S71: 562368.8646 | T71: 565769.6009 | U71: 588218.9436 | V71: 591782.9768 | W71: 615271.7628 | X71: 619007.0011 | Y71: 643583.9279 | Z71: 651076.0057 | AA71: 673214.7369 | AB71: 677317.6716 | AC71: 704226.3095 | AD71: 708526.5651 | AE71: 736683.7227 | AF71: 741190.868 | AG71: 770655.1529 | AH71: 779663.0872 | AI71: 806212.0249 | AJ71: 811163.5486 | AK71: 843429.1682 | AL71: 848619.1855 | AM71: 882384.9806 | AN71: 887825.0723 | AO71: 923161.6003 | AP71: 933995.7583 | AQ71: 965845.0858 | AR71: 971822.3617 | AS71: 1010525.605 | AT71: 1016791.208 | AU71: 1057297.631 | AV71: 1063865.581 | AW71: 1106260.156 | AX71: 1119295.13 | AY71: 1157516.9 | AZ71: 1164734.378 | BA71: 1211176.546 | BB71: 1218742.681 | BC71: 1267352.978 | BD71: 1275284.744 | BE71: 1326165.53 | BF71: 1341853.554 | BG71: 1387739.25 | BH71: 1396456.567 | BI71: 1452205.178 | BJ71: 0 | BK71: 0 | BL71: 0 | BM71: 0 | BN71: 0 | BO71: 0 | BP71: 0 | BQ71: 0 | BR71: 0 | BS71: 0 | BT71: 0 | BU71: 0 | BV71: 0 | BW71: 0 | BX71: =BX65 -> 0 | BY71: 0 | BZ71: 0 | CA71: 0 | CB71: 0
D72: Less: Cap Exp | E72: USD | H72: USD | K72: =K32 -> 216629231 | L72: 0 | M72: 0 | N72: 0 | O72: 0 | P72: 0 | Q72: 0 | R72: 0 | S72: 0 | T72: 0 | U72: 0 | V72: 0 | W72: 0 | X72: 0 | Y72: 0 | Z72: 0 | AA72: 0 | AB72: 0 | AC72: 0 | AD72: 0 | AE72: 0 | AF72: 0 | AG72: 0 | AH72: 0 | AI72: 0 | AJ72: 0 | AK72: 0 | AL72: 0 | AM72: 0 | AN72: 0 | AO72: 0 | AP72: 0 | AQ72: =AQ32 -> 0 | AR72: 0 | AS72: 0 | AT72: 0 | AU72: 0 | AV72: 0 | AW72: 0 | AX72: 0 | AY72: 0 | AZ72: 0 | BA72: 0 | BB72: 0 | BC72: 0 | BD72: 0 | BE72: 0 | BF72: 0 | BG72: 0 | BH72: 0 | BI72: 0 | BJ72: 0 | BK72: 0 | BL72: 0 | BM72: 0 | BN72: 0 | BO72: 0 | BP72: 0 | BQ72: 0 | BR72: 0 | BS72: 0 | BT72: 0 | BU72: 0 | BV72: 0 | BW72: =BW32 -> 0 | BX72: 0 | BY72: 0 | BZ72: 0 | CA72: 0 | CB72: 0
D73: Free Cash Flow Before Tax | E73: USD | H73: USD | K73: =K70-K71-K72 -> -216629231 | L73: =L70-L71-L72 -> 4244006.849 | M73: 4318493.151 | N73: 4342739.923 | O73: 4521635.967 | P73: 4547108.17 | Q73: 4734280.683 | R73: 4788794.109 | S73: 4956873.579 | T73: 4984980.788 | U73: 5189882.056 | V73: 5219404.906 | W73: 5433795.654 | X73: 5464803.862 | Y73: 5689127.101 | Z73: 5754876.321 | AA73: 5956413.424 | AB73: 5990615.338 | AC73: 6236217.112 | AD73: 6272134.721 | AE73: 6529127.333 | AF73: 6566845.065 | AG73: 6835761.211 | AH73: 6915053.536 | AI73: 7156765.163 | AJ73: 7198353.184 | AK73: 7492816.301 | AL73: 7536483.391 | AM73: 7844623.906 | AN73: 7890472.312 | AO73: 8212930.966 | AP73: 8308549.833 | AQ73: 8598515.795 | AR73: 8649053.891 | AS73: 9002193.724 | AT73: 9055250.976 | AU73: 9424818.877 | AV73: 9480519.127 | AW73: 9867286.039 | AX73: 9982589.999 | AY73: 10330532.6 | AZ73: 10391914.98 | BA73: 10815540.6 | BB73: 10879975.18 | BC73: 11323338.9 | BD73: 11390975.68 | BE73: 11855005.38 | BF73: 11994047.84 | BG73: 12411669.35 | BH73: 12486190.41 | BI73: 12994514 | BJ73: 0 | BK73: 0 | BL73: 0 | BM73: 0 | BN73: 0 | BO73: 0 | BP73: 0 | BQ73: 0 | BR73: 0 | BS73: 0 | BT73: 0 | BU73: 0 | BV73: 0 | BW73: 0 | BX73: =BX70-BX71-BX72 -> 0 | BY73: 0 | BZ73: 0 | CA73: 0 | CB73: 0
D75: Pre-tax Project IRR | E75: % | F75: =XIRR(K73:CB73,K4:CB4) -> 0.04236868322
B77: Tax and Deprecation
C78: Tax Basis | E78: USD | H78: USD | K78: =J78+K32 -> 216629231 | L78: 216629231 | M78: 216629231 | N78: 216629231 | O78: 216629231 | P78: 216629231 | Q78: 216629231 | R78: 216629231 | S78: 216629231 | T78: 216629231 | U78: 216629231 | V78: 216629231 | W78: 216629231 | X78: 216629231 | Y78: 216629231 | Z78: 216629231 | AA78: 216629231 | AB78: 216629231 | AC78: 216629231 | AD78: 216629231 | AE78: 216629231 | AF78: 216629231 | AG78: 216629231 | AH78: 216629231 | AI78: 216629231 | AJ78: 216629231 | AK78: 216629231 | AL78: 216629231 | AM78: 216629231 | AN78: 216629231 | AO78: 216629231 | AP78: 216629231 | AQ78: =AP78+AQ32 -> 216629231 | AR78: 216629231 | AS78: 216629231 | AT78: 216629231 | AU78: 216629231 | AV78: 216629231 | AW78: 216629231 | AX78: 216629231 | AY78: 216629231 | AZ78: 216629231 | BA78: 216629231 | BB78: 216629231 | BC78: 216629231 | BD78: 216629231 | BE78: 216629231 | BF78: 216629231 | BG78: 216629231 | BH78: 216629231 | BI78: 216629231 | BJ78: 216629231 | BK78: 216629231 | BL78: 216629231 | BM78: 216629231 | BN78: 216629231 | BO78: 216629231 | BP78: 216629231 | BQ78: 216629231 | BR78: 216629231 | BS78: 216629231 | BT78: 216629231 | BU78: 216629231 | BV78: 216629231 | BW78: =BV78+BW32 -> 216629231 | BX78: 216629231 | BY78: 216629231 | BZ78: 216629231 | CA78: 216629231 | CB78: 216629231
C79: Tax Depreciation Period | E79: Date | F79: =F5+1 -> 2025-01-01 | G79: =EDATE(F79,InputC!G47*12) -> 2045-01-01 | H79: Flag | I79: =SUM(K79:XFD79) -> 40 | K79: =(AND(K3>=$F$79,K3<$G$79))*1 -> 0 | L79: 1 | M79: 1 | N79: 1 | O79: 1 | P79: 1 | Q79: 1 | R79: 1 | S79: 1 | T79: 1 | U79: 1 | V79: 1 | W79: 1 | X79: 1 | Y79: 1 | Z79: 1 | AA79: 1 | AB79: 1 | AC79: 1 | AD79: 1 | AE79: 1 | AF79: 1 | AG79: 1 | AH79: 1 | AI79: 1 | AJ79: 1 | AK79: 1 | AL79: 1 | AM79: 1 | AN79: 1 | AO79: 1 | AP79: 1 | AQ79: =(AND(AQ3>=$F$79,AQ3<$G$79))*1 -> 1 | AR79: 1 | AS79: 1 | AT79: 1 | AU79: 1 | AV79: 1 | AW79: 1 | AX79: 1 | AY79: 1 | AZ79: 0 | BA79: 0 | BB79: 0 | BC79: 0 | BD79: 0 | BE79: 0 | BF79: 0 | BG79: 0 | BH79: 0 | BI79: 0 | BJ79: 0 | BK79: 0 | BL79: 0 | BM79: 0 | BN79: 0 | BO79: 0 | BP79: 0 | BQ79: 0 | BR79: 0 | BS79: 0 | BT79: 0 | BU79: 0 | BV79: 0 | BW79: =(AND(BW3>=$F$79,BW3<$G$79))*1 -> 0 | BX79: 0 | BY79: 0 | BZ79: 0 | CA79: 0 | CB79: 0
C80: Tax Depreciation | E80: % | F80: =1/I79 -> 0.025 | H80: USD | I80: =SUM(K80:XFD80) -> 216629231 | K80: =K78*K79*$F$80 -> 0 | L80: =L78*L79*$F$80 -> 5415730.775 | M80: 5415730.775 | N80: 5415730.775 | O80: 5415730.775 | P80: 5415730.775 | Q80: 5415730.775 | R80: 5415730.775 | S80: 5415730.775 | T80: 5415730.775 | U80: 5415730.775 | V80: 5415730.775 | W80: 5415730.775 | X80: 5415730.775 | Y80: 5415730.775 | Z80: 5415730.775 | AA80: 5415730.775 | AB80: 5415730.775 | AC80: 5415730.775 | AD80: 5415730.775 | AE80: 5415730.775 | AF80: 5415730.775 | AG80: 5415730.775 | AH80: 5415730.775 | AI80: 5415730.775 | AJ80: 5415730.775 | AK80: 5415730.775 | AL80: 5415730.775 | AM80: 5415730.775 | AN80: 5415730.775 | AO80: 5415730.775 | AP80: 5415730.775 | AQ80: 5415730.775 | AR80: 5415730.775 | AS80: 5415730.775 | AT80: 5415730.775 | AU80: 5415730.775 | AV80: 5415730.775 | AW80: 5415730.775 | AX80: 5415730.775 | AY80: 5415730.775 | AZ80: 0 | BA80: 0 | BB80: 0 | BC80: 0 | BD80: 0 | BE80: 0 | BF80: 0 | BG80: 0 | BH80: 0 | BI80: 0 | BJ80: 0 | BK80: 0 | BL80: 0 | BM80: 0 | BN80: 0 | BO80: 0 | BP80: 0 | BQ80: 0 | BR80: 0 | BS80: 0 | BT80: 0 | BU80: 0 | BV80: 0 | BW80: 0 | BX80: =BX78*BX79*$F$80 -> 0 | BY80: 0 | BZ80: 0 | CA80: 0 | CB80: 0
C82: EBITDA | E82: USD | H82: USD | K82: =K70 -> 0 | L82: =L70 -> 4727500 | M82: 4810000 | N82: 4837201.474 | O82: 5035699.2 | P82: 5064267.816 | Q82: 5271948.173 | R82: 5332695.045 | S82: 5519242.443 | T82: 5550750.389 | U82: 5778101 | V82: 5811187.883 | W82: 6049067.417 | X82: 6083810.864 | Y82: 6332711.029 | Z82: 6405952.327 | AA82: 6629628.161 | AB82: 6667933.01 | AC82: 6940443.422 | AD82: 6980661.286 | AE82: 7265811.056 | AF82: 7308035.933 | AG82: 7606416.364 | AH82: 7694716.624 | AI82: 7962977.187 | AJ82: 8009516.733 | AK82: 8336245.469 | AL82: 8385102.576 | AM82: 8727008.886 | AN82: 8778297.385 | AO82: 9136092.567 | AP82: 9242545.591 | AQ82: 9564360.881 | AR82: 9620876.253 | AS82: 10012719.33 | AT82: 10072042.18 | AU82: 10482116.51 | AV82: 10544384.71 | AW82: 10973546.19 | AX82: 11101885.13 | AY82: 11488049.5 | AZ82: 11556649.36 | BA82: 12026717.15 | BB82: 12098717.86 | BC82: 12590691.87 | BD82: 12666260.43 | BE82: 13181170.91 | BF82: 13335901.39 | BG82: 13799408.6 | BH82: 13882646.97 | BI82: 14446719.18 | BJ82: 0 | BK82: 0 | BL82: 0 | BM82: 0 | BN82: 0 | BO82: 0 | BP82: 0 | BQ82: 0 | BR82: 0 | BS82: 0 | BT82: 0 | BU82: 0 | BV82: 0 | BW82: 0 | BX82: =BX70 -> 0 | BY82: 0 | BZ82: 0 | CA82: 0 | CB82: 0
C83: Less: Depreciation | E83: USD | H83: USD | K83: =K80 -> 0 | L83: =L80 -> 5415730.775 | M83: 5415730.775 | N83: 5415730.775 | O83: 5415730.775 | P83: 5415730.775 | Q83: 5415730.775 | R83: 5415730.775 | S83: 5415730.775 | T83: 5415730.775 | U83: 5415730.775 | V83: 5415730.775 | W83: 5415730.775 | X83: 5415730.775 | Y83: 5415730.775 | Z83: 5415730.775 | AA83: 5415730.775 | AB83: 5415730.775 | AC83: 5415730.775 | AD83: 5415730.775 | AE83: 5415730.775 | AF83: 5415730.775 | AG83: 5415730.775 | AH83: 5415730.775 | AI83: 5415730.775 | AJ83: 5415730.775 | AK83: 5415730.775 | AL83: 5415730.775 | AM83: 5415730.775 | AN83: 5415730.775 | AO83: 5415730.775 | AP83: 5415730.775 | AQ83: 5415730.775 | AR83: 5415730.775 | AS83: 5415730.775 | AT83: 5415730.775 | AU83: 5415730.775 | AV83: 5415730.775 | AW83: 5415730.775 | AX83: 5415730.775 | AY83: 5415730.775 | AZ83: 0 | BA83: 0 | BB83: 0 | BC83: 0 | BD83: 0 | BE83: 0 | BF83: 0 | BG83: 0 | BH83: 0 | BI83: 0 | BJ83: 0 | BK83: 0 | BL83: 0 | BM83: 0 | BN83: 0 | BO83: 0 | BP83: 0 | BQ83: 0 | BR83: 0 | BS83: 0 | BT83: 0 | BU83: 0 | BV83: 0 | BW83: 0 | BX83: =BX80 -> 0 | BY83: 0 | BZ83: 0 | CA83: 0 | CB83: 0
C84: EBIT | E84: USD | H84: USD | K84: =K82-K83 -> 0 | L84: =L82-L83 -> -688230.775 | M84: -605730.775 | N84: -578529.3011 | O84: -380031.575 | P84: -351462.9593 | Q84: -143782.6022 | R84: -83035.73034 | S84: 103511.6682 | T84: 135019.6137 | U84: 362370.225 | V84: 395457.1081 | W84: 633336.6422 | X84: 668080.0885 | Y84: 916980.2539 | Z84: 990221.5515 | AA84: 1213897.386 | AB84: 1252202.235 | AC84: 1524712.647 | AD84: 1564930.511 | AE84: 1850080.281 | AF84: 1892305.158 | AG84: 2190685.589 | AH84: 2278985.849 | AI84: 2547246.412 | AJ84: 2593785.958 | AK84: 2920514.694 | AL84: 2969371.801 | AM84: 3311278.111 | AN84: 3362566.61 | AO84: 3720361.792 | AP84: 3826814.816 | AQ84: 4148630.106 | AR84: 4205145.478 | AS84: 4596988.553 | AT84: 4656311.409 | AU84: 5066385.734 | AV84: 5128653.933 | AW84: 5557815.42 | AX84: 5686154.354 | AY84: 6072318.723 | AZ84: 11556649.36 | BA84: 12026717.15 | BB84: 12098717.86 | BC84: 12590691.87 | BD84: 12666260.43 | BE84: 13181170.91 | BF84: 13335901.39 | BG84: 13799408.6 | BH84: 13882646.97 | BI84: 14446719.18 | BJ84: 0 | BK84: 0 | BL84: 0 | BM84: 0 | BN84: 0 | BO84: 0 | BP84: 0 | BQ84: 0 | BR84: 0 | BS84: 0 | BT84: 0 | BU84: 0 | BV84: 0 | BW84: 0 | BX84: =BX82-BX83 -> 0 | BY84: 0 | BZ84: 0 | CA84: 0 | CB84: 0
C85: Taxes on EBIT | E85: Rate | F85: =InputC!G46 -> 0.4 | H85: USD | K85: =K84*$F$85 -> 0 | L85: =L84*$F$85 -> -275292.31 | M85: -242292.31 | N85: -231411.7204 | O85: -152012.63 | P85: -140585.1837 | Q85: -57513.04089 | R85: -33214.29214 | S85: 41404.66727 | T85: 54007.84549 | U85: 144948.09 | V85: 158182.8433 | W85: 253334.6569 | X85: 267232.0354 | Y85: 366792.1015 | Z85: 396088.6206 | AA85: 485558.9543 | AB85: 500880.8939 | AC85: 609885.0586 | AD85: 625972.2045 | AE85: 740032.1124 | AF85: 756922.0631 | AG85: 876274.2356 | AH85: 911594.3394 | AI85: 1018898.565 | AJ85: 1037514.383 | AK85: 1168205.878 | AL85: 1187748.72 | AM85: 1324511.245 | AN85: 1345026.644 | AO85: 1488144.717 | AP85: 1530725.926 | AQ85: 1659452.042 | AR85: 1682058.191 | AS85: 1838795.421 | AT85: 1862524.563 | AU85: 2026554.294 | AV85: 2051461.573 | AW85: 2223126.168 | AX85: 2274461.742 | AY85: 2428927.489 | AZ85: 4622659.742 | BA85: 4810686.859 | BB85: 4839487.145 | BC85: 5036276.75 | BD85: 5066504.172 | BE85: 5272468.363 | BF85: 5334360.557 | BG85: 5519763.44 | BH85: 5553058.789 | BI85: 5778687.673 | BJ85: 0 | BK85: 0 | BL85: 0 | BM85: 0 | BN85: 0 | BO85: 0 | BP85: 0 | BQ85: 0 | BR85: 0 | BS85: 0 | BT85: 0 | BU85: 0 | BV85: 0 | BW85: 0 | BX85: =BX84*$F$85 -> 0 | BY85: 0 | BZ85: 0 | CA85: 0 | CB85: 0
C87: Pre-tax Cash Flow | E87: USD | H87: USD | K87: =K73 -> -216629231 | L87: =L73 -> 4244006.849 | M87: 4318493.151 | N87: 4342739.923 | O87: 4521635.967 | P87: 4547108.17 | Q87: 4734280.683 | R87: 4788794.109 | S87: 4956873.579 | T87: 4984980.788 | U87: 5189882.056 | V87: 5219404.906 | W87: 5433795.654 | X87: 5464803.862 | Y87: 5689127.101 | Z87: 5754876.321 | AA87: 5956413.424 | AB87: 5990615.338 | AC87: 6236217.112 | AD87: 6272134.721 | AE87: 6529127.333 | AF87: 6566845.065 | AG87: 6835761.211 | AH87: 6915053.536 | AI87: 7156765.163 | AJ87: 7198353.184 | AK87: 7492816.301 | AL87: 7536483.391 | AM87: 7844623.906 | AN87: 7890472.312 | AO87: 8212930.966 | AP87: 8308549.833 | AQ87: 8598515.795 | AR87: 8649053.891 | AS87: 9002193.724 | AT87: 9055250.976 | AU87: 9424818.877 | AV87: 9480519.127 | AW87: 9867286.039 | AX87: 9982589.999 | AY87: 10330532.6 | AZ87: 10391914.98 | BA87: 10815540.6 | BB87: 10879975.18 | BC87: 11323338.9 | BD87: 11390975.68 | BE87: 11855005.38 | BF87: 11994047.84 | BG87: 12411669.35 | BH87: 12486190.41 | BI87: 12994514 | BJ87: 0 | BK87: 0 | BL87: 0 | BM87: 0 | BN87: 0 | BO87: 0 | BP87: 0 | BQ87: 0 | BR87: 0 | BS87: 0 | BT87: 0 | BU87: 0 | BV87: 0 | BW87: 0 | BX87: =BX73 -> 0 | BY87: 0 | BZ87: 0 | CA87: 0 | CB87: 0
C88: Less: Taxes | E88: USD | H88: USD | K88: =K85 -> 0 | L88: =L85 -> -275292.31 | M88: -242292.31 | N88: -231411.7204 | O88: -152012.63 | P88: -140585.1837 | Q88: -57513.04089 | R88: -33214.29214 | S88: 41404.66727 | T88: 54007.84549 | U88: 144948.09 | V88: 158182.8433 | W88: 253334.6569 | X88: 267232.0354 | Y88: 366792.1015 | Z88: 396088.6206 | AA88: 485558.9543 | AB88: 500880.8939 | AC88: 609885.0586 | AD88: 625972.2045 | AE88: 740032.1124 | AF88: 756922.0631 | AG88: 876274.2356 | AH88: 911594.3394 | AI88: 1018898.565 | AJ88: 1037514.383 | AK88: 1168205.878 | AL88: 1187748.72 | AM88: 1324511.245 | AN88: 1345026.644 | AO88: 1488144.717 | AP88: 1530725.926 | AQ88: 1659452.042 | AR88: 1682058.191 | AS88: 1838795.421 | AT88: 1862524.563 | AU88: 2026554.294 | AV88: 2051461.573 | AW88: 2223126.168 | AX88: 2274461.742 | AY88: 2428927.489 | AZ88: 4622659.742 | BA88: 4810686.859 | BB88: 4839487.145 | BC88: 5036276.75 | BD88: 5066504.172 | BE88: 5272468.363 | BF88: 5334360.557 | BG88: 5519763.44 | BH88: 5553058.789 | BI88: 5778687.673 | BJ88: 0 | BK88: 0 | BL88: 0 | BM88: 0 | BN88: 0 | BO88: 0 | BP88: 0 | BQ88: 0 | BR88: 0 | BS88: 0 | BT88: 0 | BU88: 0 | BV88: 0 | BW88: 0 | BX88: =BX85 -> 0 | BY88: 0 | BZ88: 0 | CA88: 0 | CB88: 0
C89: After Tax Free Cash Flow | E89: USD | H89: USD | K89: =K87-K88 -> -216629231 | L89: =L87-L88 -> 4519299.159 | M89: 4560785.461 | N89: 4574151.643 | O89: 4673648.597 | P89: 4687693.354 | Q89: 4791793.724 | R89: 4822008.401 | S89: 4915468.911 | T89: 4930972.942 | U89: 5044933.966 | V89: 5061222.063 | W89: 5180460.998 | X89: 5197571.827 | Y89: 5322334.999 | Z89: 5358787.7 | AA89: 5470854.47 | AB89: 5489734.444 | AC89: 5626332.053 | AD89: 5646162.517 | AE89: 5789095.221 | AF89: 5809923.002 | AG89: 5959486.976 | AH89: 6003459.197 | AI89: 6137866.598 | AJ89: 6160838.801 | AK89: 6324610.423 | AL89: 6348734.67 | AM89: 6520112.661 | AN89: 6545445.669 | AO89: 6724786.25 | AP89: 6777823.906 | AQ89: 6939063.753 | AR89: 6966995.7 | AS89: 7163398.302 | AT89: 7192726.412 | AU89: 7398264.584 | AV89: 7429057.554 | AW89: 7644159.871 | AX89: 7708128.257 | AY89: 7901605.109 | AZ89: 5769255.236 | BA89: 6004853.743 | BB89: 6040488.037 | BC89: 6287062.146 | BD89: 6324471.513 | BE89: 6582537.014 | BF89: 6659687.281 | BG89: 6891905.91 | BH89: 6933131.616 | BI89: 7215826.331 | BJ89: 0 | BK89: 0 | BL89: 0 | BM89: 0 | BN89: 0 | BO89: 0 | BP89: 0 | BQ89: 0 | BR89: 0 | BS89: 0 | BT89: 0 | BU89: 0 | BV89: 0 | BW89: 0 | BX89: =BX87-BX88 -> 0 | BY89: 0 | BZ89: 0 | CA89: 0 | CB89: 0
C91: Project IRR after Tax | E91: % | F91: =XIRR(K89:CB89,K4:CB4) -> 0.02573709786
B93: Financing
C94: Debt Size
D95: Tenure Input | E95: Year | F95: =InputC!G53 -> 20
D96: Repayment Period | E96: Year | F96: =F79 -> 2025-01-01 | G96: =EDATE(F79,F95*12) -> 2045-01-01 | I96: =SUM(K96:XFD96) -> 40 | K96: =(AND(K3>=$F$96,K3<$G$96))*1 -> 0 | L96: 1 | M96: 1 | N96: 1 | O96: 1 | P96: 1 | Q96: 1 | R96: 1 | S96: 1 | T96: 1 | U96: 1 | V96: 1 | W96: 1 | X96: 1 | Y96: 1 | Z96: 1 | AA96: 1 | AB96: 1 | AC96: 1 | AD96: 1 | AE96: 1 | AF96: 1 | AG96: 1 | AH96: 1 | AI96: 1 | AJ96: 1 | AK96: 1 | AL96: 1 | AM96: 1 | AN96: 1 | AO96: 1 | AP96: 1 | AQ96: =(AND(AQ3>=$F$96,AQ3<$G$96))*1 -> 1 | AR96: 1 | AS96: 1 | AT96: 1 | AU96: 1 | AV96: 1 | AW96: 1 | AX96: 1 | AY96: 1 | AZ96: 0 | BA96: 0 | BB96: 0 | BC96: 0 | BD96: 0 | BE96: 0 | BF96: 0 | BG96: 0 | BH96: 0 | BI96: 0 | BJ96: 0 | BK96: 0 | BL96: 0 | BM96: 0 | BN96: 0 | BO96: 0 | BP96: 0 | BQ96: 0 | BR96: 0 | BS96: 0 | BT96: 0 | BU96: 0 | BV96: 0 | BW96: =(AND(BW3>=$F$96,BW3<$G$96))*1 -> 0 | BX96: 0 | BY96: 0 | BZ96: 0 | CA96: 0 | CB96: 0
C98: Income Taxes with Interest Deduction
D99: EBIT | K99: =K84 -> 0 | L99: -688230.775 | M99: -605730.775 | N99: -578529.3011 | O99: -380031.575 | P99: -351462.9593 | Q99: -143782.6022 | R99: -83035.73034 | S99: 103511.6682 | T99: 135019.6137 | U99: 362370.225 | V99: 395457.1081 | W99: 633336.6422 | X99: 668080.0885 | Y99: 916980.2539 | Z99: 990221.5515 | AA99: 1213897.386 | AB99: 1252202.235 | AC99: 1524712.647 | AD99: 1564930.511 | AE99: 1850080.281 | AF99: 1892305.158 | AG99: 2190685.589 | AH99: 2278985.849 | AI99: 2547246.412 | AJ99: 2593785.958 | AK99: 2920514.694 | AL99: 2969371.801 | AM99: 3311278.111 | AN99: 3362566.61 | AO99: 3720361.792 | AP99: 3826814.816 | AQ99: =AQ84 -> 4148630.106 | AR99: 4205145.478 | AS99: 4596988.553 | AT99: 4656311.409 | AU99: 5066385.734 | AV99: 5128653.933 | AW99: 5557815.42 | AX99: 5686154.354 | AY99: 6072318.723 | AZ99: 11556649.36 | BA99: 12026717.15 | BB99: 12098717.86 | BC99: 12590691.87 | BD99: 12666260.43 | BE99: 13181170.91 | BF99: 13335901.39 | BG99: 13799408.6 | BH99: 13882646.97 | BI99: 14446719.18 | BJ99: 0 | BK99: 0 | BL99: 0 | BM99: 0 | BN99: 0 | BO99: 0 | BP99: 0 | BQ99: 0 | BR99: 0 | BS99: 0 | BT99: 0 | BU99: 0 | BV99: 0 | BW99: =BW84 -> 0 | BX99: 0 | BY99: 0 | BZ99: 0 | CA99: 0 | CB99: 0
D100: Less: Interest | K100: =K133 -> 0 | L100: =L133 -> 2389404.303 | M100: 2378089.736 | N100: 2360405.679 | O100: 2342097.911 | P100: 2321494.963 | Q100: 2300082.149 | R100: 2276234.045 | S100: 2251194.649 | T100: 2223842.852 | U100: 2195563.276 | V100: 2164545.04 | W100: 2132484.062 | X100: 2097520.449 | Y100: 2061426.86 | Z100: 2022257.884 | AA100: 1981497.749 | AB100: 1937803.666 | AC100: 1892828.165 | AD100: 1844403.534 | AE100: 1794554.465 | AF100: 1741054.405 | AG100: 1686019.901 | AH100: 1627121.843 | AI100: 1566131.908 | AJ100: 1501441.35 | AK100: 1435023.357 | AL100: 1364282.265 | AM100: 1291636.359 | AN100: 1214419.315 | AO100: 1135159.412 | AP100: 1051067.292 | AQ100: 964258.7299 | AR100: 872805.8158 | AS100: 779065.6921 | AT100: 679929.2766 | AU100: 578286.2537 | AV100: 470942.6577 | AW100: 360919.9447 | AX100: 244876.5036 | AY100: 125340.205 | AZ100: 1.142732799e-08 | BA100: 1.159873791e-08 | BB100: 1.177271898e-08 | BC100: 1.194930976e-08 | BD100: 1.212854941e-08 | BE100: 1.231047765e-08 | BF100: 1.249513482e-08 | BG100: 1.268256184e-08 | BH100: 1.287280027e-08 | BI100: 1.306589227e-08 | BJ100: 1.326188065e-08 | BK100: 1.346080886e-08 | BL100: 1.3662721e-08 | BM100: 1.386766181e-08 | BN100: 1.407567674e-08 | BO100: 1.428681189e-08 | BP100: 1.450111407e-08 | BQ100: 1.471863078e-08 | BR100: 1.493941024e-08 | BS100: 1.516350139e-08 | BT100: 1.539095392e-08 | BU100: 1.562181822e-08 | BV100: 1.58561455e-08 | BW100: 1.609398768e-08 | BX100: =BX133 -> 1.63353975e-08 | BY100: 1.658042846e-08 | BZ100: 1.682913488e-08 | CA100: 1.708157191e-08 | CB100: 1.733779549e-08
D101: EBT | K101: =K99-K100 -> 0 | L101: =L99-L100 -> -3077635.078 | M101: -2983820.511 | N101: -2938934.98 | O101: -2722129.486 | P101: -2672957.922 | Q101: -2443864.752 | R101: -2359269.775 | S101: -2147682.981 | T101: -2088823.238 | U101: -1833193.051 | V101: -1769087.932 | W101: -1499147.42 | X101: -1429440.361 | Y101: -1144446.606 | Z101: -1032036.332 | AA101: -767600.3637 | AB101: -685601.4316 | AC101: -368115.5186 | AD101: -279473.0232 | AE101: 55525.81621 | AF101: 151250.7526 | AG101: 504665.6877 | AH101: 651864.0051 | AI101: 981114.5046 | AJ101: 1092344.607 | AK101: 1485491.337 | AL101: 1605089.536 | AM101: 2019641.752 | AN101: 2148147.295 | AO101: 2585202.379 | AP101: 2775747.524 | AQ101: 3184371.376 | AR101: 3332339.662 | AS101: 3817922.861 | AT101: 3976382.132 | AU101: 4488099.48 | AV101: 4657711.276 | AW101: 5196895.475 | AX101: 5441277.851 | AY101: 5946978.518 | AZ101: 11556649.36 | BA101: 12026717.15 | BB101: 12098717.86 | BC101: 12590691.87 | BD101: 12666260.43 | BE101: 13181170.91 | BF101: 13335901.39 | BG101: 13799408.6 | BH101: 13882646.97 | BI101: 14446719.18 | BJ101: -1.326188065e-08 | BK101: -1.346080886e-08 | BL101: -1.3662721e-08 | BM101: -1.386766181e-08 | BN101: -1.407567674e-08 | BO101: -1.428681189e-08 | BP101: -1.450111407e-08 | BQ101: -1.471863078e-08 | BR101: -1.493941024e-08 | BS101: -1.516350139e-08 | BT101: -1.539095392e-08 | BU101: -1.562181822e-08 | BV101: -1.58561455e-08 | BW101: -1.609398768e-08 | BX101: =BX99-BX100 -> -1.63353975e-08 | BY101: -1.658042846e-08 | BZ101: -1.682913488e-08 | CA101: -1.708157191e-08 | CB101: -1.733779549e-08
D102: Taxes on EBT | F102: =InputC!G46 -> 0.4 | K102: =K101*$F$102 -> 0 | L102: =L101*$F$102 -> -1231054.031 | M102: -1193528.204 | N102: -1175573.992 | O102: -1088851.794 | P102: -1069183.169 | Q102: -977545.9007 | R102: -943707.91 | S102: -859073.1922 | T102: -835529.2952 | U102: -733277.2204 | V102: -707635.1728 | W102: -599658.9678 | X102: -571776.1442 | Y102: -457778.6424 | Z102: -412814.533 | AA102: -307040.1455 | AB102: -274240.5726 | AC102: -147246.2074 | AD102: -111789.2093 | AE102: 22210.32648 | AF102: 60500.30102 | AG102: 201866.2751 | AH102: 260745.6021 | AI102: 392445.8018 | AJ102: 436937.843 | AK102: 594196.5347 | AL102: 642035.8145 | AM102: 807856.7009 | AN102: 859258.918 | AO102: 1034080.952 | AP102: 1110299.01 | AQ102: 1273748.55 | AR102: 1332935.865 | AS102: 1527169.144 | AT102: 1590552.853 | AU102: 1795239.792 | AV102: 1863084.51 | AW102: 2078758.19 | AX102: 2176511.14 | AY102: 2378791.407 | AZ102: 4622659.742 | BA102: 4810686.859 | BB102: 4839487.145 | BC102: 5036276.75 | BD102: 5066504.172 | BE102: 5272468.363 | BF102: 5334360.557 | BG102: 5519763.44 | BH102: 5553058.789 | BI102: 5778687.673 | BJ102: -5.304752262e-09 | BK102: -5.384323546e-09 | BL102: -5.465088399e-09 | BM102: -5.547064725e-09 | BN102: -5.630270696e-09 | BO102: -5.714724756e-09 | BP102: -5.800445627e-09 | BQ102: -5.887452312e-09 | BR102: -5.975764096e-09 | BS102: -6.065400558e-09 | BT102: -6.156381566e-09 | BU102: -6.24872729e-09 | BV102: -6.342458199e-09 | BW102: -6.437595072e-09 | BX102: =BX101*$F$102 -> -6.534158998e-09 | BY102: -6.632171383e-09 | BZ102: -6.731653954e-09 | CA102: -6.832628763e-09 | CB102: -6.935118195e-09
C104: CFADS
D105: EBITDA | H105: USD | K105: =K82 -> 0 | L105: =L82 -> 4727500 | M105: 4810000 | N105: 4837201.474 | O105: 5035699.2 | P105: 5064267.816 | Q105: 5271948.173 | R105: 5332695.045 | S105: 5519242.443 | T105: 5550750.389 | U105: 5778101 | V105: 5811187.883 | W105: 6049067.417 | X105: 6083810.864 | Y105: 6332711.029 | Z105: 6405952.327 | AA105: 6629628.161 | AB105: 6667933.01 | AC105: 6940443.422 | AD105: 6980661.286 | AE105: 7265811.056 | AF105: 7308035.933 | AG105: 7606416.364 | AH105: 7694716.624 | AI105: 7962977.187 | AJ105: 8009516.733 | AK105: 8336245.469 | AL105: 8385102.576 | AM105: 8727008.886 | AN105: 8778297.385 | AO105: 9136092.567 | AP105: 9242545.591 | AQ105: 9564360.881 | AR105: 9620876.253 | AS105: 10012719.33 | AT105: 10072042.18 | AU105: 10482116.51 | AV105: 10544384.71 | AW105: 10973546.19 | AX105: 11101885.13 | AY105: 11488049.5 | AZ105: 11556649.36 | BA105: 12026717.15 | BB105: 12098717.86 | BC105: 12590691.87 | BD105: 12666260.43 | BE105: 13181170.91 | BF105: 13335901.39 | BG105: 13799408.6 | BH105: 13882646.97 | BI105: 14446719.18 | BJ105: 0 | BK105: 0 | BL105: 0 | BM105: 0 | BN105: 0 | BO105: 0 | BP105: 0 | BQ105: 0 | BR105: 0 | BS105: 0 | BT105: 0 | BU105: 0 | BV105: 0 | BW105: 0 | BX105: =BX82 -> 0 | BY105: 0 | BZ105: 0 | CA105: 0 | CB105: 0
D106: Less: Working Capital Changes | H106: USD | K106: =-K71 -> 0 | L106: =-L67 -> -483493.1507 | M106: =-M67 -> -8013.69863 | N106: -2954.701785 | O106: -19601.68178 | P106: -3096.412983 | Q106: -20507.84352 | R106: -6233.446461 | S106: -18467.92876 | T106: -3400.736346 | U106: -22449.34263 | V106: -3564.03324 | W106: -23488.786 | X106: -3735.238231 | Y106: -24576.92687 | Z106: -7492.077828 | AA106: -22138.73114 | AB106: -4102.934719 | AC106: -26908.63786 | AD106: -4300.25562 | AE106: -28157.15757 | AF106: -4507.145339 | AG106: -29464.28486 | AH106: -9007.934385 | AI106: -26548.93763 | AJ106: -4951.52377 | AK106: -32265.61951 | AL106: -5190.017314 | AM106: -33765.79513 | AN106: -5440.091667 | AO106: -35336.52807 | AP106: -10834.15797 | AQ106: -31849.32749 | AR106: -5977.275926 | AS106: -38703.24284 | AT106: -6265.603423 | AU106: -40506.42339 | AV106: -6567.949735 | AW106: -42394.57466 | AX106: -13034.97441 | AY106: -38221.7696 | AZ106: -7217.477809 | BA106: -46442.16864 | BB106: -7566.135233 | BC106: -48610.2967 | BD106: -7931.766226 | BE106: -50880.78547 | BF106: -15688.02437 | BG106: -45885.69587 | BH106: -8717.317339 | BI106: -55748.61082 | BJ106: 1452205.178 | BK106: 0 | BL106: 0 | BM106: 0 | BN106: 0 | BO106: 0 | BP106: 0 | BQ106: 0 | BR106: 0 | BS106: 0 | BT106: 0 | BU106: 0 | BV106: 0 | BW106: 0 | BX106: 0 | BY106: =-BY67 -> 0 | BZ106: 0 | CA106: 0 | CB106: 0
D107: Less: Taxes Paid | H107: USD | K107: =-K102 -> 0 | L107: =-L102 -> 1231054.031 | M107: 1193528.204 | N107: 1175573.992 | O107: 1088851.794 | P107: 1069183.169 | Q107: 977545.9007 | R107: 943707.91 | S107: 859073.1922 | T107: 835529.2952 | U107: 733277.2204 | V107: 707635.1728 | W107: 599658.9678 | X107: 571776.1442 | Y107: 457778.6424 | Z107: 412814.533 | AA107: 307040.1455 | AB107: 274240.5726 | AC107: 147246.2074 | AD107: 111789.2093 | AE107: -22210.32648 | AF107: -60500.30102 | AG107: -201866.2751 | AH107: -260745.6021 | AI107: -392445.8018 | AJ107: -436937.843 | AK107: -594196.5347 | AL107: -642035.8145 | AM107: -807856.7009 | AN107: -859258.918 | AO107: -1034080.952 | AP107: -1110299.01 | AQ107: -1273748.55 | AR107: -1332935.865 | AS107: -1527169.144 | AT107: -1590552.853 | AU107: -1795239.792 | AV107: -1863084.51 | AW107: -2078758.19 | AX107: -2176511.14 | AY107: -2378791.407 | AZ107: -4622659.742 | BA107: -4810686.859 | BB107: -4839487.145 | BC107: -5036276.75 | BD107: -5066504.172 | BE107: -5272468.363 | BF107: -5334360.557 | BG107: -5519763.44 | BH107: -5553058.789 | BI107: -5778687.673 | BJ107: 5.304752262e-09 | BK107: 5.384323546e-09 | BL107: 5.465088399e-09 | BM107: 5.547064725e-09 | BN107: 5.630270696e-09 | BO107: 5.714724756e-09 | BP107: 5.800445627e-09 | BQ107: 5.887452312e-09 | BR107: 5.975764096e-09 | BS107: 6.065400558e-09 | BT107: 6.156381566e-09 | BU107: 6.24872729e-09 | BV107: 6.342458199e-09 | BW107: 6.437595072e-09 | BX107: =-BX102 -> 6.534158998e-09 | BY107: 6.632171383e-09 | BZ107: 6.731653954e-09 | CA107: 6.832628763e-09 | CB107: 6.935118195e-09
D108: Fixed CFADS | H108: USD | J108: Fixed | K108: 0 | L108: 4244006.849 | M108: 4801986.301 | N108: 4834246.772 | O108: 5016097.518 | P108: 5061171.403 | Q108: 5251440.329 | R108: 5326461.598 | S108: 5500774.514 | T108: 5547349.652 | U108: 5755651.657 | V108: 5807623.85 | W108: 6025578.631 | X108: 6080075.625 | Y108: 6308134.102 | Z108: 6398460.249 | AA108: 6607489.43 | AB108: 6663830.075 | AC108: 6913534.784 | AD108: 6976361.031 | AE108: 7237653.898 | AF108: 7303528.787 | AG108: 7576952.079 | AH108: 7685708.689 | AI108: 7936428.25 | AJ108: 8004565.209 | AK108: 8303979.849 | AL108: 8379912.559 | AM108: 8693243.091 | AN108: 8772857.293 | AO108: 9100756.039 | AP108: 9231711.433 | AQ108: 9532511.554 | AR108: 9614898.977 | AS108: 9974016.085 | AT108: 10065776.58 | AU108: 10441610.09 | AV108: 10537816.76 | AW108: 10931151.62 | AX108: 11088850.16 | AY108: 11449827.73 | AZ108: 11549431.88 | BA108: 11980274.98 | BB108: 12091151.73 | BC108: 12542081.58 | BD108: 12658328.66 | BE108: 13130290.12 | BF108: 13320213.37 | BG108: 13753522.9 | BH108: 13873929.66 | BI108: 14390970.57 | BJ108: 1452205.178 | BK108: 0 | BL108: 0 | BM108: 0 | BN108: 0 | BO108: 0 | BP108: 0 | BQ108: 0 | BR108: 0 | BS108: 0 | BT108: 0 | BU108: 0 | BV108: 0 | BW108: 0 | BX108: 0 | BY108: 0 | BZ108: 0 | CA108: 0 | CB108: 0
D109: Computed CFADS | H109: USD | J109: Computed | K109: =K105+K106+K107 -> 0 | L109: =L105+L106+L107 -> 5475060.881 | M109: 5995514.506 | N109: 6009820.764 | O109: 6104949.313 | P109: 6130354.572 | Q109: 6228986.23 | R109: 6270169.508 | S109: 6359847.707 | T109: 6382878.948 | U109: 6488928.878 | V109: 6515259.023 | W109: 6625237.599 | X109: 6651851.77 | Y109: 6765912.744 | Z109: 6811274.782 | AA109: 6914529.575 | AB109: 6938070.648 | AC109: 7060780.991 | AD109: 7088150.24 | AE109: 7215443.572 | AF109: 7243028.486 | AG109: 7375085.804 | AH109: 7424963.087 | AI109: 7543982.448 | AJ109: 7567627.366 | AK109: 7709783.315 | AL109: 7737876.744 | AM109: 7885386.39 | AN109: 7913598.375 | AO109: 8066675.087 | AP109: 8121412.423 | AQ109: 8258763.003 | AR109: 8281963.112 | AS109: 8446846.941 | AT109: 8475223.727 | AU109: 8646370.293 | AV109: 8674732.248 | AW109: 8852393.43 | AX109: 8912339.015 | AY109: 9071036.321 | AZ109: 6926772.136 | BA109: 7169588.12 | BB109: 7251664.583 | BC109: 7505804.828 | BD109: 7591824.491 | BE109: 7857821.759 | BF109: 7985852.811 | BG109: 8233759.465 | BH109: 8320870.867 | BI109: 8612282.899 | BJ109: 1452205.178 | BK109: 5.384323546e-09 | BL109: 5.465088399e-09 | BM109: 5.547064725e-09 | BN109: 5.630270696e-09 | BO109: 5.714724756e-09 | BP109: 5.800445627e-09 | BQ109: 5.887452312e-09 | BR109: 5.975764096e-09 | BS109: 6.065400558e-09 | BT109: 6.156381566e-09 | BU109: 6.24872729e-09 | BV109: 6.342458199e-09 | BW109: 6.437595072e-09 | BX109: =BX105+BX106+BX107 -> 6.534158998e-09 | BY109: 6.632171383e-09 | BZ109: 6.731653954e-09 | CA109: 6.832628763e-09 | CB109: 6.935118195e-09
D110: CFADS Difference | H110: USD | I110: =SUM(K110:XFD110) -> 60575874.72 | J110: Difference | K110: =K108-K109 -> 0 | L110: =L108-L109 -> -1231054.031 | M110: -1193528.204 | N110: -1175573.992 | O110: -1088851.794 | P110: -1069183.169 | Q110: -977545.9007 | R110: -943707.91 | S110: -859073.1922 | T110: -835529.2952 | U110: -733277.2204 | V110: -707635.1728 | W110: -599658.9678 | X110: -571776.1442 | Y110: -457778.6424 | Z110: -412814.533 | AA110: -307040.1455 | AB110: -274240.5726 | AC110: -147246.2074 | AD110: -111789.2093 | AE110: 22210.32648 | AF110: 60500.30102 | AG110: 201866.2751 | AH110: 260745.6021 | AI110: 392445.8018 | AJ110: 436937.843 | AK110: 594196.5347 | AL110: 642035.8145 | AM110: 807856.7009 | AN110: 859258.918 | AO110: 1034080.952 | AP110: 1110299.01 | AQ110: 1273748.55 | AR110: 1332935.865 | AS110: 1527169.144 | AT110: 1590552.853 | AU110: 1795239.792 | AV110: 1863084.51 | AW110: 2078758.19 | AX110: 2176511.14 | AY110: 2378791.407 | AZ110: 4622659.742 | BA110: 4810686.859 | BB110: 4839487.145 | BC110: 5036276.75 | BD110: 5066504.172 | BE110: 5272468.363 | BF110: 5334360.557 | BG110: 5519763.44 | BH110: 5553058.789 | BI110: 5778687.673 | BJ110: -5.355104804e-09 | BK110: -5.384323546e-09 | BL110: -5.465088399e-09 | BM110: -5.547064725e-09 | BN110: -5.630270696e-09 | BO110: -5.714724756e-09 | BP110: -5.800445627e-09 | BQ110: -5.887452312e-09 | BR110: -5.975764096e-09 | BS110: -6.065400558e-09 | BT110: -6.156381566e-09 | BU110: -6.24872729e-09 | BV110: -6.342458199e-09 | BW110: -6.437595072e-09 | BX110: =BX108-BX109 -> -6.534158998e-09 | BY110: -6.632171383e-09 | BZ110: -6.731653954e-09 | CA110: -6.832628763e-09 | CB110: -6.935118195e-09
D112: CFADS over Debt Repayment | H112: USD | K112: =K108*K96 -> 0 | L112: =L108*L96 -> 4244006.849 | M112: 4801986.301 | N112: 4834246.772 | O112: 5016097.518 | P112: 5061171.403 | Q112: 5251440.329 | R112: 5326461.598 | S112: 5500774.514 | T112: 5547349.652 | U112: 5755651.657 | V112: 5807623.85 | W112: 6025578.631 | X112: 6080075.625 | Y112: 6308134.102 | Z112: 6398460.249 | AA112: 6607489.43 | AB112: 6663830.075 | AC112: 6913534.784 | AD112: 6976361.031 | AE112: 7237653.898 | AF112: 7303528.787 | AG112: 7576952.079 | AH112: 7685708.689 | AI112: 7936428.25 | AJ112: 8004565.209 | AK112: 8303979.849 | AL112: 8379912.559 | AM112: 8693243.091 | AN112: 8772857.293 | AO112: 9100756.039 | AP112: 9231711.433 | AQ112: 9532511.554 | AR112: 9614898.977 | AS112: 9974016.085 | AT112: 10065776.58 | AU112: 10441610.09 | AV112: 10537816.76 | AW112: 10931151.62 | AX112: 11088850.16 | AY112: 11449827.73 | AZ112: 0 | BA112: 0 | BB112: 0 | BC112: 0 | BD112: 0 | BE112: 0 | BF112: 0 | BG112: 0 | BH112: 0 | BI112: 0 | BJ112: 0 | BK112: 0 | BL112: 0 | BM112: 0 | BN112: 0 | BO112: 0 | BP112: 0 | BQ112: 0 | BR112: 0 | BS112: 0 | BT112: 0 | BU112: 0 | BV112: 0 | BW112: 0 | BX112: =BX108*BX96 -> 0 | BY112: 0 | BZ112: 0 | CA112: 0 | CB112: 0
D114: Periodic Discount Factor | E114: % p.a/p.p | F114: =InputC!G54 -> 0.03 | G114: =F114/2 -> 0.015 | H114: USD | J114: 1 | K114: =J114*(1+$G$114*K96) -> 1 | L114: =K114*(1+$G$114*L96) -> 1.015 | M114: 1.030225 | N114: 1.045678375 | O114: 1.061363551 | P114: 1.077284004 | Q114: 1.093443264 | R114: 1.109844913 | S114: 1.126492587 | T114: 1.143389975 | U114: 1.160540825 | V114: 1.177948937 | W114: 1.195618171 | X114: 1.213552444 | Y114: 1.231755731 | Z114: 1.250232067 | AA114: 1.268985548 | AB114: 1.288020331 | AC114: 1.307340636 | AD114: 1.326950745 | AE114: 1.346855007 | AF114: 1.367057832 | AG114: 1.387563699 | AH114: 1.408377155 | AI114: 1.429502812 | AJ114: 1.450945354 | AK114: 1.472709534 | AL114: 1.494800177 | AM114: 1.51722218 | AN114: 1.539980513 | AO114: 1.56308022 | AP114: 1.586526424 | AQ114: 1.61032432 | AR114: 1.634479185 | AS114: 1.658996373 | AT114: 1.683881318 | AU114: 1.709139538 | AV114: 1.734776631 | AW114: 1.760798281 | AX114: 1.787210255 | AY114: 1.814018409 | AZ114: 1.814018409 | BA114: 1.814018409 | BB114: 1.814018409 | BC114: 1.814018409 | BD114: 1.814018409 | BE114: 1.814018409 | BF114: 1.814018409 | BG114: 1.814018409 | BH114: 1.814018409 | BI114: 1.814018409 | BJ114: 1.814018409 | BK114: 1.814018409 | BL114: 1.814018409 | BM114: 1.814018409 | BN114: 1.814018409 | BO114: 1.814018409 | BP114: 1.814018409 | BQ114: 1.814018409 | BR114: 1.814018409 | BS114: 1.814018409 | BT114: 1.814018409 | BU114: 1.814018409 | BV114: 1.814018409 | BW114: 1.814018409 | BX114: =BW114*(1+$G$114*BX96) -> 1.814018409 | BY114: 1.814018409 | BZ114: 1.814018409 | CA114: 1.814018409 | CB114: 1.814018409
D116: Debt Service over Repayment | E116: x | F116: =InputC!G50 -> 1.35 | H116: USD | K116: =K112/$F$116 -> 0 | L116: =L112/$F$116 -> 3143708.777 | M116: 3557026.89 | N116: 3580923.535 | O116: 3715627.791 | P116: 3749015.854 | Q116: 3889955.799 | R116: 3945527.11 | S116: 4074647.788 | T116: 4109147.891 | U116: 4263445.672 | V116: 4301943.593 | W116: 4463391.579 | X116: 4503759.722 | Y116: 4672691.927 | Z116: 4739600.184 | AA116: 4894436.615 | AB116: 4936170.426 | AC116: 5121136.877 | AD116: 5167674.837 | AE116: 5361225.11 | AF116: 5410021.324 | AG116: 5612557.096 | AH116: 5693117.548 | AI116: 5878835.741 | AJ116: 5929307.562 | AK116: 6151096.185 | AL116: 6207342.636 | AM116: 6439439.327 | AN116: 6498412.81 | AO116: 6741300.769 | AP116: 6838304.765 | AQ116: 7061119.669 | AR116: 7122147.39 | AS116: 7388160.063 | AT116: 7456130.8 | AU116: 7734525.989 | AV116: 7805790.191 | AW116: 8097149.348 | AX116: 8213963.078 | AY116: 8481353.873 | AZ116: 0 | BA116: 0 | BB116: 0 | BC116: 0 | BD116: 0 | BE116: 0 | BF116: 0 | BG116: 0 | BH116: 0 | BI116: 0 | BJ116: 0 | BK116: 0 | BL116: 0 | BM116: 0 | BN116: 0 | BO116: 0 | BP116: 0 | BQ116: 0 | BR116: 0 | BS116: 0 | BT116: 0 | BU116: 0 | BV116: 0 | BW116: 0 | BX116: =BX112/$F$116 -> 0 | BY116: 0 | BZ116: 0 | CA116: 0 | CB116: 0
D117: PV of Debt Service with Sumproduct | E117: USD | F117: =SUMPRODUCT(K116:CB116/K114:CB114) -> 159293620.2
D119: Cap Exp | E119: USD | F119: =F32 -> 216629231
D120: Fees | E120: USD | F120: =I134 -> 0
D121: Total | E121: USD | F121: =SUM(F119:F120) -> 216629231
D123: Debt as Percent of Cap Exp + Fees | E123: % | F123: =F117/F119 -> 0.7353283741
D124: Max Debt to Capital | E124: % | F124: =InputC!G51 -> 0.8
D125: Debt from Max Debt to Capital | E125: USD | F125: =F124*F121 -> 173303384.8
D126: Debt Applied | E126: USD | F126: =MIN(F125,F117) -> 159293620.2
C128: Debt Balance
D129: Opening Balance | H129: USD | K129: =J132 -> 0 | L129: =K132 -> 159293620.2 | M129: 158539315.7 | N129: 157360378.6 | O129: 156139860.7 | P129: 154766330.9 | Q129: 153338810 | R129: 151748936.3 | S129: 150079643.2 | T129: 148256190.1 | U129: 146370885.1 | V129: 144303002.7 | W129: 142165604.1 | X129: 139834696.6 | Y129: 137428457.3 | Z129: 134817192.3 | AA129: 132099850 | AB129: 129186911.1 | AC129: 126188544.3 | AD129: 122960235.6 | AE129: 119636964.3 | AF129: 116070293.7 | AG129: 112401326.8 | AH129: 108474789.6 | AI129: 104408793.9 | AJ129: 100096090 | AK129: 95668223.82 | AL129: 90952150.99 | AM129: 86109090.62 | AN129: 80961287.65 | AO129: 75677294.15 | AP129: 70071152.8 | AQ129: 64283915.32 | AR129: 58187054.38 | AS129: 51937712.81 | AT129: 45328618.44 | AU129: 38552416.91 | AV129: 31396177.18 | AW129: 24061329.65 | AX129: 16325100.24 | AY129: 8356013.668 | AZ129: 7.61821866e-07 | BA129: 7.73249194e-07 | BB129: 7.848479319e-07 | BC129: 7.966206509e-07 | BD129: 8.085699607e-07 | BE129: 8.206985101e-07 | BF129: 8.330089877e-07 | BG129: 8.455041226e-07 | BH129: 8.581866844e-07 | BI129: 8.710594847e-07 | BJ129: 8.841253769e-07 | BK129: 8.973872576e-07 | BL129: 9.108480664e-07 | BM129: 9.245107874e-07 | BN129: 9.383784493e-07 | BO129: 9.52454126e-07 | BP129: 9.667409379e-07 | BQ129: 9.81242052e-07 | BR129: 9.959606827e-07 | BS129: 1.010900093e-06 | BT129: 1.026063594e-06 | BU129: 1.041454548e-06 | BV129: 1.057076367e-06 | BW129: 1.072932512e-06 | BX129: =BW132 -> 1.0890265e-06 | BY129: 1.105361897e-06 | BZ129: 1.121942326e-06 | CA129: 1.138771461e-06 | CB129: 1.155853032e-06
D130: Add: Draw | F130: =F126 -> 159293620.2 | H130: USD | K130: =$F$130*K5 -> 159293620.2 | L130: 0 | M130: 0 | N130: 0 | O130: 0 | P130: 0 | Q130: 0 | R130: 0 | S130: 0 | T130: 0 | U130: 0 | V130: 0 | W130: 0 | X130: 0 | Y130: 0 | Z130: 0 | AA130: 0 | AB130: 0 | AC130: 0 | AD130: 0 | AE130: 0 | AF130: 0 | AG130: 0 | AH130: 0 | AI130: 0 | AJ130: 0 | AK130: 0 | AL130: 0 | AM130: 0 | AN130: 0 | AO130: 0 | AP130: 0 | AQ130: =$F$130*AQ5 -> 0 | AR130: 0 | AS130: 0 | AT130: 0 | AU130: 0 | AV130: 0 | AW130: 0 | AX130: 0 | AY130: 0 | AZ130: 0 | BA130: 0 | BB130: 0 | BC130: 0 | BD130: 0 | BE130: 0 | BF130: 0 | BG130: 0 | BH130: 0 | BI130: 0 | BJ130: 0 | BK130: 0 | BL130: 0 | BM130: 0 | BN130: 0 | BO130: 0 | BP130: 0 | BQ130: 0 | BR130: 0 | BS130: 0 | BT130: 0 | BU130: 0 | BV130: 0 | BW130: =$F$130*BW5 -> 0 | BX130: 0 | BY130: 0 | BZ130: 0 | CA130: 0 | CB130: 0
D131: Less: Repayment (DS - Interest) | H131: USD | K131: =K116-K133 -> 0 | L131: 754304.474 | M131: 1178937.154 | N131: 1220517.856 | O131: 1373529.88 | P131: 1427520.891 | Q131: 1589873.65 | R131: 1669293.065 | S131: 1823453.14 | T131: 1885305.039 | U131: 2067882.396 | V131: 2137398.552 | W131: 2330907.517 | X131: 2406239.273 | Y131: 2611265.067 | Z131: 2717342.3 | AA131: 2912938.865 | AB131: 2998366.76 | AC131: 3228308.712 | AD131: 3323271.303 | AE131: 3566670.645 | AF131: 3668966.919 | AG131: 3926537.194 | AH131: 4065995.704 | AI131: 4312703.833 | AJ131: 4427866.212 | AK131: 4716072.828 | AL131: 4843060.371 | AM131: 5147802.968 | AN131: 5283993.495 | AO131: 5606141.357 | AP131: 5787237.473 | AQ131: =AQ116-AQ133 -> 6096860.939 | AR131: 6249341.574 | AS131: 6609094.371 | AT131: 6776201.524 | AU131: 7156239.735 | AV131: 7334847.534 | AW131: 7736229.403 | AX131: 7969086.574 | AY131: 8356013.668 | AZ131: -1.142732799e-08 | BA131: -1.159873791e-08 | BB131: -1.177271898e-08 | BC131: -1.194930976e-08 | BD131: -1.212854941e-08 | BE131: -1.231047765e-08 | BF131: -1.249513482e-08 | BG131: -1.268256184e-08 | BH131: -1.287280027e-08 | BI131: -1.306589227e-08 | BJ131: -1.326188065e-08 | BK131: -1.346080886e-08 | BL131: -1.3662721e-08 | BM131: -1.386766181e-08 | BN131: -1.407567674e-08 | BO131: -1.428681189e-08 | BP131: -1.450111407e-08 | BQ131: -1.471863078e-08 | BR131: -1.493941024e-08 | BS131: -1.516350139e-08 | BT131: -1.539095392e-08 | BU131: -1.562181822e-08 | BV131: -1.58561455e-08 | BW131: =BW116-BW133 -> -1.609398768e-08 | BX131: -1.63353975e-08 | BY131: -1.658042846e-08 | BZ131: -1.682913488e-08 | CA131: -1.708157191e-08 | CB131: -1.733779549e-08
D132: Closing Balance | H132: USD | K132: =K129+K130-K131 -> 159293620.2 | L132: =L129+L130-L131 -> 158539315.7 | M132: 157360378.6 | N132: 156139860.7 | O132: 154766330.9 | P132: 153338810 | Q132: 151748936.3 | R132: 150079643.2 | S132: 148256190.1 | T132: 146370885.1 | U132: 144303002.7 | V132: 142165604.1 | W132: 139834696.6 | X132: 137428457.3 | Y132: 134817192.3 | Z132: 132099850 | AA132: 129186911.1 | AB132: 126188544.3 | AC132: 122960235.6 | AD132: 119636964.3 | AE132: 116070293.7 | AF132: 112401326.8 | AG132: 108474789.6 | AH132: 104408793.9 | AI132: 100096090 | AJ132: 95668223.82 | AK132: 90952150.99 | AL132: 86109090.62 | AM132: 80961287.65 | AN132: 75677294.15 | AO132: 70071152.8 | AP132: 64283915.32 | AQ132: 58187054.38 | AR132: 51937712.81 | AS132: 45328618.44 | AT132: 38552416.91 | AU132: 31396177.18 | AV132: 24061329.65 | AW132: 16325100.24 | AX132: 8356013.668 | AY132: 7.61821866e-07 | AZ132: 7.73249194e-07 | BA132: 7.848479319e-07 | BB132: 7.966206509e-07 | BC132: 8.085699607e-07 | BD132: 8.206985101e-07 | BE132: 8.330089877e-07 | BF132: 8.455041226e-07 | BG132: 8.581866844e-07 | BH132: 8.710594847e-07 | BI132: 8.841253769e-07 | BJ132: 8.973872576e-07 | BK132: 9.108480664e-07 | BL132: 9.245107874e-07 | BM132: 9.383784493e-07 | BN132: 9.52454126e-07 | BO132: 9.667409379e-07 | BP132: 9.81242052e-07 | BQ132: 9.959606827e-07 | BR132: 1.010900093e-06 | BS132: 1.026063594e-06 | BT132: 1.041454548e-06 | BU132: 1.057076367e-06 | BV132: 1.072932512e-06 | BW132: 1.0890265e-06 | BX132: =BX129+BX130-BX131 -> 1.105361897e-06 | BY132: 1.121942326e-06 | BZ132: 1.138771461e-06 | CA132: 1.155853032e-06 | CB132: 1.173190828e-06
D133: Interest Cost | F133: =G114 -> 0.015 | H133: USD | K133: =K129*$F$133 -> 0 | L133: =L129*$F$133 -> 2389404.303 | M133: 2378089.736 | N133: 2360405.679 | O133: 2342097.911 | P133: 2321494.963 | Q133: 2300082.149 | R133: 2276234.045 | S133: 2251194.649 | T133: 2223842.852 | U133: 2195563.276 | V133: 2164545.04 | W133: 2132484.062 | X133: 2097520.449 | Y133: 2061426.86 | Z133: 2022257.884 | AA133: 1981497.749 | AB133: 1937803.666 | AC133: 1892828.165 | AD133: 1844403.534 | AE133: 1794554.465 | AF133: 1741054.405 | AG133: 1686019.901 | AH133: 1627121.843 | AI133: 1566131.908 | AJ133: 1501441.35 | AK133: 1435023.357 | AL133: 1364282.265 | AM133: 1291636.359 | AN133: 1214419.315 | AO133: 1135159.412 | AP133: 1051067.292 | AQ133: 964258.7299 | AR133: 872805.8158 | AS133: 779065.6921 | AT133: 679929.2766 | AU133: 578286.2537 | AV133: 470942.6577 | AW133: 360919.9447 | AX133: 244876.5036 | AY133: 125340.205 | AZ133: 1.142732799e-08 | BA133: 1.159873791e-08 | BB133: 1.177271898e-08 | BC133: 1.194930976e-08 | BD133: 1.212854941e-08 | BE133: 1.231047765e-08 | BF133: 1.249513482e-08 | BG133: 1.268256184e-08 | BH133: 1.287280027e-08 | BI133: 1.306589227e-08 | BJ133: 1.326188065e-08 | BK133: 1.346080886e-08 | BL133: 1.3662721e-08 | BM133: 1.386766181e-08 | BN133: 1.407567674e-08 | BO133: 1.428681189e-08 | BP133: 1.450111407e-08 | BQ133: 1.471863078e-08 | BR133: 1.493941024e-08 | BS133: 1.516350139e-08 | BT133: 1.539095392e-08 | BU133: 1.562181822e-08 | BV133: 1.58561455e-08 | BW133: 1.609398768e-08 | BX133: =BX129*$F$133 -> 1.63353975e-08 | BY133: 1.658042846e-08 | BZ133: 1.682913488e-08 | CA133: 1.708157191e-08 | CB133: 1.733779549e-08
D134: Fees on Debt | F134: =InputC!$G$55 -> 0 | H134: Fixed Fee | I134: =SUM(K134:XFD134) -> 0 | K134: =$G$134*K5 -> 0 | L134: 0 | M134: 0 | N134: 0 | O134: 0 | P134: 0 | Q134: 0 | R134: 0 | S134: 0 | T134: 0 | U134: 0 | V134: 0 | W134: 0 | X134: 0 | Y134: 0 | Z134: 0 | AA134: 0 | AB134: 0 | AC134: 0 | AD134: 0 | AE134: 0 | AF134: 0 | AG134: 0 | AH134: 0 | AI134: 0 | AJ134: 0 | AK134: 0 | AL134: 0 | AM134: 0 | AN134: 0 | AO134: 0 | AP134: 0 | AQ134: =$G$134*AQ5 -> 0 | AR134: 0 | AS134: 0 | AT134: 0 | AU134: 0 | AV134: 0 | AW134: 0 | AX134: 0 | AY134: 0 | AZ134: 0 | BA134: 0 | BB134: 0 | BC134: 0 | BD134: 0 | BE134: 0 | BF134: 0 | BG134: 0 | BH134: 0 | BI134: 0 | BJ134: 0 | BK134: 0 | BL134: 0 | BM134: 0 | BN134: 0 | BO134: 0 | BP134: 0 | BQ134: 0 | BR134: 0 | BS134: 0 | BT134: 0 | BU134: 0 | BV134: 0 | BW134: =$G$134*BW5 -> 0 | BX134: 0 | BY134: 0 | BZ134: 0 | CA134: 0 | CB134: 0
D135: Computed Fees | F135: =InputC!$G$55 -> 0 | G135: =F135*F126 -> 0 | H135: Computed Fee
G136: =G135-G134 -> 0 | H136: Fee Dif
D137: Check of Closing Balance
C139: Uses and Sources
D140: Capital Expenditures | H140: USD | K140: =K72 -> 216629231 | L140: 0 | M140: 0 | N140: 0 | O140: 0 | P140: 0 | Q140: 0 | R140: 0 | S140: 0 | T140: 0 | U140: 0 | V140: 0 | W140: 0 | X140: 0 | Y140: 0 | Z140: 0 | AA140: 0 | AB140: 0 | AC140: 0 | AD140: 0 | AE140: 0 | AF140: 0 | AG140: 0 | AH140: 0 | AI140: 0 | AJ140: 0 | AK140: 0 | AL140: 0 | AM140: 0 | AN140: 0 | AO140: 0 | AP140: 0 | AQ140: =AQ72 -> 0 | AR140: 0 | AS140: 0 | AT140: 0 | AU140: 0 | AV140: 0 | AW140: 0 | AX140: 0 | AY140: 0 | AZ140: 0 | BA140: 0 | BB140: 0 | BC140: 0 | BD140: 0 | BE140: 0 | BF140: 0 | BG140: 0 | BH140: 0 | BI140: 0 | BJ140: 0 | BK140: 0 | BL140: 0 | BM140: 0 | BN140: 0 | BO140: 0 | BP140: 0 | BQ140: 0 | BR140: 0 | BS140: 0 | BT140: 0 | BU140: 0 | BV140: 0 | BW140: =BW72 -> 0 | BX140: 0 | BY140: 0 | BZ140: 0 | CA140: 0 | CB140: 0
D141: Fees on Debt | H141: USD | K141: =K134 -> 0 | L141: =L134 -> 0 | M141: 0 | N141: 0 | O141: 0 | P141: 0 | Q141: 0 | R141: 0 | S141: 0 | T141: 0 | U141: 0 | V141: 0 | W141: 0 | X141: 0 | Y141: 0 | Z141: 0 | AA141: 0 | AB141: 0 | AC141: 0 | AD141: 0 | AE141: 0 | AF141: 0 | AG141: 0 | AH141: 0 | AI141: 0 | AJ141: 0 | AK141: 0 | AL141: 0 | AM141: 0 | AN141: 0 | AO141: 0 | AP141: 0 | AQ141: 0 | AR141: 0 | AS141: 0 | AT141: 0 | AU141: 0 | AV141: 0 | AW141: 0 | AX141: 0 | AY141: 0 | AZ141: 0 | BA141: 0 | BB141: 0 | BC141: 0 | BD141: 0 | BE141: 0 | BF141: 0 | BG141: 0 | BH141: 0 | BI141: 0 | BJ141: 0 | BK141: 0 | BL141: 0 | BM141: 0 | BN141: 0 | BO141: 0 | BP141: 0 | BQ141: 0 | BR141: 0 | BS141: 0 | BT141: 0 | BU141: 0 | BV141: 0 | BW141: 0 | BX141: =BX134 -> 0 | BY141: 0 | BZ141: 0 | CA141: 0 | CB141: 0
D142: Total Uses | H142: USD | K142: =SUM(K140:K141) -> 216629231 | L142: =SUM(L140:L141) -> 0 | M142: 0 | N142: 0 | O142: 0 | P142: 0 | Q142: 0 | R142: 0 | S142: 0 | T142: 0 | U142: 0 | V142: 0 | W142: 0 | X142: 0 | Y142: 0 | Z142: 0 | AA142: 0 | AB142: 0 | AC142: 0 | AD142: 0 | AE142: 0 | AF142: 0 | AG142: 0 | AH142: 0 | AI142: 0 | AJ142: 0 | AK142: 0 | AL142: 0 | AM142: 0 | AN142: 0 | AO142: 0 | AP142: 0 | AQ142: 0 | AR142: 0 | AS142: 0 | AT142: 0 | AU142: 0 | AV142: 0 | AW142: 0 | AX142: 0 | AY142: 0 | AZ142: 0 | BA142: 0 | BB142: 0 | BC142: 0 | BD142: 0 | BE142: 0 | BF142: 0 | BG142: 0 | BH142: 0 | BI142: 0 | BJ142: 0 | BK142: 0 | BL142: 0 | BM142: 0 | BN142: 0 | BO142: 0 | BP142: 0 | BQ142: 0 | BR142: 0 | BS142: 0 | BT142: 0 | BU142: 0 | BV142: 0 | BW142: 0 | BX142: =SUM(BX140:BX141) -> 0 | BY142: 0 | BZ142: 0 | CA142: 0 | CB142: 0
D144: Debt Issued | H144: USD | J144: =K144/K142 -> 0.7353283741 | K144: =K130 -> 159293620.2 | L144: =L130 -> 0 | M144: 0 | N144: 0 | O144: 0 | P144: 0 | Q144: 0 | R144: 0 | S144: 0 | T144: 0 | U144: 0 | V144: 0 | W144: 0 | X144: 0 | Y144: 0 | Z144: 0 | AA144: 0 | AB144: 0 | AC144: 0 | AD144: 0 | AE144: 0 | AF144: 0 | AG144: 0 | AH144: 0 | AI144: 0 | AJ144: 0 | AK144: 0 | AL144: 0 | AM144: 0 | AN144: 0 | AO144: 0 | AP144: 0 | AQ144: 0 | AR144: 0 | AS144: 0 | AT144: 0 | AU144: 0 | AV144: 0 | AW144: 0 | AX144: 0 | AY144: 0 | AZ144: 0 | BA144: 0 | BB144: 0 | BC144: 0 | BD144: 0 | BE144: 0 | BF144: 0 | BG144: 0 | BH144: 0 | BI144: 0 | BJ144: 0 | BK144: 0 | BL144: 0 | BM144: 0 | BN144: 0 | BO144: 0 | BP144: 0 | BQ144: 0 | BR144: 0 | BS144: 0 | BT144: 0 | BU144: 0 | BV144: 0 | BW144: 0 | BX144: =BX130 -> 0 | BY144: 0 | BZ144: 0 | CA144: 0 | CB144: 0
D145: Equity Issued | H145: USD | J145: =K145/K142 -> 0.2646716259 | K145: =K142-K144 -> 57335610.78 | L145: =L142-L144 -> 0 | M145: 0 | N145: 0 | O145: 0 | P145: 0 | Q145: 0 | R145: 0 | S145: 0 | T145: 0 | U145: 0 | V145: 0 | W145: 0 | X145: 0 | Y145: 0 | Z145: 0 | AA145: 0 | AB145: 0 | AC145: 0 | AD145: 0 | AE145: 0 | AF145: 0 | AG145: 0 | AH145: 0 | AI145: 0 | AJ145: 0 | AK145: 0 | AL145: 0 | AM145: 0 | AN145: 0 | AO145: 0 | AP145: 0 | AQ145: 0 | AR145: 0 | AS145: 0 | AT145: 0 | AU145: 0 | AV145: 0 | AW145: 0 | AX145: 0 | AY145: 0 | AZ145: 0 | BA145: 0 | BB145: 0 | BC145: 0 | BD145: 0 | BE145: 0 | BF145: 0 | BG145: 0 | BH145: 0 | BI145: 0 | BJ145: 0 | BK145: 0 | BL145: 0 | BM145: 0 | BN145: 0 | BO145: 0 | BP145: 0 | BQ145: 0 | BR145: 0 | BS145: 0 | BT145: 0 | BU145: 0 | BV145: 0 | BW145: 0 | BX145: =BX142-BX144 -> 0 | BY145: 0 | BZ145: 0 | CA145: 0 | CB145: 0
D146: Total Sources | H146: USD | J146: =K146/K142 -> 1 | K146: =SUM(K144:K145) -> 216629231 | L146: =SUM(L144:L145) -> 0 | M146: 0 | N146: 0 | O146: 0 | P146: 0 | Q146: 0 | R146: 0 | S146: 0 | T146: 0 | U146: 0 | V146: 0 | W146: 0 | X146: 0 | Y146: 0 | Z146: 0 | AA146: 0 | AB146: 0 | AC146: 0 | AD146: 0 | AE146: 0 | AF146: 0 | AG146: 0 | AH146: 0 | AI146: 0 | AJ146: 0 | AK146: 0 | AL146: 0 | AM146: 0 | AN146: 0 | AO146: 0 | AP146: 0 | AQ146: 0 | AR146: 0 | AS146: 0 | AT146: 0 | AU146: 0 | AV146: 0 | AW146: 0 | AX146: 0 | AY146: 0 | AZ146: 0 | BA146: 0 | BB146: 0 | BC146: 0 | BD146: 0 | BE146: 0 | BF146: 0 | BG146: 0 | BH146: 0 | BI146: 0 | BJ146: 0 | BK146: 0 | BL146: 0 | BM146: 0 | BN146: 0 | BO146: 0 | BP146: 0 | BQ146: 0 | BR146: 0 | BS146: 0 | BT146: 0 | BU146: 0 | BV146: 0 | BW146: 0 | BX146: =SUM(BX144:BX145) -> 0 | BY146: 0 | BZ146: 0 | CA146: 0 | CB146: 0
B148: Cash Flow Waterfall
C150: Equity Cash Flow
D151: CFADS | H151: USD | K151: =K108 -> 0 | L151: 4244006.849 | M151: 4801986.301 | N151: 4834246.772 | O151: 5016097.518 | P151: 5061171.403 | Q151: 5251440.329 | R151: 5326461.598 | S151: 5500774.514 | T151: 5547349.652 | U151: 5755651.657 | V151: 5807623.85 | W151: 6025578.631 | X151: 6080075.625 | Y151: 6308134.102 | Z151: 6398460.249 | AA151: 6607489.43 | AB151: 6663830.075 | AC151: 6913534.784 | AD151: 6976361.031 | AE151: 7237653.898 | AF151: 7303528.787 | AG151: 7576952.079 | AH151: 7685708.689 | AI151: 7936428.25 | AJ151: 8004565.209 | AK151: 8303979.849 | AL151: 8379912.559 | AM151: 8693243.091 | AN151: 8772857.293 | AO151: 9100756.039 | AP151: 9231711.433 | AQ151: =AQ108 -> 9532511.554 | AR151: 9614898.977 | AS151: 9974016.085 | AT151: 10065776.58 | AU151: 10441610.09 | AV151: 10537816.76 | AW151: 10931151.62 | AX151: 11088850.16 | AY151: 11449827.73 | AZ151: 11549431.88 | BA151: 11980274.98 | BB151: 12091151.73 | BC151: 12542081.58 | BD151: 12658328.66 | BE151: 13130290.12 | BF151: 13320213.37 | BG151: 13753522.9 | BH151: 13873929.66 | BI151: 14390970.57 | BJ151: 1452205.178 | BK151: 0 | BL151: 0 | BM151: 0 | BN151: 0 | BO151: 0 | BP151: 0 | BQ151: 0 | BR151: 0 | BS151: 0 | BT151: 0 | BU151: 0 | BV151: 0 | BW151: =BW108 -> 0 | BX151: 0 | BY151: 0 | BZ151: 0 | CA151: 0 | CB151: 0
D152: Less: Debt Servcice | H152: USD | K152: =K133+K131 -> 0 | L152: 3143708.777 | M152: 3557026.89 | N152: 3580923.535 | O152: 3715627.791 | P152: 3749015.854 | Q152: 3889955.799 | R152: 3945527.11 | S152: 4074647.788 | T152: 4109147.891 | U152: 4263445.672 | V152: 4301943.593 | W152: 4463391.579 | X152: 4503759.722 | Y152: 4672691.927 | Z152: 4739600.184 | AA152: 4894436.615 | AB152: 4936170.426 | AC152: 5121136.877 | AD152: 5167674.837 | AE152: 5361225.11 | AF152: 5410021.324 | AG152: 5612557.096 | AH152: 5693117.548 | AI152: 5878835.741 | AJ152: 5929307.562 | AK152: 6151096.185 | AL152: 6207342.636 | AM152: 6439439.327 | AN152: 6498412.81 | AO152: 6741300.769 | AP152: 6838304.765 | AQ152: =AQ133+AQ131 -> 7061119.669 | AR152: 7122147.39 | AS152: 7388160.063 | AT152: 7456130.8 | AU152: 7734525.989 | AV152: 7805790.191 | AW152: 8097149.348 | AX152: 8213963.078 | AY152: 8481353.873 | AZ152: 0 | BA152: 0 | BB152: 0 | BC152: 0 | BD152: 0 | BE152: 0 | BF152: 0 | BG152: 0 | BH152: 0 | BI152: 0 | BJ152: 0 | BK152: 0 | BL152: 0 | BM152: 0 | BN152: 0 | BO152: 0 | BP152: 0 | BQ152: 0 | BR152: 0 | BS152: 0 | BT152: 0 | BU152: 0 | BV152: 0 | BW152: =BW133+BW131 -> 0 | BX152: 0 | BY152: 0 | BZ152: 0 | CA152: 0 | CB152: 0
D153: Cash to Equity | H153: USD | K153: =K151-K152 -> 0 | L153: =L151-L152 -> 1100298.072 | M153: 1244959.411 | N153: 1253323.237 | O153: 1300469.727 | P153: 1312155.549 | Q153: 1361484.53 | R153: 1380934.488 | S153: 1426126.726 | T153: 1438201.762 | U153: 1492205.985 | V153: 1505680.257 | W153: 1562187.053 | X153: 1576315.903 | Y153: 1635442.175 | Z153: 1658860.064 | AA153: 1713052.815 | AB153: 1727659.649 | AC153: 1792397.907 | AD153: 1808686.193 | AE153: 1876428.788 | AF153: 1893507.463 | AG153: 1964394.984 | AH153: 1992591.142 | AI153: 2057592.509 | AJ153: 2075257.647 | AK153: 2152883.665 | AL153: 2172569.923 | AM153: 2253803.764 | AN153: 2274444.483 | AO153: 2359455.269 | AP153: 2393406.668 | AQ153: 2471391.884 | AR153: 2492751.587 | AS153: 2585856.022 | AT153: 2609645.78 | AU153: 2707084.096 | AV153: 2732026.567 | AW153: 2834002.272 | AX153: 2874887.077 | AY153: 2968473.856 | AZ153: 11549431.88 | BA153: 11980274.98 | BB153: 12091151.73 | BC153: 12542081.58 | BD153: 12658328.66 | BE153: 13130290.12 | BF153: 13320213.37 | BG153: 13753522.9 | BH153: 13873929.66 | BI153: 14390970.57 | BJ153: 1452205.178 | BK153: 0 | BL153: 0 | BM153: 0 | BN153: 0 | BO153: 0 | BP153: 0 | BQ153: 0 | BR153: 0 | BS153: 0 | BT153: 0 | BU153: 0 | BV153: 0 | BW153: 0 | BX153: =BX151-BX152 -> 0 | BY153: 0 | BZ153: 0 | CA153: 0 | CB153: 0
D155: Total Expenditure | K155: =K32 -> 216629231
D156: Less: Debt | F156: =F130 -> 159293620.2 | K156: =$F$156*K5 -> 159293620.2 | L156: 0 | M156: 0 | N156: 0 | O156: 0 | P156: 0 | Q156: 0 | R156: 0 | S156: 0 | T156: 0 | U156: 0 | V156: 0 | W156: 0 | X156: 0 | Y156: 0 | Z156: 0 | AA156: 0 | AB156: 0 | AC156: 0 | AD156: 0 | AE156: 0 | AF156: 0 | AG156: 0 | AH156: 0 | AI156: 0 | AJ156: 0 | AK156: 0 | AL156: 0 | AM156: 0 | AN156: 0 | AO156: 0 | AP156: 0 | AQ156: =$F$156*AQ5 -> 0 | AR156: 0 | AS156: 0 | AT156: 0 | AU156: 0 | AV156: 0 | AW156: 0 | AX156: 0 | AY156: 0 | AZ156: 0 | BA156: 0 | BB156: 0 | BC156: 0 | BD156: 0 | BE156: 0 | BF156: 0 | BG156: 0 | BH156: 0 | BI156: 0 | BJ156: 0 | BK156: 0 | BL156: 0 | BM156: 0 | BN156: 0 | BO156: 0 | BP156: 0 | BQ156: 0 | BR156: 0 | BS156: 0 | BT156: 0 | BU156: 0 | BV156: 0 | BW156: =$F$156*BW5 -> 0 | BX156: 0 | BY156: 0 | BZ156: 0 | CA156: 0 | CB156: 0
D157: Plus: Fees on Debt | F157: =InputC!G55 -> 0 | G157: =F157*F130 -> 0 | K157: =$G$157*K5 -> 0 | L157: 0 | M157: 0 | N157: 0 | O157: 0 | P157: 0 | Q157: 0 | R157: 0 | S157: 0 | T157: 0 | U157: 0 | V157: 0 | W157: 0 | X157: 0 | Y157: 0 | Z157: 0 | AA157: 0 | AB157: 0 | AC157: 0 | AD157: 0 | AE157: 0 | AF157: 0 | AG157: 0 | AH157: 0 | AI157: 0 | AJ157: 0 | AK157: 0 | AL157: 0 | AM157: 0 | AN157: 0 | AO157: 0 | AP157: 0 | AQ157: =$G$157*AQ5 -> 0 | AR157: 0 | AS157: 0 | AT157: 0 | AU157: 0 | AV157: 0 | AW157: 0 | AX157: 0 | AY157: 0 | AZ157: 0 | BA157: 0 | BB157: 0 | BC157: 0 | BD157: 0 | BE157: 0 | BF157: 0 | BG157: 0 | BH157: 0 | BI157: 0 | BJ157: 0 | BK157: 0 | BL157: 0 | BM157: 0 | BN157: 0 | BO157: 0 | BP157: 0 | BQ157: 0 | BR157: 0 | BS157: 0 | BT157: 0 | BU157: 0 | BV157: 0 | BW157: =$G$157*BW5 -> 0 | BX157: 0 | BY157: 0 | BZ157: 0 | CA157: 0 | CB157: 0
D158: Net Equity Invested | K158: =K155-K156+K157 -> 57335610.78 | L158: =L155-L156+L157 -> 0 | M158: 0 | N158: 0 | O158: 0 | P158: 0 | Q158: 0 | R158: 0 | S158: 0 | T158: 0 | U158: 0 | V158: 0 | W158: 0 | X158: 0 | Y158: 0 | Z158: 0 | AA158: 0 | AB158: 0 | AC158: 0 | AD158: 0 | AE158: 0 | AF158: 0 | AG158: 0 | AH158: 0 | AI158: 0 | AJ158: 0 | AK158: 0 | AL158: 0 | AM158: 0 | AN158: 0 | AO158: 0 | AP158: 0 | AQ158: 0 | AR158: 0 | AS158: 0 | AT158: 0 | AU158: 0 | AV158: 0 | AW158: 0 | AX158: 0 | AY158: 0 | AZ158: 0 | BA158: 0 | BB158: 0 | BC158: 0 | BD158: 0 | BE158: 0 | BF158: 0 | BG158: 0 | BH158: 0 | BI158: 0 | BJ158: 0 | BK158: 0 | BL158: 0 | BM158: 0 | BN158: 0 | BO158: 0 | BP158: 0 | BQ158: 0 | BR158: 0 | BS158: 0 | BT158: 0 | BU158: 0 | BV158: 0 | BW158: 0 | BX158: =BX155-BX156+BX157 -> 0 | BY158: 0 | BZ158: 0 | CA158: 0 | CB158: 0
D160: Equity Cash Flow | K160: =K153-K158 -> -57335610.78 | L160: =L153-L158 -> 1100298.072 | M160: 1244959.411 | N160: 1253323.237 | O160: 1300469.727 | P160: 1312155.549 | Q160: 1361484.53 | R160: 1380934.488 | S160: 1426126.726 | T160: 1438201.762 | U160: 1492205.985 | V160: 1505680.257 | W160: 1562187.053 | X160: 1576315.903 | Y160: 1635442.175 | Z160: 1658860.064 | AA160: 1713052.815 | AB160: 1727659.649 | AC160: 1792397.907 | AD160: 1808686.193 | AE160: 1876428.788 | AF160: 1893507.463 | AG160: 1964394.984 | AH160: 1992591.142 | AI160: 2057592.509 | AJ160: 2075257.647 | AK160: 2152883.665 | AL160: 2172569.923 | AM160: 2253803.764 | AN160: 2274444.483 | AO160: 2359455.269 | AP160: 2393406.668 | AQ160: 2471391.884 | AR160: 2492751.587 | AS160: 2585856.022 | AT160: 2609645.78 | AU160: 2707084.096 | AV160: 2732026.567 | AW160: 2834002.272 | AX160: 2874887.077 | AY160: 2968473.856 | AZ160: 11549431.88 | BA160: 11980274.98 | BB160: 12091151.73 | BC160: 12542081.58 | BD160: 12658328.66 | BE160: 13130290.12 | BF160: 13320213.37 | BG160: 13753522.9 | BH160: 13873929.66 | BI160: 14390970.57 | BJ160: 1452205.178 | BK160: 0 | BL160: 0 | BM160: 0 | BN160: 0 | BO160: 0 | BP160: 0 | BQ160: 0 | BR160: 0 | BS160: 0 | BT160: 0 | BU160: 0 | BV160: 0 | BW160: 0 | BX160: =BX153-BX158 -> 0 | BY160: 0 | BZ160: 0 | CA160: 0 | CB160: 0
D161: Equity IRR | F161: =XIRR(K160:CB160,K4:CB4) -> 0.07999999821
D163: Target IRR | F163: =InputC!G57 -> 0.08
D164: NPV at Target IRR | F164: =XNPV(F163,K160:CB160,K4:CB4) -> -7.799826562e-09 | G164: NPV
B166: Valuation with Sale
D167: Discount Rate for Valuation
D168: NPV of Prospective Cash Flow
D170: Sale Date Flag
D171: Holding Company Flag
D173: Cash Flow Over Holding Period
D174: IRR over Holding Period
D176: NPV of Cash Flow at Target IRR

Sheet UDFInputs
A1: =RIGHT(CELL("filename", A1), LEN(CELL("filename", A1)) - SEARCH("]", CELL("filename", A1))) -> UDFInputs | F1: Run Macor By Cangning h th number --> | G1: 12
E2: Case Sensitive Variable Name in UDF | G2: Input | J2: 0 | K2: 1 | L2: 2 | M2: 3 | N2: 4 | O2: 5 | P2: 6 | Q2: 7 | R2: 8 | S2: 9 | T2: 10 | U2: 11 | V2: 12 | W2: 13 | X2: 14 | Y2: 15 | Z2: 16 | AA2: 17 | AB2: 18 | AC2: 19 | AD2: 20 | AE2: 21 | AF2: 22 | AG2: 23 | AH2: 24 | AI2: 25 | AJ2: 26 | AK2: 27 | AL2: 28 | AM2: 29 | AN2: 30 | AO2: 31 | AP2: 32 | AQ2: 33 | AR2: 34 | AS2: 35 | AT2: 36 | AU2: 37 | AV2: 38 | AW2: 39 | AX2: 40 | AY2: 41 | AZ2: 42 | BA2: 43 | BB2: 44 | BC2: 45 | BD2: 46 | BE2: 47 | BF2: 48 | BG2: 49 | BH2: 50 | BI2: 51 | BJ2: 52 | BK2: 53 | BL2: 54 | BM2: 55 | BN2: 56 | BO2: 57 | BP2: 58 | BQ2: 59 | BR2: 60 | BS2: 61 | BT2: 62 | BU2: 63 | BV2: 64 | BW2: 65 | BX2: 66 | BY2: 67 | BZ2: 68 | CA2: 69 | CB2: 70 | CC2: 71 | CD2: 72 | CE2: 73 | CF2: 74 | CG2: 75 | CH2: 76 | CI2: 77 | CJ2: 78 | CK2: 79 | CL2: 80 | CM2: 81 | CN2: 82 | CO2: 83 | CP2: 84 | CQ2: 85 | CR2: 86 | CS2: 87 | CT2: 88 | CU2: 89 | CV2: 90 | CW2: 91 | CX2: 92 | CY2: 93 | CZ2: 94 | DA2: 95 | DB2: 96 | DC2: 97 | DD2: 98 | DE2: 99 | DF2: 100 | DG2: 101 | DH2: 102 | DI2: 103 | DJ2: 104 | DK2: 105 | DL2: 106 | DM2: 107 | DN2: 108 | DO2: 109 | DP2: 110 | DQ2: 111 | DR2: 112 | DS2: 113 | DT2: 114 | DU2: 115 | DV2: 116 | DW2: 117 | DX2: 118 | DY2: 119 | DZ2: 120 | EA2: 121 | EB2: 122 | EC2: 123 | ED2: 124 | EE2: 0 | EF2: 0 | EG2: 0 | EH2: 0 | EI2: 0 | EJ2: 0 | EK2: 0 | EL2: 0 | EM2: 0 | EN2: 0 | EO2: 0 | EP2: 0 | EQ2: 0 | ER2: 0 | ES2: 0 | ET2: 0 | EU2: 0 | EV2: 0 | EW2: 0 | EX2: 0 | EY2: 0 | EZ2: 0 | FA2: 0 | FB2: 0 | FC2: 0 | FD2: 0 | FE2: 0 | FF2: 0 | FG2: 0 | FH2: 0 | FI2: 0 | FJ2: 0 | FK2: 0 | FL2: 0 | FM2: 0 | FN2: 0 | FO2: 0 | FP2: 0 | FQ2: 0 | FR2: 0 | FS2: 0 | FT2: 0 | FU2: 0 | FV2: 0 | FW2: 0 | FX2: 0 | FY2: 0 | FZ2: 0 | GA2: 0 | GB2: 0 | GC2: 0 | GD2: 0 | GE2: 0 | GF2: 0 | GG2: 0 | GH2: 0 | GI2: 0 | GJ2: 0 | GK2: 0 | GL2: 0
E3: (Corresponds to program) | F3: Labels - You can Name this Yourself | G3: Type | H3: Constant | I3: Units | J3: ='Model - Structuring'!K4 -> 2024-12-31 | K3: ='Model - Structuring'!L4 -> 2025-06-30 | L3: ='Model - Structuring'!M4 -> 2025-12-31 | M3: ='Model - Structuring'!N4 -> 2026-06-30 | N3: ='Model - Structuring'!O4 -> 2026-12-31 | O3: ='Model - Structuring'!P4 -> 2027-06-30 | P3: ='Model - Structuring'!Q4 -> 2027-12-31 | Q3: ='Model - Structuring'!R4 -> 2028-06-30 | R3: ='Model - Structuring'!S4 -> 2028-12-31 | S3: ='Model - Structuring'!T4 -> 2029-06-30 | T3: ='Model - Structuring'!U4 -> 2029-12-31 | U3: ='Model - Structuring'!V4 -> 2030-06-30 | V3: ='Model - Structuring'!W4 -> 2030-12-31 | W3: ='Model - Structuring'!X4 -> 2031-06-30 | X3: ='Model - Structuring'!Y4 -> 2031-12-31 | Y3: ='Model - Structuring'!Z4 -> 2032-06-30 | Z3: ='Model - Structuring'!AA4 -> 2032-12-31 | AA3: ='Model - Structuring'!AB4 -> 2033-06-30 | AB3: ='Model - Structuring'!AC4 -> 2033-12-31 | AC3: ='Model - Structuring'!AD4 -> 2034-06-30 | AD3: ='Model - Structuring'!AE4 -> 2034-12-31 | AE3: ='Model - Structuring'!AF4 -> 2035-06-30 | AF3: ='Model - Structuring'!AG4 -> 2035-12-31 | AG3: ='Model - Structuring'!AH4 -> 2036-06-30 | AH3: ='Model - Structuring'!AI4 -> 2036-12-31 | AI3: ='Model - Structuring'!AJ4 -> 2037-06-30 | AJ3: ='Model - Structuring'!AK4 -> 2037-12-31 | AK3: ='Model - Structuring'!AL4 -> 2038-06-30 | AL3: ='Model - Structuring'!AM4 -> 2038-12-31 | AM3: ='Model - Structuring'!AN4 -> 2039-06-30 | AN3: ='Model - Structuring'!AO4 -> 2039-12-31 | AO3: ='Model - Structuring'!AP4 -> 2040-06-30 | AP3: ='Model - Structuring'!AQ4 -> 2040-12-31 | AQ3: ='Model - Structuring'!AR4 -> 2041-06-30 | AR3: ='Model - Structuring'!AS4 -> 2041-12-31 | AS3: ='Model - Structuring'!AT4 -> 2042-06-30 | AT3: ='Model - Structuring'!AU4 -> 2042-12-31 | AU3: ='Model - Structuring'!AV4 -> 2043-06-30 | AV3: ='Model - Structuring'!AW4 -> 2043-12-31 | AW3: ='Model - Structuring'!AX4 -> 2044-06-30 | AX3: ='Model - Structuring'!AY4 -> 2044-12-31 | AY3: ='Model - Structuring'!AZ4 -> 2045-06-30 | AZ3: ='Model - Structuring'!BA4 -> 2045-12-31 | BA3: ='Model - Structuring'!BB4 -> 2046-06-30 | BB3: ='Model - Structuring'!BC4 -> 2046-12-31 | BC3: ='Model - Structuring'!BD4 -> 2047-06-30 | BD3: ='Model - Structuring'!BE4 -> 2047-12-31 | BE3: ='Model - Structuring'!BF4 -> 2048-06-30 | BF3: ='Model - Structuring'!BG4 -> 2048-12-31 | BG3: ='Model - Structuring'!BH4 -> 2049-06-30 | BH3: ='Model - Structuring'!BI4 -> 2049-12-31 | BI3: ='Model - Structuring'!BJ4 -> 2050-06-30 | BJ3: ='Model - Structuring'!BK4 -> 2050-12-31 | BK3: ='Model - Structuring'!BL4 -> 2051-06-30 | BL3: ='Model - Structuring'!BM4 -> 2051-12-31 | BM3: ='Model - Structuring'!BN4 -> 2052-06-30 | BN3: ='Model - Structuring'!BO4 -> 2052-12-31 | BO3: ='Model - Structuring'!BP4 -> 2053-06-30 | BP3: ='Model - Structuring'!BQ4 -> 2053-12-31 | BQ3: ='Model - Structuring'!BR4 -> 2054-06-30 | BR3: ='Model - Structuring'!BS4 -> 2054-12-31 | BS3: ='Model - Structuring'!BT4 -> 2055-06-30 | BT3: ='Model - Structuring'!BU4 -> 2055-12-31 | BU3: ='Model - Structuring'!BV4 -> 2056-06-30 | BV3: ='Model - Structuring'!BW4 -> 2056-12-31 | BW3: ='Model - Structuring'!BX4 -> 2057-06-30 | BX3: ='Model - Structuring'!BY4 -> 2057-12-31 | BY3: ='Model - Structuring'!BZ4 -> 2058-06-30 | BZ3: ='Model - Structuring'!CA4 -> 2058-12-31 | CA3: ='Model - Structuring'!CB4 -> 2059-06-30 | CB3: ='Model - Structuring'!CC4 -> 00:00:00 | CC3: ='Model - Structuring'!CD4 -> 00:00:00 | CD3: ='Model - Structuring'!CE4 -> 00:00:00 | CE3: ='Model - Structuring'!CF4 -> 00:00:00 | CF3: ='Model - Structuring'!CG4 -> 00:00:00 | CG3: ='Model - Structuring'!CH4 -> 00:00:00 | CH3: ='Model - Structuring'!CI4 -> 00:00:00 | CI3: ='Model - Structuring'!CJ4 -> 00:00:00 | CJ3: ='Model - Structuring'!CK4 -> 00:00:00 | CK3: ='Model - Structuring'!CL4 -> 00:00:00 | CL3: ='Model - Structuring'!CM4 -> 00:00:00 | CM3: ='Model - Structuring'!CN4 -> 00:00:00 | CN3: ='Model - Structuring'!CO4 -> 00:00:00 | CO3: ='Model - Structuring'!CP4 -> 00:00:00 | CP3: ='Model - Structuring'!CQ4 -> 00:00:00 | CQ3: ='Model - Structuring'!CR4 -> 00:00:00 | CR3: ='Model - Structuring'!CS4 -> 00:00:00 | CS3: ='Model - Structuring'!CT4 -> 00:00:00 | CT3: ='Model - Structuring'!CU4 -> 00:00:00 | CU3: ='Model - Structuring'!CV4 -> 00:00:00 | CV3: ='Model - Structuring'!CW4 -> 00:00:00 | CW3: ='Model - Structuring'!CX4 -> 00:00:00 | CX3: ='Model - Structuring'!CY4 -> 00:00:00 | CY3: ='Model - Structuring'!CZ4 -> 00:00:00 | CZ3: ='Model - Structuring'!DA4 -> 00:00:00 | DA3: ='Model - Structuring'!DB4 -> 00:00:00 | DB3: ='Model - Structuring'!DC4 -> 00:00:00 | DC3: ='Model - Structuring'!DD4 -> 00:00:00 | DD3: ='Model - Structuring'!DE4 -> 00:00:00 | DE3: ='Model - Structuring'!DF4 -> 00:00:00 | DF3: ='Model - Structuring'!DG4 -> 00:00:00 | DG3: ='Model - Structuring'!DH4 -> 00:00:00 | DH3: ='Model - Structuring'!DI4 -> 00:00:00 | DI3: ='Model - Structuring'!DJ4 -> 00:00:00 | DJ3: ='Model - Structuring'!DK4 -> 00:00:00 | DK3: ='Model - Structuring'!DL4 -> 00:00:00 | DL3: ='Model - Structuring'!DM4 -> 00:00:00 | DM3: ='Model - Structuring'!DN4 -> 00:00:00 | DN3: ='Model - Structuring'!DO4 -> 00:00:00 | DO3: ='Model - Structuring'!DP4 -> 00:00:00 | DP3: ='Model - Structuring'!DQ4 -> 00:00:00 | DQ3: ='Model - Structuring'!DR4 -> 00:00:00 | DR3: ='Model - Structuring'!DS4 -> 00:00:00 | DS3: ='Model - Structuring'!DT4 -> 00:00:00 | DT3: ='Model - Structuring'!DU4 -> 00:00:00 | DU3: ='Model - Structuring'!DV4 -> 00:00:00 | DV3: ='Model - Structuring'!DW4 -> 00:00:00 | DW3: ='Model - Structuring'!DX4 -> 00:00:00 | DX3: ='Model - Structuring'!DY4 -> 00:00:00 | DY3: ='Model - Structuring'!DZ4 -> 00:00:00 | DZ3: ='Model - Structuring'!EA4 -> 00:00:00 | EA3: ='Model - Structuring'!EB4 -> 00:00:00 | EB3: ='Model - Structuring'!EC4 -> 00:00:00 | EC3: ='Model - Structuring'!ED4 -> 00:00:00 | ED3: ='Model - Structuring'!EE4 -> 00:00:00 | EE3: ='Model - Structuring'!EF4 -> 00:00:00 | EF3: ='Model - Structuring'!EG4 -> 00:00:00 | EG3: ='Model - Structuring'!EH4 -> 00:00:00 | EH3: ='Model - Structuring'!EI4 -> 00:00:00 | EI3: ='Model - Structuring'!EJ4 -> 00:00:00 | EJ3: ='Model - Structuring'!EK4 -> 00:00:00 | EK3: ='Model - Structuring'!EL4 -> 00:00:00 | EL3: ='Model - Structuring'!EM4 -> 00:00:00 | EM3: ='Model - Structuring'!EN4 -> 00:00:00 | EN3: ='Model - Structuring'!EO4 -> 00:00:00 | EO3: ='Model - Structuring'!EP4 -> 00:00:00 | EP3: ='Model - Structuring'!EQ4 -> 00:00:00 | EQ3: ='Model - Structuring'!ER4 -> 00:00:00 | ER3: ='Model - Structuring'!ES4 -> 00:00:00 | ES3: ='Model - Structuring'!ET4 -> 00:00:00 | ET3: ='Model - Structuring'!EU4 -> 00:00:00 | EU3: ='Model - Structuring'!EV4 -> 00:00:00 | EV3: ='Model - Structuring'!EW4 -> 00:00:00 | EW3: ='Model - Structuring'!EX4 -> 00:00:00 | EX3: ='Model - Structuring'!EY4 -> 00:00:00 | EY3: ='Model - Structuring'!EZ4 -> 00:00:00 | EZ3: ='Model - Structuring'!FA4 -> 00:00:00 | FA3: ='Model - Structuring'!FB4 -> 00:00:00 | FB3: ='Model - Structuring'!FC4 -> 00:00:00 | FC3: ='Model - Structuring'!FD4 -> 00:00:00 | FD3: ='Model - Structuring'!FE4 -> 00:00:00 | FE3: ='Model - Structuring'!FF4 -> 00:00:00 | FF3: ='Model - Structuring'!FG4 -> 00:00:00 | FG3: ='Model - Structuring'!FH4 -> 00:00:00 | FH3: ='Model - Structuring'!FI4 -> 00:00:00 | FI3: ='Model - Structuring'!FJ4 -> 00:00:00 | FJ3: ='Model - Structuring'!FK4 -> 00:00:00 | FK3: ='Model - Structuring'!FL4 -> 00:00:00 | FL3: ='Model - Structuring'!FM4 -> 00:00:00 | FM3: ='Model - Structuring'!FN4 -> 00:00:00 | FN3: ='Model - Structuring'!FO4 -> 00:00:00 | FO3: ='Model - Structuring'!FP4 -> 00:00:00 | FP3: ='Model - Structuring'!FQ4 -> 00:00:00 | FQ3: ='Model - Structuring'!FR4 -> 00:00:00 | FR3: ='Model - Structuring'!FS4 -> 00:00:00 | FS3: ='Model - Structuring'!FT4 -> 00:00:00 | FT3: ='Model - Structuring'!FU4 -> 00:00:00 | FU3: ='Model - Structuring'!FV4 -> 00:00:00 | FV3: ='Model - Structuring'!FW4 -> 00:00:00 | FW3: ='Model - Structuring'!FX4 -> 00:00:00 | FX3: ='Model - Structuring'!FY4 -> 00:00:00 | FY3: ='Model - Structuring'!FZ4 -> 00:00:00 | FZ3: ='Model - Structuring'!GA4 -> 00:00:00 | GA3: ='Model - Structuring'!GB4 -> 00:00:00 | GB3: ='Model - Structuring'!GC4 -> 00:00:00 | GC3: ='Model - Structuring'!GD4 -> 00:00:00 | GD3: ='Model - Structuring'!GE4 -> 00:00:00 | GE3: ='Model - Structuring'!GF4 -> 00:00:00 | GF3: ='Model - Structuring'!GG4 -> 00:00:00 | GG3: ='Model - Structuring'!GH4 -> 00:00:00 | GH3: ='Model - Structuring'!GI4 -> 00:00:00 | GI3: ='Model - Structuring'!GJ4 -> 00:00:00 | GJ3: ='Model - Structuring'!GK4 -> 00:00:00 | GK3: ='Model - Structuring'!GL4 -> 00:00:00 | GL3: ='Model - Structuring'!GM4 -> 00:00:00
B4: Flags and Switches - Make Very Clear What Sections Will Be Calculated and Displayed
C5: Flags from The Model
E6: Development_Flag | F6: Development period flag ( Not TRUE/FALSE) | G6: InputS | I6: Flag | J6: 0 | K6: 0 | L6: 0 | M6: 0 | N6: 0 | O6: 0 | P6: 0 | Q6: 0 | R6: 0 | S6: 0 | T6: 0 | U6: 0 | V6: 0 | W6: 0 | X6: 0 | Y6: 0 | Z6: 0 | AA6: 0 | AB6: 0 | AC6: 0 | AD6: 0 | AE6: 0 | AF6: 0 | AG6: 0 | AH6: 0 | AI6: 0 | AJ6: 0 | AK6: 0 | AL6: 0 | AM6: 0 | AN6: 0 | AO6: 0 | AP6: 0 | AQ6: 0 | AR6: 0 | AS6: 0 | AT6: 0 | AU6: 0 | AV6: 0 | AW6: 0 | AX6: 0 | AY6: 0 | AZ6: 0 | BA6: 0 | BB6: 0 | BC6: 0 | BD6: 0 | BE6: 0 | BF6: 0 | BG6: 0 | BH6: 0 | BI6: 0 | BJ6: 0 | BK6: 0 | BL6: 0 | BM6: 0 | BN6: 0 | BO6: 0 | BP6: 0 | BQ6: 0 | BR6: 0 | BS6: 0 | BT6: 0 | BU6: 0 | BV6: 0 | BW6: 0 | BX6: 0 | BY6: 0 | BZ6: 0 | CA6: 0 | CB6: 0 | CC6: 0 | CD6: 0 | CE6: 0 | CF6: 0 | CG6: 0 | CH6: 0 | CI6: 0 | CJ6: 0 | CK6: 0 | CL6: 0 | CM6: 0 | CN6: 0 | CO6: 0 | CP6: 0 | CQ6: 0 | CR6: 0 | CS6: 0 | CT6: 0 | CU6: 0 | CV6: 0 | CW6: 0 | CX6: 0 | CY6: 0 | CZ6: 0 | DA6: 0 | DB6: 0 | DC6: 0 | DD6: 0 | DE6: 0 | DF6: 0 | DG6: 0 | DH6: 0 | DI6: 0 | DJ6: 0 | DK6: 0 | DL6: 0 | DM6: 0 | DN6: 0 | DO6: 0 | DP6: 0 | DQ6: 0 | DR6: 0 | DS6: 0 | DT6: 0 | DU6: 0 | DV6: 0 | DW6: 0 | DX6: 0 | DY6: 0 | DZ6: 0 | EA6: 0 | EB6: 0 | EC6: 0 | ED6: 0 | EE6: 0 | EF6: 0 | EG6: 0 | EH6: 0 | EI6: 0 | EJ6: 0 | EK6: 0 | EL6: 0 | EM6: 0 | EN6: 0 | EO6: 0 | EP6: 0 | EQ6: 0 | ER6: 0 | ES6: 0 | ET6: 0 | EU6: 0 | EV6: 0 | EW6: 0 | EX6: 0 | EY6: 0 | EZ6: 0 | FA6: 0 | FB6: 0 | FC6: 0 | FD6: 0 | FE6: 0 | FF6: 0 | FG6: 0 | FH6: 0 | FI6: 0 | FJ6: 0 | FK6: 0 | FL6: 0 | FM6: 0 | FN6: 0 | FO6: 0 | FP6: 0 | FQ6: 0 | FR6: 0 | FS6: 0 | FT6: 0 | FU6: 0 | FV6: 0 | FW6: 0 | FX6: 0 | FY6: 0 | FZ6: 0 | GA6: 0 | GB6: 0 | GC6: 0 | GD6: 0 | GE6: 0 | GF6: 0 | GG6: 0 | GH6: 0 | GI6: 0 | GJ6: 0 | GK6: 0 | GL6: 0
E7: Construction_Flag | F7: Construction period flag (Not TRUE/FALSE) | G7: InputS | I7: Flag | J7: ='Model - Structuring'!K5 -> 1 | K7: ='Model - Structuring'!L5 -> 0 | L7: ='Model - Structuring'!M5 -> 0 | M7: ='Model - Structuring'!N5 -> 0 | N7: ='Model - Structuring'!O5 -> 0 | O7: ='Model - Structuring'!P5 -> 0 | P7: ='Model - Structuring'!Q5 -> 0 | Q7: ='Model - Structuring'!R5 -> 0 | R7: ='Model - Structuring'!S5 -> 0 | S7: ='Model - Structuring'!T5 -> 0 | T7: ='Model - Structuring'!U5 -> 0 | U7: ='Model - Structuring'!V5 -> 0 | V7: ='Model - Structuring'!W5 -> 0 | W7: ='Model - Structuring'!X5 -> 0 | X7: ='Model - Structuring'!Y5 -> 0 | Y7: ='Model - Structuring'!Z5 -> 0 | Z7: ='Model - Structuring'!AA5 -> 0 | AA7: ='Model - Structuring'!AB5 -> 0 | AB7: ='Model - Structuring'!AC5 -> 0 | AC7: ='Model - Structuring'!AD5 -> 0 | AD7: ='Model - Structuring'!AE5 -> 0 | AE7: ='Model - Structuring'!AF5 -> 0 | AF7: ='Model - Structuring'!AG5 -> 0 | AG7: ='Model - Structuring'!AH5 -> 0 | AH7: ='Model - Structuring'!AI5 -> 0 | AI7: ='Model - Structuring'!AJ5 -> 0 | AJ7: ='Model - Structuring'!AK5 -> 0 | AK7: ='Model - Structuring'!AL5 -> 0 | AL7: ='Model - Structuring'!AM5 -> 0 | AM7: ='Model - Structuring'!AN5 -> 0 | AN7: ='Model - Structuring'!AO5 -> 0 | AO7: ='Model - Structuring'!AP5 -> 0 | AP7: ='Model - Structuring'!AQ5 -> 0 | AQ7: ='Model - Structuring'!AR5 -> 0 | AR7: ='Model - Structuring'!AS5 -> 0 | AS7: ='Model - Structuring'!AT5 -> 0 | AT7: ='Model - Structuring'!AU5 -> 0 | AU7: ='Model - Structuring'!AV5 -> 0 | AV7: ='Model - Structuring'!AW5 -> 0 | AW7: ='Model - Structuring'!AX5 -> 0 | AX7: ='Model - Structuring'!AY5 -> 0 | AY7: ='Model - Structuring'!AZ5 -> 0 | AZ7: ='Model - Structuring'!BA5 -> 0 | BA7: ='Model - Structuring'!BB5 -> 0 | BB7: ='Model - Structuring'!BC5 -> 0 | BC7: ='Model - Structuring'!BD5 -> 0 | BD7: ='Model - Structuring'!BE5 -> 0 | BE7: ='Model - Structuring'!BF5 -> 0 | BF7: ='Model - Structuring'!BG5 -> 0 | BG7: ='Model - Structuring'!BH5 -> 0 | BH7: ='Model - Structuring'!BI5 -> 0 | BI7: ='Model - Structuring'!BJ5 -> 0 | BJ7: ='Model - Structuring'!BK5 -> 0 | BK7: ='Model - Structuring'!BL5 -> 0 | BL7: ='Model - Structuring'!BM5 -> 0 | BM7: ='Model - Structuring'!BN5 -> 0 | BN7: ='Model - Structuring'!BO5 -> 0 | BO7: ='Model - Structuring'!BP5 -> 0 | BP7: ='Model - Structuring'!BQ5 -> 0 | BQ7: ='Model - Structuring'!BR5 -> 0 | BR7: ='Model - Structuring'!BS5 -> 0 | BS7: ='Model - Structuring'!BT5 -> 0 | BT7: ='Model - Structuring'!BU5 -> 0 | BU7: ='Model - Structuring'!BV5 -> 0 | BV7: ='Model - Structuring'!BW5 -> 0 | BW7: ='Model - Structuring'!BX5 -> 0 | BX7: ='Model - Structuring'!BY5 -> 0 | BY7: ='Model - Structuring'!BZ5 -> 0 | BZ7: ='Model - Structuring'!CA5 -> 0 | CA7: ='Model - Structuring'!CB5 -> 0 | CB7: ='Model - Structuring'!CC5 -> 0 | CC7: ='Model - Structuring'!CD5 -> 0 | CD7: ='Model - Structuring'!CE5 -> 0 | CE7: ='Model - Structuring'!CF5 -> 0 | CF7: ='Model - Structuring'!CG5 -> 0 | CG7: ='Model - Structuring'!CH5 -> 0 | CH7: ='Model - Structuring'!CI5 -> 0 | CI7: ='Model - Structuring'!CJ5 -> 0 | CJ7: ='Model - Structuring'!CK5 -> 0 | CK7: ='Model - Structuring'!CL5 -> 0 | CL7: ='Model - Structuring'!CM5 -> 0 | CM7: ='Model - Structuring'!CN5 -> 0 | CN7: ='Model - Structuring'!CO5 -> 0 | CO7: ='Model - Structuring'!CP5 -> 0 | CP7: ='Model - Structuring'!CQ5 -> 0 | CQ7: ='Model - Structuring'!CR5 -> 0 | CR7: ='Model - Structuring'!CS5 -> 0 | CS7: ='Model - Structuring'!CT5 -> 0 | CT7: ='Model - Structuring'!CU5 -> 0 | CU7: ='Model - Structuring'!CV5 -> 0 | CV7: ='Model - Structuring'!CW5 -> 0 | CW7: ='Model - Structuring'!CX5 -> 0 | CX7: ='Model - Structuring'!CY5 -> 0 | CY7: ='Model - Structuring'!CZ5 -> 0 | CZ7: ='Model - Structuring'!DA5 -> 0 | DA7: ='Model - Structuring'!DB5 -> 0 | DB7: ='Model - Structuring'!DC5 -> 0 | DC7: ='Model - Structuring'!DD5 -> 0 | DD7: ='Model - Structuring'!DE5 -> 0 | DE7: ='Model - Structuring'!DF5 -> 0 | DF7: ='Model - Structuring'!DG5 -> 0 | DG7: ='Model - Structuring'!DH5 -> 0 | DH7: ='Model - Structuring'!DI5 -> 0 | DI7: ='Model - Structuring'!DJ5 -> 0 | DJ7: ='Model - Structuring'!DK5 -> 0 | DK7: ='Model - Structuring'!DL5 -> 0 | DL7: ='Model - Structuring'!DM5 -> 0 | DM7: ='Model - Structuring'!DN5 -> 0 | DN7: ='Model - Structuring'!DO5 -> 0 | DO7: ='Model - Structuring'!DP5 -> 0 | DP7: ='Model - Structuring'!DQ5 -> 0 | DQ7: ='Model - Structuring'!DR5 -> 0 | DR7: ='Model - Structuring'!DS5 -> 0 | DS7: ='Model - Structuring'!DT5 -> 0 | DT7: ='Model - Structuring'!DU5 -> 0 | DU7: ='Model - Structuring'!DV5 -> 0 | DV7: ='Model - Structuring'!DW5 -> 0 | DW7: ='Model - Structuring'!DX5 -> 0 | DX7: ='Model - Structuring'!DY5 -> 0 | DY7: ='Model - Structuring'!DZ5 -> 0 | DZ7: ='Model - Structuring'!EA5 -> 0 | EA7: ='Model - Structuring'!EB5 -> 0 | EB7: ='Model - Structuring'!EC5 -> 0 | EC7: ='Model - Structuring'!ED5 -> 0 | ED7: ='Model - Structuring'!EE5 -> 0 | EE7: ='Model - Structuring'!EF5 -> 0 | EF7: ='Model - Structuring'!EG5 -> 0 | EG7: ='Model - Structuring'!EH5 -> 0 | EH7: ='Model - Structuring'!EI5 -> 0 | EI7: ='Model - Structuring'!EJ5 -> 0 | EJ7: ='Model - Structuring'!EK5 -> 0 | EK7: ='Model - Structuring'!EL5 -> 0 | EL7: ='Model - Structuring'!EM5 -> 0 | EM7: ='Model - Structuring'!EN5 -> 0 | EN7: ='Model - Structuring'!EO5 -> 0 | EO7: ='Model - Structuring'!EP5 -> 0 | EP7: ='Model - Structuring'!EQ5 -> 0 | EQ7: ='Model - Structuring'!ER5 -> 0 | ER7: ='Model - Structuring'!ES5 -> 0 | ES7: ='Model - Structuring'!ET5 -> 0 | ET7: ='Model - Structuring'!EU5 -> 0 | EU7: ='Model - Structuring'!EV5 -> 0 | EV7: ='Model - Structuring'!EW5 -> 0 | EW7: ='Model - Structuring'!EX5 -> 0 | EX7: ='Model - Structuring'!EY5 -> 0 | EY7: ='Model - Structuring'!EZ5 -> 0 | EZ7: ='Model - Structuring'!FA5 -> 0 | FA7: ='Model - Structuring'!FB5 -> 0 | FB7: ='Model - Structuring'!FC5 -> 0 | FC7: ='Model - Structuring'!FD5 -> 0 | FD7: ='Model - Structuring'!FE5 -> 0 | FE7: ='Model - Structuring'!FF5 -> 0 | FF7: ='Model - Structuring'!FG5 -> 0 | FG7: ='Model - Structuring'!FH5 -> 0 | FH7: ='Model - Structuring'!FI5 -> 0 | FI7: ='Model - Structuring'!FJ5 -> 0 | FJ7: ='Model - Structuring'!FK5 -> 0 | FK7: ='Model - Structuring'!FL5 -> 0 | FL7: ='Model - Structuring'!FM5 -> 0 | FM7: ='Model - Structuring'!FN5 -> 0 | FN7: ='Model - Structuring'!FO5 -> 0 | FO7: ='Model - Structuring'!FP5 -> 0 | FP7: ='Model - Structuring'!FQ5 -> 0 | FQ7: ='Model - Structuring'!FR5 -> 0 | FR7: ='Model - Structuring'!FS5 -> 0 | FS7: ='Model - Structuring'!FT5 -> 0 | FT7: ='Model - Structuring'!FU5 -> 0 | FU7: ='Model - Structuring'!FV5 -> 0 | FV7: ='Model - Structuring'!FW5 -> 0 | FW7: ='Model - Structuring'!FX5 -> 0 | FX7: ='Model - Structuring'!FY5 -> 0 | FY7: ='Model - Structuring'!FZ5 -> 0 | FZ7: ='Model - Structuring'!GA5 -> 0 | GA7: ='Model - Structuring'!GB5 -> 0 | GB7: ='Model - Structuring'!GC5 -> 0 | GC7: ='Model - Structuring'!GD5 -> 0 | GD7: ='Model - Structuring'!GE5 -> 0 | GE7: ='Model - Structuring'!GF5 -> 0 | GF7: ='Model - Structuring'!GG5 -> 0 | GG7: ='Model - Structuring'!GH5 -> 0 | GH7: ='Model - Structuring'!GI5 -> 0 | GI7: ='Model - Structuring'!GJ5 -> 0 | GJ7: ='Model - Structuring'!GK5 -> 0 | GK7: ='Model - Structuring'!GL5 -> 0 | GL7: ='Model - Structuring'!GM5 -> 0
E8: Operating_Flag | F8: Operation Flag (Must be Not TRUE/FALSE) | G8: =G6 -> InputS | I8: Flag | J8: ='Model - Structuring'!K6 -> 0 | K8: ='Model - Structuring'!L6 -> 1 | L8: ='Model - Structuring'!M6 -> 1 | M8: ='Model - Structuring'!N6 -> 1 | N8: ='Model - Structuring'!O6 -> 1 | O8: ='Model - Structuring'!P6 -> 1 | P8: ='Model - Structuring'!Q6 -> 1 | Q8: ='Model - Structuring'!R6 -> 1 | R8: ='Model - Structuring'!S6 -> 1 | S8: ='Model - Structuring'!T6 -> 1 | T8: ='Model - Structuring'!U6 -> 1 | U8: ='Model - Structuring'!V6 -> 1 | V8: ='Model - Structuring'!W6 -> 1 | W8: ='Model - Structuring'!X6 -> 1 | X8: ='Model - Structuring'!Y6 -> 1 | Y8: ='Model - Structuring'!Z6 -> 1 | Z8: ='Model - Structuring'!AA6 -> 1 | AA8: ='Model - Structuring'!AB6 -> 1 | AB8: ='Model - Structuring'!AC6 -> 1 | AC8: ='Model - Structuring'!AD6 -> 1 | AD8: ='Model - Structuring'!AE6 -> 1 | AE8: ='Model - Structuring'!AF6 -> 1 | AF8: ='Model - Structuring'!AG6 -> 1 | AG8: ='Model - Structuring'!AH6 -> 1 | AH8: ='Model - Structuring'!AI6 -> 1 | AI8: ='Model - Structuring'!AJ6 -> 1 | AJ8: ='Model - Structuring'!AK6 -> 1 | AK8: ='Model - Structuring'!AL6 -> 1 | AL8: ='Model - Structuring'!AM6 -> 1 | AM8: ='Model - Structuring'!AN6 -> 1 | AN8: ='Model - Structuring'!AO6 -> 1 | AO8: ='Model - Structuring'!AP6 -> 1 | AP8: ='Model - Structuring'!AQ6 -> 1 | AQ8: ='Model - Structuring'!AR6 -> 1 | AR8: ='Model - Structuring'!AS6 -> 1 | AS8: ='Model - Structuring'!AT6 -> 1 | AT8: ='Model - Structuring'!AU6 -> 1 | AU8: ='Model - Structuring'!AV6 -> 1 | AV8: ='Model - Structuring'!AW6 -> 1 | AW8: ='Model - Structuring'!AX6 -> 1 | AX8: ='Model - Structuring'!AY6 -> 1 | AY8: ='Model - Structuring'!AZ6 -> 1 | AZ8: ='Model - Structuring'!BA6 -> 1 | BA8: ='Model - Structuring'!BB6 -> 1 | BB8: ='Model - Structuring'!BC6 -> 1 | BC8: ='Model - Structuring'!BD6 -> 1 | BD8: ='Model - Structuring'!BE6 -> 1 | BE8: ='Model - Structuring'!BF6 -> 1 | BF8: ='Model - Structuring'!BG6 -> 1 | BG8: ='Model - Structuring'!BH6 -> 1 | BH8: ='Model - Structuring'!BI6 -> 1 | BI8: ='Model - Structuring'!BJ6 -> 0 | BJ8: ='Model - Structuring'!BK6 -> 0 | BK8: ='Model - Structuring'!BL6 -> 0 | BL8: ='Model - Structuring'!BM6 -> 0 | BM8: ='Model - Structuring'!BN6 -> 0 | BN8: ='Model - Structuring'!BO6 -> 0 | BO8: ='Model - Structuring'!BP6 -> 0 | BP8: ='Model - Structuring'!BQ6 -> 0 | BQ8: ='Model - Structuring'!BR6 -> 0 | BR8: ='Model - Structuring'!BS6 -> 0 | BS8: ='Model - Structuring'!BT6 -> 0 | BT8: ='Model - Structuring'!BU6 -> 0 | BU8: ='Model - Structuring'!BV6 -> 0 | BV8: ='Model - Structuring'!BW6 -> 0 | BW8: ='Model - Structuring'!BX6 -> 0 | BX8: ='Model - Structuring'!BY6 -> 0 | BY8: ='Model - Structuring'!BZ6 -> 0 | BZ8: ='Model - Structuring'!CA6 -> 0 | CA8: ='Model - Structuring'!CB6 -> 0 | CB8: ='Model - Structuring'!CC6 -> 0 | CC8: ='Model - Structuring'!CD6 -> 0 | CD8: ='Model - Structuring'!CE6 -> 0 | CE8: ='Model - Structuring'!CF6 -> 0 | CF8: ='Model - Structuring'!CG6 -> 0 | CG8: ='Model - Structuring'!CH6 -> 0 | CH8: ='Model - Structuring'!CI6 -> 0 | CI8: ='Model - Structuring'!CJ6 -> 0 | CJ8: ='Model - Structuring'!CK6 -> 0 | CK8: ='Model - Structuring'!CL6 -> 0 | CL8: ='Model - Structuring'!CM6 -> 0 | CM8: ='Model - Structuring'!CN6 -> 0 | CN8: ='Model - Structuring'!CO6 -> 0 | CO8: ='Model - Structuring'!CP6 -> 0 | CP8: ='Model - Structuring'!CQ6 -> 0 | CQ8: ='Model - Structuring'!CR6 -> 0 | CR8: ='Model - Structuring'!CS6 -> 0 | CS8: ='Model - Structuring'!CT6 -> 0 | CT8: ='Model - Structuring'!CU6 -> 0 | CU8: ='Model - Structuring'!CV6 -> 0 | CV8: ='Model - Structuring'!CW6 -> 0 | CW8: ='Model - Structuring'!CX6 -> 0 | CX8: ='Model - Structuring'!CY6 -> 0 | CY8: ='Model - Structuring'!CZ6 -> 0 | CZ8: ='Model - Structuring'!DA6 -> 0 | DA8: ='Model - Structuring'!DB6 -> 0 | DB8: ='Model - Structuring'!DC6 -> 0 | DC8: ='Model - Structuring'!DD6 -> 0 | DD8: ='Model - Structuring'!DE6 -> 0 | DE8: ='Model - Structuring'!DF6 -> 0 | DF8: ='Model - Structuring'!DG6 -> 0 | DG8: ='Model - Structuring'!DH6 -> 0 | DH8: ='Model - Structuring'!DI6 -> 0 | DI8: ='Model - Structuring'!DJ6 -> 0 | DJ8: ='Model - Structuring'!DK6 -> 0 | DK8: ='Model - Structuring'!DL6 -> 0 | DL8: ='Model - Structuring'!DM6 -> 0 | DM8: ='Model - Structuring'!DN6 -> 0 | DN8: ='Model - Structuring'!DO6 -> 0 | DO8: ='Model - Structuring'!DP6 -> 0 | DP8: ='Model - Structuring'!DQ6 -> 0 | DQ8: ='Model - Structuring'!DR6 -> 0 | DR8: ='Model - Structuring'!DS6 -> 0 | DS8: ='Model - Structuring'!DT6 -> 0 | DT8: ='Model - Structuring'!DU6 -> 0 | DU8: ='Model - Structuring'!DV6 -> 0 | DV8: ='Model - Structuring'!DW6 -> 0 | DW8: ='Model - Structuring'!DX6 -> 0 | DX8: ='Model - Structuring'!DY6 -> 0 | DY8: ='Model - Structuring'!DZ6 -> 0 | DZ8: ='Model - Structuring'!EA6 -> 0 | EA8: ='Model - Structuring'!EB6 -> 0 | EB8: ='Model - Structuring'!EC6 -> 0 | EC8: ='Model - Structuring'!ED6 -> 0 | ED8: ='Model - Structuring'!EE6 -> 0 | EE8: ='Model - Structuring'!EF6 -> 0 | EF8: ='Model - Structuring'!EG6 -> 0 | EG8: ='Model - Structuring'!EH6 -> 0 | EH8: ='Model - Structuring'!EI6 -> 0 | EI8: ='Model - Structuring'!EJ6 -> 0 | EJ8: ='Model - Structuring'!EK6 -> 0 | EK8: ='Model - Structuring'!EL6 -> 0 | EL8: ='Model - Structuring'!EM6 -> 0 | EM8: ='Model - Structuring'!EN6 -> 0 | EN8: ='Model - Structuring'!EO6 -> 0 | EO8: ='Model - Structuring'!EP6 -> 0 | EP8: ='Model - Structuring'!EQ6 -> 0 | EQ8: ='Model - Structuring'!ER6 -> 0 | ER8: ='Model - Structuring'!ES6 -> 0 | ES8: ='Model - Structuring'!ET6 -> 0 | ET8: ='Model - Structuring'!EU6 -> 0 | EU8: ='Model - Structuring'!EV6 -> 0 | EV8: ='Model - Structuring'!EW6 -> 0 | EW8: ='Model - Structuring'!EX6 -> 0 | EX8: ='Model - Structuring'!EY6 -> 0 | EY8: ='Model - Structuring'!EZ6 -> 0 | EZ8: ='Model - Structuring'!FA6 -> 0 | FA8: ='Model - Structuring'!FB6 -> 0 | FB8: ='Model - Structuring'!FC6 -> 0 | FC8: ='Model - Structuring'!FD6 -> 0 | FD8: ='Model - Structuring'!FE6 -> 0 | FE8: ='Model - Structuring'!FF6 -> 0 | FF8: ='Model - Structuring'!FG6 -> 0 | FG8: ='Model - Structuring'!FH6 -> 0 | FH8: ='Model - Structuring'!FI6 -> 0 | FI8: ='Model - Structuring'!FJ6 -> 0 | FJ8: ='Model - Structuring'!FK6 -> 0 | FK8: ='Model - Structuring'!FL6 -> 0 | FL8: ='Model - Structuring'!FM6 -> 0 | FM8: ='Model - Structuring'!FN6 -> 0 | FN8: ='Model - Structuring'!FO6 -> 0 | FO8: ='Model - Structuring'!FP6 -> 0 | FP8: ='Model - Structuring'!FQ6 -> 0 | FQ8: ='Model - Structuring'!FR6 -> 0 | FR8: ='Model - Structuring'!FS6 -> 0 | FS8: ='Model - Structuring'!FT6 -> 0 | FT8: ='Model - Structuring'!FU6 -> 0 | FU8: ='Model - Structuring'!FV6 -> 0 | FV8: ='Model - Structuring'!FW6 -> 0 | FW8: ='Model - Structuring'!FX6 -> 0 | FX8: ='Model - Structuring'!FY6 -> 0 | FY8: ='Model - Structuring'!FZ6 -> 0 | FZ8: ='Model - Structuring'!GA6 -> 0 | GA8: ='Model - Structuring'!GB6 -> 0 | GB8: ='Model - Structuring'!GC6 -> 0 | GC8: ='Model - Structuring'!GD6 -> 0 | GD8: ='Model - Structuring'!GE6 -> 0 | GE8: ='Model - Structuring'!GF6 -> 0 | GF8: ='Model - Structuring'!GG6 -> 0 | GG8: ='Model - Structuring'!GH6 -> 0 | GH8: ='Model - Structuring'!GI6 -> 0 | GI8: ='Model - Structuring'!GJ6 -> 0 | GJ8: ='Model - Structuring'!GK6 -> 0 | GK8: ='Model - Structuring'!GL6 -> 0 | GL8: ='Model - Structuring'!GM6 -> 0
E10: max_iteration | F10: The maximum iterations in the circular reference | G10: InputC | H10: 30
E11: turn_off | F11: Turn off the parallel model by entering number one | G11: InputC | H11: 0 | I11: =IF(H11,"TURNED OFF","TURNED ON")&" - One turns OFF the parallel model; Zero leaves the model on" -> TURNED ON - One turns OFF the parallel model; Zero leaves the model on
E12: Iteration_Output_Flag | F12: Turn off circular documentation output | G12: InputC | H12: 1 | I12: Switch ( 1: shows iteration output in Summary Report; 0: No Iteration Output in Summary Report)
E13: Convergence_Criteria | F13: Convergence for the Circular Loop | G13: InputC | H13: 1e-05 | I13: Enter a small number and see how sensitive the time is to the number
E14: Turn_off_message | F14: Turn off message Progress Message | G14: InputC | H14: 0 | I14: One turns off the calculation progress screen
E15: Any_Number | F15: Number just to make the UDF operate | G15: InputC | H15: 2 | I15: Blank variable for turning on and off (Just put in a number and the UDF will re-run)
E16: number_of_cols | F16: Maximum Number of Columns to Read | G16: InputC | H16: 100 | I16: Number of colums that can be up to 1000. Should be more than period counter by about 10
B18: Operating Inputs from Your Model
C19: Operating Data
E20: Capital_Expenditure | F20: Total Cap Exp | G20: InputS | J20: ='Model - Structuring'!K32 -> 216629231 | K20: ='Model - Structuring'!L32 -> 0 | L20: ='Model - Structuring'!M32 -> 0 | M20: ='Model - Structuring'!N32 -> 0 | N20: ='Model - Structuring'!O32 -> 0 | O20: ='Model - Structuring'!P32 -> 0 | P20: ='Model - Structuring'!Q32 -> 0 | Q20: ='Model - Structuring'!R32 -> 0 | R20: ='Model - Structuring'!S32 -> 0 | S20: ='Model - Structuring'!T32 -> 0 | T20: ='Model - Structuring'!U32 -> 0 | U20: ='Model - Structuring'!V32 -> 0 | V20: ='Model - Structuring'!W32 -> 0 | W20: ='Model - Structuring'!X32 -> 0 | X20: ='Model - Structuring'!Y32 -> 0 | Y20: ='Model - Structuring'!Z32 -> 0 | Z20: ='Model - Structuring'!AA32 -> 0 | AA20: ='Model - Structuring'!AB32 -> 0 | AB20: ='Model - Structuring'!AC32 -> 0 | AC20: ='Model - Structuring'!AD32 -> 0 | AD20: ='Model - Structuring'!AE32 -> 0 | AE20: ='Model - Structuring'!AF32 -> 0 | AF20: ='Model - Structuring'!AG32 -> 0 | AG20: ='Model - Structuring'!AH32 -> 0 | AH20: ='Model - Structuring'!AI32 -> 0 | AI20: ='Model - Structuring'!AJ32 -> 0 | AJ20: ='Model - Structuring'!AK32 -> 0 | AK20: ='Model - Structuring'!AL32 -> 0 | AL20: ='Model - Structuring'!AM32 -> 0 | AM20: ='Model - Structuring'!AN32 -> 0 | AN20: ='Model - Structuring'!AO32 -> 0 | AO20: ='Model - Structuring'!AP32 -> 0 | AP20: ='Model - Structuring'!AQ32 -> 0 | AQ20: ='Model - Structuring'!AR32 -> 0 | AR20: ='Model - Structuring'!AS32 -> 0 | AS20: ='Model - Structuring'!AT32 -> 0 | AT20: ='Model - Structuring'!AU32 -> 0 | AU20: ='Model - Structuring'!AV32 -> 0 | AV20: ='Model - Structuring'!AW32 -> 0 | AW20: ='Model - Structuring'!AX32 -> 0 | AX20: ='Model - Structuring'!AY32 -> 0 | AY20: ='Model - Structuring'!AZ32 -> 0 | AZ20: ='Model - Structuring'!BA32 -> 0 | BA20: ='Model - Structuring'!BB32 -> 0 | BB20: ='Model - Structuring'!BC32 -> 0 | BC20: ='Model - Structuring'!BD32 -> 0 | BD20: ='Model - Structuring'!BE32 -> 0 | BE20: ='Model - Structuring'!BF32 -> 0 | BF20: ='Model - Structuring'!BG32 -> 0 | BG20: ='Model - Structuring'!BH32 -> 0 | BH20: ='Model - Structuring'!BI32 -> 0 | BI20: ='Model - Structuring'!BJ32 -> 0 | BJ20: ='Model - Structuring'!BK32 -> 0 | BK20: ='Model - Structuring'!BL32 -> 0 | BL20: ='Model - Structuring'!BM32 -> 0 | BM20: ='Model - Structuring'!BN32 -> 0 | BN20: ='Model - Structuring'!BO32 -> 0 | BO20: ='Model - Structuring'!BP32 -> 0 | BP20: ='Model - Structuring'!BQ32 -> 0 | BQ20: ='Model - Structuring'!BR32 -> 0 | BR20: ='Model - Structuring'!BS32 -> 0 | BS20: ='Model - Structuring'!BT32 -> 0 | BT20: ='Model - Structuring'!BU32 -> 0 | BU20: ='Model - Structuring'!BV32 -> 0 | BV20: ='Model - Structuring'!BW32 -> 0 | BW20: ='Model - Structuring'!BX32 -> 0 | BX20: ='Model - Structuring'!BY32 -> 0 | BY20: ='Model - Structuring'!BZ32 -> 0 | BZ20: ='Model - Structuring'!CA32 -> 0 | CA20: ='Model - Structuring'!CB32 -> 0 | CB20: ='Model - Structuring'!CC32 -> 0 | CC20: ='Model - Structuring'!CD32 -> 0 | CD20: ='Model - Structuring'!CE32 -> 0 | CE20: ='Model - Structuring'!CF32 -> 0 | CF20: ='Model - Structuring'!CG32 -> 0 | CG20: ='Model - Structuring'!CH32 -> 0 | CH20: ='Model - Structuring'!CI32 -> 0 | CI20: ='Model - Structuring'!CJ32 -> 0 | CJ20: ='Model - Structuring'!CK32 -> 0 | CK20: ='Model - Structuring'!CL32 -> 0 | CL20: ='Model - Structuring'!CM32 -> 0 | CM20: ='Model - Structuring'!CN32 -> 0 | CN20: ='Model - Structuring'!CO32 -> 0 | CO20: ='Model - Structuring'!CP32 -> 0 | CP20: ='Model - Structuring'!CQ32 -> 0 | CQ20: ='Model - Structuring'!CR32 -> 0 | CR20: ='Model - Structuring'!CS32 -> 0 | CS20: ='Model - Structuring'!CT32 -> 0 | CT20: ='Model - Structuring'!CU32 -> 0 | CU20: ='Model - Structuring'!CV32 -> 0 | CV20: ='Model - Structuring'!CW32 -> 0 | CW20: ='Model - Structuring'!CX32 -> 0 | CX20: ='Model - Structuring'!CY32 -> 0 | CY20: ='Model - Structuring'!CZ32 -> 0 | CZ20: ='Model - Structuring'!DA32 -> 0 | DA20: ='Model - Structuring'!DB32 -> 0 | DB20: ='Model - Structuring'!DC32 -> 0 | DC20: ='Model - Structuring'!DD32 -> 0 | DD20: ='Model - Structuring'!DE32 -> 0 | DE20: ='Model - Structuring'!DF32 -> 0 | DF20: ='Model - Structuring'!DG32 -> 0 | DG20: ='Model - Structuring'!DH32 -> 0 | DH20: ='Model - Structuring'!DI32 -> 0 | DI20: ='Model - Structuring'!DJ32 -> 0 | DJ20: ='Model - Structuring'!DK32 -> 0 | DK20: ='Model - Structuring'!DL32 -> 0 | DL20: ='Model - Structuring'!DM32 -> 0 | DM20: ='Model - Structuring'!DN32 -> 0 | DN20: ='Model - Structuring'!DO32 -> 0 | DO20: ='Model - Structuring'!DP32 -> 0 | DP20: ='Model - Structuring'!DQ32 -> 0 | DQ20: ='Model - Structuring'!DR32 -> 0 | DR20: ='Model - Structuring'!DS32 -> 0 | DS20: ='Model - Structuring'!DT32 -> 0 | DT20: ='Model - Structuring'!DU32 -> 0 | DU20: ='Model - Structuring'!DV32 -> 0 | DV20: ='Model - Structuring'!DW32 -> 0 | DW20: ='Model - Structuring'!DX32 -> 0 | DX20: ='Model - Structuring'!DY32 -> 0 | DY20: ='Model - Structuring'!DZ32 -> 0 | DZ20: ='Model - Structuring'!EA32 -> 0 | EA20: ='Model - Structuring'!EB32 -> 0 | EB20: ='Model - Structuring'!EC32 -> 0 | EC20: ='Model - Structuring'!ED32 -> 0 | ED20: ='Model - Structuring'!EE32 -> 0 | EE20: ='Model - Structuring'!EF32 -> 0 | EF20: ='Model - Structuring'!EG32 -> 0 | EG20: ='Model - Structuring'!EH32 -> 0 | EH20: ='Model - Structuring'!EI32 -> 0 | EI20: ='Model - Structuring'!EJ32 -> 0 | EJ20: ='Model - Structuring'!EK32 -> 0 | EK20: ='Model - Structuring'!EL32 -> 0 | EL20: ='Model - Structuring'!EM32 -> 0 | EM20: ='Model - Structuring'!EN32 -> 0 | EN20: ='Model - Structuring'!EO32 -> 0 | EO20: ='Model - Structuring'!EP32 -> 0 | EP20: ='Model - Structuring'!EQ32 -> 0 | EQ20: ='Model - Structuring'!ER32 -> 0 | ER20: ='Model - Structuring'!ES32 -> 0 | ES20: ='Model - Structuring'!ET32 -> 0 | ET20: ='Model - Structuring'!EU32 -> 0 | EU20: ='Model - Structuring'!EV32 -> 0 | EV20: ='Model - Structuring'!EW32 -> 0 | EW20: ='Model - Structuring'!EX32 -> 0 | EX20: ='Model - Structuring'!EY32 -> 0 | EY20: ='Model - Structuring'!EZ32 -> 0 | EZ20: ='Model - Structuring'!FA32 -> 0 | FA20: ='Model - Structuring'!FB32 -> 0 | FB20: ='Model - Structuring'!FC32 -> 0 | FC20: ='Model - Structuring'!FD32 -> 0 | FD20: ='Model - Structuring'!FE32 -> 0 | FE20: ='Model - Structuring'!FF32 -> 0 | FF20: ='Model - Structuring'!FG32 -> 0 | FG20: ='Model - Structuring'!FH32 -> 0 | FH20: ='Model - Structuring'!FI32 -> 0 | FI20: ='Model - Structuring'!FJ32 -> 0 | FJ20: ='Model - Structuring'!FK32 -> 0 | FK20: ='Model - Structuring'!FL32 -> 0 | FL20: ='Model - Structuring'!FM32 -> 0 | FM20: ='Model - Structuring'!FN32 -> 0 | FN20: ='Model - Structuring'!FO32 -> 0 | FO20: ='Model - Structuring'!FP32 -> 0 | FP20: ='Model - Structuring'!FQ32 -> 0 | FQ20: ='Model - Structuring'!FR32 -> 0 | FR20: ='Model - Structuring'!FS32 -> 0 | FS20: ='Model - Structuring'!FT32 -> 0 | FT20: ='Model - Structuring'!FU32 -> 0 | FU20: ='Model - Structuring'!FV32 -> 0 | FV20: ='Model - Structuring'!FW32 -> 0 | FW20: ='Model - Structuring'!FX32 -> 0 | FX20: ='Model - Structuring'!FY32 -> 0 | FY20: ='Model - Structuring'!FZ32 -> 0 | FZ20: ='Model - Structuring'!GA32 -> 0 | GA20: ='Model - Structuring'!GB32 -> 0 | GB20: ='Model - Structuring'!GC32 -> 0 | GC20: ='Model - Structuring'!GD32 -> 0 | GD20: ='Model - Structuring'!GE32 -> 0 | GE20: ='Model - Structuring'!GF32 -> 0 | GF20: ='Model - Structuring'!GG32 -> 0 | GG20: ='Model - Structuring'!GH32 -> 0 | GH20: ='Model - Structuring'!GI32 -> 0 | GI20: ='Model - Structuring'!GJ32 -> 0 | GJ20: ='Model - Structuring'!GK32 -> 0 | GK20: ='Model - Structuring'!GL32 -> 0 | GL20: ='Model - Structuring'!GM32 -> 0
E21: Pre_COD_Revenues | F21: Revenues pre COD - Treated as Equity | G21: InputS | J21: 0 | K21: 0 | L21: 0 | M21: 0 | N21: 0 | O21: 0 | P21: 0 | Q21: 0 | R21: 0 | S21: 0 | T21: 0 | U21: 0 | V21: 0 | W21: 0 | X21: 0 | Y21: 0 | Z21: 0 | AA21: 0 | AB21: 0 | AC21: 0 | AD21: 0 | AE21: 0 | AF21: 0 | AG21: 0 | AH21: 0 | AI21: 0 | AJ21: 0 | AK21: 0 | AL21: 0 | AM21: 0 | AN21: 0 | AO21: 0 | AP21: 0 | AQ21: 0 | AR21: 0 | AS21: 0 | AT21: 0 | AU21: 0 | AV21: 0 | AW21: 0 | AX21: 0 | AY21: 0 | AZ21: 0 | BA21: 0 | BB21: 0 | BC21: 0 | BD21: 0 | BE21: 0 | BF21: 0 | BG21: 0 | BH21: 0 | BI21: 0 | BJ21: 0 | BK21: 0 | BL21: 0 | BM21: 0 | BN21: 0 | BO21: 0 | BP21: 0 | BQ21: 0 | BR21: 0 | BS21: 0 | BT21: 0 | BU21: 0 | BV21: 0 | BW21: 0 | BX21: 0 | BY21: 0 | BZ21: 0 | CA21: 0 | CB21: 0 | CC21: 0 | CD21: 0 | CE21: 0 | CF21: 0 | CG21: 0 | CH21: 0 | CI21: 0 | CJ21: 0 | CK21: 0 | CL21: 0 | CM21: 0 | CN21: 0 | CO21: 0 | CP21: 0 | CQ21: 0 | CR21: 0 | CS21: 0 | CT21: 0 | CU21: 0 | CV21: 0 | CW21: 0 | CX21: 0 | CY21: 0 | CZ21: 0 | DA21: 0 | DB21: 0 | DC21: 0 | DD21: 0 | DE21: 0 | DF21: 0 | DG21: 0 | DH21: 0 | DI21: 0 | DJ21: 0 | DK21: 0 | DL21: 0 | DM21: 0 | DN21: 0 | DO21: 0 | DP21: 0 | DQ21: 0 | DR21: 0 | DS21: 0 | DT21: 0 | DU21: 0 | DV21: 0 | DW21: 0 | DX21: 0 | DY21: 0 | DZ21: 0 | EA21: 0 | EB21: 0 | EC21: 0 | ED21: 0 | EE21: 0 | EF21: 0 | EG21: 0 | EH21: 0 | EI21: 0 | EJ21: 0 | EK21: 0 | EL21: 0 | EM21: 0 | EN21: 0 | EO21: 0 | EP21: 0 | EQ21: 0 | ER21: 0 | ES21: 0 | ET21: 0 | EU21: 0 | EV21: 0 | EW21: 0 | EX21: 0 | EY21: 0 | EZ21: 0 | FA21: 0 | FB21: 0 | FC21: 0 | FD21: 0 | FE21: 0 | FF21: 0 | FG21: 0 | FH21: 0 | FI21: 0 | FJ21: 0 | FK21: 0 | FL21: 0 | FM21: 0 | FN21: 0 | FO21: 0 | FP21: 0 | FQ21: 0 | FR21: 0 | FS21: 0 | FT21: 0 | FU21: 0 | FV21: 0 | FW21: 0 | FX21: 0 | FY21: 0 | FZ21: 0 | GA21: 0 | GB21: 0 | GC21: 0 | GD21: 0 | GE21: 0 | GF21: 0 | GG21: 0 | GH21: 0 | GI21: 0 | GJ21: 0 | GK21: 0 | GL21: 0
E22: Pre_COD_Expenses | F22: Expenses pre COD - Treated as Cost | G22: InputS | J22: 0 | K22: 0 | L22: 0 | M22: 0 | N22: 0 | O22: 0 | P22: 0 | Q22: 0 | R22: 0 | S22: 0 | T22: 0 | U22: 0 | V22: 0 | W22: 0 | X22: 0 | Y22: 0 | Z22: 0 | AA22: 0 | AB22: 0 | AC22: 0 | AD22: 0 | AE22: 0 | AF22: 0 | AG22: 0 | AH22: 0 | AI22: 0 | AJ22: 0 | AK22: 0 | AL22: 0 | AM22: 0 | AN22: 0 | AO22: 0 | AP22: 0 | AQ22: 0 | AR22: 0 | AS22: 0 | AT22: 0 | AU22: 0 | AV22: 0 | AW22: 0 | AX22: 0 | AY22: 0 | AZ22: 0 | BA22: 0 | BB22: 0 | BC22: 0 | BD22: 0 | BE22: 0 | BF22: 0 | BG22: 0 | BH22: 0 | BI22: 0 | BJ22: 0 | BK22: 0 | BL22: 0 | BM22: 0 | BN22: 0 | BO22: 0 | BP22: 0 | BQ22: 0 | BR22: 0 | BS22: 0 | BT22: 0 | BU22: 0 | BV22: 0 | BW22: 0 | BX22: 0 | BY22: 0 | BZ22: 0 | CA22: 0 | CB22: 0 | CC22: 0 | CD22: 0 | CE22: 0 | CF22: 0 | CG22: 0 | CH22: 0 | CI22: 0 | CJ22: 0 | CK22: 0 | CL22: 0 | CM22: 0 | CN22: 0 | CO22: 0 | CP22: 0 | CQ22: 0 | CR22: 0 | CS22: 0 | CT22: 0 | CU22: 0 | CV22: 0 | CW22: 0 | CX22: 0 | CY22: 0 | CZ22: 0 | DA22: 0 | DB22: 0 | DC22: 0 | DD22: 0 | DE22: 0 | DF22: 0 | DG22: 0 | DH22: 0 | DI22: 0 | DJ22: 0 | DK22: 0 | DL22: 0 | DM22: 0 | DN22: 0 | DO22: 0 | DP22: 0 | DQ22: 0 | DR22: 0 | DS22: 0 | DT22: 0 | DU22: 0 | DV22: 0 | DW22: 0 | DX22: 0 | DY22: 0 | DZ22: 0 | EA22: 0 | EB22: 0 | EC22: 0 | ED22: 0 | EE22: 0 | EF22: 0 | EG22: 0 | EH22: 0 | EI22: 0 | EJ22: 0 | EK22: 0 | EL22: 0 | EM22: 0 | EN22: 0 | EO22: 0 | EP22: 0 | EQ22: 0 | ER22: 0 | ES22: 0 | ET22: 0 | EU22: 0 | EV22: 0 | EW22: 0 | EX22: 0 | EY22: 0 | EZ22: 0 | FA22: 0 | FB22: 0 | FC22: 0 | FD22: 0 | FE22: 0 | FF22: 0 | FG22: 0 | FH22: 0 | FI22: 0 | FJ22: 0 | FK22: 0 | FL22: 0 | FM22: 0 | FN22: 0 | FO22: 0 | FP22: 0 | FQ22: 0 | FR22: 0 | FS22: 0 | FT22: 0 | FU22: 0 | FV22: 0 | FW22: 0 | FX22: 0 | FY22: 0 | FZ22: 0 | GA22: 0 | GB22: 0 | GC22: 0 | GD22: 0 | GE22: 0 | GF22: 0 | GG22: 0 | GH22: 0 | GI22: 0 | GJ22: 0 | GK22: 0 | GL22: 0
E24: EBITDA | F24: EBITDA for Debt Size (Do Not Include Banking Fees) | G24: InputS | J24: ='Model - Structuring'!K60 -> 0 | K24: ='Model - Structuring'!L60 -> 4727500 | L24: ='Model - Structuring'!M60 -> 4810000 | M24: ='Model - Structuring'!N60 -> 4837201.474 | N24: ='Model - Structuring'!O60 -> 5035699.2 | O24: ='Model - Structuring'!P60 -> 5064267.816 | P24: ='Model - Structuring'!Q60 -> 5271948.173 | Q24: ='Model - Structuring'!R60 -> 5332695.045 | R24: ='Model - Structuring'!S60 -> 5519242.443 | S24: ='Model - Structuring'!T60 -> 5550750.389 | T24: ='Model - Structuring'!U60 -> 5778101 | U24: ='Model - Structuring'!V60 -> 5811187.883 | V24: ='Model - Structuring'!W60 -> 6049067.417 | W24: ='Model - Structuring'!X60 -> 6083810.864 | X24: ='Model - Structuring'!Y60 -> 6332711.029 | Y24: ='Model - Structuring'!Z60 -> 6405952.327 | Z24: ='Model - Structuring'!AA60 -> 6629628.161 | AA24: ='Model - Structuring'!AB60 -> 6667933.01 | AB24: ='Model - Structuring'!AC60 -> 6940443.422 | AC24: ='Model - Structuring'!AD60 -> 6980661.286 | AD24: ='Model - Structuring'!AE60 -> 7265811.056 | AE24: ='Model - Structuring'!AF60 -> 7308035.933 | AF24: ='Model - Structuring'!AG60 -> 7606416.364 | AG24: ='Model - Structuring'!AH60 -> 7694716.624 | AH24: ='Model - Structuring'!AI60 -> 7962977.187 | AI24: ='Model - Structuring'!AJ60 -> 8009516.733 | AJ24: ='Model - Structuring'!AK60 -> 8336245.469 | AK24: ='Model - Structuring'!AL60 -> 8385102.576 | AL24: ='Model - Structuring'!AM60 -> 8727008.886 | AM24: ='Model - Structuring'!AN60 -> 8778297.385 | AN24: ='Model - Structuring'!AO60 -> 9136092.567 | AO24: ='Model - Structuring'!AP60 -> 9242545.591 | AP24: ='Model - Structuring'!AQ60 -> 9564360.881 | AQ24: ='Model - Structuring'!AR60 -> 9620876.253 | AR24: ='Model - Structuring'!AS60 -> 10012719.33 | AS24: ='Model - Structuring'!AT60 -> 10072042.18 | AT24: ='Model - Structuring'!AU60 -> 10482116.51 | AU24: ='Model - Structuring'!AV60 -> 10544384.71 | AV24: ='Model - Structuring'!AW60 -> 10973546.19 | AW24: ='Model - Structuring'!AX60 -> 11101885.13 | AX24: ='Model - Structuring'!AY60 -> 11488049.5 | AY24: ='Model - Structuring'!AZ60 -> 11556649.36 | AZ24: ='Model - Structuring'!BA60 -> 12026717.15 | BA24: ='Model - Structuring'!BB60 -> 12098717.86 | BB24: ='Model - Structuring'!BC60 -> 12590691.87 | BC24: ='Model - Structuring'!BD60 -> 12666260.43 | BD24: ='Model - Structuring'!BE60 -> 13181170.91 | BE24: ='Model - Structuring'!BF60 -> 13335901.39 | BF24: ='Model - Structuring'!BG60 -> 13799408.6 | BG24: ='Model - Structuring'!BH60 -> 13882646.97 | BH24: ='Model - Structuring'!BI60 -> 14446719.18 | BI24: ='Model - Structuring'!BJ60 -> 0 | BJ24: ='Model - Structuring'!BK60 -> 0 | BK24: ='Model - Structuring'!BL60 -> 0 | BL24: ='Model - Structuring'!BM60 -> 0 | BM24: ='Model - Structuring'!BN60 -> 0 | BN24: ='Model - Structuring'!BO60 -> 0 | BO24: ='Model - Structuring'!BP60 -> 0 | BP24: ='Model - Structuring'!BQ60 -> 0 | BQ24: ='Model - Structuring'!BR60 -> 0 | BR24: ='Model - Structuring'!BS60 -> 0 | BS24: ='Model - Structuring'!BT60 -> 0 | BT24: ='Model - Structuring'!BU60 -> 0 | BU24: ='Model - Structuring'!BV60 -> 0 | BV24: ='Model - Structuring'!BW60 -> 0 | BW24: ='Model - Structuring'!BX60 -> 0 | BX24: ='Model - Structuring'!BY60 -> 0 | BY24: ='Model - Structuring'!BZ60 -> 0 | BZ24: ='Model - Structuring'!CA60 -> 0 | CA24: ='Model - Structuring'!CB60 -> 0 | CB24: ='Model - Structuring'!CC60 -> 0 | CC24: ='Model - Structuring'!CD60 -> 0 | CD24: ='Model - Structuring'!CE60 -> 0 | CE24: ='Model - Structuring'!CF60 -> 0 | CF24: ='Model - Structuring'!CG60 -> 0 | CG24: ='Model - Structuring'!CH60 -> 0 | CH24: ='Model - Structuring'!CI60 -> 0 | CI24: ='Model - Structuring'!CJ60 -> 0 | CJ24: ='Model - Structuring'!CK60 -> 0 | CK24: ='Model - Structuring'!CL60 -> 0 | CL24: ='Model - Structuring'!CM60 -> 0 | CM24: ='Model - Structuring'!CN60 -> 0 | CN24: ='Model - Structuring'!CO60 -> 0 | CO24: ='Model - Structuring'!CP60 -> 0 | CP24: ='Model - Structuring'!CQ60 -> 0 | CQ24: ='Model - Structuring'!CR60 -> 0 | CR24: ='Model - Structuring'!CS60 -> 0 | CS24: ='Model - Structuring'!CT60 -> 0 | CT24: ='Model - Structuring'!CU60 -> 0 | CU24: ='Model - Structuring'!CV60 -> 0 | CV24: ='Model - Structuring'!CW60 -> 0 | CW24: ='Model - Structuring'!CX60 -> 0 | CX24: ='Model - Structuring'!CY60 -> 0 | CY24: ='Model - Structuring'!CZ60 -> 0 | CZ24: ='Model - Structuring'!DA60 -> 0 | DA24: ='Model - Structuring'!DB60 -> 0 | DB24: ='Model - Structuring'!DC60 -> 0 | DC24: ='Model - Structuring'!DD60 -> 0 | DD24: ='Model - Structuring'!DE60 -> 0 | DE24: ='Model - Structuring'!DF60 -> 0 | DF24: ='Model - Structuring'!DG60 -> 0 | DG24: ='Model - Structuring'!DH60 -> 0 | DH24: ='Model - Structuring'!DI60 -> 0 | DI24: ='Model - Structuring'!DJ60 -> 0 | DJ24: ='Model - Structuring'!DK60 -> 0 | DK24: ='Model - Structuring'!DL60 -> 0 | DL24: ='Model - Structuring'!DM60 -> 0 | DM24: ='Model - Structuring'!DN60 -> 0 | DN24: ='Model - Structuring'!DO60 -> 0 | DO24: ='Model - Structuring'!DP60 -> 0 | DP24: ='Model - Structuring'!DQ60 -> 0 | DQ24: ='Model - Structuring'!DR60 -> 0 | DR24: ='Model - Structuring'!DS60 -> 0 | DS24: ='Model - Structuring'!DT60 -> 0 | DT24: ='Model - Structuring'!DU60 -> 0 | DU24: ='Model - Structuring'!DV60 -> 0 | DV24: ='Model - Structuring'!DW60 -> 0 | DW24: ='Model - Structuring'!DX60 -> 0 | DX24: ='Model - Structuring'!DY60 -> 0 | DY24: ='Model - Structuring'!DZ60 -> 0 | DZ24: ='Model - Structuring'!EA60 -> 0 | EA24: ='Model - Structuring'!EB60 -> 0 | EB24: ='Model - Structuring'!EC60 -> 0 | EC24: ='Model - Structuring'!ED60 -> 0 | ED24: ='Model - Structuring'!EE60 -> 0 | EE24: ='Model - Structuring'!EF60 -> 0 | EF24: ='Model - Structuring'!EG60 -> 0 | EG24: ='Model - Structuring'!EH60 -> 0 | EH24: ='Model - Structuring'!EI60 -> 0 | EI24: ='Model - Structuring'!EJ60 -> 0 | EJ24: ='Model - Structuring'!EK60 -> 0 | EK24: ='Model - Structuring'!EL60 -> 0 | EL24: ='Model - Structuring'!EM60 -> 0 | EM24: ='Model - Structuring'!EN60 -> 0 | EN24: ='Model - Structuring'!EO60 -> 0 | EO24: ='Model - Structuring'!EP60 -> 0 | EP24: ='Model - Structuring'!EQ60 -> 0 | EQ24: ='Model - Structuring'!ER60 -> 0 | ER24: ='Model - Structuring'!ES60 -> 0 | ES24: ='Model - Structuring'!ET60 -> 0 | ET24: ='Model - Structuring'!EU60 -> 0 | EU24: ='Model - Structuring'!EV60 -> 0 | EV24: ='Model - Structuring'!EW60 -> 0 | EW24: ='Model - Structuring'!EX60 -> 0 | EX24: ='Model - Structuring'!EY60 -> 0 | EY24: ='Model - Structuring'!EZ60 -> 0 | EZ24: ='Model - Structuring'!FA60 -> 0 | FA24: ='Model - Structuring'!FB60 -> 0 | FB24: ='Model - Structuring'!FC60 -> 0 | FC24: ='Model - Structuring'!FD60 -> 0 | FD24: ='Model - Structuring'!FE60 -> 0 | FE24: ='Model - Structuring'!FF60 -> 0 | FF24: ='Model - Structuring'!FG60 -> 0 | FG24: ='Model - Structuring'!FH60 -> 0 | FH24: ='Model - Structuring'!FI60 -> 0 | FI24: ='Model - Structuring'!FJ60 -> 0 | FJ24: ='Model - Structuring'!FK60 -> 0 | FK24: ='Model - Structuring'!FL60 -> 0 | FL24: ='Model - Structuring'!FM60 -> 0 | FM24: ='Model - Structuring'!FN60 -> 0 | FN24: ='Model - Structuring'!FO60 -> 0 | FO24: ='Model - Structuring'!FP60 -> 0 | FP24: ='Model - Structuring'!FQ60 -> 0 | FQ24: ='Model - Structuring'!FR60 -> 0 | FR24: ='Model - Structuring'!FS60 -> 0 | FS24: ='Model - Structuring'!FT60 -> 0 | FT24: ='Model - Structuring'!FU60 -> 0 | FU24: ='Model - Structuring'!FV60 -> 0 | FV24: ='Model - Structuring'!FW60 -> 0 | FW24: ='Model - Structuring'!FX60 -> 0 | FX24: ='Model - Structuring'!FY60 -> 0 | FY24: ='Model - Structuring'!FZ60 -> 0 | FZ24: ='Model - Structuring'!GA60 -> 0 | GA24: ='Model - Structuring'!GB60 -> 0 | GB24: ='Model - Structuring'!GC60 -> 0 | GC24: ='Model - Structuring'!GD60 -> 0 | GD24: ='Model - Structuring'!GE60 -> 0 | GE24: ='Model - Structuring'!GF60 -> 0 | GF24: ='Model - Structuring'!GG60 -> 0 | GG24: ='Model - Structuring'!GH60 -> 0 | GH24: ='Model - Structuring'!GI60 -> 0 | GI24: ='Model - Structuring'!GJ60 -> 0 | GJ24: ='Model - Structuring'!GK60 -> 0 | GK24: ='Model - Structuring'!GL60 -> 0 | GL24: ='Model - Structuring'!GM60 -> 0
E25: WC_Change | F25: Working Capital Changes per Period (Acc. Receivables - Acc. Payable) | G25: InputS | J25: ='Model - Structuring'!K67 -> 0 | K25: ='Model - Structuring'!L67 -> 483493.1507 | L25: ='Model - Structuring'!M67 -> 8013.69863 | M25: ='Model - Structuring'!N67 -> 2954.701785 | N25: ='Model - Structuring'!O67 -> 19601.68178 | O25: ='Model - Structuring'!P67 -> 3096.412983 | P25: ='Model - Structuring'!Q67 -> 20507.84352 | Q25: ='Model - Structuring'!R67 -> 6233.446461 | R25: ='Model - Structuring'!S67 -> 18467.92876 | S25: ='Model - Structuring'!T67 -> 3400.736346 | T25: ='Model - Structuring'!U67 -> 22449.34263 | U25: ='Model - Structuring'!V67 -> 3564.03324 | V25: ='Model - Structuring'!W67 -> 23488.786 | W25: ='Model - Structuring'!X67 -> 3735.238231 | X25: ='Model - Structuring'!Y67 -> 24576.92687 | Y25: ='Model - Structuring'!Z67 -> 7492.077828 | Z25: ='Model - Structuring'!AA67 -> 22138.73114 | AA25: ='Model - Structuring'!AB67 -> 4102.934719 | AB25: ='Model - Structuring'!AC67 -> 26908.63786 | AC25: ='Model - Structuring'!AD67 -> 4300.25562 | AD25: ='Model - Structuring'!AE67 -> 28157.15757 | AE25: ='Model - Structuring'!AF67 -> 4507.145339 | AF25: ='Model - Structuring'!AG67 -> 29464.28486 | AG25: ='Model - Structuring'!AH67 -> 9007.934385 | AH25: ='Model - Structuring'!AI67 -> 26548.93763 | AI25: ='Model - Structuring'!AJ67 -> 4951.52377 | AJ25: ='Model - Structuring'!AK67 -> 32265.61951 | AK25: ='Model - Structuring'!AL67 -> 5190.017314 | AL25: ='Model - Structuring'!AM67 -> 33765.79513 | AM25: ='Model - Structuring'!AN67 -> 5440.091667 | AN25: ='Model - Structuring'!AO67 -> 35336.52807 | AO25: ='Model - Structuring'!AP67 -> 10834.15797 | AP25: ='Model - Structuring'!AQ67 -> 31849.32749 | AQ25: ='Model - Structuring'!AR67 -> 5977.275926 | AR25: ='Model - Structuring'!AS67 -> 38703.24284 | AS25: ='Model - Structuring'!AT67 -> 6265.603423 | AT25: ='Model - Structuring'!AU67 -> 40506.42339 | AU25: ='Model - Structuring'!AV67 -> 6567.949735 | AV25: ='Model - Structuring'!AW67 -> 42394.57466 | AW25: ='Model - Structuring'!AX67 -> 13034.97441 | AX25: ='Model - Structuring'!AY67 -> 38221.7696 | AY25: ='Model - Structuring'!AZ67 -> 7217.477809 | AZ25: ='Model - Structuring'!BA67 -> 46442.16864 | BA25: ='Model - Structuring'!BB67 -> 7566.135233 | BB25: ='Model - Structuring'!BC67 -> 48610.2967 | BC25: ='Model - Structuring'!BD67 -> 7931.766226 | BD25: ='Model - Structuring'!BE67 -> 50880.78547 | BE25: ='Model - Structuring'!BF67 -> 15688.02437 | BF25: ='Model - Structuring'!BG67 -> 45885.69587 | BG25: ='Model - Structuring'!BH67 -> 8717.317339 | BH25: ='Model - Structuring'!BI67 -> 55748.61082 | BI25: ='Model - Structuring'!BJ67 -> -1452205.178 | BJ25: ='Model - Structuring'!BK67 -> 0 | BK25: ='Model - Structuring'!BL67 -> 0 | BL25: ='Model - Structuring'!BM67 -> 0 | BM25: ='Model - Structuring'!BN67 -> 0 | BN25: ='Model - Structuring'!BO67 -> 0 | BO25: ='Model - Structuring'!BP67 -> 0 | BP25: ='Model - Structuring'!BQ67 -> 0 | BQ25: ='Model - Structuring'!BR67 -> 0 | BR25: ='Model - Structuring'!BS67 -> 0 | BS25: ='Model - Structuring'!BT67 -> 0 | BT25: ='Model - Structuring'!BU67 -> 0 | BU25: ='Model - Structuring'!BV67 -> 0 | BV25: ='Model - Structuring'!BW67 -> 0 | BW25: ='Model - Structuring'!BX67 -> 0 | BX25: ='Model - Structuring'!BY67 -> 0 | BY25: ='Model - Structuring'!BZ67 -> 0 | BZ25: ='Model - Structuring'!CA67 -> 0 | CA25: ='Model - Structuring'!CB67 -> 0 | CB25: ='Model - Structuring'!CC67 -> 0 | CC25: ='Model - Structuring'!CD67 -> 0 | CD25: ='Model - Structuring'!CE67 -> 0 | CE25: ='Model - Structuring'!CF67 -> 0 | CF25: ='Model - Structuring'!CG67 -> 0 | CG25: ='Model - Structuring'!CH67 -> 0 | CH25: ='Model - Structuring'!CI67 -> 0 | CI25: ='Model - Structuring'!CJ67 -> 0 | CJ25: ='Model - Structuring'!CK67 -> 0 | CK25: ='Model - Structuring'!CL67 -> 0 | CL25: ='Model - Structuring'!CM67 -> 0 | CM25: ='Model - Structuring'!CN67 -> 0 | CN25: ='Model - Structuring'!CO67 -> 0 | CO25: ='Model - Structuring'!CP67 -> 0 | CP25: ='Model - Structuring'!CQ67 -> 0 | CQ25: ='Model - Structuring'!CR67 -> 0 | CR25: ='Model - Structuring'!CS67 -> 0 | CS25: ='Model - Structuring'!CT67 -> 0 | CT25: ='Model - Structuring'!CU67 -> 0 | CU25: ='Model - Structuring'!CV67 -> 0 | CV25: ='Model - Structuring'!CW67 -> 0 | CW25: ='Model - Structuring'!CX67 -> 0 | CX25: ='Model - Structuring'!CY67 -> 0 | CY25: ='Model - Structuring'!CZ67 -> 0 | CZ25: ='Model - Structuring'!DA67 -> 0 | DA25: ='Model - Structuring'!DB67 -> 0 | DB25: ='Model - Structuring'!DC67 -> 0 | DC25: ='Model - Structuring'!DD67 -> 0 | DD25: ='Model - Structuring'!DE67 -> 0 | DE25: ='Model - Structuring'!DF67 -> 0 | DF25: ='Model - Structuring'!DG67 -> 0 | DG25: ='Model - Structuring'!DH67 -> 0 | DH25: ='Model - Structuring'!DI67 -> 0 | DI25: ='Model - Structuring'!DJ67 -> 0 | DJ25: ='Model - Structuring'!DK67 -> 0 | DK25: ='Model - Structuring'!DL67 -> 0 | DL25: ='Model - Structuring'!DM67 -> 0 | DM25: ='Model - Structuring'!DN67 -> 0 | DN25: ='Model - Structuring'!DO67 -> 0 | DO25: ='Model - Structuring'!DP67 -> 0 | DP25: ='Model - Structuring'!DQ67 -> 0 | DQ25: ='Model - Structuring'!DR67 -> 0 | DR25: ='Model - Structuring'!DS67 -> 0 | DS25: ='Model - Structuring'!DT67 -> 0 | DT25: ='Model - Structuring'!DU67 -> 0 | DU25: ='Model - Structuring'!DV67 -> 0 | DV25: ='Model - Structuring'!DW67 -> 0 | DW25: ='Model - Structuring'!DX67 -> 0 | DX25: ='Model - Structuring'!DY67 -> 0 | DY25: ='Model - Structuring'!DZ67 -> 0 | DZ25: ='Model - Structuring'!EA67 -> 0 | EA25: ='Model - Structuring'!EB67 -> 0 | EB25: ='Model - Structuring'!EC67 -> 0 | EC25: ='Model - Structuring'!ED67 -> 0 | ED25: ='Model - Structuring'!EE67 -> 0 | EE25: ='Model - Structuring'!EF67 -> 0 | EF25: ='Model - Structuring'!EG67 -> 0 | EG25: ='Model - Structuring'!EH67 -> 0 | EH25: ='Model - Structuring'!EI67 -> 0 | EI25: ='Model - Structuring'!EJ67 -> 0 | EJ25: ='Model - Structuring'!EK67 -> 0 | EK25: ='Model - Structuring'!EL67 -> 0 | EL25: ='Model - Structuring'!EM67 -> 0 | EM25: ='Model - Structuring'!EN67 -> 0 | EN25: ='Model - Structuring'!EO67 -> 0 | EO25: ='Model - Structuring'!EP67 -> 0 | EP25: ='Model - Structuring'!EQ67 -> 0 | EQ25: ='Model - Structuring'!ER67 -> 0 | ER25: ='Model - Structuring'!ES67 -> 0 | ES25: ='Model - Structuring'!ET67 -> 0 | ET25: ='Model - Structuring'!EU67 -> 0 | EU25: ='Model - Structuring'!EV67 -> 0 | EV25: ='Model - Structuring'!EW67 -> 0 | EW25: ='Model - Structuring'!EX67 -> 0 | EX25: ='Model - Structuring'!EY67 -> 0 | EY25: ='Model - Structuring'!EZ67 -> 0 | EZ25: ='Model - Structuring'!FA67 -> 0 | FA25: ='Model - Structuring'!FB67 -> 0 | FB25: ='Model - Structuring'!FC67 -> 0 | FC25: ='Model - Structuring'!FD67 -> 0 | FD25: ='Model - Structuring'!FE67 -> 0 | FE25: ='Model - Structuring'!FF67 -> 0 | FF25: ='Model - Structuring'!FG67 -> 0 | FG25: ='Model - Structuring'!FH67 -> 0 | FH25: ='Model - Structuring'!FI67 -> 0 | FI25: ='Model - Structuring'!FJ67 -> 0 | FJ25: ='Model - Structuring'!FK67 -> 0 | FK25: ='Model - Structuring'!FL67 -> 0 | FL25: ='Model - Structuring'!FM67 -> 0 | FM25: ='Model - Structuring'!FN67 -> 0 | FN25: ='Model - Structuring'!FO67 -> 0 | FO25: ='Model - Structuring'!FP67 -> 0 | FP25: ='Model - Structuring'!FQ67 -> 0 | FQ25: ='Model - Structuring'!FR67 -> 0 | FR25: ='Model - Structuring'!FS67 -> 0 | FS25: ='Model - Structuring'!FT67 -> 0 | FT25: ='Model - Structuring'!FU67 -> 0 | FU25: ='Model - Structuring'!FV67 -> 0 | FV25: ='Model - Structuring'!FW67 -> 0 | FW25: ='Model - Structuring'!FX67 -> 0 | FX25: ='Model - Structuring'!FY67 -> 0 | FY25: ='Model - Structuring'!FZ67 -> 0 | FZ25: ='Model - Structuring'!GA67 -> 0 | GA25: ='Model - Structuring'!GB67 -> 0 | GB25: ='Model - Structuring'!GC67 -> 0 | GC25: ='Model - Structuring'!GD67 -> 0 | GD25: ='Model - Structuring'!GE67 -> 0 | GE25: ='Model - Structuring'!GF67 -> 0 | GF25: ='Model - Structuring'!GG67 -> 0 | GG25: ='Model - Structuring'!GH67 -> 0 | GH25: ='Model - Structuring'!GI67 -> 0 | GI25: ='Model - Structuring'!GJ67 -> 0 | GJ25: ='Model - Structuring'!GK67 -> 0 | GK25: ='Model - Structuring'!GL67 -> 0 | GL25: ='Model - Structuring'!GM67 -> 0
E26: depreciation_base | F26: Depreciation on Capital Expenditures Non Circular | G26: InputS | J26: ='Model - Structuring'!K80 -> 0 | K26: ='Model - Structuring'!L80 -> 5415730.775 | L26: ='Model - Structuring'!M80 -> 5415730.775 | M26: ='Model - Structuring'!N80 -> 5415730.775 | N26: ='Model - Structuring'!O80 -> 5415730.775 | O26: ='Model - Structuring'!P80 -> 5415730.775 | P26: ='Model - Structuring'!Q80 -> 5415730.775 | Q26: ='Model - Structuring'!R80 -> 5415730.775 | R26: ='Model - Structuring'!S80 -> 5415730.775 | S26: ='Model - Structuring'!T80 -> 5415730.775 | T26: ='Model - Structuring'!U80 -> 5415730.775 | U26: ='Model - Structuring'!V80 -> 5415730.775 | V26: ='Model - Structuring'!W80 -> 5415730.775 | W26: ='Model - Structuring'!X80 -> 5415730.775 | X26: ='Model - Structuring'!Y80 -> 5415730.775 | Y26: ='Model - Structuring'!Z80 -> 5415730.775 | Z26: ='Model - Structuring'!AA80 -> 5415730.775 | AA26: ='Model - Structuring'!AB80 -> 5415730.775 | AB26: ='Model - Structuring'!AC80 -> 5415730.775 | AC26: ='Model - Structuring'!AD80 -> 5415730.775 | AD26: ='Model - Structuring'!AE80 -> 5415730.775 | AE26: ='Model - Structuring'!AF80 -> 5415730.775 | AF26: ='Model - Structuring'!AG80 -> 5415730.775 | AG26: ='Model - Structuring'!AH80 -> 5415730.775 | AH26: ='Model - Structuring'!AI80 -> 5415730.775 | AI26: ='Model - Structuring'!AJ80 -> 5415730.775 | AJ26: ='Model - Structuring'!AK80 -> 5415730.775 | AK26: ='Model - Structuring'!AL80 -> 5415730.775 | AL26: ='Model - Structuring'!AM80 -> 5415730.775 | AM26: ='Model - Structuring'!AN80 -> 5415730.775 | AN26: ='Model - Structuring'!AO80 -> 5415730.775 | AO26: ='Model - Structuring'!AP80 -> 5415730.775 | AP26: ='Model - Structuring'!AQ80 -> 5415730.775 | AQ26: ='Model - Structuring'!AR80 -> 5415730.775 | AR26: ='Model - Structuring'!AS80 -> 5415730.775 | AS26: ='Model - Structuring'!AT80 -> 5415730.775 | AT26: ='Model - Structuring'!AU80 -> 5415730.775 | AU26: ='Model - Structuring'!AV80 -> 5415730.775 | AV26: ='Model - Structuring'!AW80 -> 5415730.775 | AW26: ='Model - Structuring'!AX80 -> 5415730.775 | AX26: ='Model - Structuring'!AY80 -> 5415730.775 | AY26: ='Model - Structuring'!AZ80 -> 0 | AZ26: ='Model - Structuring'!BA80 -> 0 | BA26: ='Model - Structuring'!BB80 -> 0 | BB26: ='Model - Structuring'!BC80 -> 0 | BC26: ='Model - Structuring'!BD80 -> 0 | BD26: ='Model - Structuring'!BE80 -> 0 | BE26: ='Model - Structuring'!BF80 -> 0 | BF26: ='Model - Structuring'!BG80 -> 0 | BG26: ='Model - Structuring'!BH80 -> 0 | BH26: ='Model - Structuring'!BI80 -> 0 | BI26: ='Model - Structuring'!BJ80 -> 0 | BJ26: ='Model - Structuring'!BK80 -> 0 | BK26: ='Model - Structuring'!BL80 -> 0 | BL26: ='Model - Structuring'!BM80 -> 0 | BM26: ='Model - Structuring'!BN80 -> 0 | BN26: ='Model - Structuring'!BO80 -> 0 | BO26: ='Model - Structuring'!BP80 -> 0 | BP26: ='Model - Structuring'!BQ80 -> 0 | BQ26: ='Model - Structuring'!BR80 -> 0 | BR26: ='Model - Structuring'!BS80 -> 0 | BS26: ='Model - Structuring'!BT80 -> 0 | BT26: ='Model - Structuring'!BU80 -> 0 | BU26: ='Model - Structuring'!BV80 -> 0 | BV26: ='Model - Structuring'!BW80 -> 0 | BW26: ='Model - Structuring'!BX80 -> 0 | BX26: ='Model - Structuring'!BY80 -> 0 | BY26: ='Model - Structuring'!BZ80 -> 0 | BZ26: ='Model - Structuring'!CA80 -> 0 | CA26: ='Model - Structuring'!CB80 -> 0 | CB26: ='Model - Structuring'!CC80 -> 0 | CC26: ='Model - Structuring'!CD80 -> 0 | CD26: ='Model - Structuring'!CE80 -> 0 | CE26: ='Model - Structuring'!CF80 -> 0 | CF26: ='Model - Structuring'!CG80 -> 0 | CG26: ='Model - Structuring'!CH80 -> 0 | CH26: ='Model - Structuring'!CI80 -> 0 | CI26: ='Model - Structuring'!CJ80 -> 0 | CJ26: ='Model - Structuring'!CK80 -> 0 | CK26: ='Model - Structuring'!CL80 -> 0 | CL26: ='Model - Structuring'!CM80 -> 0 | CM26: ='Model - Structuring'!CN80 -> 0 | CN26: ='Model - Structuring'!CO80 -> 0 | CO26: ='Model - Structuring'!CP80 -> 0 | CP26: ='Model - Structuring'!CQ80 -> 0 | CQ26: ='Model - Structuring'!CR80 -> 0 | CR26: ='Model - Structuring'!CS80 -> 0 | CS26: ='Model - Structuring'!CT80 -> 0 | CT26: ='Model - Structuring'!CU80 -> 0 | CU26: ='Model - Structuring'!CV80 -> 0 | CV26: ='Model - Structuring'!CW80 -> 0 | CW26: ='Model - Structuring'!CX80 -> 0 | CX26: ='Model - Structuring'!CY80 -> 0 | CY26: ='Model - Structuring'!CZ80 -> 0 | CZ26: ='Model - Structuring'!DA80 -> 0 | DA26: ='Model - Structuring'!DB80 -> 0 | DB26: ='Model - Structuring'!DC80 -> 0 | DC26: ='Model - Structuring'!DD80 -> 0 | DD26: ='Model - Structuring'!DE80 -> 0 | DE26: ='Model - Structuring'!DF80 -> 0 | DF26: ='Model - Structuring'!DG80 -> 0 | DG26: ='Model - Structuring'!DH80 -> 0 | DH26: ='Model - Structuring'!DI80 -> 0 | DI26: ='Model - Structuring'!DJ80 -> 0 | DJ26: ='Model - Structuring'!DK80 -> 0 | DK26: ='Model - Structuring'!DL80 -> 0 | DL26: ='Model - Structuring'!DM80 -> 0 | DM26: ='Model - Structuring'!DN80 -> 0 | DN26: ='Model - Structuring'!DO80 -> 0 | DO26: ='Model - Structuring'!DP80 -> 0 | DP26: ='Model - Structuring'!DQ80 -> 0 | DQ26: ='Model - Structuring'!DR80 -> 0 | DR26: ='Model - Structuring'!DS80 -> 0 | DS26: ='Model - Structuring'!DT80 -> 0 | DT26: ='Model - Structuring'!DU80 -> 0 | DU26: ='Model - Structuring'!DV80 -> 0 | DV26: ='Model - Structuring'!DW80 -> 0 | DW26: ='Model - Structuring'!DX80 -> 0 | DX26: ='Model - Structuring'!DY80 -> 0 | DY26: ='Model - Structuring'!DZ80 -> 0 | DZ26: ='Model - Structuring'!EA80 -> 0 | EA26: ='Model - Structuring'!EB80 -> 0 | EB26: ='Model - Structuring'!EC80 -> 0 | EC26: ='Model - Structuring'!ED80 -> 0 | ED26: ='Model - Structuring'!EE80 -> 0 | EE26: ='Model - Structuring'!EF80 -> 0 | EF26: ='Model - Structuring'!EG80 -> 0 | EG26: ='Model - Structuring'!EH80 -> 0 | EH26: ='Model - Structuring'!EI80 -> 0 | EI26: ='Model - Structuring'!EJ80 -> 0 | EJ26: ='Model - Structuring'!EK80 -> 0 | EK26: ='Model - Structuring'!EL80 -> 0 | EL26: ='Model - Structuring'!EM80 -> 0 | EM26: ='Model - Structuring'!EN80 -> 0 | EN26: ='Model - Structuring'!EO80 -> 0 | EO26: ='Model - Structuring'!EP80 -> 0 | EP26: ='Model - Structuring'!EQ80 -> 0 | EQ26: ='Model - Structuring'!ER80 -> 0 | ER26: ='Model - Structuring'!ES80 -> 0 | ES26: ='Model - Structuring'!ET80 -> 0 | ET26: ='Model - Structuring'!EU80 -> 0 | EU26: ='Model - Structuring'!EV80 -> 0 | EV26: ='Model - Structuring'!EW80 -> 0 | EW26: ='Model - Structuring'!EX80 -> 0 | EX26: ='Model - Structuring'!EY80 -> 0 | EY26: ='Model - Structuring'!EZ80 -> 0 | EZ26: ='Model - Structuring'!FA80 -> 0 | FA26: ='Model - Structuring'!FB80 -> 0 | FB26: ='Model - Structuring'!FC80 -> 0 | FC26: ='Model - Structuring'!FD80 -> 0 | FD26: ='Model - Structuring'!FE80 -> 0 | FE26: ='Model - Structuring'!FF80 -> 0 | FF26: ='Model - Structuring'!FG80 -> 0 | FG26: ='Model - Structuring'!FH80 -> 0 | FH26: ='Model - Structuring'!FI80 -> 0 | FI26: ='Model - Structuring'!FJ80 -> 0 | FJ26: ='Model - Structuring'!FK80 -> 0 | FK26: ='Model - Structuring'!FL80 -> 0 | FL26: ='Model - Structuring'!FM80 -> 0 | FM26: ='Model - Structuring'!FN80 -> 0 | FN26: ='Model - Structuring'!FO80 -> 0 | FO26: ='Model - Structuring'!FP80 -> 0 | FP26: ='Model - Structuring'!FQ80 -> 0 | FQ26: ='Model - Structuring'!FR80 -> 0 | FR26: ='Model - Structuring'!FS80 -> 0 | FS26: ='Model - Structuring'!FT80 -> 0 | FT26: ='Model - Structuring'!FU80 -> 0 | FU26: ='Model - Structuring'!FV80 -> 0 | FV26: ='Model - Structuring'!FW80 -> 0 | FW26: ='Model - Structuring'!FX80 -> 0 | FX26: ='Model - Structuring'!FY80 -> 0 | FY26: ='Model - Structuring'!FZ80 -> 0 | FZ26: ='Model - Structuring'!GA80 -> 0 | GA26: ='Model - Structuring'!GB80 -> 0 | GB26: ='Model - Structuring'!GC80 -> 0 | GC26: ='Model - Structuring'!GD80 -> 0 | GD26: ='Model - Structuring'!GE80 -> 0 | GE26: ='Model - Structuring'!GF80 -> 0 | GF26: ='Model - Structuring'!GG80 -> 0 | GG26: ='Model - Structuring'!GH80 -> 0 | GH26: ='Model - Structuring'!GI80 -> 0 | GI26: ='Model - Structuring'!GJ80 -> 0 | GJ26: ='Model - Structuring'!GK80 -> 0 | GK26: ='Model - Structuring'!GL80 -> 0 | GL26: ='Model - Structuring'!GM80 -> 0
B28: General Debt Parameters (Not Issue by Issue)
C29: General Debt Inputs and Debt Size
E30: number_of_issues | F30: Number of issues | G30: =G34 -> InputC | H30: 1
E31: fixed_debt_input | F31: Fixed debt if Debt Option is Set to One (Good for Verification) | G31: InputC | H31: 138403797.6
E32: eq_up_pct | F32: Upfront equity Percent (Zero is Pro-Rata) | G32: InputC | H32: 1
E33: fixed_equity_input | F33: Fixed equity | G33: InputC
E34: debt_pct_sr | F34: Debt / capital ratio | G34: InputC | H34: 0.8
E35: DSCR_Input | F35: Minimum DSCR for sculpting & debt sizing | G35: InputC | H35: ='Model - Structuring'!F116 -> 1.35
E36: DSCR_Target_Time_Series | F36: Input Flexible DSCR that Changes Over Time | G36: InputS | J36: =$H$35 -> 1.35 | K36: =$H$35 -> 1.35 | L36: 1.35 | M36: 1.35 | N36: 1.35 | O36: 1.35 | P36: 1.35 | Q36: 1.35 | R36: 1.35 | S36: 1.35 | T36: 1.35 | U36: 1.35 | V36: 1.35 | W36: 1.35 | X36: 1.35 | Y36: 1.35 | Z36: 1.35 | AA36: 1.35 | AB36: 1.35 | AC36: 1.35 | AD36: 1.35 | AE36: 1.35 | AF36: 1.35 | AG36: 1.35 | AH36: 1.35 | AI36: 1.35 | AJ36: 1.35 | AK36: 1.35 | AL36: 1.35 | AM36: 1.35 | AN36: 1.35 | AO36: 1.35 | AP36: 1.35 | AQ36: 1.35 | AR36: 1.35 | AS36: 1.35 | AT36: 1.35 | AU36: 1.35 | AV36: 1.35 | AW36: 1.35 | AX36: 1.35 | AY36: 1.35 | AZ36: 1.35 | BA36: 1.35 | BB36: 1.35 | BC36: 1.35 | BD36: 1.35 | BE36: 1.35 | BF36: 1.35 | BG36: 1.35 | BH36: 1.35 | BI36: 1.35 | BJ36: 1.35 | BK36: 1.35 | BL36: 1.35 | BM36: 1.35 | BN36: 1.35 | BO36: 1.35 | BP36: 1.35 | BQ36: 1.35 | BR36: 1.35 | BS36: 1.35 | BT36: 1.35 | BU36: 1.35 | BV36: 1.35 | BW36: =$H$35 -> 1.35 | BX36: 1.35 | BY36: 1.35 | BZ36: 1.35 | CA36: 1.35 | CB36: 1.35 | CC36: 1.35 | CD36: 1.35 | CE36: 1.35 | CF36: 1.35 | CG36: 1.35 | CH36: 1.35 | CI36: 1.35 | CJ36: 1.35 | CK36: 1.35 | CL36: 1.35 | CM36: 1.35 | CN36: 1.35 | CO36: 1.35 | CP36: 1.35 | CQ36: 1.35 | CR36: 1.35 | CS36: 1.35 | CT36: 1.35 | CU36: 1.35 | CV36: 1.35 | CW36: 1.35 | CX36: 1.35 | CY36: 1.35 | CZ36: 1.35 | DA36: 1.35 | DB36: 1.35 | DC36: 1.35 | DD36: 1.35 | DE36: 1.35 | DF36: 1.35 | DG36: 1.35 | DH36: 1.35 | DI36: 1.35 | DJ36: 1.35 | DK36: 1.35 | DL36: 1.35 | DM36: 1.35 | DN36: 1.35 | DO36: 1.35 | DP36: 1.35 | DQ36: 1.35 | DR36: 1.35 | DS36: 1.35 | DT36: 1.35 | DU36: 1.35 | DV36: 1.35 | DW36: 1.35 | DX36: 1.35 | DY36: 1.35 | DZ36: 1.35 | EA36: 1.35 | EB36: 1.35 | EC36: 1.35 | ED36: 1.35 | EE36: 1.35 | EF36: 1.35 | EG36: 1.35 | EH36: 1.35 | EI36: =$H$35 -> 1.35 | EJ36: 1.35 | EK36: 1.35 | EL36: 1.35 | EM36: 1.35 | EN36: 1.35 | EO36: 1.35 | EP36: 1.35 | EQ36: 1.35 | ER36: 1.35 | ES36: 1.35 | ET36: 1.35 | EU36: 1.35 | EV36: 1.35 | EW36: 1.35 | EX36: 1.35 | EY36: 1.35 | EZ36: 1.35 | FA36: 1.35 | FB36: 1.35 | FC36: 1.35 | FD36: 1.35 | FE36: 1.35 | FF36: 1.35 | FG36: 1.35 | FH36: 1.35 | FI36: 1.35 | FJ36: 1.35 | FK36: 1.35 | FL36: 1.35 | FM36: 1.35 | FN36: 1.35 | FO36: 1.35 | FP36: 1.35 | FQ36: 1.35 | FR36: 1.35 | FS36: 1.35 | FT36: 1.35 | FU36: 1.35 | FV36: 1.35 | FW36: 1.35 | FX36: 1.35 | FY36: 1.35 | FZ36: 1.35 | GA36: 1.35 | GB36: 1.35 | GC36: 1.35 | GD36: 1.35 | GE36: 1.35 | GF36: 1.35 | GG36: 1.35 | GH36: 1.35 | GI36: 1.35 | GJ36: 1.35 | GK36: 1.35 | GL36: 1.35
E37: debt_sizing_option | F37: Debt Sizing Option Code (Fixed, Debt/Cap, DSCR, Min) | G37: InputC | H37: 4 | I37: 1. Fixed; 2 Debt/Cap; 3. Cash Flow; 4. Minimum
E38: Curved_Sculpting_Flag | F38: Sculpt Option for Sculpting and Debt Sized from Debt/Cap | G38: =G277 -> InputC | H38: 2 | I38: 1.-Min;2.-Flat LLCR;3.-Curved without Constraint; 4.-Custom
E39: Minimum_Repay_Flag | F39: Flag for Applying Minimum Repayment (Curved Method) | G39: =G278 -> InputC | H39: 0 | I39: 0-No Constraint Applied; 1 - Apply Constraint
E40: Minimum_Repayment | F40: Minimum Repayment with Sculpting as Percent of Debt | G40: =G278 -> InputC | H40: 0 | I40: Minimum Percent of Interest Included as Repayment
E41: Apply_Sculpting_Ratio | F41: Apply Sculpting Ratio | G41: =G279 -> InputC | H41: 0 | I41: 1- Apply Ratio of PV of Debt Service/Fixed Debt to Allocate Multiple Issues
E42: Grace_Period | F42: Number of Periods with no Repayment after COD | G42: InputC | H42: 0 | I42: Do not include construction period in grace period
E43: Debt_Service_Period1 | F43: Period of Debt Service (e.g. six for Semi-Annual) | G43: InputC | H43: 0 | I43: (0 is repayment in all periods; for example semi-annual model. Number is selected repayments e.g. 6 is payment in period 6, 12, 18 etc. with MOD -- Currently only implemented for first issue)
B45: Issue by Issue
C46: Inputs for Tranche 1 - Senior
E47: debt_code1 | F47: Code Debt type | G47: InputC | H47: 1 | I47: 1 - Senior; 2 - Mezz; 3 - Shareholder; 4 - EBL; 5 - VAT Facility; 6 - Working Capital Facility; 7 - Standby; 8 - Refinancing; 9 - Tax Equity Bridge Loan
E48: debt_pct1 | F48: Senior debt One | G48: InputC | H48: 1
E49: Sculpting_Flag1 | F49: Flag for Using Sculpting for Repayment for this Debt Issue | G49: InputC | H49: 1 | I49: 1: for sculpting ; 0: fixed % inputs
E50: tenor1 | F50: Tenor if Apply Sculpting | G50: InputC | H50: 40 | I50: Periods
E51: senior_debt1_grace_period | F51: senior_debt1_grace_period | G51: =G48 -> InputC | H51: 1
